Workbook

Sheet Standard Equipment Workbook
B2: Standard Equipment
B3: New Buildings l Incentive Application l Form 520S
B7: For Program Use Only | I7: OM: | M7: Project ID: | T7: PT ID: | AD7: v2024.1
B8: CLEAResult is a Program Management Contractor (PMC) for Energy Trust of Oregon, Inc.
B10: OVERVIEW AND ELIGIBILITY
B11: A signed copy of the Form 510A: Project Enrollment Application must accompany or precede this Incentive Application, and only those projects approved for enrollment by the New Buildings program (Program) can apply for incentive funding. This Incentive Application must be submitted to the Program along with all required documentation. Any equipment which, either separately or as part of a project, has or will receive an incentive from any other Energy Trust offering is ineligible.
B12: STEPS TO PARTICIPATE
B14: 1. | C14: Successfully enroll your project as described in the Project Enrollment Application.
D15: » Electric customers of Portland General Electric or Pacific Power can apply for incentives for qualifying electric equipment, and natural gas customers (on qualifying rate schedules) of NW Natural, Cascade Natural Gas or Avista can apply for incentives for qualifying natural gas equipment.
B16: 2. | C16: Complete this Incentive Application and submit it to the Program, along with:
D17: » Product data sheets or other documentation demonstrating equipment compliance
B18: 3. | C18: Following its review of the application, Energy Trust will notify Project Owner via email of its decision. If the application is approved for an incentive reservation, you will receive a written notice. The incentive reservation notice will inform Project Owner of the estimated incentive and incentive reservation period (i.e. the deadline to install the measures and submit all required completion documentation).
B19: 4. | C19: Install the energy efficient equipment.
B20: 5. | C20: To request payment, submit the following to the Program, before the established incentive reservation deadline, for verification:
D21: » Complete, signed Form 540PR: Payment Request » Revised version of this Incentive Application, required if installed measures differ from initial submittal » Product data sheets or other documentation demonstrating equipment compliance » Payment documentation (suppliers or contractors can send copies of the invoices directly to the Program) » Project Owner's current W-9 (if not previously submitted)
C22: If Project Owner applies for additional installed incentives using other Energy Trust tools, workbooks, or forms, the Program will combine all approved installed incentives into one payment and only one signed Payment Request is required.
B23: 6. | C23: A site verification visit may be required by the Program prior to final payment.
B24: INCENTIVE CALCULATION
B25: Based on the equipment you have selected in this workbook, your incentive is estimated at: | AA25: =IF(OR(SelectedElectric="< Select from drop down >",SelectedHeat="< Select from drop down >",G35="< Select from drop down >",SelectedGas="< Select from drop down >",SelectedDHW="< Select from drop down >"),"Complete Project Information",MIN(SUM('Equipment Options'!J300),499999)) -> 0
B26: No incentives are reserved unless an incentive reservation is issued in response to this application. Reserved amounts are estimates only and the final amount may vary depending on upon actual qualifying equipment installed and operating as verified by the Program. Incentives are subject to Program per-project installation incentive caps.
B28: PROJECT INFORMATION
B29: Project Owner Name | V29: Company
B30: Building/Project Name | V30: Project ID (if known)
B31: Permit Date | V31: Construction Completion Date
B33: Electric Utility: | G33: Select Electric Utility | S33: Gas Utility: | AB33: Select Gas Utility
B34: Heating Fuel: | G34: Select Type | S34: Domestic Hot Water (DHW) Fuel: | AB34: Select Type
B35: Building Type: | G35: Select Building Type | S35: Building Code Year: | AB35: Select Code Year
B37: SUBMITTAL
B38: By typing or printing my name below, I represent to Energy Trust that (i) I have completed this application completely, truthfully and accurately to the best of my knowledge, (ii) I have read, understand and agree that the terms and conditions contained in this Incentive Application are in addition to, and governed by, Project Owner’s Project Enrollment Application agreement with Energy Trust for the identified project; (iii) I am authorized to enter into this agreement on behalf of the named Project Owner; and (iv) all of the information in the submitted Project Enrollment Application agreement remains true and correct as of the date of this submission. Submitted By: (Must be an authorized representative of Project Owner)
B41: Type or Print Name Here | S41: Title | AB41: Date
B43: Firm name | W43: Phone | AC43: Email

Sheet Equipment Options
C1: =_xlfn.CONCAT("Project Name: ", ProjectName) -> Project Name: | D1: =IFERROR( _xlfn.IFS( AND(OR(SelectedElectric="Pacific Power",SelectedElectric="Portland General Electric"),NOT(SelectedGas="None"),NOT(SelectedGas="Select Gas Utility")),"Full Territory", AND(OR(SelectedElectric="Pacific Power",SelectedElectric="Portland General Electric"),OR(SelectedGas="None",SelectedGas="Select Gas Utility")),"Electric Only", AND(OR(SelectedElectric="Other",SelectedElectric="Select Electric Utility"),NOT(SelectedGas="None"),NOT(SelectedGas="Select Gas Utility")),"Gas Only" ),"None Selected") -> None Selected
C2: =_xlfn.CONCAT("Building Type: ", SelectedBldgType) -> Building Type: Select Building Type | D2: =_xlfn.CONCAT("Heating: ", SelectedHeat) -> Heating: Select Type
C3: =_xlfn.CONCAT("Electric Utility: ", SelectedElectric) -> Electric Utility: Select Electric Utility | D3: =_xlfn.CONCAT("DHW: ", SelectedDHW) -> DHW: Select Type
C4: =_xlfn.CONCAT("Gas Utility: ", SelectedGas) -> Gas Utility: Select Gas Utility
W6: Review Instructions & Required Documentation | Y6: Site Visit Checklist
B7: Equipment Option | D7: Requirements | E7: Installation Setting | F7: Incentive Basis | G7: Incentive | I7: Quantity | J7: Total Incentive | K7: Model numbers | M7: MAD ID | N7: Product Code | O7: Quantity | P7: Unit kWh | Q7: Unit therms | R7: Savings (kWh) | S7: Savings (therms) | T7: Elec Inc | U7: Gas Inc | V7: Total Inc | W7: Review Instructions & Required Documentation | X7: Notes | Y7: SV Instructions | Z7: # of units installed | AA7: # of units verified | AB7: Location(s) | AC7: Photo(s) | AD7: Notes
B9: Multifamily Only Options
C11: Bath Fan | D11: ENERGY STAR® Continuous Operating Bath Fans | E11: Multifamily | F11: each | G11: ≥ 5 cfm/W, < 10 cfm/W | H11: 15 | I11: 0 | J11: =IF(ISNA(V11),0,V11) -> 0 | M11: 269 | N11: =IF( AND(OR(SelectedElectric="Pacific Power",SelectedElectric="Portland General Electric"),$I11>0),"BFSS5","DNQ") -> DNQ | O11: =$I11 -> 0 | P11: =IFERROR( _xlfn.XLOOKUP($N11,ProductCode,DefaultKwh,0,0),0) -> 0 | Q11: =IFERROR( _xlfn.XLOOKUP($N11,ProductCode,DefaultTherms,0,0),0) -> 0 | R11: =IFERROR($I11*$P11,0) -> 0 | S11: =IFERROR($I11*$Q11,0) -> 0 | T11: =IFERROR(( (_xlfn.XLOOKUP($N11,ProductCode,AllocationElectric,0,0))*$V11)/100,0) -> 0 | U11: =IFERROR(( (_xlfn.XLOOKUP($N11,ProductCode,AllocationGas,0,0))*$V11)/100,0) -> 0 | V11: =IFERROR( (_xlfn.XLOOKUP($N11,ProductCode,DefaultIncentive,0,0)) * $I11,0) -> 0 | W11: -Product Cut Sheet: verify measure requirements | Y11: Verify installation of the equipment, photograph any label plates/stickers that list the make and model. Confirm exhaust rate (cfm). | Z11: =IF($I11<>"",$I11,"") -> 0
C12: ="- Continuous Single Speed" -> - Continuous Single Speed | D12: Single speed fans ≤50 cfm exhaust rate | G12: ≥ 10 cfm/W, < 15 cfm/W | H12: 25 | I12: 0 | J12: 0 | M12: 269 | N12: =IF( AND(OR(SelectedElectric="Pacific Power",SelectedElectric="Portland General Electric"),$I11>0),"BFSS10","DNQ") -> DNQ | O12: =$I12 -> 0 | P12: =IFERROR( _xlfn.XLOOKUP($N12,ProductCode,DefaultKwh,0,0),0) -> 0 | Q12: =IFERROR( _xlfn.XLOOKUP($N12,ProductCode,DefaultTherms,0,0),0) -> 0 | R12: =IFERROR($I12*$P12,0) -> 0 | S12: =IFERROR($I12*$Q12,0) -> 0 | T12: =IFERROR(( (_xlfn.XLOOKUP($N12,ProductCode,AllocationElectric,0,0))*$V12)/100,0) -> 0 | U12: =IFERROR(( (_xlfn.XLOOKUP($N12,ProductCode,AllocationGas,0,0))*$V12)/100,0) -> 0 | V12: =IFERROR( (_xlfn.XLOOKUP($N12,ProductCode,DefaultIncentive,0,0)) * $I12,0) -> 0 | Z12: =IF($I12<>"",$I12,"") -> 0
G13: ≥ 15 cfm/W | H13: 30 | I13: 0 | J13: 0 | M13: 269 | N13: =IF( AND(OR(SelectedElectric="Pacific Power",SelectedElectric="Portland General Electric"),$I11>0),"BFSS15","DNQ") -> DNQ | O13: =$I13 -> 0 | P13: =IFERROR( _xlfn.XLOOKUP($N13,ProductCode,DefaultKwh,0,0),0) -> 0 | Q13: =IFERROR( _xlfn.XLOOKUP($N13,ProductCode,DefaultTherms,0,0),0) -> 0 | R13: =IFERROR($I13*$P13,0) -> 0 | S13: =IFERROR($I13*$Q13,0) -> 0 | T13: =IFERROR(( (_xlfn.XLOOKUP($N13,ProductCode,AllocationElectric,0,0))*$V13)/100,0) -> 0 | U13: =IFERROR(( (_xlfn.XLOOKUP($N13,ProductCode,AllocationGas,0,0))*$V13)/100,0) -> 0 | V13: =IFERROR( (_xlfn.XLOOKUP($N13,ProductCode,DefaultIncentive,0,0)) * $I13,0) -> 0 | Z13: =IF($I13<>"",$I13,"") -> 0
C16: Bath Fan | D16: ENERGY STAR® Continuous Operating Bath Fans | E16: Multifamily | F16: each | G16: ≥ 5 cfm/W, < 10 cfm/W | H16: 15 | I16: 0 | J16: =IF(ISNA(V16),0,V16) -> 0 | M16: 269 | N16: =IF( AND(OR(SelectedElectric="Pacific Power",SelectedElectric="Portland General Electric"),$I16>0),"BFTSSM5","DNQ") -> DNQ | O16: =$I16 -> 0 | P16: =IFERROR( _xlfn.XLOOKUP($N16,ProductCode,DefaultKwh,0,0),0) -> 0 | Q16: =IFERROR( _xlfn.XLOOKUP($N16,ProductCode,DefaultTherms,0,0),0) -> 0 | R16: =IFERROR($I16*$P16,0) -> 0 | S16: =IFERROR($I16*$Q16,0) -> 0 | T16: =IFERROR(( (_xlfn.XLOOKUP($N16,ProductCode,AllocationElectric,0,0))*$V16)/100,0) -> 0 | U16: =IFERROR(( (_xlfn.XLOOKUP($N16,ProductCode,AllocationGas,0,0))*$V16)/100,0) -> 0 | V16: =IFERROR( (_xlfn.XLOOKUP($N16,ProductCode,DefaultIncentive,0,0)) * $I16,0) -> 0 | W16: -Product Cut Sheet: verify measure requirements | Y16: Verify installation of the equipment, photograph any label plates/stickers that list the make and model. Confirm exhaust rates (cfm). | Z16: =IF($I16<>"",$I16,"") -> 0
C17: ="- Continuous Two Speed" -> - Continuous Two Speed | D17: Two-speed fans: ≤50 cfm unoccupied exhaust rate | G17: ≥ 10 cfm/W, < 15 cfm/W | H17: 25 | I17: 0 | J17: 0 | M17: 269 | N17: =IF( AND(OR(SelectedElectric="Pacific Power",SelectedElectric="Portland General Electric"),$I16>0),"BFTSSM10","DNQ") -> DNQ | O17: =$I17 -> 0 | P17: =IFERROR( _xlfn.XLOOKUP($N17,ProductCode,DefaultKwh,0,0),0) -> 0 | Q17: =IFERROR( _xlfn.XLOOKUP($N17,ProductCode,DefaultTherms,0,0),0) -> 0 | R17: =IFERROR($I17*$P17,0) -> 0 | S17: =IFERROR($I17*$Q17,0) -> 0 | T17: =IFERROR(( (_xlfn.XLOOKUP($N17,ProductCode,AllocationElectric,0,0))*$V17)/100,0) -> 0 | U17: =IFERROR(( (_xlfn.XLOOKUP($N17,ProductCode,AllocationGas,0,0))*$V17)/100,0) -> 0 | V17: =IFERROR( (_xlfn.XLOOKUP($N17,ProductCode,DefaultIncentive,0,0)) * $I17,0) -> 0 | Z17: =IF($I17<>"",$I17,"") -> 0
C18: ="- Less than 90 cfm" -> - Less than 90 cfm | D18: AND ≤200 cfm occupied exhaust rate | G18: ≥ 15 cfm/W | H18: 30 | I18: 0 | J18: 0 | M18: 269 | N18: =IF( AND(OR(SelectedElectric="Pacific Power",SelectedElectric="Portland General Electric"),$I16>0),"BFTSSM15","DNQ") -> DNQ | O18: =$I18 -> 0 | P18: =IFERROR( _xlfn.XLOOKUP($N18,ProductCode,DefaultKwh,0,0),0) -> 0 | Q18: =IFERROR( _xlfn.XLOOKUP($N18,ProductCode,DefaultTherms,0,0),0) -> 0 | R18: =IFERROR($I18*$P18,0) -> 0 | S18: =IFERROR($I18*$Q18,0) -> 0 | T18: =IFERROR(( (_xlfn.XLOOKUP($N18,ProductCode,AllocationElectric,0,0))*$V18)/100,0) -> 0 | U18: =IFERROR(( (_xlfn.XLOOKUP($N18,ProductCode,AllocationGas,0,0))*$V18)/100,0) -> 0 | V18: =IFERROR( (_xlfn.XLOOKUP($N18,ProductCode,DefaultIncentive,0,0)) * $I18,0) -> 0 | Z18: =IF($I18<>"",$I18,"") -> 0
C21: Bath Fan | D21: ENERGY STAR® Continuous Operating Bath Fans | E21: Multifamily | F21: each | G21: ≥5 cfm/W, <10 cfm/W | H21: 15 | I21: 0 | J21: =IF(ISNA(V21),0,V21) -> 0 | M21: 269 | N21: =IF( AND(OR(SelectedElectric="Pacific Power",SelectedElectric="Portland General Electric"),$I21>0),"BFTSLG5","DNQ") -> DNQ | O21: =$I21 -> 0 | P21: =IFERROR( _xlfn.XLOOKUP($N21,ProductCode,DefaultKwh,0,0),0) -> 0 | Q21: =IFERROR( _xlfn.XLOOKUP($N21,ProductCode,DefaultTherms,0,0),0) -> 0 | R21: =IFERROR($I21*$P21,0) -> 0 | S21: =IFERROR($I21*$Q21,0) -> 0 | T21: =IFERROR(( (_xlfn.XLOOKUP($N21,ProductCode,AllocationElectric,0,0))*$V21)/100,0) -> 0 | U21: =IFERROR(( (_xlfn.XLOOKUP($N21,ProductCode,AllocationGas,0,0))*$V21)/100,0) -> 0 | V21: =IFERROR( (_xlfn.XLOOKUP($N21,ProductCode,DefaultIncentive,0,0)) * $I21,0) -> 0 | W21: -Product Cut Sheet: verify measure requirements | Y21: Verify installation of the equipment, photograph any label plates/stickers that list the make and model. Confirm exhaust rates (cfm). | Z21: =IF($I21<>"",$I21,"") -> 0
C22: ="- Continuous Two Speed" -> - Continuous Two Speed | D22: Two-speed fans: ≤50 cfm unoccupied exhaust rate | G22: ≥10 cfm/W, <15 cfm/W | H22: 25 | I22: 0 | J22: 0 | M22: 269 | N22: =IF( AND(OR(SelectedElectric="Pacific Power",SelectedElectric="Portland General Electric"),$I21>0),"BFTSLG10","DNQ") -> DNQ | O22: =$I22 -> 0 | P22: =IFERROR( _xlfn.XLOOKUP($N22,ProductCode,DefaultKwh,0,0),0) -> 0 | Q22: =IFERROR( _xlfn.XLOOKUP($N22,ProductCode,DefaultTherms,0,0),0) -> 0 | R22: =IFERROR($I22*$P22,0) -> 0 | S22: =IFERROR($I22*$Q22,0) -> 0 | T22: =IFERROR(( (_xlfn.XLOOKUP($N22,ProductCode,AllocationElectric,0,0))*$V22)/100,0) -> 0 | U22: =IFERROR(( (_xlfn.XLOOKUP($N22,ProductCode,AllocationGas,0,0))*$V22)/100,0) -> 0 | V22: =IFERROR( (_xlfn.XLOOKUP($N22,ProductCode,DefaultIncentive,0,0)) * $I22,0) -> 0 | Z22: =IF($I22<>"",$I22,"") -> 0
C23: ="- Greater than 90 cfm" -> - Greater than 90 cfm | D23: AND ≤200 cfm occupied exhaust rate | G23: ≥15 cfm/W | H23: 30 | I23: 0 | J23: 0 | M23: 269 | N23: =IF( AND(OR(SelectedElectric="Pacific Power",SelectedElectric="Portland General Electric"),$I21>0),"BFTSLG15","DNQ") -> DNQ | O23: =$I23 -> 0 | P23: =IFERROR( _xlfn.XLOOKUP($N23,ProductCode,DefaultKwh,0,0),0) -> 0 | Q23: =IFERROR( _xlfn.XLOOKUP($N23,ProductCode,DefaultTherms,0,0),0) -> 0 | R23: =IFERROR($I23*$P23,0) -> 0 | S23: =IFERROR($I23*$Q23,0) -> 0 | T23: =IFERROR(( (_xlfn.XLOOKUP($N23,ProductCode,AllocationElectric,0,0))*$V23)/100,0) -> 0 | U23: =IFERROR(( (_xlfn.XLOOKUP($N23,ProductCode,AllocationGas,0,0))*$V23)/100,0) -> 0 | V23: =IFERROR( (_xlfn.XLOOKUP($N23,ProductCode,DefaultIncentive,0,0)) * $I23,0) -> 0 | Z23: =IF($I23<>"",$I23,"") -> 0
C26: Commercial Clothes Washer w/ Dryer | D26: ENERGY STAR® | E26: Multifamily | F26: each | G26: Full service* site, electric dryer fuel | H26: 400 | I26: 0 | J26: =IF(ISNA(V26),0,V26) -> 0 | M26: 89 | N26: =IFERROR( _xlfn.IFS( AND($C$30="Electric Dryer",$D$1="Full Territory", SelectedDHW="Electric"),"COMWASHEDRYEMFFT", AND($C$30="Electric Dryer",$D$1="Full Territory", SelectedDHW="Gas"),"COMWASHGDRYEMFFT"),"DNQ") -> DNQ | O26: =$I26 -> 0 | P26: =IFERROR( _xlfn.XLOOKUP($N26,ProductCode,DefaultKwh,0,0),0) -> 0 | Q26: =IFERROR( _xlfn.XLOOKUP($N26,ProductCode,DefaultTherms,0,0),0) -> 0 | R26: =IFERROR($I26*$P26,0) -> 0 | S26: =IFERROR($I26*$Q26,0) -> 0 | T26: =IFERROR(( (_xlfn.XLOOKUP($N26,ProductCode,AllocationElectric,0,0))*$V26)/100,0) -> 0 | U26: =IFERROR(( (_xlfn.XLOOKUP($N26,ProductCode,AllocationGas,0,0))*$V26)/100,0) -> 0 | V26: =IFERROR( (_xlfn.XLOOKUP($N26,ProductCode,DefaultIncentive,0,0)) * $I26,0) -> 0 | W26: -Product Cut Sheet, verify Energy Star. | Y26: Verify installation of the equipment, photograph any accessible label plates / stickers that list the make and model. Confirm that units are front-loading | Z26: =IF($I26<>"",$I26,"") -> 0
D27: Front-loading with hot water provided by a participating utility | G27: Full service* site, gas dryer fuel | H27: 350 | I27: 0 | J27: =IF(ISNA(V27),0,V27) -> 0 | M27: 89 | N27: =IFERROR( _xlfn.IFS( AND($C$30="Gas Dryer",$D$1="Full Territory", SelectedDHW="Electric"),"COMWASHEDRYGMFFT", AND($C$30="Gas Dryer",$D$1="Full Territory", SelectedDHW="Gas"),"COMWASHGDRYGMFFT" ),"DNQ") -> DNQ | O27: =$I27 -> 0 | P27: =IFERROR( _xlfn.XLOOKUP($N27,ProductCode,DefaultKwh,0,0),0) -> 0 | Q27: =IFERROR( _xlfn.XLOOKUP($N27,ProductCode,DefaultTherms,0,0),0) -> 0 | R27: =IFERROR($I27*$P27,0) -> 0 | S27: =IFERROR($I27*$Q27,0) -> 0 | T27: =IFERROR(( (_xlfn.XLOOKUP($N27,ProductCode,AllocationElectric,0,0))*$V27)/100,0) -> 0 | U27: =IFERROR(( (_xlfn.XLOOKUP($N27,ProductCode,AllocationGas,0,0))*$V27)/100,0) -> 0 | V27: =IFERROR( (_xlfn.XLOOKUP($N27,ProductCode,DefaultIncentive,0,0)) * $I27,0) -> 0 | Z27: 0
D28: Electric only includes sites using propane or other fuels for water heat or dryer fuel | G28: Electric only | H28: 150 | I28: 0 | J28: =IF(ISNA(V28),0,V28) -> 0 | M28: 89 | N28: =IFERROR( _xlfn.IFS( AND($C$30="Electric Dryer",$D$1="Electric Only", SelectedDHW="Gas"),"COMWASHGDRYEMFET", AND($C$30="Gas Dryer",$D$1="Electric Only", SelectedDHW="Electric"),"COMWASHEDRYGMFET", AND($C$30="Electric Dryer", SelectedDHW="Other"),"COMWASHEDRYGMFET", AND($C$30="Gas Dryer", SelectedDHW="Other"),"COMWASHEDRYGMFET"),"DNQ") -> DNQ | O28: 0 | P28: =IFERROR( _xlfn.XLOOKUP($N28,ProductCode,DefaultKwh,0,0),0) -> 0 | Q28: =IFERROR( _xlfn.XLOOKUP($N28,ProductCode,DefaultTherms,0,0),0) -> 0 | R28: 0 | S28: 0 | T28: =IFERROR(( (_xlfn.XLOOKUP($N28,ProductCode,AllocationElectric,0,0))*$V28)/100,0) -> 0 | U28: =IFERROR(( (_xlfn.XLOOKUP($N28,ProductCode,AllocationGas,0,0))*$V28)/100,0) -> 0 | V28: =IFERROR( (_xlfn.XLOOKUP($N28,ProductCode,DefaultIncentive,0,0)) * $I28,0) -> 0
G29: Gas only | H29: 100 | I29: 0 | J29: =IF(ISNA(V29),0,V29) -> 0 | M29: 89 | N29: =IFERROR( _xlfn.IFS( AND($C$30="Electric Dryer",$D$1="Gas Only", SelectedDHW="Gas"),"COMWASHGDRYEMFGT", AND($C$30="Gas Dryer",$D$1="Gas Only", SelectedDHW="Electric"),"COMWASHGDRYGMFGT", AND($C$30="Gas Dryer",$D$1="Gas Only", SelectedDHW="Gas"),"COMWASHGDRYGMFGT" ),"DNQ") -> DNQ | O29: 0 | P29: =IFERROR( _xlfn.XLOOKUP($N29,ProductCode,DefaultKwh,0,0),0) -> 0 | Q29: =IFERROR( _xlfn.XLOOKUP($N29,ProductCode,DefaultTherms,0,0),0) -> 0 | R29: 0 | S29: 0 | T29: =IFERROR(( (_xlfn.XLOOKUP($N29,ProductCode,AllocationElectric,0,0))*$V29)/100,0) -> 0 | U29: =IFERROR(( (_xlfn.XLOOKUP($N29,ProductCode,AllocationGas,0,0))*$V29)/100,0) -> 0 | V29: =IFERROR( (_xlfn.XLOOKUP($N29,ProductCode,DefaultIncentive,0,0)) * $I29,0) -> 0 | Z29: 0
C30: <Select Dryer Type>
W31: -Product cut sheet or Energy Star certificate. Verification of purchase source (such as a receipt of purchase). | Y31: Verify installation of the equipment, photograph any accessible label plates / stickers that list the make and model Verify that the dryer was not purchased through a retail channel
C32: Electric Clothes Dryer, In-Unit | D32: ENERGY STAR® | E32: Multifamily | F32: each | H32: 25 | I32: 0 | J32: =IF(ISNA(V32),0,V32) -> 0 | M32: 231 | N32: =IF(OR(SelectedElectric="Pacific Power",SelectedElectric="Portland General Electric"),"DRYERELE","DNQ") -> DNQ | O32: 0 | P32: =IFERROR( _xlfn.XLOOKUP($N32,ProductCode,DefaultKwh,0,0),0) -> 0 | Q32: =IFERROR( _xlfn.XLOOKUP($N32,ProductCode,DefaultTherms,0,0),0) -> 0 | R32: 0 | S32: 0 | T32: =IFERROR(( (_xlfn.XLOOKUP($N32,ProductCode,AllocationElectric,0,0))*$V32)/100,0) -> 0 | U32: =IFERROR(( (_xlfn.XLOOKUP($N32,ProductCode,AllocationGas,0,0))*$V32)/100,0) -> 0 | V32: =IFERROR( (_xlfn.XLOOKUP($N32,ProductCode,DefaultIncentive,0,0)) * $I32,0) -> 0 | Z32: =IF($I32<>"",$I32,"") -> 0
D33: Dryer may not be purchased through retail channel
W35: -Product Cut Sheet. Copy of the NEEA product list showing the equipment model number (highlight or box the model number). Verification that the equipment is in-unit (shown in as-built plans). | Y35: Verify installation of the equipment, photograph any accessible label plates / stickers that list the make and model #, capacity & efficiency Verify heater(s) are stand-alone, in-unit (i.e., one per dwelling unit)
C36: Heat Pump Water Heater | D36: Stand-alone, in-unit HPHW in new multifamily buildings | E36: Multifamily | F36: each | H36: 800 | I36: 0 | J36: =IF(ISNA(V36),0,V36) -> 0 | M36: 52 | N36: =IF(OR(SelectedDHW="Electric",SelectedGas="None"),"COMHPWHT3","DNQ") -> DNQ | O36: =$I37 -> 0 | P36: =IFERROR( _xlfn.XLOOKUP($N36,ProductCode,DefaultKwh,0,0),0) -> 0 | Q36: =IFERROR( _xlfn.XLOOKUP($N36,ProductCode,DefaultTherms,0,0),0) -> 0 | R36: =IFERROR($I36*$P36,0) -> 0 | S36: =IFERROR($I36*$Q36,0) -> 0 | T36: =IFERROR(( (_xlfn.XLOOKUP($N36,ProductCode,AllocationElectric,0,0))*$V36)/100,0) -> 0 | U36: =IFERROR(( (_xlfn.XLOOKUP($N36,ProductCode,AllocationGas,0,0))*$V36)/100,0) -> 0 | V36: =IFERROR( (_xlfn.XLOOKUP($N36,ProductCode,DefaultIncentive,0,0)) * $I36,0) -> 0 | Z36: =IF($I36<>"",$I36,"") -> 0 | AA36: =IF($I37<>"",$I37,"") -> 
D37: Excludes central systems, contact the Program with eligibilty questions | Z37: =IF($I38<>"",$I38,"") -> 
D38: Tier 3 minimum, per Advanced Water Heater Specifications v8.0 | Z38: =IF($I39<>"",$I39,"") -> 
D39: Verify at link below: | Z39: =IF($I40<>"",$I40,"") -> 
D40: https://neea.org/resources/residential-unitary-hpwh-qualified-products-list | Z40: =IF($I41<>"",$I41,"") -> 
W42: -Product Cut Sheet, verify Energy Star and tub capacity. | Y42: Verify installation of the equipment, photograph any accessible label plates / stickers that list the make and model #, capacity & efficiency. Verify that units are front-loading and in-unit.
C43: Laundry Center Washer/Dryer Combo | D43: ENERGY STAR® | E43: Multifamily | F43: each | H43: 85 | I43: 0 | J43: =IF(ISNA(V43),0,V43) -> 0 | M43: 152 | N43: =IFERROR( _xlfn.IFS( AND($D$1="Electric Only",SelectedDHW="Electric"),"LCELEEOT", AND($D$1="Gas Only",SelectedDHW="Gas"),"LCGASGOT", AND($D$1="Full Territory",SelectedDHW="Electric"),"LCELE", AND($D$1="Full Territory",SelectedDHW="Gas"),"LCGAS"),"DNQ") -> DNQ | O43: =$I44 -> 0 | P43: =IFERROR( _xlfn.XLOOKUP($N43,ProductCode,DefaultKwh,0,0),0) -> 0 | Q43: =IFERROR( _xlfn.XLOOKUP($N43,ProductCode,DefaultTherms,0,0),0) -> 0 | R43: =IFERROR($I43*$P43,0) -> 0 | S43: =IFERROR($I43*$Q43,0) -> 0 | T43: =IFERROR(( (_xlfn.XLOOKUP($N43,ProductCode,AllocationElectric,0,0))*$V43)/100,0) -> 0 | U43: =IFERROR(( (_xlfn.XLOOKUP($N43,ProductCode,AllocationGas,0,0))*$V43)/100,0) -> 0 | V43: =IFERROR( (_xlfn.XLOOKUP($N43,ProductCode,DefaultIncentive,0,0)) * $I43,0) -> 0 | Z43: =IF($I43<>"",$I43,"") -> 0
C44: ="- In-Unit" -> - In-Unit | D44: Tub: 2.5 cubic feet or more | Z44: =IF($I44<>"",$I44,"") -> 
C45: ="- Front-loading" -> - Front-loading | D45: Water heating must be provided by participating utility | Z45: =IF($I45<>"",$I45,"") -> 
Z46: =IF($I46<>"",$I46,"") -> 
C48: Residential Clothes Washer | D48: Residential front-loading clothes washers | E48: Multifamily | F48: each | G48: Full service* site | H48: 60 | I48: 0 | J48: =IF(ISNA(V48),0,V48) -> 0 | M48: 152 | N48: =IFERROR( _xlfn.IFS( AND(SelectedDHW="Electric",$D$1="Full Territory"),"WASHELEFL", AND(SelectedDHW="Gas",$D$1="Full Territory"),"WASHGASFL" ),"DNQ") -> DNQ | O48: 0 | P48: =IFERROR( _xlfn.XLOOKUP($N48,ProductCode,DefaultKwh,0,0),0) -> 0 | Q48: =IFERROR( _xlfn.XLOOKUP($N48,ProductCode,DefaultTherms,0,0),0) -> 0 | R48: 0 | S48: 0 | T48: =IFERROR(( (_xlfn.XLOOKUP($N48,ProductCode,AllocationElectric,0,0))*$V48)/100,0) -> 0 | U48: =IFERROR(( (_xlfn.XLOOKUP($N48,ProductCode,AllocationGas,0,0))*$V48)/100,0) -> 0 | V48: =IFERROR( (_xlfn.XLOOKUP($N48,ProductCode,DefaultIncentive,0,0)) * $I48,0) -> 0 | W48: -Product Cut Sheet, verify Energy Star and tub capacity. Verification of the purchasing site (such as a reciept or invoice). | Y48: Verify installation of the equipment, photograph any accessible label plates / stickers that list the make and model Verify that the dryer was not purchased through a retail channel | Z48: 0
C49: ="- In-Unit" -> - In-Unit | D49: At least 2.5 cubic feet tub capacity | G49: Electric only | H49: 60 | I49: 0 | J49: 0 | M49: 152 | N49: =IFERROR( _xlfn.IFS( AND(SelectedDHW="Electric",$D$1="Electric Only"),"WASHELEFLEOT" ),"DNQ") -> DNQ | O49: 0 | P49: =IFERROR( _xlfn.XLOOKUP($N49,ProductCode,DefaultKwh,0,0),0) -> 0 | Q49: =IFERROR( _xlfn.XLOOKUP($N49,ProductCode,DefaultTherms,0,0),0) -> 0 | R49: 0 | S49: 0 | T49: =IFERROR(( (_xlfn.XLOOKUP($N49,ProductCode,AllocationElectric,0,0))*$V49)/100,0) -> 0 | U49: =IFERROR(( (_xlfn.XLOOKUP($N49,ProductCode,AllocationGas,0,0))*$V49)/100,0) -> 0 | V49: =IFERROR( (_xlfn.XLOOKUP($N49,ProductCode,DefaultIncentive,0,0)) * $I49,0) -> 0 | Z49: 0
C50: ="- Front-loading" -> - Front-loading | D50: ENERGY STAR | G50: Gas only | H50: 60 | I50: 0 | J50: =IF(ISNA(V50),0,V50) -> 0 | M50: 152 | N50: =IFERROR( _xlfn.IFS( AND(SelectedDHW="Gas",$D$1="Gas Only"),"WASHGASFLGOT" ),"DNQ") -> DNQ | O50: 0 | P50: =IFERROR( _xlfn.XLOOKUP($N50,ProductCode,DefaultKwh,0,0),0) -> 0 | Q50: =IFERROR( _xlfn.XLOOKUP($N50,ProductCode,DefaultTherms,0,0),0) -> 0 | R50: 0 | S50: 0 | T50: =IFERROR(( (_xlfn.XLOOKUP($N50,ProductCode,AllocationElectric,0,0))*$V50)/100,0) -> 0 | U50: =IFERROR(( (_xlfn.XLOOKUP($N50,ProductCode,AllocationGas,0,0))*$V50)/100,0) -> 0 | V50: =IFERROR( (_xlfn.XLOOKUP($N50,ProductCode,DefaultIncentive,0,0)) * $I50,0) -> 0 | Z50: 0
D51: Water heating must be provided by participating utility
D52: Washer may not be puchased through retail channel
C55: Residential Refrigerator | D55: Residential ENERGY STAR refrigerator | E55: Multifamily | F55: each | G55: ENERGY STAR | H55: 70 | I55: 0 | J55: =IF(ISNA(V55),0,V55) -> 0 | M55: 112 | N55: =IF(OR(SelectedElectric="Pacific Power",SelectedElectric="Portland General Electric"),"ESTARFRIDGE","DNQ") -> DNQ | O55: 0 | P55: =IFERROR( _xlfn.XLOOKUP($N55,ProductCode,DefaultKwh,0,0),0) -> 0 | Q55: =IFERROR( _xlfn.XLOOKUP($N55,ProductCode,DefaultTherms,0,0),0) -> 0 | R55: 0 | S55: 0 | T55: =IFERROR(( (_xlfn.XLOOKUP($N55,ProductCode,AllocationElectric,0,0))*$V55)/100,0) -> 0 | U55: =IFERROR(( (_xlfn.XLOOKUP($N55,ProductCode,AllocationGas,0,0))*$V55)/100,0) -> 0 | V55: =IFERROR( (_xlfn.XLOOKUP($N55,ProductCode,DefaultIncentive,0,0)) * $I55,0) -> 0 | W55: -Product Cut Sheet, verify capacity and Energy Star | Y55: Verify installation of the equipment, photograph any label plates / stickers that list the make and model # & capacity Verify no through door ice. Verify top mounted freezer. | Z55: 0
D56: 14.3 to 20.5 cubic feet | G56: Most Efficient (ESME) | H56: 70 | I56: 0 | J56: 0 | M56: 112 | N56: =IF(OR(SelectedElectric="Pacific Power",SelectedElectric="Portland General Electric"),"ESMEFRIDGE","DNQ") -> DNQ | O56: 0 | P56: =IFERROR( _xlfn.XLOOKUP($N56,ProductCode,DefaultKwh,0,0),0) -> 0 | Q56: =IFERROR( _xlfn.XLOOKUP($N56,ProductCode,DefaultTherms,0,0),0) -> 0 | R56: 0 | S56: 0 | T56: =IFERROR(( (_xlfn.XLOOKUP($N56,ProductCode,AllocationElectric,0,0))*$V56)/100,0) -> 0 | U56: =IFERROR(( (_xlfn.XLOOKUP($N56,ProductCode,AllocationGas,0,0))*$V56)/100,0) -> 0 | V56: =IFERROR( (_xlfn.XLOOKUP($N56,ProductCode,DefaultIncentive,0,0)) * $I56,0) -> 0 | Z56: 0
D57: Top mounted freezer and no through the door ice | G57: Emerging Technology Award (ESETA) | H57: 70 | I57: 0 | J57: =IF(ISNA(V57),0,V57) -> 0 | M57: 112 | N57: =IF(OR(SelectedElectric="Pacific Power",SelectedElectric="Portland General Electric"),"ESETAFRIDGE","DNQ") -> DNQ | O57: 0 | P57: =IFERROR( _xlfn.XLOOKUP($N57,ProductCode,DefaultKwh,0,0),0) -> 0 | Q57: =IFERROR( _xlfn.XLOOKUP($N57,ProductCode,DefaultTherms,0,0),0) -> 0 | R57: 0 | S57: 0 | T57: =IFERROR(( (_xlfn.XLOOKUP($N57,ProductCode,AllocationElectric,0,0))*$V57)/100,0) -> 0 | U57: =IFERROR(( (_xlfn.XLOOKUP($N57,ProductCode,AllocationGas,0,0))*$V57)/100,0) -> 0 | V57: =IFERROR( (_xlfn.XLOOKUP($N57,ProductCode,DefaultIncentive,0,0)) * $I57,0) -> 0 | Z57: 0
W59: -Product Cut Sheet, documentation of operating hours. | Y59: Verify installation setting is a totally enclosed parking garage Verify installation of VFD(s) on garage exhaust fans; obtain photographs of fan nameplate(s) and VFD equipment, and contamination sensors (CO/NO2) Verify garage operating hours ≥140 per week
C60: VFD Control on Parking Garage Fans | D60: Installed in totally enclosed parking garage | E60: Multifamily | F60: per cfm | G60: <8,000 cfm and unconditioned space | H60: 0.5 | I60: 0 | J60: =IF(ISNA(V60),0,V60) -> 0 | M60: 271 | N60: =IF(AND(SelectedCodeYear="2019 Code Year",OR(SelectedElectric="Pacific Power",SelectedElectric="Portland General Electric")),"VFDGARMFSM2019","DNQ") -> DNQ | O60: =$I60 -> 0 | P60: =IFERROR( _xlfn.XLOOKUP($N60,ProductCode,DefaultKwh,0,0),0) -> 0 | Q60: =IFERROR( _xlfn.XLOOKUP($N60,ProductCode,DefaultTherms,0,0),0) -> 0 | R60: =IFERROR($I60*$P60,0) -> 0 | S60: =IFERROR($I60*$Q60,0) -> 0 | T60: =IFERROR(( (_xlfn.XLOOKUP($N60,ProductCode,AllocationElectric,0,0))*$V60)/100,0) -> 0 | U60: =IFERROR(( (_xlfn.XLOOKUP($N60,ProductCode,AllocationGas,0,0))*$V60)/100,0) -> 0 | V60: =IFERROR( (_xlfn.XLOOKUP($N60,ProductCode,DefaultIncentive,0,0)) * $I60,0) -> 0 | Z60: =IF($I60<>"",$I60,"") -> 0
C61: ="- 2019 Code Year" -> - 2019 Code Year | D61: Variable speed control on fan(s) | G61: ≥8,000 cfm or conditioned space | H61: 0.1 | I61: 0 | J61: =IF(ISNA(V61),0,V61) -> 0 | M61: 271 | N61: =IF(AND(SelectedCodeYear="2019 Code Year",OR(SelectedElectric="Pacific Power",SelectedElectric="Portland General Electric")),"VFDGARMFLG2019","DNQ") -> DNQ | O61: 0 | P61: =IFERROR( _xlfn.XLOOKUP($N61,ProductCode,DefaultKwh,0,0),0) -> 0 | Q61: =IFERROR( _xlfn.XLOOKUP($N61,ProductCode,DefaultTherms,0,0),0) -> 0 | R61: 0 | S61: 0 | T61: =IFERROR(( (_xlfn.XLOOKUP($N61,ProductCode,AllocationElectric,0,0))*$V61)/100,0) -> 0 | U61: =IFERROR(( (_xlfn.XLOOKUP($N61,ProductCode,AllocationGas,0,0))*$V61)/100,0) -> 0 | V61: =IFERROR( (_xlfn.XLOOKUP($N61,ProductCode,DefaultIncentive,0,0)) * $I61,0) -> 0 | Z61: =IF($I61<>"",$I61,"") -> 0
D62: Contamination-sensing device (CO and NO2) employed
D63: Operating Hours ≥140 per week
W65: -Product Cut Sheet, documentation of operating hours. | Y65: Verify installation setting is a totally enclosed parking garage Verify installation of VFD(s) on garage exhaust fans; obtain photographs of fan nameplate(s) and VFD equipment, and contamination sensors (CO/NO2) Verify garage operating hours ≥140 per week
C66: VFD Control on Parking Garage Fans | D66: Installed in totally enclosed parking garage | E66: Multifamily | F66: per cfm | G66: <30,000 sq ft and unconditioned space | H66: 0.5 | I66: 0 | J66: =IF(ISNA(V66),0,V66) -> 0 | M66: 271 | N66: =IF(AND(SelectedCodeYear="2021 Code Year",OR(SelectedElectric="Pacific Power",SelectedElectric="Portland General Electric")),"VFDGARMFSM","DNQ") -> DNQ | O66: =$I66 -> 0 | P66: =IFERROR( _xlfn.XLOOKUP($N66,ProductCode,DefaultKwh,0,0),0) -> 0 | Q66: =IFERROR( _xlfn.XLOOKUP($N66,ProductCode,DefaultTherms,0,0),0) -> 0 | R66: =IFERROR($I66*$P66,0) -> 0 | S66: =IFERROR($I66*$Q66,0) -> 0 | T66: =IFERROR(( (_xlfn.XLOOKUP($N66,ProductCode,AllocationElectric,0,0))*$V66)/100,0) -> 0 | U66: =IFERROR(( (_xlfn.XLOOKUP($N66,ProductCode,AllocationGas,0,0))*$V66)/100,0) -> 0 | V66: =IFERROR( (_xlfn.XLOOKUP($N66,ProductCode,DefaultIncentive,0,0)) * $I66,0) -> 0 | Z66: =IF($I66<>"",$I66,"") -> 0
C67: ="- 2021 Code Year" -> - 2021 Code Year | D67: Variable speed control on fan(s) | G67: ≥30,000 sq ft or conditioned space | H67: 0.1 | I67: 0 | J67: =IF(ISNA(V67),0,V67) -> 0 | M67: 271 | N67: =IF(AND(SelectedCodeYear="2021 Code Year",OR(SelectedElectric="Pacific Power",SelectedElectric="Portland General Electric")),"VFDGARMFLG","DNQ") -> DNQ | O67: 0 | P67: =IFERROR( _xlfn.XLOOKUP($N67,ProductCode,DefaultKwh,0,0),0) -> 0 | Q67: =IFERROR( _xlfn.XLOOKUP($N67,ProductCode,DefaultTherms,0,0),0) -> 0 | R67: 0 | S67: 0 | T67: =IFERROR(( (_xlfn.XLOOKUP($N67,ProductCode,AllocationElectric,0,0))*$V67)/100,0) -> 0 | U67: =IFERROR(( (_xlfn.XLOOKUP($N67,ProductCode,AllocationGas,0,0))*$V67)/100,0) -> 0 | V67: =IFERROR( (_xlfn.XLOOKUP($N67,ProductCode,DefaultIncentive,0,0)) * $I67,0) -> 0 | Z67: =IF($I67<>"",$I67,"") -> 0
D68: Contamination-sensing device (CO and NO2) employed
D69: Operating Hours ≥140 per week
B72: HVAC & Domestic Hot Water Equipment
C74: Condensing Furnace | D74: 95% AFUE or better | E74: Any | F74: kBtu/hr | H74: 8.25 | I74: 0 | J74: =IF(ISNA(V74),0,V74) -> 0 | M74: 270 | N74: =IFERROR( _xlfn.IFS( AND(NOT(SelectedGas="None"),SelectedHeat="Gas"),"GASFURNCONN"),"DNQ") -> DNQ | O74: =$I74 -> 0 | P74: =IFERROR( _xlfn.XLOOKUP($N74,ProductCode,DefaultKwh,0,0),0) -> 0 | Q74: =IFERROR( _xlfn.XLOOKUP($N74,ProductCode,DefaultTherms,0,0),0) -> 0 | R74: =IFERROR($I74*$P74,0) -> 0 | S74: =IFERROR($I74*$Q74,0) -> 0 | T74: =IFERROR(( (_xlfn.XLOOKUP($N74,ProductCode,AllocationElectric,0,0))*$V74)/100,0) -> 0 | U74: =IFERROR(( (_xlfn.XLOOKUP($N74,ProductCode,AllocationGas,0,0))*$V74)/100,0) -> 0 | V74: =IFERROR( (_xlfn.XLOOKUP($N74,ProductCode,DefaultIncentive,0,0)) * $I74,0) -> 0 | W74: -Product Cut Sheet. As-built or mechanical schedule that indicates furnace is the primary heat source. | Y74: Verify installation of the equipment, photograph any accessible label plates / stickers that list the make and model #, capacity & efficiency. Verify unit has ECM supply fan. Verify unit is the primary heat source for the space. | Z74: =IF($I74<>"",$I74,"") -> 0
C75: ="- If multiple furnaces, use separate line for each" -> - If multiple furnaces, use separate line for each | D75: Must be primary heat source for the space and must have an ECM supply fan | E75: (Except Multifamily) | H75: 8.25 | I75: 0 | J75: =IF(ISNA(V75),0,V75) -> 0 | M75: 270 | N75: =IFERROR( _xlfn.IFS( AND(NOT(SelectedGas="None"),SelectedHeat="Gas"),"GASFURNCONN"),"DNQ") -> DNQ | O75: =$I75 -> 0 | P75: =IFERROR( _xlfn.XLOOKUP($N75,ProductCode,DefaultKwh,0,0),0) -> 0 | Q75: =IFERROR( _xlfn.XLOOKUP($N75,ProductCode,DefaultTherms,0,0),0) -> 0 | R75: =IFERROR($I75*$P75,0) -> 0 | S75: =IFERROR($I75*$Q75,0) -> 0 | T75: =IFERROR(( (_xlfn.XLOOKUP($N75,ProductCode,AllocationElectric,0,0))*$V75)/100,0) -> 0 | U75: =IFERROR(( (_xlfn.XLOOKUP($N75,ProductCode,AllocationGas,0,0))*$V75)/100,0) -> 0 | V75: =IFERROR( (_xlfn.XLOOKUP($N75,ProductCode,DefaultIncentive,0,0)) * $I75,0) -> 0 | Z75: =IF($I75<>"",$I75,"") -> 0
D76: Capacity less than 225,000 Btu/h | G76: Gas only | H76: 8 | I76: 0 | J76: =IF(ISNA(V76),0,V76) -> 0 | M76: 270 | N76: =IFERROR( _xlfn.IFS( AND(NOT(SelectedGas="None"),SelectedElectric="Other", SelectedHeat="Gas"),"GASFURNCONNGO", AND(_FV(NOT(SelectedGas="None"),"SelectedHeat")="Gas"),"GASFURNCONN"),"DNQ") -> DNQ | O76: 0 | P76: =IFERROR( _xlfn.XLOOKUP($N76,ProductCode,DefaultKwh,0,0),0) -> 0 | Q76: =IFERROR( _xlfn.XLOOKUP($N76,ProductCode,DefaultTherms,0,0),0) -> 0 | R76: 0 | S76: 0 | T76: =IFERROR(( (_xlfn.XLOOKUP($N76,ProductCode,AllocationElectric,0,0))*$V76)/100,0) -> 0 | U76: =IFERROR(( (_xlfn.XLOOKUP($N76,ProductCode,AllocationGas,0,0))*$V76)/100,0) -> 0 | V76: =IFERROR( (_xlfn.XLOOKUP($N76,ProductCode,DefaultIncentive,0,0)) * $I76,0) -> 0 | Z76: 0
G77: Gas only | H77: 8 | I77: 0 | J77: =IF(ISNA(V77),0,V77) -> 0 | M77: 270 | N77: =IFERROR( _xlfn.IFS( AND(NOT(SelectedGas="None"),SelectedElectric="Other", SelectedHeat="Gas"),"GASFURNCONNGO", AND(_FV(NOT(SelectedGas="None"),"SelectedHeat")="Gas"),"GASFURNCONN"),"DNQ") -> DNQ | O77: 0 | P77: =IFERROR( _xlfn.XLOOKUP($N77,ProductCode,DefaultKwh,0,0),0) -> 0 | Q77: =IFERROR( _xlfn.XLOOKUP($N77,ProductCode,DefaultTherms,0,0),0) -> 0 | R77: 0 | S77: 0 | T77: =IFERROR(( (_xlfn.XLOOKUP($N77,ProductCode,AllocationElectric,0,0))*$V77)/100,0) -> 0 | U77: =IFERROR(( (_xlfn.XLOOKUP($N77,ProductCode,AllocationGas,0,0))*$V77)/100,0) -> 0 | V77: =IFERROR( (_xlfn.XLOOKUP($N77,ProductCode,DefaultIncentive,0,0)) * $I77,0) -> 0
Y79: Verify installation of the equipment, photograph label plate/stickers that list the make and model #, capacity & efficiency, and tank volume. Verify unit is not used for building space heating.
C80: Condensing Tankless Water Heater | D80: Must not provide building space heating | E80: Commercial | F80: kBtu/hr | G80: Commercial | H80: 1.4 | I80: 0 | J80: =IF(ISNA(V80),0,V80) -> 0 | M80: 72 | N80: =IF(NOT(SelectedGas="None"),"CTWH200COMNONMF","DNQ") -> CTWH200COMNONMF | O80: =$I80 -> 0 | P80: =IFERROR( _xlfn.XLOOKUP($N80,ProductCode,DefaultKwh,0,0),0) -> 0 | Q80: =IFERROR( _xlfn.XLOOKUP($N80,ProductCode,DefaultTherms,0,0),0) -> 0.28 | R80: =IFERROR($I80*$P80,0) -> 0 | S80: =IFERROR($I80*$Q80,0) -> 0 | T80: =IFERROR(( (_xlfn.XLOOKUP($N80,ProductCode,AllocationElectric,0,0))*$V80)/100,0) -> 0 | U80: =IFERROR(( (_xlfn.XLOOKUP($N80,ProductCode,AllocationGas,0,0))*$V80)/100,0) -> 0 | V80: =IFERROR( (_xlfn.XLOOKUP($N80,ProductCode,DefaultIncentive,0,0)) * $I80,0) -> 0 | W80: -Product Cut Sheet. As-built or plumbing plans that indicate unit is not used for building space heating. AHRI certificate for the unit. | Z80: =IF($I80<>"",$I80,"") -> 0
C81: =" - ≥200 kBtu/h" -> - ≥200 kBtu/h | D81: Integral tank volume <10 gal | G81: Multifamily | H81: 1.4 | I81: 0 | J81: =IF(ISNA(V81),0,V81) -> 0 | M81: 72 | N81: =IF(NOT(SelectedGas="None"),"CTWH200COMMF","DNQ") -> CTWH200COMMF | O81: =$I81 -> 0 | P81: =IFERROR( _xlfn.XLOOKUP($N81,ProductCode,DefaultKwh,0,0),0) -> 0 | Q81: =IFERROR( _xlfn.XLOOKUP($N81,ProductCode,DefaultTherms,0,0),0) -> 0.42 | R81: =IFERROR($I81*$P81,0) -> 0 | S81: =IFERROR($I81*$Q81,0) -> 0 | T81: =IFERROR(( (_xlfn.XLOOKUP($N81,ProductCode,AllocationElectric,0,0))*$V81)/100,0) -> 0 | U81: =IFERROR(( (_xlfn.XLOOKUP($N81,ProductCode,AllocationGas,0,0))*$V81)/100,0) -> 0 | V81: =IFERROR( (_xlfn.XLOOKUP($N81,ProductCode,DefaultIncentive,0,0)) * $I81,0) -> 0 | Z81: =IF($I81<>"",$I81,"") -> 0
D82: Minimum 94.0% thermal efficiency | Z82: =IF($I84<>"",$I84,"") -> 
D83: Installed equipment must be on the AHRI certified product list
W85: -Product Cut Sheet, confirm thermal eff or AFUE. -Mechanical and/OR plumbing as-built plans that indicate the water heater is part of a central DHW system | Y85: Verify installation of the equipment, photograph label plates/stickers that list the make model #, capacity & efficiency, and tank volume. For MF, confirm unit is part of the central DHW system.
C86: Condensing Tank Water Heater | D86: Tank volume ≥ 10gal | E86: Any | F86: kBtu/hr | G86: Commercial | H86: 3.5 | I86: 0 | J86: =IF(ISNA(V86),0,V86) -> 0 | M86: 21 | N86: =IF(AND(SelectedDHW="Gas",NOT(SelectedGas="None")),"DHWCONDNMF","DNQ") -> DNQ | O86: =$I86 -> 0 | P86: =IFERROR( _xlfn.XLOOKUP($N86,ProductCode,DefaultKwh,0,0),0) -> 0 | Q86: =IFERROR( _xlfn.XLOOKUP($N86,ProductCode,DefaultTherms,0,0),0) -> 0 | R86: =IFERROR($I86*$P86,0) -> 0 | S86: =IFERROR($I86*$Q86,0) -> 0 | T86: =IFERROR(( (_xlfn.XLOOKUP($N86,ProductCode,AllocationElectric,0,0))*$V86)/100,0) -> 0 | U86: =IFERROR(( (_xlfn.XLOOKUP($N86,ProductCode,AllocationGas,0,0))*$V86)/100,0) -> 0 | V86: =IFERROR( (_xlfn.XLOOKUP($N86,ProductCode,DefaultIncentive,0,0)) * $I86,0) -> 0 | Z86: =IF($I86<>"",$I86,"") -> 0
D87: Capacity > 75,000 Btu/h | G87: Multifamily | H87: 3.5 | I87: 0 | J87: =IF(ISNA(V87),0,V87) -> 0 | M87: 21 | N87: =IF(AND(SelectedDHW="Gas",NOT(SelectedGas="None")),"DHWCONDTANKMF","DNQ") -> DNQ | O87: =$I87 -> 0 | P87: =IFERROR( _xlfn.XLOOKUP($N87,ProductCode,DefaultKwh,0,0),0) -> 0 | Q87: =IFERROR( _xlfn.XLOOKUP($N87,ProductCode,DefaultTherms,0,0),0) -> 0 | R87: =IFERROR($I87*$P87,0) -> 0 | S87: =IFERROR($I87*$Q87,0) -> 0 | T87: =IFERROR(( (_xlfn.XLOOKUP($N87,ProductCode,AllocationElectric,0,0))*$V87)/100,0) -> 0 | U87: =IFERROR(( (_xlfn.XLOOKUP($N87,ProductCode,AllocationGas,0,0))*$V87)/100,0) -> 0 | V87: =IFERROR( (_xlfn.XLOOKUP($N87,ProductCode,DefaultIncentive,0,0)) * $I87,0) -> 0 | Z87: =IF($I87<>"",$I87,"") -> 0
D88: Minimum 94% thermal efficiency rating | Z88: =IF($I88<>"",$I88,"") -> 
D89: Use in multifamily is limited to shared central DHW systems | Z89: =IF($I89<>"",$I89,"") -> 
Y91: Verify installation of the equipment, photograph label plates/stickers that list the model #, capacity & efficiency. No External storage tanks. For MF, confirm unit is part of the central DHW system. | Z91: =IF($I91<>"",$I91,"") -> 
C92: Condensing Tankless Water Heater | D92: Must be installed in stacked multifamily structures with central water heating | E92: Any | F92: each | G92: Commercial | H92: 140 | I92: 0 | J92: =IF(ISNA(V92),0,V92) -> 0 | M92: 212 | N92: =IF(AND(SelectedDHW="Gas",NOT(SelectedGas="None")),"CTWH199ALLCOM","DNQ") -> DNQ | O92: =$I92 -> 0 | P92: =IFERROR( _xlfn.XLOOKUP($N92,ProductCode,DefaultKwh,0,0),0) -> 0 | Q92: =IFERROR( _xlfn.XLOOKUP($N92,ProductCode,DefaultTherms,0,0),0) -> 0 | R92: =IFERROR($I92*$P92,0) -> 0 | S92: =IFERROR($I92*$Q92,0) -> 0 | T92: =IFERROR(( (_xlfn.XLOOKUP($N92,ProductCode,AllocationElectric,0,0))*$V92)/100,0) -> 0 | U92: =IFERROR(( (_xlfn.XLOOKUP($N92,ProductCode,AllocationGas,0,0))*$V92)/100,0) -> 0 | V92: =IFERROR( (_xlfn.XLOOKUP($N92,ProductCode,DefaultIncentive,0,0)) * $I92,0) -> 0 | W92: -Product Cut Sheet. AHRI certificate. Plumbing as-built plans that verify no external storage tanks. Verify unit is central DHW system. | Z92: =IF($I92<>"",$I92,"") -> 0
C93: ="- <200 kBtu/h" -> - <200 kBtu/h | D93: Energy Factor (EF) ≥ 0.94 | G93: Multifamily | H93: 140 | I93: 0 | J93: =IF(ISNA(V93),0,V93) -> 0 | M93: 196 | N93: =IF(AND(SelectedDHW="Gas",NOT(SelectedGas="None")),"MFTANKLESS199","DNQ") -> DNQ | O93: =$I93 -> 0 | P93: =IFERROR( _xlfn.XLOOKUP($N93,ProductCode,DefaultKwh,0,0),0) -> 0 | Q93: =IFERROR( _xlfn.XLOOKUP($N93,ProductCode,DefaultTherms,0,0),0) -> 0 | R93: =IFERROR($I93*$P93,0) -> 0 | S93: =IFERROR($I93*$Q93,0) -> 0 | T93: =IFERROR(( (_xlfn.XLOOKUP($N93,ProductCode,AllocationElectric,0,0))*$V93)/100,0) -> 0 | U93: =IFERROR(( (_xlfn.XLOOKUP($N93,ProductCode,AllocationGas,0,0))*$V93)/100,0) -> 0 | V93: =IFERROR( (_xlfn.XLOOKUP($N93,ProductCode,DefaultIncentive,0,0)) * $I93,0) -> 0 | Z93: =IF($I93<>"",$I93,"") -> 0
D94: No external storage tanks | Z94: =IF($I94<>"",$I94,"") -> 
D95: Installed equipment must be on the AHRI certified product list
Z96: =IF($I96<>"",$I96,"") -> 
C98: Ductless Heat Pump | D98: Minimum efficiency of 18 SEER or SEER2 and 10 HSPF or 9.5 HSPF2 | E98: Multifamily, Dorm | F98: ton | G98: With baseboard heating | H98: 500 | I98: 0 | J98: =IF(ISNA(V98),0,V98) -> 0 | M98: 192 | N98: =IFERROR( _xlfn.IFS( $C$100="Dorm","DHPDORMBASE", $C$100="Lodging","DHPLODBASE", $C$100="Multifamily","DHPMFBASE" ),"DNQ") -> DNQ | O98: =$I98 -> 0 | P98: =IFERROR( _xlfn.XLOOKUP($N98,ProductCode,DefaultKwh,0,0),0) -> 0 | Q98: =IFERROR( _xlfn.XLOOKUP($N98,ProductCode,DefaultTherms,0,0),0) -> 0 | R98: =IFERROR($I98*$P98,0) -> 0 | S98: =IFERROR($I98*$Q98,0) -> 0 | T98: =IFERROR(( (_xlfn.XLOOKUP($N98,ProductCode,AllocationElectric,0,0))*$V98)/100,0) -> 0 | U98: =IFERROR(( (_xlfn.XLOOKUP($N98,ProductCode,AllocationGas,0,0))*$V98)/100,0) -> 0 | V98: =IFERROR( (_xlfn.XLOOKUP($N98,ProductCode,DefaultIncentive,0,0)) * $I98,0) -> 0 | W98: -Product Cut Sheet. AHRI certificate. Mechanical as-built plans to verify number of ductless indoor heads. | Y98: Verify installation of equipment, photograph label plates/stickers that list the model #, capacity & efficiency. Verify unit is ductless with 2 heads or less per compressor. | Z98: =IF($I98<>"",$I98,"") -> 0
D99: Single compressor systems with up to two heads per dwelling unit | E99: or Lodging | G99: Without baseboard heating | H99: 500 | I99: 0 | J99: =IF(ISNA(V99),0,V99) -> 0 | M99: 192 | N99: =IFERROR( _xlfn.IFS( $C$100="Dorm","DHPDORMNOBASE", $C$100="Lodging","DHPLODNOBASE", $C$100="Multifamily","DHPMFNOBASE" ),"DNQ") -> DNQ | O99: =$I99 -> 0 | P99: =IFERROR( _xlfn.XLOOKUP($N99,ProductCode,DefaultKwh,0,0),0) -> 0 | Q99: =IFERROR( _xlfn.XLOOKUP($N99,ProductCode,DefaultTherms,0,0),0) -> 0 | R99: =IFERROR($I99*$P99,0) -> 0 | S99: =IFERROR($I99*$Q99,0) -> 0 | T99: =IFERROR(( (_xlfn.XLOOKUP($N99,ProductCode,AllocationElectric,0,0))*$V99)/100,0) -> 0 | U99: =IFERROR(( (_xlfn.XLOOKUP($N99,ProductCode,AllocationGas,0,0))*$V99)/100,0) -> 0 | V99: =IFERROR( (_xlfn.XLOOKUP($N99,ProductCode,DefaultIncentive,0,0)) * $I99,0) -> 0 | Z99: =IF($I99<>"",$I99,"") -> 0
C100: <Select Building Type>
W101: -Product Cut Sheet. Copy of the NEEA product list showing the equipment model number (highlight or box the model number). | Y101: -Verify installation of the equipment, photograph label plates/stickers that list the make and model #, capacity & efficiency
C102: Commercial Heat Pump Water Heater | D102: Excludes central systems, contact the Program with eligibilty questions | E102: Any | F102: each | H102: 800 | I102: 0 | J102: =IF(ISNA(V102),0,V102) -> 0 | M102: 254 | N102: =IFERROR( _xlfn.IFS( AND(NOT(SelectedElectric="None"),SelectedDHW="Electric",$C$106="Tier 1"),"CHPWHT1", AND(NOT(SelectedElectric="None"),SelectedDHW="Electric",$C$106="Tier 2"),"CHPWHT2", AND(NOT(SelectedElectric="None"),SelectedDHW="Electric",$C$106="Tier 2, ducted"),"CHPWHT2D", AND(NOT(SelectedElectric="None"),SelectedDHW="Electric",$C$106="Tier 3"),"CHPWHT3", AND(NOT(SelectedElectric="None"),SelectedDHW="Electric",$C$106="Tier 3, ducted"),"CHPWHT3D", AND(NOT(SelectedElectric="None"),SelectedDHW="Electric",$C$106="Tier 4 & up"),"CHPWHT4UP", AND(NOT(SelectedElectric="None"),SelectedDHW="Electric",$C$106="Tier 4 & up, ducted"),"CHPWHT4UPD"),"DNQ") -> DNQ | O102: =$I102 -> 0 | P102: =IFERROR( _xlfn.XLOOKUP($N102,ProductCode,DefaultKwh,0,0),0) -> 0 | Q102: =IFERROR( _xlfn.XLOOKUP($N102,ProductCode,DefaultTherms,0,0),0) -> 0 | R102: =IFERROR($I102*$P102,0) -> 0 | S102: =IFERROR($I102*$Q102,0) -> 0 | T102: =IFERROR(( (_xlfn.XLOOKUP($N102,ProductCode,AllocationElectric,0,0))*$V102)/100,0) -> 0 | U102: =IFERROR(( (_xlfn.XLOOKUP($N102,ProductCode,AllocationGas,0,0))*$V102)/100,0) -> 0 | V102: =IFERROR( (_xlfn.XLOOKUP($N102,ProductCode,DefaultIncentive,0,0)) * $I102,0) -> 0 | Z102: =IF($I102<>"",$I102,"") -> 0
D103: Tier 3 minimum, per Advanced Water Heater Specifications v8.0 | E103: (Except Multifamily)
D104: Verify at link below:
D105: https://neea.org/resources/residential-unitary-hpwh-qualified-products-list
C106: <Select type>
C108: Commercial Infrared Radiant Heaters | D108: Low intensity discharge, natural gas-fired, non-condensing, positive pressure system | E108: Interior spaces | F108: kBtu/hr | G108: Modulating | H108: 2.25 | I108: 0 | J108: =IF(ISNA(V108),0,V108) -> 0 | M108: 117 | N108: =IFERROR( _xlfn.IFS( AND(NOT(SelectedGas="None"),SelectedElectric="Other"),"RADHEATMODGO", NOT(SelectedGas="None"),"RADHEATMOD"),"DNQ") -> RADHEATMOD | O108: =$I108 -> 0 | P108: =IFERROR( _xlfn.XLOOKUP($N108,ProductCode,DefaultKwh,0,0),0) -> 2.44 | Q108: =IFERROR( _xlfn.XLOOKUP($N108,ProductCode,DefaultTherms,0,0),0) -> 3.8 | R108: =IFERROR($I108*$P108,0) -> 0 | S108: =IFERROR($I108*$Q108,0) -> 0 | T108: =IFERROR(( (_xlfn.XLOOKUP($N108,ProductCode,AllocationElectric,0,0))*$V108)/100,0) -> 0 | U108: =IFERROR(( (_xlfn.XLOOKUP($N108,ProductCode,AllocationGas,0,0))*$V108)/100,0) -> 0 | V108: =IFERROR( (_xlfn.XLOOKUP($N108,ProductCode,DefaultIncentive,0,0)) * $I108,0) -> 0 | W108: -Product Cut Sheet, confirm modulating. -Site Plan to confirm in space(s) <20,000 sq ft | Y108: Photo equipment and tag- frequently ceiling mounted. Will likey need to get invoice or HVAC quote to confirm model | Z108: =IF($I108<>"",$I108,"") -> 0
E109: <20,000 sqft | G109: Non-modulating | H109: 1.25 | I109: 0 | J109: =IF(ISNA(V109),0,V109) -> 0 | M109: 117 | N109: =IFERROR( _xlfn.IFS( AND(NOT(SelectedGas="None"),SelectedElectric="Other"),"RADHEATNONMODGO", NOT(SelectedGas="None"),"RADHEATNONMOD"),"DNQ") -> RADHEATNONMOD | O109: =$I109 -> 0 | P109: =IFERROR( _xlfn.XLOOKUP($N109,ProductCode,DefaultKwh,0,0),0) -> 2.5 | Q109: =IFERROR( _xlfn.XLOOKUP($N109,ProductCode,DefaultTherms,0,0),0) -> 2.93 | R109: =IFERROR($I109*$P109,0) -> 0 | S109: =IFERROR($I109*$Q109,0) -> 0 | T109: =IFERROR(( (_xlfn.XLOOKUP($N109,ProductCode,AllocationElectric,0,0))*$V109)/100,0) -> 0 | U109: =IFERROR(( (_xlfn.XLOOKUP($N109,ProductCode,AllocationGas,0,0))*$V109)/100,0) -> 0 | V109: =IFERROR( (_xlfn.XLOOKUP($N109,ProductCode,DefaultIncentive,0,0)) * $I109,0) -> 0 | Z109: =IF($I109<>"",$I109,"") -> 0
Z110: =IF($I111<>"",$I111,"") -> 
C112: Commercial Clothes Washer w/ Dryer | D112: ENERGY STAR® | E112: Any | F112: each | G112: Full service* site, electric dryer fuel | H112: 400 | I112: 0 | J112: =IF(ISNA(V112),0,V112) -> 0 | M112: 89 | N112: =IFERROR( _xlfn.IFS( AND($C$116="Electric Dryer",$D$1="Full Territory", SelectedDHW="Electric"),"COMWASHEDRYEFT", AND($C$116="Electric Dryer",$D$1="Full Territory", SelectedDHW="Gas"),"COMWASHGDRYEFT"),"DNQ") -> DNQ | O112: =$I112 -> 0 | P112: =IFERROR( _xlfn.XLOOKUP($N112,ProductCode,DefaultKwh,0,0),0) -> 0 | Q112: =IFERROR( _xlfn.XLOOKUP($N112,ProductCode,DefaultTherms,0,0),0) -> 0 | R112: =IFERROR($I112*$P112,0) -> 0 | S112: =IFERROR($I112*$Q112,0) -> 0 | T112: =IFERROR(( (_xlfn.XLOOKUP($N112,ProductCode,AllocationElectric,0,0))*$V112)/100,0) -> 0 | U112: =IFERROR(( (_xlfn.XLOOKUP($N112,ProductCode,AllocationGas,0,0))*$V112)/100,0) -> 0 | V112: =IFERROR( (_xlfn.XLOOKUP($N112,ProductCode,DefaultIncentive,0,0)) * $I112,0) -> 0 | W112: -Product Cut Sheet, verify Energy Star | Y112: Verify installation of the equipment, photograph label plates/stickers that list the model #, verify unit is front loading. | Z112: =IF($I112<>"",$I112,"") -> 0
D113: Front-loading with hot water provided by a participating utility | E113: (Except Multifamily) | G113: Full service* site, gas dryer fuel | H113: 350 | I113: 0 | J113: =IF(ISNA(V113),0,V113) -> 0 | M113: 89 | N113: =IFERROR( _xlfn.IFS( AND($C$116="Gas Dryer",$D$1="Full Territory", SelectedDHW="Electric"),"COMWASHEDRYGFT", AND($C$116="Gas Dryer",$D$1="Full Territory", SelectedDHW="Gas"),"COMWASHGDRYGFT" ),"DNQ") -> DNQ | O113: =$I113 -> 0 | P113: =IFERROR( _xlfn.XLOOKUP($N113,ProductCode,DefaultKwh,0,0),0) -> 0 | Q113: =IFERROR( _xlfn.XLOOKUP($N113,ProductCode,DefaultTherms,0,0),0) -> 0 | R113: =IFERROR($I113*$P113,0) -> 0 | S113: =IFERROR($I113*$Q113,0) -> 0 | T113: =IFERROR(( (_xlfn.XLOOKUP($N113,ProductCode,AllocationElectric,0,0))*$V113)/100,0) -> 0 | U113: =IFERROR(( (_xlfn.XLOOKUP($N113,ProductCode,AllocationGas,0,0))*$V113)/100,0) -> 0 | V113: =IFERROR( (_xlfn.XLOOKUP($N113,ProductCode,DefaultIncentive,0,0)) * $I113,0) -> 0 | Z113: =IF($I114<>"",$I114,"") -> 0
D114: Electric only includes sites using propane or other fuels for water heat or dryer fuel | G114: Electric only | H114: 150 | I114: 0 | J114: =IF(ISNA(V114),0,V114) -> 0 | M114: 89 | N114: =IFERROR( _xlfn.IFS( AND($C$116="Electric Dryer",$D$1="Electric Only", SelectedDHW="Gas"),"COMWASHGDRYEET", AND($C$116="Gas Dryer",$D$1="Electric Only", SelectedDHW="Electric"),"COMWASHEDRYGET", AND($C$116="Electric Dryer", SelectedDHW="Other"),"COMWASHEDRYGET", AND($C$116="Gas Dryer", SelectedDHW="Other"),"COMWASHEDRYGMFET"),"DNQ") -> DNQ | O114: =$I114 -> 0 | P114: =IFERROR( _xlfn.XLOOKUP($N114,ProductCode,DefaultKwh,0,0),0) -> 0 | Q114: =IFERROR( _xlfn.XLOOKUP($N114,ProductCode,DefaultTherms,0,0),0) -> 0 | R114: 0 | S114: 0 | T114: =IFERROR(( (_xlfn.XLOOKUP($N114,ProductCode,AllocationElectric,0,0))*$V114)/100,0) -> 0 | U114: =IFERROR(( (_xlfn.XLOOKUP($N114,ProductCode,AllocationGas,0,0))*$V114)/100,0) -> 0 | V114: =IFERROR( (_xlfn.XLOOKUP($N114,ProductCode,DefaultIncentive,0,0)) * $I114,0) -> 0 | Z114: =IF($I115<>"",$I115,"") -> 0
G115: Gas only | H115: 100 | I115: 0 | J115: =IF(ISNA(V115),0,V115) -> 0 | M115: 89 | N115: =IFERROR( _xlfn.IFS( AND($C$116="Electric Dryer",$D$1="Gas Only", SelectedDHW="Gas"),"COMWASHGDRYEGT", AND($C$116="Gas Dryer",$D$1="Gas Only", SelectedDHW="Electric"),"COMWASHGDRYGGT", AND($C$116="Gas Dryer",$D$1="Gas Only", SelectedDHW="Gas"),"COMWASHGDRYGGT" ),"DNQ") -> DNQ | O115: 0 | P115: =IFERROR( _xlfn.XLOOKUP($N115,ProductCode,DefaultKwh,0,0),0) -> 0 | Q115: =IFERROR( _xlfn.XLOOKUP($N115,ProductCode,DefaultTherms,0,0),0) -> 0 | R115: 0 | S115: 0 | T115: =IFERROR(( (_xlfn.XLOOKUP($N115,ProductCode,AllocationElectric,0,0))*$V115)/100,0) -> 0 | U115: =IFERROR(( (_xlfn.XLOOKUP($N115,ProductCode,AllocationGas,0,0))*$V115)/100,0) -> 0 | V115: =IFERROR( (_xlfn.XLOOKUP($N115,ProductCode,DefaultIncentive,0,0)) * $I115,0) -> 0
C116: <Select Dryer Type>
W117: -Product Cut Sheet and AHRI certificate. -Site Plan to confirm in space(s) <10,000 sq ft | Y117: Verify installation of the equipment, photograph label plates/stickers that list the model #, capacity & efficiency Verify the space served by the heat pump(s) is enclosed and not open to other conditioned spaces
C118: Commercial Air-Source Ductless Heat Pump | D118: Conditioned space served must have a combined floor area < 10,000 sq ft. | E118: Office, Retail, or | F118: ton | G118: Climate Zone: | H118: 300 | I118: 0 | J118: =IF(ISNA(V118),0,V118) -> 0 | M118: 255 | N118: =IFERROR( _xlfn.IFS( AND(OR(SelectedElectric="Pacific Power",SelectedElectric="Portland General Electric"),$G$119="CZ1 HZ1"),"HPREPHZ1", AND(OR(SelectedElectric="Pacific Power",SelectedElectric="Portland General Electric"),$G$119="CZ2 HZ1"),"HPREPHZ1", AND(OR(SelectedElectric="Pacific Power",SelectedElectric="Portland General Electric"),$G$119="CZ3 HZ1"),"HPREPHZ1", OR(SelectedElectric="Pacific Power",SelectedElectric="Portland General Electric"),"HPREPHZ2Z3"),"DNQ") -> DNQ | O118: =$I118 -> 0 | P118: =IFERROR( _xlfn.XLOOKUP($N118,ProductCode,DefaultKwh,0,0),0) -> 0 | Q118: =IFERROR( _xlfn.XLOOKUP($N118,ProductCode,DefaultTherms,0,0),0) -> 0 | R118: =IFERROR($I118*$P118,0) -> 0 | S118: =IFERROR($I118*$Q118,0) -> 0 | T118: =IFERROR(( (_xlfn.XLOOKUP($N118,ProductCode,AllocationElectric,0,0))*$V118)/100,0) -> 0 | U118: =IFERROR(( (_xlfn.XLOOKUP($N118,ProductCode,AllocationGas,0,0))*$V118)/100,0) -> 0 | V118: =IFERROR( (_xlfn.XLOOKUP($N118,ProductCode,DefaultIncentive,0,0)) * $I118,0) -> 0 | Z118: =IF($I118<>"",$I118,"") -> 0
D119: AHRI rated with SEER ≥ 20 and HSPF > 9.5 | E119: Restaurant | G119: =IFERROR(_xlfn.XLOOKUP($C$121,CZHZZipCode,CZHZCombined,"Climate Zone",0),"Climate Zone") -> 0 | Z119: =IF($I120<>"",$I120,"") -> 
C120: Enter Zip Code Below: | Z120: =IF($I121<>"",$I121,"") -> 
C125: Ozone Laundry System | D125: Must be new and installed on either new or existing programmable commercial washing machine(s). | E125: Any | F125: per system | G125: <75 lbs capacity | H125: 5000 | I125: 0 | J125: =IF(ISNA(V125),0,V125) -> 0 | M125: 80 | N125: =IFERROR( _xlfn.IFS( SelectedDHW="Electric","OZONSYS75EWH", AND($D$1="Full Territory",SelectedDHW="Gas"),"OZONSYS75GWHFULL", AND($D$1="Gas Only",SelectedDHW="Gas"),"OZONSYS75GWHGOT"),"DNQ") -> DNQ | O125: =$I125 -> 0 | P125: =IFERROR( _xlfn.XLOOKUP($N125,ProductCode,DefaultKwh,0,0),0) -> 0 | Q125: =IFERROR( _xlfn.XLOOKUP($N125,ProductCode,DefaultTherms,0,0),0) -> 0 | R125: =IFERROR($I125*$P125,0) -> 0 | S125: =IFERROR($I125*$Q125,0) -> 0 | T125: =IFERROR(( (_xlfn.XLOOKUP($N125,ProductCode,AllocationElectric,0,0))*$V125)/100,0) -> 0 | U125: =IFERROR(( (_xlfn.XLOOKUP($N125,ProductCode,AllocationGas,0,0))*$V125)/100,0) -> 0 | V125: =IFERROR( (_xlfn.XLOOKUP($N125,ProductCode,DefaultIncentive,0,0)) * $I125,0) -> 0 | W125: -Invoice or SV Report; -Product Cut Sheet, verify efficiency -Mechanical and/or plumbing as-built drawings that indicate how hot water for clothes washing is provided. Documentation of the ozone transfer method. | Y125: -Verify installation of the equipment, photograph label plates/stickers that list the model #. Verify that all washers at the facility are programmed and connected to work with the ozone laundry system (partial conversions are ineligible). Verify that ozone is transferred into the water with the venturi injection or bubble diffusion process. | Z125: =IF($I125<>"",$I125,"") -> 0
D126: Each ozone generator may serve one or more washers. | E126: (Except Multifamily) | G126: 75-125 lbs capacity | H126: 7500 | I126: 0 | J126: =IF(ISNA(V126),0,V126) -> 0 | M126: 80 | N126: =IFERROR( _xlfn.IFS( SelectedDHW="Electric","OZONSYS75125EWH", AND($D$1="Full Territory",SelectedDHW="Gas"),"OZONSYS75125GWHFULL", AND($D$1="Gas Only",SelectedDHW="Gas"),"OZONSYS75125GWHGOT"),"DNQ") -> DNQ | O126: =$I126 -> 0 | P126: 0 | Q126: 0 | R126: =IFERROR($I126*$P126,0) -> 0 | S126: =IFERROR($I126*$Q126,0) -> 0 | T126: 0 | U126: 0 | V126: 0 | Z126: =IF($I126<>"",$I126,"") -> 0
D127: All existing/new washers at a facility must be reprogrammed and connected to work with the new ozone laundry system. Partial conversions are not eligible. | G127: 126-400 lbs capacity | H127: 15000 | I127: 0 | J127: 0 | M127: 80 | N127: =IFERROR( _xlfn.IFS( SelectedDHW="Electric","OZONSYS126400EWH", AND($D$1="Full Territory",SelectedDHW="Gas"),"OZONSYS126400GWHFULL", AND($D$1="Gas Only",SelectedDHW="Gas"),"OZONSYS126400GWHGOT"),"DNQ") -> DNQ | O127: 0 | P127: 0 | Q127: 0 | R127: 0 | S127: 0 | T127: 0 | U127: 0 | V127: 0 | Z127: =IF($I127<>"",$I127,"") -> 0
G128: 401-600 lbs capacity | H128: 25000 | I128: 0 | J128: 0 | M128: 80 | N128: =IFERROR( _xlfn.IFS( SelectedDHW="Electric","OZONSYS401600EWH", AND($D$1="Full Territory",SelectedDHW="Gas"),"OZONSYS401600GWHFULL", AND($D$1="Gas Only",SelectedDHW="Gas"),"OZONSYS401600GWHGOT"),"DNQ") -> DNQ | O128: 0 | P128: 0 | Q128: 0 | R128: 0 | S128: 0 | T128: 0 | U128: 0 | V128: 0 | Z128: 0
D129: Water heating for clothes washing must be provided by boilers, or gas or electric water heaters. Water heating must be provided by a participating utility. | G129: >600 lbs capacity | H129: 30000 | I129: 0 | J129: 0 | M129: 80 | N129: =IFERROR( _xlfn.IFS( SelectedDHW="Electric","OZONSYS600EWH", AND($D$1="Full Territory",SelectedDHW="Gas"),"OZONSYS600GWHFULL", AND($D$1="Gas Only",SelectedDHW="Gas"),"OZONSYS600GWHGOT"),"DNQ") -> DNQ | O129: 0 | P129: 0 | Q129: 0 | R129: 0 | S129: 0 | T129: 0 | U129: 0 | V129: 0 | Z129: 0
D131: The ozone laundry system(s) must transfer ozone into the water with either the venturi injection or bubble diffusion process.
W134: -Product Cut Sheet for dryer capacity and product cut sheet for valves. | Y134: Verify installation of equipment, photograph label plates/stickers that list the model # and capacity of the dryer. Photograph the two-stage gas valves.
C135: Two-stage Gas Valve on Clothes Dryers in On-Premises Laundry | D135: Valves must be installed on commercial gas-fired dryers | E135: Any | F135: ton | H135: 700 | I135: 0 | J135: =IF(ISNA(V135),0,V135) -> 0 | M135: 291 | N135: =IF(SelectedDHW="Gas","2STAGASGVALVEOPLDRY","DNQ") -> DNQ | O135: =$I135 -> 0 | P135: =IFERROR( _xlfn.XLOOKUP($N135,ProductCode,DefaultKwh,0,0),0) -> 0 | Q135: =IFERROR( _xlfn.XLOOKUP($N135,ProductCode,DefaultTherms,0,0),0) -> 0 | R135: =IFERROR($I135*$P135,0) -> 0 | S135: =IFERROR($I135*$Q135,0) -> 0 | T135: =IFERROR(( (_xlfn.XLOOKUP($N135,ProductCode,AllocationElectric,0,0))*$V135)/100,0) -> 0 | U135: =IFERROR(( (_xlfn.XLOOKUP($N135,ProductCode,AllocationGas,0,0))*$V135)/100,0) -> 0 | V135: =IFERROR( (_xlfn.XLOOKUP($N135,ProductCode,DefaultIncentive,0,0)) * $I135,0) -> 0 | Z135: =IF($I135<>"",$I135,"") -> 0
D136: Dryer ≤200 pounds of dry clothes capacity or ≤65 cubic feet of dryer drum volume | Z136: =IF($I137<>"",$I137,"") -> 
D137: Valves can be installed on new or existing gas-fired dryers
Y139: Verify installation of equipment, photograph label plates/stickers that list the model # and capacity. If possible, have access panel opened to confirm mechanized dampers.
C140: Rooftop Unit Controls | D140: Manufacturer-installed economizer on new packaged rooftop unit | E140: Any | F140: ton | G140: Gas Heat | H140: 30 | I140: 0 | J140: =IF(ISNA(V140),0,V140) -> 0 | M140: 195 | N140: =IF(SelectedHeat="Gas","RTUCTRLECOGH","DNQ") -> DNQ | O140: =$I140 -> 0 | P140: =IFERROR( _xlfn.XLOOKUP($N140,ProductCode,DefaultKwh,0,0),0) -> 0 | Q140: =IFERROR( _xlfn.XLOOKUP($N140,ProductCode,DefaultTherms,0,0),0) -> 0 | R140: =IFERROR($I140*$P140,0) -> 0 | S140: =IFERROR($I140*$Q140,0) -> 0 | T140: =IFERROR(( (_xlfn.XLOOKUP($N140,ProductCode,AllocationElectric,0,0))*$V140)/100,0) -> 0 | U140: =IFERROR(( (_xlfn.XLOOKUP($N140,ProductCode,AllocationGas,0,0))*$V140)/100,0) -> 0 | V140: =IFERROR( (_xlfn.XLOOKUP($N140,ProductCode,DefaultIncentive,0,0)) * $I140,0) -> 0 | W140: -Product Cut Sheet or equipment submittal that verifies the presence of an economizer and the RTU cooling capacity. | Z140: =IF($I140<>"",$I140,"") -> 0
C141: Economizer | D141: RTU cooling capacity <54,000 Btu/h | G141: Heat Pump Heat | H141: 30 | I141: 0 | J141: =IF(ISNA(V141),0,V141) -> 0 | M141: 195 | N141: =IF(SelectedHeat="Electric","RTUCTRLECOHPH","DNQ") -> DNQ | O141: 0 | P141: =IFERROR( _xlfn.XLOOKUP($N141,ProductCode,DefaultKwh,0,0),0) -> 0 | Q141: =IFERROR( _xlfn.XLOOKUP($N141,ProductCode,DefaultTherms,0,0),0) -> 0 | R141: 0 | S141: 0 | T141: =IFERROR(( (_xlfn.XLOOKUP($N141,ProductCode,AllocationElectric,0,0))*$V141)/100,0) -> 0 | U141: =IFERROR(( (_xlfn.XLOOKUP($N141,ProductCode,AllocationGas,0,0))*$V141)/100,0) -> 0 | V141: =IFERROR( (_xlfn.XLOOKUP($N141,ProductCode,DefaultIncentive,0,0)) * $I141,0) -> 0 | Z141: =IF($I141<>"",$I141,"") -> 0
W143: -Product Cut Sheet or equipment submittal that verifies the presence of an economizer, CO2 sensor, and the RTU cooling capacity. Mechanical as-built plans to verify the spaces served by the RTU. | Y143: Verify installation of the equipment, photograph label plates/stickers that list the model #. Photograph the CO2 sensor if accessible.
C144: Rooftop Unit Controls | D144: Manufacturer-installed economizer on new packaged rooftop unit | E144: Any | F144: ton | G144: Gas Heat | H144: 29 | I144: 0 | J144: =IF(ISNA(V144),0,V144) -> 0 | M144: 195 | N144: =IFERROR( _xlfn.IFS( AND(G144="Gas Heat",$D$1="Gas Only",SelectedHeat="Gas"),"RTUCTRLDCVGHGOT", AND(G144="Gas Heat",$D$1="Full Territory",SelectedHeat="Gas"),"RTUCTRLDCVGH" ),"DNQ") -> DNQ | O144: =$I144 -> 0 | P144: =IFERROR( _xlfn.XLOOKUP($N144,ProductCode,DefaultKwh,0,0),0) -> 0 | Q144: =IFERROR( _xlfn.XLOOKUP($N144,ProductCode,DefaultTherms,0,0),0) -> 0 | R144: =IFERROR($I144*$P144,0) -> 0 | S144: =IFERROR($I144*$Q144,0) -> 0 | T144: =IFERROR(( (_xlfn.XLOOKUP($N144,ProductCode,AllocationElectric,0,0))*$V144)/100,0) -> 0 | U144: =IFERROR(( (_xlfn.XLOOKUP($N144,ProductCode,AllocationGas,0,0))*$V144)/100,0) -> 0 | V144: =IFERROR( (_xlfn.XLOOKUP($N144,ProductCode,DefaultIncentive,0,0)) * $I144,0) -> 0 | Z144: =IF($I144<>"",$I144,"") -> 0
C145: Demand Control Ventilation (DCV) | D145: RTU must also have an economizer | G145: Heat Pump Heat | H145: 29 | I145: 0 | J145: =IF(ISNA(V145),0,V145) -> 0 | M145: 195 | N145: =IF(AND(G145="Heat Pump Heat",OR(SelectedElectric="Pacific Power",SelectedElectric="Portland General Electric")),"RTUCTRLDCVHPH","DNQ") -> DNQ | O145: 0 | P145: =IFERROR( _xlfn.XLOOKUP($N145,ProductCode,DefaultKwh,0,0),0) -> 0 | Q145: =IFERROR( _xlfn.XLOOKUP($N145,ProductCode,DefaultTherms,0,0),0) -> 0 | R145: 0 | S145: 0 | T145: =IFERROR(( (_xlfn.XLOOKUP($N145,ProductCode,AllocationElectric,0,0))*$V145)/100,0) -> 0 | U145: =IFERROR(( (_xlfn.XLOOKUP($N145,ProductCode,AllocationGas,0,0))*$V145)/100,0) -> 0 | V145: =IFERROR( (_xlfn.XLOOKUP($N145,ProductCode,DefaultIncentive,0,0)) * $I145,0) -> 0 | Z145: =IF($I145<>"",$I145,"") -> 0
D146: RTU must not serve a space required by code to have DCV
D147: * contact program for eligible space types
W149: -Product Cut Sheet or equipment submittal that verifies the presence of an economize, CO2 sensor, VFD, and the RTU cooling capacity. Mechanical as-built plans to verify the spaces served by the RTU. | Y149: Verify installation of the equipment, photograph label plates/stickers that list the model #, capacity. Photograph the VFD (project contact may need to open RTU access panel for VFD to be visually confirmed).
C150: Rooftop Unit Controls | D150: Manufacturer-installed economizer on new packaged rooftop unit | E150: Any | F150: ton | G150: Heat Pump Heat | H150: 100 | I150: 0 | J150: =IF(ISNA(V150),0,V150) -> 0 | M150: 195 | N150: =IF(AND(G150="Heat Pump Heat",OR(SelectedElectric="Pacific Power",SelectedElectric="Portland General Electric")),"RTUCTRLVSFHPH","DNQ") -> DNQ | O150: =$I150 -> 0 | P150: =IFERROR( _xlfn.XLOOKUP($N150,ProductCode,DefaultKwh,0,0),0) -> 0 | Q150: =IFERROR( _xlfn.XLOOKUP($N150,ProductCode,DefaultTherms,0,0),0) -> 0 | R150: =IFERROR($I150*$P150,0) -> 0 | S150: =IFERROR($I150*$Q150,0) -> 0 | T150: =IFERROR(( (_xlfn.XLOOKUP($N150,ProductCode,AllocationElectric,0,0))*$V150)/100,0) -> 0 | U150: =IFERROR(( (_xlfn.XLOOKUP($N150,ProductCode,AllocationGas,0,0))*$V150)/100,0) -> 0 | V150: =IFERROR( (_xlfn.XLOOKUP($N150,ProductCode,DefaultIncentive,0,0)) * $I150,0) -> 0 | Z150: =IF($I150<>"",$I150,"") -> 0
C151: Supply Fan Variable Frequency Drive (VFD) | D151: RTU must also have an economizer and DCV
D152: RTU cooling capacity <65,000 Btu/h
C155: Server Closet Mini-Split A/C or Heat Pump | D155: Cooling efficiency greater than SEER 18 or SEER2 18 | E155: Any | F155: ton cooling | G155: Mini-Split A/C | H155: 250 | I155: 0 | J155: =IF(ISNA(V155),0,V155) -> 0 | M155: 3 | N155: =IF(OR(SelectedElectric="Pacific Power",SelectedElectric="Portland General Electric"),"MINISPLITAC","DNQ") -> DNQ | O155: =$I155 -> 0 | P155: =IFERROR( _xlfn.XLOOKUP($N155,ProductCode,DefaultKwh,0,0),0) -> 0 | Q155: =IFERROR( _xlfn.XLOOKUP($N155,ProductCode,DefaultTherms,0,0),0) -> 0 | R155: =IFERROR($I155*$P155,0) -> 0 | S155: =IFERROR($I155*$Q155,0) -> 0 | T155: =IFERROR(( (_xlfn.XLOOKUP($N155,ProductCode,AllocationElectric,0,0))*$V155)/100,0) -> 0 | U155: =IFERROR(( (_xlfn.XLOOKUP($N155,ProductCode,AllocationGas,0,0))*$V155)/100,0) -> 0 | V155: =IFERROR( (_xlfn.XLOOKUP($N155,ProductCode,DefaultIncentive,0,0)) * $I155,0) -> 0 | W155: -Product Cut Sheet and AHRI certificate. Mechanical as-built plans that show the location and quantity of the units. | Y155: Verify installation of the indoor and outdoor units, photograph label plates/stickers that list the model #, capacity & efficiency. Verify maximum of two units per space installed. | Z155: =IF($I155<>"",$I155,"") -> 0
D156: Cooling capacity no greater than 4.5 tons per unit | E156: (Excluding Multifamily | F156: capacity | G156: Mini-Split Heat Pump | H156: 250 | I156: 0 | J156: =IF(ISNA(V156),0,V156) -> 0 | M156: 3 | N156: =IF(OR(SelectedElectric="Pacific Power",SelectedElectric="Portland General Electric"),"MINISPLITHP","DNQ") -> DNQ | O156: =$I156 -> 0 | P156: =IFERROR( _xlfn.XLOOKUP($N156,ProductCode,DefaultKwh,0,0),0) -> 0 | Q156: =IFERROR( _xlfn.XLOOKUP($N156,ProductCode,DefaultTherms,0,0),0) -> 0 | R156: =IFERROR($I156*$P156,0) -> 0 | S156: =IFERROR($I156*$Q156,0) -> 0 | T156: =IFERROR(( (_xlfn.XLOOKUP($N156,ProductCode,AllocationElectric,0,0))*$V156)/100,0) -> 0 | U156: =IFERROR(( (_xlfn.XLOOKUP($N156,ProductCode,AllocationGas,0,0))*$V156)/100,0) -> 0 | V156: =IFERROR( (_xlfn.XLOOKUP($N156,ProductCode,DefaultIncentive,0,0)) * $I156,0) -> 0 | Z156: =IF($I156<>"",$I156,"") -> 0
D157: Must serve a space exclusively for servers, communications, or data equipment | E157: Tenant Spaces) | Z157: =IF($I158<>"",$I158,"") -> 
D158: Maximum of 2 units per space
C161: VFD Control on Parking Garage Fans | D161: Installed in totally enclosed parking garage | E161: Any | F161: per cfm | G161: <30,000 sq ft and unconditioned space | H161: 0.4 | I161: 0 | J161: =IF(ISNA(V161),0,V161) -> 0 | M161: 271 | N161: =IF(AND(SelectedCodeYear="2021 Code Year",OR(SelectedElectric="Pacific Power",SelectedElectric="Portland General Electric")),"VFDGARNMFSM","DNQ") -> DNQ | O161: =$I161 -> 0 | P161: =IFERROR( _xlfn.XLOOKUP($N161,ProductCode,DefaultKwh,0,0),0) -> 0 | Q161: =IFERROR( _xlfn.XLOOKUP($N161,ProductCode,DefaultTherms,0,0),0) -> 0 | R161: =IFERROR($I161*$P161,0) -> 0 | S161: =IFERROR($I161*$Q161,0) -> 0 | T161: =IFERROR(( (_xlfn.XLOOKUP($N161,ProductCode,AllocationElectric,0,0))*$V161)/100,0) -> 0 | U161: =IFERROR(( (_xlfn.XLOOKUP($N161,ProductCode,AllocationGas,0,0))*$V161)/100,0) -> 0 | V161: =IFERROR( (_xlfn.XLOOKUP($N161,ProductCode,DefaultIncentive,0,0)) * $I161,0) -> 0 | W161: -Product Cut Sheet. Site plans that indicate parking garage is totally enclosed. | Y161: Verify installation of the equipment, photograph any label plates/stickers that list the model #. Verify that CO and NO2 sensors are active. Verify operatings hours ≥140 per week. | Z161: =IF($I161<>"",$I161,"") -> 0
C162: ="- 2021 Code Year" -> - 2021 Code Year | D162: Variable speed control on fan(s) | E162: (Except Multifamily) | G162: ≥30,000 sq ft or conditioned space | H162: 0.1 | I162: 0 | J162: =IF(ISNA(V162),0,V162) -> 0 | M162: 271 | N162: =IF(AND(SelectedCodeYear="2021 Code Year",OR(SelectedElectric="Pacific Power",SelectedElectric="Portland General Electric")),"VFDGARNMFLG","DNQ") -> DNQ | O162: =$I162 -> 0 | P162: =IFERROR( _xlfn.XLOOKUP($N162,ProductCode,DefaultKwh,0,0),0) -> 0 | Q162: =IFERROR( _xlfn.XLOOKUP($N162,ProductCode,DefaultTherms,0,0),0) -> 0 | R162: =IFERROR($I162*$P162,0) -> 0 | S162: =IFERROR($I162*$Q162,0) -> 0 | T162: =IFERROR(( (_xlfn.XLOOKUP($N162,ProductCode,AllocationElectric,0,0))*$V162)/100,0) -> 0 | U162: =IFERROR(( (_xlfn.XLOOKUP($N162,ProductCode,AllocationGas,0,0))*$V162)/100,0) -> 0 | V162: =IFERROR( (_xlfn.XLOOKUP($N162,ProductCode,DefaultIncentive,0,0)) * $I162,0) -> 0 | Z162: =IF($I162<>"",$I162,"") -> 0
D163: Contamination-sensing device (CO and NO2) employed | Z163: =IF($I164<>"",$I164,"") -> 
D164: Operating Hours ≥140 per week
C167: Variable Refrigerant Flow (VRF) | D167: Standard: Minimum fan efficiency 40% or minimum fan efficiency or index target 0.82 | Z167: =IF($I168<>"",$I168,"") -> 
C168: Multi-Split Heat Pump | D168: Standard: Energy recovery meeting a 50% enthalpy recovery efficiency minimum | W168: -Product Cut Sheet for DOAS and VRF indoor/outdoor units. -VRF systems must meet or exceed 2016 CEE Tier 1 - include a copy of the 2016 CEE Tier 1 table. -AHRI Certificate for VRF units. | Y168: Verify and photograph the DOAS and VRF indoor and outdoor units. Photograph label plates/stickers that list the model #. Verify the majority of the indoor unit fans are set to cycle rather than running continuously during occupied hours
D169: HE DOAS : Minimum fan efficiency 65% or minimum fan efficiency or index target 1.55 | E169: Office, School, | F169: sqft area | G169: All Non-Ducted | H169: 1 | I169: 0 | J169: =H169*I169 -> 0 | M169: 216 | N169: =IF(OR(SelectedElectric="Pacific Power",SelectedElectric="Portland General Electric"),"VRFND","DNQ") -> DNQ | O169: =$I169 -> 0 | P169: =IFERROR( _xlfn.XLOOKUP($N169,ProductCode,DefaultKwh,0,0),0) -> 0 | Q169: =IFERROR( _xlfn.XLOOKUP($N169,ProductCode,DefaultTherms,0,0),0) -> 0 | R169: =IFERROR($I169*$P169,0) -> 0 | S169: =IFERROR($I169*$Q169,0) -> 0 | T169: =IFERROR(( (_xlfn.XLOOKUP($N169,ProductCode,AllocationElectric,0,0))*$V169)/100,0) -> 0 | U169: =IFERROR(( (_xlfn.XLOOKUP($N169,ProductCode,AllocationGas,0,0))*$V169)/100,0) -> 0 | V169: =IFERROR( (_xlfn.XLOOKUP($N169,ProductCode,DefaultIncentive,0,0)) * $I169,0) -> 0 | Z169: =IF($I169<>"",$I169,"") -> 0
D170: HE DOAS: Energy recovery meeting a 75% enthalpy recovery efficiency minimum | E170: Multifamily, and Retail | F170: (served by VRF) | G170: All Non-Ducted w/ HE DOAS | H170: 1 | I170: 0 | J170: 0 | M170: 216 | N170: =IF(OR(SelectedElectric="Pacific Power",SelectedElectric="Portland General Electric"),"VRFNDHEDOAS","DNQ") -> DNQ | O170: =$I170 -> 0 | P170: =IFERROR( _xlfn.XLOOKUP($N170,ProductCode,DefaultKwh,0,0),0) -> 0 | Q170: =IFERROR( _xlfn.XLOOKUP($N170,ProductCode,DefaultTherms,0,0),0) -> 0 | R170: =IFERROR($I170*$P170,0) -> 0 | S170: =IFERROR($I170*$Q170,0) -> 0 | T170: =IFERROR(( (_xlfn.XLOOKUP($N170,ProductCode,AllocationElectric,0,0))*$V170)/100,0) -> 0 | U170: =IFERROR(( (_xlfn.XLOOKUP($N170,ProductCode,AllocationGas,0,0))*$V170)/100,0) -> 0 | V170: =IFERROR( (_xlfn.XLOOKUP($N170,ProductCode,DefaultIncentive,0,0)) * $I170,0) -> 0 | Z170: =IF($I170<>"",$I170,"") -> 0
D171: Each condenser unit must have a rated cooling capacity > 5 tons with variable speed compressor operation and must serve multiple indoor evaporator units
D173: DOAS air shall be supplied at a neutral space temperature
D174: The majority of the indoor unit fans must be set to cycle rather than running continuously during occupied hours
D176: Proposed VRF systems must meet or exceed 2016 CEE Tier 1
D177: https://www.energytrust.org/wp-content/uploads/2018/07/Appendix_A_2016-18_CEE_ComACHP_UnitarySpec.pdf
C181: Hydronic Heating Circulators with Speed Controls | D181: Variable speed ECMs only | E181: Any | F181: kBtu/hr | G181: >1/2 - ≤3/4 horsepower (>550 - ≤750 Max watts) | H181: 300 | I181: 0 | J181: =IF(ISNA(V181),0,V181) -> 0 | M181: 247 | N181: =IFERROR( _xlfn.IFS( (OR(SelectedElectric="Pacific Power",SelectedElectric="Portland General Electric")),"HHCECMVS050075HP"),"DNQ") -> DNQ | O181: =$I181 -> 0 | P181: =IFERROR( _xlfn.XLOOKUP($N181,ProductCode,DefaultKwh,0,0),0) -> 0 | Q181: =IFERROR( _xlfn.XLOOKUP($N181,ProductCode,DefaultTherms,0,0),0) -> 0 | R181: =IFERROR($I181*$P181,0) -> 0 | S181: =IFERROR($I181*$Q181,0) -> 0 | T181: =IFERROR(( (_xlfn.XLOOKUP($N181,ProductCode,AllocationElectric,0,0))*$V181)/100,0) -> 0 | U181: =IFERROR(( (_xlfn.XLOOKUP($N181,ProductCode,AllocationGas,0,0))*$V181)/100,0) -> 0 | V181: =IFERROR( (_xlfn.XLOOKUP($N181,ProductCode,DefaultIncentive,0,0)) * $I181,0) -> 0 | W181: -Product Cut Sheet -Mechanical and/or plumbing as-built drawings to verify the ECMs and in-line circulators with horizontal motors. -As-built plumbing plans. | Y181: Verify installation of the equipment, photograph any label plates/stickers that list the model #. | Z181: =IF($I181<>"",$I181,"") -> 0
D182: Limited to in-line circulators with horizontal motors | G182: >3/4 - ≤1.25 horsepower (>750 - ≤1000 Max watts) | H182: 300 | I182: 0 | J182: =IF(ISNA(V182),0,V182) -> 0 | M182: 247 | N182: =IFERROR( _xlfn.IFS( OR(SelectedElectric="Pacific Power",SelectedElectric="Portland General Electric"),"HHCECMVS075125HP"),"DNQ") -> DNQ | O182: =$I182 -> 0 | P182: 0 | Q182: 0 | R182: =IFERROR($I182*$P182,0) -> 0 | S182: =IFERROR($I182*$Q182,0) -> 0 | T182: 0 | U182: 0 | V182: 0 | Z182: =IF($I182<>"",$I182,"") -> 0
G183: >1.25 - ≤1.75 horsepower (>1000 - ≤1300 Max watts) | H183: 300 | I183: 0 | J183: 0 | M183: 247 | N183: =IFERROR( _xlfn.IFS( OR(SelectedElectric="Pacific Power",SelectedElectric="Portland General Electric"),"HHCECMVS125175HP"),"DNQ") -> DNQ | O183: 0 | P183: 0 | Q183: 0 | R183: 0 | S183: 0 | T183: 0 | U183: 0 | V183: 0 | Z183: 0
G184: >1.75 - ≤2.5 horsepower (>1300 - ≤1750 Max watts) | H184: 300 | I184: 0 | J184: 0 | M184: 247 | N184: =IFERROR( _xlfn.IFS( OR(SelectedElectric="Pacific Power",SelectedElectric="Portland General Electric"),"HHCECMVS175250HP"),"DNQ") -> DNQ | O184: 0 | P184: 0 | Q184: 0 | R184: 0 | S184: 0 | T184: 0 | U184: 0 | V184: 0 | Z184: 0
G185: >2.5 - ≤3.5 horsepower (>1750 - ≤2350 Max watts) | H185: 750 | I185: 0 | J185: 0 | M185: 247 | N185: =IFERROR( _xlfn.IFS( OR(SelectedElectric="Pacific Power",SelectedElectric="Portland General Electric"),"HHCECMVS250350HP"),"DNQ") -> DNQ | O185: 0 | P185: 0 | Q185: 0 | R185: 0 | S185: 0 | T185: 0 | U185: 0 | V185: 0 | Z185: 0
G186: >3.5 - ≤4.5 horsepower (>2350 - ≤3100 Max watts) | H186: 750 | I186: 0 | J186: 0 | M186: 247 | N186: =IFERROR( _xlfn.IFS( OR(SelectedElectric="Pacific Power",SelectedElectric="Portland General Electric"),"HHCECMVS350450HP"),"DNQ") -> DNQ | O186: 0 | P186: 0 | Q186: 0 | R186: 0 | S186: 0 | T186: 0 | U186: 0 | V186: 0 | Z186: 0
G187: >4.5 - ≤5 horsepower (>3100 - ≤3700 Max watts) | H187: 750 | I187: 0 | J187: 0 | M187: 247 | N187: =IFERROR( _xlfn.IFS( OR(SelectedElectric="Pacific Power",SelectedElectric="Portland General Electric"),"HHCECMVS450500HP"),"DNQ") -> DNQ | O187: 0 | P187: 0 | Q187: 0 | R187: 0 | S187: 0 | T187: 0 | U187: 0 | V187: 0 | Z187: 0
C190: Hydronic Heating Circulators Single Speed | D190: Limited to in-line circulators with horizontal motors. | E190: Any | F190: kBtu/hr | G190: >3/4 - ≤1.25 horsepower (>750 - ≤1000 Max watts) | H190: 200 | I190: 0 | J190: =IF(ISNA(V190),0,V190) -> 0 | M190: 247 | N190: =IFERROR( _xlfn.IFS( OR(SelectedElectric="Pacific Power",SelectedElectric="Portland General Electric"),"HHCECMSS075125HP"),"DNQ") -> DNQ | O190: =$I190 -> 0 | P190: =IFERROR( _xlfn.XLOOKUP($N190,ProductCode,DefaultKwh,0,0),0) -> 0 | Q190: =IFERROR( _xlfn.XLOOKUP($N190,ProductCode,DefaultTherms,0,0),0) -> 0 | R190: =IFERROR($I190*$P190,0) -> 0 | S190: =IFERROR($I190*$Q190,0) -> 0 | T190: =IFERROR(( (_xlfn.XLOOKUP($N190,ProductCode,AllocationElectric,0,0))*$V190)/100,0) -> 0 | U190: =IFERROR(( (_xlfn.XLOOKUP($N190,ProductCode,AllocationGas,0,0))*$V190)/100,0) -> 0 | V190: =IFERROR( (_xlfn.XLOOKUP($N190,ProductCode,DefaultIncentive,0,0)) * $I190,0) -> 0 | W190: -Product Cut Sheet -Mechanical and/or plumbing as-built drawings to verify the in-line circulators with horizontal motors. -As-built plumbing plans. | Y190: Verify installation of the equipment, photograph any label plates/stickers that list the model #. | Z190: =IF($I190<>"",$I190,"") -> 0
G191: >1.25 - ≤1.75 horsepower (>1000 - ≤1300 Max watts) | H191: 200 | I191: 0 | J191: =IF(ISNA(V191),0,V191) -> 0 | M191: 247 | N191: =IFERROR( _xlfn.IFS( OR(SelectedElectric="Pacific Power",SelectedElectric="Portland General Electric"),"HHCECMSS125175HP"),"DNQ") -> DNQ | O191: =$I191 -> 0 | P191: 0 | Q191: 0 | R191: =IFERROR($I191*$P191,0) -> 0 | S191: =IFERROR($I191*$Q191,0) -> 0 | T191: 0 | U191: 0 | V191: 0 | Z191: =IF($I191<>"",$I191,"") -> 0
G192: >1.75 - ≤2.5 horsepower (>1300 - ≤1750 Max watts) | H192: 200 | I192: 0 | J192: 0 | M192: 247 | N192: =IFERROR( _xlfn.IFS( OR(SelectedElectric="Pacific Power",SelectedElectric="Portland General Electric"),"HHCECMSS175250HP"),"DNQ") -> DNQ | O192: 0 | P192: 0 | Q192: 0 | R192: 0 | S192: 0 | T192: 0 | U192: 0 | V192: 0 | Z192: 0
G193: >2.5 - ≤3.5 horsepower (>1750 - ≤2350 Max watts) | H193: 300 | I193: 0 | J193: 0 | M193: 247 | N193: =IFERROR( _xlfn.IFS( OR(SelectedElectric="Pacific Power",SelectedElectric="Portland General Electric"),"HHCECMSS250350HP"), "DNQ") -> DNQ | O193: 0 | P193: 0 | Q193: 0 | R193: 0 | S193: 0 | T193: 0 | U193: 0 | V193: 0 | Z193: 0
G194: >3.5 - ≤4.5 horsepower (>2350 - ≤3100 Max watts) | H194: 300 | I194: 0 | J194: 0 | M194: 247 | N194: =IFERROR( _xlfn.IFS( OR(SelectedElectric="Pacific Power",SelectedElectric="Portland General Electric"),"HHCECMSS350450HP"),"DNQ") -> DNQ | O194: 0 | P194: 0 | Q194: 0 | R194: 0 | S194: 0 | T194: 0 | U194: 0 | V194: 0 | Z194: 0
G195: >4.5 - ≤5 horsepower (>3100 - ≤3700 Max watts) | H195: 300 | I195: 0 | J195: 0 | M195: 247 | N195: =IFERROR( _xlfn.IFS( OR(SelectedElectric="Pacific Power",SelectedElectric="Portland General Electric"),"HHCECMSS450500HP"),"DNQ") -> DNQ | O195: 0 | P195: 0 | Q195: 0 | R195: 0 | S195: 0 | T195: 0 | U195: 0 | V195: 0 | Z195: 0
C198: VFD on Cooling Tower Pump | D198: VFD installed on a commercial pump with a nominal motor power up to 20 hp | E198: Any | F198: each | G198: 1.5 HP (1.26 to 1.75 HP) | H198: 250 | I198: 0 | J198: =IF(ISNA(V198),0,V198) -> 0 | M198: 284 | N198: =IFERROR( _xlfn.IFS( OR(SelectedElectric="Pacific Power",SelectedElectric="Portland General Electric"),"CPUMPVSDCOOLT1P5HP"),"DNQ") -> DNQ | O198: =$I198 -> 0 | P198: =IFERROR( _xlfn.XLOOKUP($N198,ProductCode,DefaultKwh,0,0),0) -> 0 | Q198: =IFERROR( _xlfn.XLOOKUP($N198,ProductCode,DefaultTherms,0,0),0) -> 0 | R198: =IFERROR($I198*$P198,0) -> 0 | S198: =IFERROR($I198*$Q198,0) -> 0 | T198: =IFERROR(( (_xlfn.XLOOKUP($N198,ProductCode,AllocationElectric,0,0))*$V198)/100,0) -> 0 | U198: =IFERROR(( (_xlfn.XLOOKUP($N198,ProductCode,AllocationGas,0,0))*$V198)/100,0) -> 0 | V198: =IFERROR( (_xlfn.XLOOKUP($N198,ProductCode,DefaultIncentive,0,0)) * $I198,0) -> 0 | W198: -Product cut sheet for pump and VFD. As-built plumbing plans. | Y198: Verify installation of the equipment, photograph any label plates/stickers that list the model #. | Z198: =IF($I198<>"",$I198,"") -> 0
D199: Irrigation pumps are ineligible | G199: 2 HP (1.76 to 2.50 HP) | H199: 300 | I199: 0 | J199: =IF(ISNA(V199),0,V199) -> 0 | M199: 284 | N199: =IFERROR( _xlfn.IFS( OR(SelectedElectric="Pacific Power",SelectedElectric="Portland General Electric"),"CPUMPVSDCOOLT2HP"),"DNQ") -> DNQ | O199: =$I199 -> 0 | P199: 0 | Q199: 0 | R199: =IFERROR($I199*$P199,0) -> 0 | S199: =IFERROR($I199*$Q199,0) -> 0 | T199: 0 | U199: 0 | V199: 0 | Z199: =IF($I199<>"",$I199,"") -> 0
G200: 3 HP (2.51 to 3.50 HP) | H200: 350 | I200: 0 | J200: 0 | M200: 284 | N200: =IFERROR( _xlfn.IFS( OR(SelectedElectric="Pacific Power",SelectedElectric="Portland General Electric"),"CPUMPVSDCOOLT3HP"),"DNQ") -> DNQ | O200: 0 | P200: 0 | Q200: 0 | R200: 0 | S200: 0 | T200: 0 | U200: 0 | V200: 0 | Z200: 0
G201: 4 HP (3.51 to 4.50 HP) | H201: 450 | I201: 0 | J201: 0 | M201: 284 | N201: =IFERROR( _xlfn.IFS( OR(SelectedElectric="Pacific Power",SelectedElectric="Portland General Electric"),"CPUMPVSDCOOLT4HP"),"DNQ") -> DNQ | O201: 0 | P201: 0 | Q201: 0 | R201: 0 | S201: 0 | T201: 0 | U201: 0 | V201: 0 | Z201: 0
G202: 5 HP (4.51 to 6.00 HP) | H202: 500 | I202: 0 | J202: 0 | M202: 284 | N202: =IFERROR( _xlfn.IFS( OR(SelectedElectric="Pacific Power",SelectedElectric="Portland General Electric"),"CPUMPVSDCOOLT5HP"),"DNQ") -> DNQ | O202: 0 | P202: 0 | Q202: 0 | R202: 0 | S202: 0 | T202: 0 | U202: 0 | V202: 0 | Z202: 0
G203: 7.5 HP (6.01 to 8.00 HP) | H203: 600 | I203: 0 | J203: 0 | M203: 284 | N203: =IFERROR( _xlfn.IFS( OR(SelectedElectric="Pacific Power",SelectedElectric="Portland General Electric"),"CPUMPVSDCOOLT7P5HP"),"DNQ") -> DNQ | O203: 0 | P203: 0 | Q203: 0 | R203: 0 | S203: 0 | T203: 0 | U203: 0 | V203: 0 | Z203: 0
G204: 10 HP (8.01 to 12.50 HP) | H204: 700 | I204: 0 | J204: 0 | M204: 284 | N204: =IFERROR( _xlfn.IFS( OR(SelectedElectric="Pacific Power",SelectedElectric="Portland General Electric"),"CPUMPVSDCOOLT10HP"),"DNQ") -> DNQ | O204: 0 | P204: 0 | Q204: 0 | R204: 0 | S204: 0 | T204: 0 | U204: 0 | V204: 0 | Z204: 0
G205: 15 HP (12.51 to 17.50 HP) | H205: 850 | I205: 0 | J205: =IF(ISNA(V205),0,V205) -> 0 | M205: 284 | N205: =IFERROR( _xlfn.IFS( OR(SelectedElectric="Pacific Power",SelectedElectric="Portland General Electric"),"CPUMPVSDCOOLT15HP"),"DNQ") -> DNQ | O205: 0 | P205: 0 | Q205: 0 | R205: 0 | S205: 0 | T205: 0 | U205: 0 | V205: 0 | Z205: 0
G206: 20 HP (17.51 to 22.50 HP) | H206: 1000 | I206: 0 | J206: 0 | M206: 284 | N206: =IFERROR( _xlfn.IFS( OR(SelectedElectric="Pacific Power",SelectedElectric="Portland General Electric"),"CPUMPVSDCOOLT20HP"),"DNQ") -> DNQ | O206: 0 | P206: 0 | Q206: 0 | R206: 0 | S206: 0 | T206: 0 | U206: 0 | V206: 0 | Z206: 0
C209: VFD on Pressure Boost Pump | D209: VFD installed on a commercial pump with a nominal motor power up to 20 hp | E209: Any | F209: each | G209: 1.5 HP (1.26 to 1.75 HP) | H209: 250 | I209: 0 | J209: =IF(ISNA(V209),0,V209) -> 0 | M209: 284 | N209: =IFERROR( _xlfn.IFS( OR(SelectedElectric="Pacific Power",SelectedElectric="Portland General Electric"),"CPUMPVSDPB1P5HP"),"DNQ") -> DNQ | O209: =$I209 -> 0 | P209: =IFERROR( _xlfn.XLOOKUP($N209,ProductCode,DefaultKwh,0,0),0) -> 0 | Q209: =IFERROR( _xlfn.XLOOKUP($N209,ProductCode,DefaultTherms,0,0),0) -> 0 | R209: =IFERROR($I209*$P209,0) -> 0 | S209: =IFERROR($I209*$Q209,0) -> 0 | T209: =IFERROR(( (_xlfn.XLOOKUP($N209,ProductCode,AllocationElectric,0,0))*$V209)/100,0) -> 0 | U209: =IFERROR(( (_xlfn.XLOOKUP($N209,ProductCode,AllocationGas,0,0))*$V209)/100,0) -> 0 | V209: =IFERROR( (_xlfn.XLOOKUP($N209,ProductCode,DefaultIncentive,0,0)) * $I209,0) -> 0 | W209: -Product cut sheet for pump and VFD. As-built plumbing plans. | Y209: Verify installation of the equipment, photograph any label plates/stickers that list the model #. | Z209: =IF($I209<>"",$I209,"") -> 0
D210: Irrigation pumps are ineligible | G210: 2 HP (1.76 to 2.50 HP) | H210: 250 | I210: 0 | J210: =IF(ISNA(V210),0,V210) -> 0 | M210: 284 | N210: =IFERROR( _xlfn.IFS( OR(SelectedElectric="Pacific Power",SelectedElectric="Portland General Electric"),"CPUMPVSDPB1P5HP"),"DNQ") -> DNQ | O210: =$I210 -> 0 | P210: 0 | Q210: 0 | R210: =IFERROR($I210*$P210,0) -> 0 | S210: =IFERROR($I210*$Q210,0) -> 0 | T210: 0 | U210: 0 | V210: 0 | Z210: =IF($I210<>"",$I210,"") -> 0
G211: 3 HP (2.51 to 3.50 HP) | H211: 350 | I211: 0 | J211: 0 | M211: 284 | N211: =IFERROR( _xlfn.IFS( OR(SelectedElectric="Pacific Power",SelectedElectric="Portland General Electric"),"CPUMPVSDPB3HP"),"DNQ") -> DNQ | O211: 0 | P211: 0 | Q211: 0 | R211: 0 | S211: 0 | T211: 0 | U211: 0 | V211: 0 | Z211: 0
G212: 4 HP (3.51 to 4.50 HP) | H212: 450 | I212: 0 | J212: 0 | M212: 284 | N212: =IFERROR( _xlfn.IFS( OR(SelectedElectric="Pacific Power",SelectedElectric="Portland General Electric"),"CPUMPVSDPB4HP"),"DNQ") -> DNQ | O212: 0 | P212: 0 | Q212: 0 | R212: 0 | S212: 0 | T212: 0 | U212: 0 | V212: 0 | Z212: 0
G213: 5 HP (4.51 to 6.00 HP) | H213: 500 | I213: 0 | J213: 0 | M213: 284 | N213: =IFERROR( _xlfn.IFS( OR(SelectedElectric="Pacific Power",SelectedElectric="Portland General Electric"),"CPUMPVSDPB5HP"),"DNQ") -> DNQ | O213: 0 | P213: 0 | Q213: 0 | R213: 0 | S213: 0 | T213: 0 | U213: 0 | V213: 0 | Z213: 0
G214: 7.5 HP (6.01 to 8.00 HP) | H214: 600 | I214: 0 | J214: 0 | M214: 284 | N214: =IFERROR( _xlfn.IFS( OR(SelectedElectric="Pacific Power",SelectedElectric="Portland General Electric"),"CPUMPVSDPB7P5HP"),"DNQ") -> DNQ | O214: 0 | P214: 0 | Q214: 0 | R214: 0 | S214: 0 | T214: 0 | U214: 0 | V214: 0 | Z214: 0
G215: 10 HP (8.01 to 12.50 HP) | H215: 700 | I215: 0 | J215: 0 | M215: 284 | N215: =IFERROR( _xlfn.IFS( OR(SelectedElectric="Pacific Power",SelectedElectric="Portland General Electric"),"CPUMPVSDPB10HP"),"DNQ") -> DNQ | O215: 0 | P215: 0 | Q215: 0 | R215: 0 | S215: 0 | T215: 0 | U215: 0 | V215: 0 | Z215: 0
G216: 15 HP (12.51 to 17.50 HP) | H216: 850 | I216: 0 | J216: 0 | M216: 284 | N216: =IFERROR( _xlfn.IFS( OR(SelectedElectric="Pacific Power",SelectedElectric="Portland General Electric"),"CPUMPVSDPB15HP"),"DNQ") -> DNQ | O216: 0 | P216: 0 | Q216: 0 | R216: 0 | S216: 0 | T216: 0 | U216: 0 | V216: 0 | Z216: 0
C219: VFD on Heating Water Pump | D219: VFD installed on a commercial pump with a nominal motor power up to 20 hp | E219: Any | F219: each | G219: 0.75 HP (0.50 to 0.75 HP) | H219: 150 | I219: 0 | J219: =IF(ISNA(V219),0,V219) -> 0 | M219: 284 | N219: =IFERROR( _xlfn.IFS( OR(SelectedElectric="Pacific Power",SelectedElectric="Portland General Electric"),"CPUMPVSDHEAT0P75"),"DNQ") -> DNQ | O219: =$I219 -> 0 | P219: =IFERROR( _xlfn.XLOOKUP($N219,ProductCode,DefaultKwh,0,0),0) -> 0 | Q219: =IFERROR( _xlfn.XLOOKUP($N219,ProductCode,DefaultTherms,0,0),0) -> 0 | R219: =IFERROR($I219*$P219,0) -> 0 | S219: =IFERROR($I219*$Q219,0) -> 0 | T219: =IFERROR(( (_xlfn.XLOOKUP($N219,ProductCode,AllocationElectric,0,0))*$V219)/100,0) -> 0 | U219: =IFERROR(( (_xlfn.XLOOKUP($N219,ProductCode,AllocationGas,0,0))*$V219)/100,0) -> 0 | V219: =IFERROR( (_xlfn.XLOOKUP($N219,ProductCode,DefaultIncentive,0,0)) * $I219,0) -> 0 | W219: -Product cut sheet for pump and VFD. As-built plumbing plans. | Y219: Verify installation of the equipment, photograph any label plates/stickers that list the model #. | Z219: =IF($I219<>"",$I219,"") -> 0
D220: Irrigation pumps are ineligible | G220: 1 HP (0.76 to 1.25 HP) | H220: 200 | I220: 0 | J220: =IF(ISNA(V220),0,V220) -> 0 | M220: 284 | N220: =IFERROR( _xlfn.IFS( OR(SelectedElectric="Pacific Power",SelectedElectric="Portland General Electric"),"CPUMPVSDHEAT1HP"),"DNQ") -> DNQ | O220: =$I220 -> 0 | P220: 0 | Q220: 0 | R220: =IFERROR($I220*$P220,0) -> 0 | S220: =IFERROR($I220*$Q220,0) -> 0 | T220: 0 | U220: 0 | V220: 0 | Z220: =IF($I220<>"",$I220,"") -> 0
G221: 1.5 HP (1.26 to 1.75 HP) | H221: 250 | I221: 0 | J221: 0 | M221: 284 | N221: =IFERROR( _xlfn.IFS( OR(SelectedElectric="Pacific Power",SelectedElectric="Portland General Electric"),"CPUMPVSDHEAT1P5HP"),"DNQ") -> DNQ | O221: 0 | P221: 0 | Q221: 0 | R221: 0 | S221: 0 | T221: 0 | U221: 0 | V221: 0 | Z221: 0
G222: 2 HP (1.76 to 2.50 HP) | H222: 300 | I222: 0 | J222: 0 | M222: 284 | N222: =IFERROR( _xlfn.IFS( OR(SelectedElectric="Pacific Power",SelectedElectric="Portland General Electric"),"CPUMPVSDHEAT2HP"),"DNQ") -> DNQ | O222: 0 | P222: 0 | Q222: 0 | R222: 0 | S222: 0 | T222: 0 | U222: 0 | V222: 0 | Z222: 0
G223: 3 HP (2.51 to 3.50 HP) | H223: 350 | I223: 0 | J223: 0 | M223: 284 | N223: =IFERROR( _xlfn.IFS( OR(SelectedElectric="Pacific Power",SelectedElectric="Portland General Electric"),"CPUMPVSDHEAT3HP"),"DNQ") -> DNQ | O223: 0 | P223: 0 | Q223: 0 | R223: 0 | S223: 0 | T223: 0 | U223: 0 | V223: 0 | Z223: 0
G224: 4 HP (3.51 to 4.50 HP) | H224: 450 | I224: 0 | J224: 0 | M224: 284 | N224: =IFERROR( _xlfn.IFS( OR(SelectedElectric="Pacific Power",SelectedElectric="Portland General Electric"),"CPUMPVSDHEAT4HP"),"DNQ") -> DNQ | O224: 0 | P224: 0 | Q224: 0 | R224: 0 | S224: 0 | T224: 0 | U224: 0 | V224: 0 | Z224: 0
G225: 5 HP (4.51 to 6.00 HP) | H225: 500 | I225: 0 | J225: 0 | M225: 284 | N225: =IFERROR( _xlfn.IFS( OR(SelectedElectric="Pacific Power",SelectedElectric="Portland General Electric"),"CPUMPVSDHEAT5HP"),"DNQ") -> DNQ | O225: 0 | P225: 0 | Q225: 0 | R225: 0 | S225: 0 | T225: 0 | U225: 0 | V225: 0 | Z225: 0
G226: 7.5 HP (6.01 to 8.00 HP) | H226: 600 | I226: 0 | J226: =IF(ISNA(V226),0,V226) -> 0 | M226: 284 | N226: =IFERROR( _xlfn.IFS( OR(SelectedElectric="Pacific Power",SelectedElectric="Portland General Electric"),"CPUMPVSDHEAT7P5HP"),"DNQ") -> DNQ | O226: 0 | P226: 0 | Q226: 0 | R226: 0 | S226: 0 | T226: 0 | U226: 0 | V226: 0 | Z226: 0
C229: VFD on Chilled Water Pump | D229: VFD installed on a commercial pump with a nominal motor power up to 20 hp | E229: Any | F229: each | G229: 0.75 HP (0.50 to 0.75 HP) | H229: 150 | I229: 0 | J229: =IF(ISNA(V229),0,V229) -> 0 | M229: 284 | N229: =IFERROR( _xlfn.IFS( OR(SelectedElectric="Pacific Power",SelectedElectric="Portland General Electric"),"CPUMPVSDCOOL0P75HP"),"DNQ") -> DNQ | O229: =$I229 -> 0 | P229: =IFERROR( _xlfn.XLOOKUP($N229,ProductCode,DefaultKwh,0,0),0) -> 0 | Q229: =IFERROR( _xlfn.XLOOKUP($N229,ProductCode,DefaultTherms,0,0),0) -> 0 | R229: =IFERROR($I229*$P229,0) -> 0 | S229: =IFERROR($I229*$Q229,0) -> 0 | T229: =IFERROR(( (_xlfn.XLOOKUP($N229,ProductCode,AllocationElectric,0,0))*$V229)/100,0) -> 0 | U229: =IFERROR(( (_xlfn.XLOOKUP($N229,ProductCode,AllocationGas,0,0))*$V229)/100,0) -> 0 | V229: =IFERROR( (_xlfn.XLOOKUP($N229,ProductCode,DefaultIncentive,0,0)) * $I229,0) -> 0 | W229: -Product cut sheet for pump and VFD. As-built plumbing plans. | Y229: Verify installation of the equipment, photograph any label plates/stickers that list the model #. | Z229: =IF($I229<>"",$I229,"") -> 0
D230: Irrigation pumps are ineligible | G230: 1 HP (0.76 to 1.25 HP) | H230: 200 | I230: 0 | J230: =IF(ISNA(V230),0,V230) -> 0 | M230: 284 | N230: =IFERROR( _xlfn.IFS( OR(SelectedElectric="Pacific Power",SelectedElectric="Portland General Electric"),"CPUMPVSDCOOL1HP"),"DNQ") -> DNQ | O230: =$I230 -> 0 | P230: 0 | Q230: 0 | R230: =IFERROR($I230*$P230,0) -> 0 | S230: =IFERROR($I230*$Q230,0) -> 0 | T230: 0 | U230: 0 | V230: 0 | Z230: =IF($I230<>"",$I230,"") -> 0
G231: 1.5 HP (1.26 to 1.75 HP) | H231: 250 | I231: 0 | J231: 0 | M231: 284 | N231: =IFERROR( _xlfn.IFS( OR(SelectedElectric="Pacific Power",SelectedElectric="Portland General Electric"),"CPUMPVSDCOOL1P5HP"),"DNQ") -> DNQ | O231: 0 | P231: 0 | Q231: 0 | R231: 0 | S231: 0 | T231: 0 | U231: 0 | V231: 0 | Z231: 0
G232: 2 HP (1.76 to 2.50 HP) | H232: 300 | I232: 0 | J232: 0 | M232: 284 | N232: =IFERROR( _xlfn.IFS( OR(SelectedElectric="Pacific Power",SelectedElectric="Portland General Electric"),"CPUMPVSDCOOL2HP"),"DNQ") -> DNQ | O232: 0 | P232: 0 | Q232: 0 | R232: 0 | S232: 0 | T232: 0 | U232: 0 | V232: 0 | Z232: 0
G233: 3 HP (2.51 to 3.50 HP) | H233: 350 | I233: 0 | J233: 0 | M233: 284 | N233: =IFERROR( _xlfn.IFS( OR(SelectedElectric="Pacific Power",SelectedElectric="Portland General Electric"),"CPUMPVSDCOOL3HP"),"DNQ") -> DNQ | O233: 0 | P233: 0 | Q233: 0 | R233: 0 | S233: 0 | T233: 0 | U233: 0 | V233: 0 | Z233: 0
G234: 4 HP (3.51 to 4.50 HP) | H234: 450 | I234: 0 | J234: 0 | M234: 284 | N234: =IFERROR( _xlfn.IFS( OR(SelectedElectric="Pacific Power",SelectedElectric="Portland General Electric"),"CPUMPVSDCOOL4HP"),"DNQ") -> DNQ | O234: 0 | P234: 0 | Q234: 0 | R234: 0 | S234: 0 | T234: 0 | U234: 0 | V234: 0 | Z234: 0
G235: 5 HP (4.51 to 6.00 HP) | H235: 500 | I235: 0 | J235: 0 | M235: 284 | N235: =IFERROR( _xlfn.IFS( OR(SelectedElectric="Pacific Power",SelectedElectric="Portland General Electric"),"CPUMPVSDCOOL5HP"),"DNQ") -> DNQ | O235: 0 | P235: 0 | Q235: 0 | R235: 0 | S235: 0 | T235: 0 | U235: 0 | V235: 0 | Z235: 0
B238: Food Service Options
C240: Dishwasher, Multi Tank Conveyor | D240: ENERGY STAR® v 3.0 | E240: Any | F240: each | H240: 900 | I240: 0 | J240: =IF(ISNA(V240),0,V240) -> 0 | M240: 35 | N240: =IF(NOT(SelectedGas="None"),"DWMTCONHDTEMPE","DNQ") -> DWMTCONHDTEMPE | O240: =$I240 -> 0 | P240: =IFERROR( _xlfn.XLOOKUP($N240,ProductCode,DefaultKwh,0,0),0) -> 4197.5 | Q240: =IFERROR( _xlfn.XLOOKUP($N240,ProductCode,DefaultTherms,0,0),0) -> 0 | R240: =IFERROR($I240*$P240,0) -> 0 | S240: =IFERROR($I240*$Q240,0) -> 0 | T240: =IFERROR(( (_xlfn.XLOOKUP($N240,ProductCode,AllocationElectric,0,0))*$V240)/100,0) -> 0 | U240: =IFERROR(( (_xlfn.XLOOKUP($N240,ProductCode,AllocationGas,0,0))*$V240)/100,0) -> 0 | V240: =IFERROR( (_xlfn.XLOOKUP($N240,ProductCode,DefaultIncentive,0,0)) * $I240,0) -> 0 | W240: -locate on ENERGY STAR QPL - provide screen shot or pdf of the listing -Product cut sheet (confirm water temp) | Y240: Verify installation of the equipment, photograph label plates / stickers that list the model # | Z240: =IF($I240<>"",$I240,"") -> 0
C241: ="- High/Dual Temp" -> - High/Dual Temp | D241: Flight type dishwashers do not qualify | Z241: =IF($I242<>"",$I242,"") -> 
C244: Dishwasher, Single Tank Conveyor | D244: ENERGY STAR® v 3.0 | E244: Any | F244: each | G244: Low/Dual Temp | H244: 900 | I244: 0 | J244: =IF(ISNA(V244),0,V244) -> 0 | M244: 35 | N244: =IF(NOT(SelectedGas="None"),"DWSTCONLDTEMPE","DNQ") -> DWSTCONLDTEMPE | O244: =$I244 -> 0 | P244: =IFERROR( _xlfn.XLOOKUP($N244,ProductCode,DefaultKwh,0,0),0) -> 5335.72 | Q244: =IFERROR( _xlfn.XLOOKUP($N244,ProductCode,DefaultTherms,0,0),0) -> 0 | R244: =IFERROR($I244*$P244,0) -> 0 | S244: =IFERROR($I244*$Q244,0) -> 0 | T244: =IFERROR(( (_xlfn.XLOOKUP($N244,ProductCode,AllocationElectric,0,0))*$V244)/100,0) -> 0 | U244: =IFERROR(( (_xlfn.XLOOKUP($N244,ProductCode,AllocationGas,0,0))*$V244)/100,0) -> 0 | V244: =IFERROR( (_xlfn.XLOOKUP($N244,ProductCode,DefaultIncentive,0,0)) * $I244,0) -> 0 | W244: -locate on ENERGY STAR QPL - provide screen shot or pdf of the listing -Product cut sheet (confirm water temp) | Y244: Verify installation of the equipment, photograph label plates / stickers that list the model # | Z244: =IF($I244<>"",$I244,"") -> 0
D245: Flight type dishwashers do not qualify | G245: High/Dual Temp | H245: 900 | I245: 0 | J245: =IF(ISNA(V245),0,V245) -> 0 | M245: 35 | N245: =IF(NOT(SelectedGas="None"),"DWSTCONHTEMPE","DNQ") -> DWSTCONHTEMPE | O245: =$I245 -> 0 | P245: =IFERROR( _xlfn.XLOOKUP($N245,ProductCode,DefaultKwh,0,0),0) -> 9402.4 | Q245: =IFERROR( _xlfn.XLOOKUP($N245,ProductCode,DefaultTherms,0,0),0) -> 0 | R245: =IFERROR($I245*$P245,0) -> 0 | S245: =IFERROR($I245*$Q245,0) -> 0 | T245: =IFERROR(( (_xlfn.XLOOKUP($N245,ProductCode,AllocationElectric,0,0))*$V245)/100,0) -> 0 | U245: =IFERROR(( (_xlfn.XLOOKUP($N245,ProductCode,AllocationGas,0,0))*$V245)/100,0) -> 0 | V245: =IFERROR( (_xlfn.XLOOKUP($N245,ProductCode,DefaultIncentive,0,0)) * $I245,0) -> 0 | Z245: =IF($I245<>"",$I245,"") -> 0
C248: Electric Convection Oven Half-Size | D248: ENERGY STAR® v 3.0 | E248: Any | F248: each | G248: Half-Size | H248: 300 | I248: 0 | J248: =IF(ISNA(V248),0,V248) -> 0 | M248: 101 | N248: =IF(OR(SelectedElectric="Pacific Power",SelectedElectric="Portland General Electric"),"ELECONVOVES3HALF","DNQ") -> DNQ | O248: =$I248 -> 0 | P248: =IFERROR( _xlfn.XLOOKUP($N248,ProductCode,DefaultKwh,0,0),0) -> 0 | Q248: =IFERROR( _xlfn.XLOOKUP($N248,ProductCode,DefaultTherms,0,0),0) -> 0 | R248: =IFERROR($I248*$P248,0) -> 0 | S248: =IFERROR($I248*$Q248,0) -> 0 | T248: =IFERROR(( (_xlfn.XLOOKUP($N248,ProductCode,AllocationElectric,0,0))*$V248)/100,0) -> 0 | U248: =IFERROR(( (_xlfn.XLOOKUP($N248,ProductCode,AllocationGas,0,0))*$V248)/100,0) -> 0 | V248: =IFERROR( (_xlfn.XLOOKUP($N248,ProductCode,DefaultIncentive,0,0)) * $I248,0) -> 0 | W248: -locate on ENERGY STAR QPL - provide screen shot or pdf of the listing -Product cut sheet (confirm half-size) | Y248: Verify installation of the equipment, photograph label plates / stickers that list the model # | Z248: =IF($I248<>"",$I248,"") -> 0
G249: Full-Size | H249: 500 | I249: 0 | J249: =IF(ISNA(V249),0,V249) -> 0 | M249: 101 | N249: =IF(OR(SelectedElectric="Pacific Power",SelectedElectric="Portland General Electric"),"ELECONVOVES3FULL","DNQ") -> DNQ | O249: =$I249 -> 0 | P249: =IFERROR( _xlfn.XLOOKUP($N249,ProductCode,DefaultKwh,0,0),0) -> 0 | Q249: =IFERROR( _xlfn.XLOOKUP($N249,ProductCode,DefaultTherms,0,0),0) -> 0 | R249: =IFERROR($I249*$P249,0) -> 0 | S249: =IFERROR($I249*$Q249,0) -> 0 | T249: =IFERROR(( (_xlfn.XLOOKUP($N249,ProductCode,AllocationElectric,0,0))*$V249)/100,0) -> 0 | U249: =IFERROR(( (_xlfn.XLOOKUP($N249,ProductCode,AllocationGas,0,0))*$V249)/100,0) -> 0 | V249: =IFERROR( (_xlfn.XLOOKUP($N249,ProductCode,DefaultIncentive,0,0)) * $I249,0) -> 0 | Z249: =IF($I249<>"",$I249,"") -> 0
C252: Electric Combination Oven | D252: ENERGY STAR v 3.0 | E252: Any | F252: each | G252: 3-4 pan capacity | H252: 500 | I252: 0 | J252: =IF(ISNA(V252),0,V252) -> 0 | M252: 101 | N252: =IF(OR(SelectedElectric="Pacific Power",SelectedElectric="Portland General Electric"),"COMBOOVES334PANELE","DNQ") -> DNQ | O252: =$I252 -> 0 | P252: =IFERROR( _xlfn.XLOOKUP($N252,ProductCode,DefaultKwh,0,0),0) -> 0 | Q252: =IFERROR( _xlfn.XLOOKUP($N252,ProductCode,DefaultTherms,0,0),0) -> 0 | R252: =IFERROR($I252*$P252,0) -> 0 | S252: =IFERROR($I252*$Q252,0) -> 0 | T252: =IFERROR(( (_xlfn.XLOOKUP($N252,ProductCode,AllocationElectric,0,0))*$V252)/100,0) -> 0 | U252: =IFERROR(( (_xlfn.XLOOKUP($N252,ProductCode,AllocationGas,0,0))*$V252)/100,0) -> 0 | V252: =IFERROR( (_xlfn.XLOOKUP($N252,ProductCode,DefaultIncentive,0,0)) * $I252,0) -> 0 | W252: -locate on ENERGY STAR QPL - provide screen shot or pdf of the listing -Product cut sheet (confirm full-size) | Y252: Verify installation of the equipment, photograph label plates / stickers that list the model # | Z252: =IF($I252<>"",$I252,"") -> 0
G253: 5-40 pan capacity | H253: 1000 | I253: 0 | J253: =IF(ISNA(V253),0,V253) -> 0 | M253: 101 | N253: =IF(OR(SelectedElectric="Pacific Power",SelectedElectric="Portland General Electric"),"COMBOOVES3540PANELE","DNQ") -> DNQ | O253: =$I253 -> 0 | P253: =IFERROR( _xlfn.XLOOKUP($N253,ProductCode,DefaultKwh,0,0),0) -> 0 | Q253: =IFERROR( _xlfn.XLOOKUP($N253,ProductCode,DefaultTherms,0,0),0) -> 0 | R253: =IFERROR($I253*$P253,0) -> 0 | S253: =IFERROR($I253*$Q253,0) -> 0 | T253: =IFERROR(( (_xlfn.XLOOKUP($N253,ProductCode,AllocationElectric,0,0))*$V253)/100,0) -> 0 | U253: =IFERROR(( (_xlfn.XLOOKUP($N253,ProductCode,AllocationGas,0,0))*$V253)/100,0) -> 0 | V253: =IFERROR( (_xlfn.XLOOKUP($N253,ProductCode,DefaultIncentive,0,0)) * $I253,0) -> 0 | Z253: =IF($I253<>"",$I253,"") -> 0
Z254: =IF($I259<>"",$I259,"") -> 
C256: Electric Hot Food Holding Cabinet, Half Size | D256: ENERGY STAR | E256: Any | F256: each | H256: 450 | I256: 0 | J256: =IF(ISNA(V256),0,V256) -> 0 | M256: 101 | N256: =IF(NOT(SelectedGas="None"),"HOTCABINETHALF","DNQ") -> HOTCABINETHALF | O256: =$I256 -> 0 | P256: =IFERROR( _xlfn.XLOOKUP($N256,ProductCode,DefaultKwh,0,0),0) -> 736.04 | Q256: =IFERROR( _xlfn.XLOOKUP($N256,ProductCode,DefaultTherms,0,0),0) -> 0 | R256: =IFERROR($I256*$P256,0) -> 0 | S256: =IFERROR($I256*$Q256,0) -> 0 | T256: =IFERROR(( (_xlfn.XLOOKUP($N256,ProductCode,AllocationElectric,0,0))*$V256)/100,0) -> 0 | U256: =IFERROR(( (_xlfn.XLOOKUP($N256,ProductCode,AllocationGas,0,0))*$V256)/100,0) -> 0 | V256: =IFERROR( (_xlfn.XLOOKUP($N256,ProductCode,DefaultIncentive,0,0)) * $I256,0) -> 0 | W256: -locate on ENERGY STAR QPL - provide screen shot or pdf of the listing -Product cut sheet (confirm size) | Y256: Verify installation of the equipment, photograph label plates / stickers that list the model # | Z256: =IF($I256<>"",$I256,"") -> 0
D257: Must have interior volume less than 13 cubic feet
C260: Gas Double Rack Oven | D260: ENERGY STAR® v 3.0 | E260: Any | F260: each | G260: Double Rack | H260: 2000 | I260: 0 | J260: =IF(ISNA(V260),0,V260) -> 0 | M260: 101 | N260: =IF(NOT(SelectedGas="None"),"RACKOVENDOUB","DNQ") -> RACKOVENDOUB | O260: =$I260 -> 0 | P260: =IFERROR( _xlfn.XLOOKUP($N260,ProductCode,DefaultKwh,0,0),0) -> 0 | Q260: =IFERROR( _xlfn.XLOOKUP($N260,ProductCode,DefaultTherms,0,0),0) -> 218.44 | R260: =IFERROR($I260*$P260,0) -> 0 | S260: =IFERROR($I260*$Q260,0) -> 0 | T260: =IFERROR(( (_xlfn.XLOOKUP($N260,ProductCode,AllocationElectric,0,0))*$V260)/100,0) -> 0 | U260: =IFERROR(( (_xlfn.XLOOKUP($N260,ProductCode,AllocationGas,0,0))*$V260)/100,0) -> 0 | V260: =IFERROR( (_xlfn.XLOOKUP($N260,ProductCode,DefaultIncentive,0,0)) * $I260,0) -> 0 | W260: -locate on ENERGY STAR QPL - provide screen shot or pdf of the listing -Product cut sheet (confirm full-size) | Y260: Verify installation of the equipment, photograph label plates / stickers that list the model # | Z260: =IF($I260<>"",$I260,"") -> 0
D261: Double accomodates two standard full-size sheet pans measuring 18 x 26 x 1 inch
C264: Gas-fired Automatic Conveyor Broiler | D264: Automatic conveyor with catalyst | E264: Any | F264: each | G264: under 20" | H264: 2500 | I264: 0 | J264: =IF(ISNA(V264),0,V264) -> 0 | M264: 101 | N264: =IFERROR( _xlfn.IFS( $D$1="Full Territory","BROILER20F", $D$1="Electric Only","BROILER20E", $D$1="Gas Only","BROILER20GO"),"DNQ") -> DNQ | O264: =$I264 -> 0 | P264: =IFERROR( _xlfn.XLOOKUP($N264,ProductCode,DefaultKwh,0,0),0) -> 0 | Q264: =IFERROR( _xlfn.XLOOKUP($N264,ProductCode,DefaultTherms,0,0),0) -> 0 | R264: =IFERROR($I264*$P264,0) -> 0 | S264: =IFERROR($I264*$Q264,0) -> 0 | T264: =IFERROR(( (_xlfn.XLOOKUP($N264,ProductCode,AllocationElectric,0,0))*$V264)/100,0) -> 0 | U264: =IFERROR(( (_xlfn.XLOOKUP($N264,ProductCode,AllocationGas,0,0))*$V264)/100,0) -> 0 | V264: =IFERROR( (_xlfn.XLOOKUP($N264,ProductCode,DefaultIncentive,0,0)) * $I264,0) -> 0 | W264: -Product cut sheet | Y264: Verify installation of the equipment, photograph label plates / stickers that list the model #. Verify that unit is continuous two speed and >90cfm. | Z264: =IF($I264<>"",$I264,"") -> 0
C265: ="- Continuous Two Speed" -> - Continuous Two Speed | D265: Input rate less than 80 kBtu/h OR dual stage OR | G265: 20-26" | H265: 3000 | I265: 0 | J265: 0 | M265: 101 | N265: =IFERROR( _xlfn.IFS( $D$1="Full Territory","BROILER2026F", $D$1="Electric Only","BROILER2026E", $D$1="Gas Only","BROILER2026GO"),"DNQ") -> DNQ | O265: 0 | P265: =IFERROR( _xlfn.XLOOKUP($N265,ProductCode,DefaultKwh,0,0),0) -> 0 | Q265: =IFERROR( _xlfn.XLOOKUP($N265,ProductCode,DefaultTherms,0,0),0) -> 0 | R265: 0 | S265: 0 | T265: =IFERROR(( (_xlfn.XLOOKUP($N265,ProductCode,AllocationElectric,0,0))*$V265)/100,0) -> 0 | U265: =IFERROR(( (_xlfn.XLOOKUP($N265,ProductCode,AllocationGas,0,0))*$V265)/100,0) -> 0 | V265: =IFERROR( (_xlfn.XLOOKUP($N265,ProductCode,DefaultIncentive,0,0)) * $I265,0) -> 0 | Z265: =IF($I265<>"",$I265,"") -> 0
C266: ="- Greater than 90 cfm" -> - Greater than 90 cfm | D266: modulating gas valve with a capability of throttling the input rate below 80 kBtu/h | G266: over 26" | H266: 3500 | I266: 0 | J266: 0 | M266: 101 | N266: =IFERROR( _xlfn.IFS( $D$1="Full Territory","BROILER26F", $D$1="Electric Only","BROILER26E", $D$1="Gas Only","BROILER26GO"),"DNQ") -> DNQ | O266: 0 | P266: =IFERROR( _xlfn.XLOOKUP($N266,ProductCode,DefaultKwh,0,0),0) -> 0 | Q266: =IFERROR( _xlfn.XLOOKUP($N266,ProductCode,DefaultTherms,0,0),0) -> 0 | R266: 0 | S266: 0 | T266: =IFERROR(( (_xlfn.XLOOKUP($N266,ProductCode,AllocationElectric,0,0))*$V266)/100,0) -> 0 | U266: =IFERROR(( (_xlfn.XLOOKUP($N266,ProductCode,AllocationGas,0,0))*$V266)/100,0) -> 0 | V266: =IFERROR( (_xlfn.XLOOKUP($N266,ProductCode,DefaultIncentive,0,0)) * $I266,0) -> 0 | Z266: =IF($I266<>"",$I266,"") -> 0
C269: Ice Maker | D269: ENERGY STAR v 3.0 | E269: Any | F269: each | G269: Batch SCU, >200 lb/day | H269: 180 | I269: 0 | J269: =IF(ISNA(V269),0,V269) -> 0 | M269: 90 | N269: ICESCUBATCH | O269: =$I269 -> 0 | P269: =IFERROR( _xlfn.XLOOKUP($N269,ProductCode,DefaultKwh,0,0),0) -> 559.25 | Q269: =IFERROR( _xlfn.XLOOKUP($N269,ProductCode,DefaultTherms,0,0),0) -> 0 | R269: =IFERROR($I269*$P269,0) -> 0 | S269: =IFERROR($I269*$Q269,0) -> 0 | T269: =IFERROR(( (_xlfn.XLOOKUP($N269,ProductCode,AllocationElectric,0,0))*$V269)/100,0) -> 0 | U269: =IFERROR(( (_xlfn.XLOOKUP($N269,ProductCode,AllocationGas,0,0))*$V269)/100,0) -> 0 | V269: =IFERROR( (_xlfn.XLOOKUP($N269,ProductCode,DefaultIncentive,0,0)) * $I269,0) -> 0 | W269: -locate on ENERGY STAR QPL - provide screen shot or pdf of the listing -Product cut sheet | Y269: Verify installation of the equipment, photograph label plates / stickers that list the model # | Z269: =IF($I269<>"",$I269,"") -> 0
D270: Must be ≤4,000 lb/day | G270: Batch RCU, >988 lb/day | H270: 400 | I270: 0 | J270: 0 | M270: 90 | N270: ICERCUBATCH | O270: 0 | P270: =IFERROR( _xlfn.XLOOKUP($N270,ProductCode,DefaultKwh,0,0),0) -> 1244.53 | Q270: =IFERROR( _xlfn.XLOOKUP($N270,ProductCode,DefaultTherms,0,0),0) -> 0 | R270: 0 | S270: 0 | T270: =IFERROR(( (_xlfn.XLOOKUP($N270,ProductCode,AllocationElectric,0,0))*$V270)/100,0) -> 0 | U270: =IFERROR(( (_xlfn.XLOOKUP($N270,ProductCode,AllocationGas,0,0))*$V270)/100,0) -> 0 | V270: =IFERROR( (_xlfn.XLOOKUP($N270,ProductCode,DefaultIncentive,0,0)) * $I270,0) -> 0 | Z270: =IF($I270<>"",$I270,"") -> 0
G271: Batch IMH, >1,500 lb/day | H271: 400 | I271: 0 | J271: 0 | M271: 90 | N271: ICEIMHBATCH | O271: 0 | P271: =IFERROR( _xlfn.XLOOKUP($N271,ProductCode,DefaultKwh,0,0),0) -> 1831.57 | Q271: =IFERROR( _xlfn.XLOOKUP($N271,ProductCode,DefaultTherms,0,0),0) -> 0 | R271: 0 | S271: 0 | T271: =IFERROR(( (_xlfn.XLOOKUP($N271,ProductCode,AllocationElectric,0,0))*$V271)/100,0) -> 0 | U271: =IFERROR(( (_xlfn.XLOOKUP($N271,ProductCode,AllocationGas,0,0))*$V271)/100,0) -> 0 | V271: =IFERROR( (_xlfn.XLOOKUP($N271,ProductCode,DefaultIncentive,0,0)) * $I271,0) -> 0 | Z271: =IF($I271<>"",$I271,"") -> 0
G272: Continuous RCU, >800 lb/day | H272: 400 | I272: 0 | J272: 0 | M272: 90 | N272: ICERCUCONT | O272: 0 | P272: =IFERROR( _xlfn.XLOOKUP($N272,ProductCode,DefaultKwh,0,0),0) -> 4207.47 | Q272: =IFERROR( _xlfn.XLOOKUP($N272,ProductCode,DefaultTherms,0,0),0) -> 0 | R272: 0 | S272: 0 | T272: =IFERROR(( (_xlfn.XLOOKUP($N272,ProductCode,AllocationElectric,0,0))*$V272)/100,0) -> 0 | U272: =IFERROR(( (_xlfn.XLOOKUP($N272,ProductCode,AllocationGas,0,0))*$V272)/100,0) -> 0 | V272: =IFERROR( (_xlfn.XLOOKUP($N272,ProductCode,DefaultIncentive,0,0)) * $I272,0) -> 0 | Z272: =IF($I272<>"",$I272,"") -> 0
... 23 more rows

Sheet Changelog (hidden)
A1: Macro Name | B1: Shortcut or button | C1: Function
A2: FilterMeasures | B2: Button located on Measure Totals tab | C2: Filters the measure totals by column N (Quantity).
A3: Hide | B3: Ctrl+h | C3: Hides unused columns(only use on user facing application tabs).
A4: Unhide | B4: Ctrl+o | C4: Unhides columns.
A6: Date | B6: Revision | C6: Category | D6: Fixed in Version | E6: Notes | F6: Initials
A7: 2022-01-01 | B7: v.2022.1 | C7: New Version | E7: New 520S Released for 2022 | F7: JV
A8: 2022-03-01 | B8: v2 | C8: Updates | D8: v.2022.2 | E8: Climate Zones Updated on CZ HZ Tab | F8: JV
A9: 2022-03-01 | B9: v2 | C9: Updates | D9: v.2022.2 | E9: Condensing Furnaces, updates to allow multiples | F9: JV
A10: 2022-03-01 | B10: v2 | C10: Updates | D10: v.2022.2 | E10: Gas Steam Cooker Incentive cell updated to $2,000 | F10: JV
A11: 2022-03-01 | B11: v2 | C11: Updates | D11: v.2022.2 | E11: VRF Requirements updated with the heat recovery efficiency language | F11: JV
A12: 2022-03-01 | B12: v2 | C12: Updates | D12: v.2022.2 | E12: Dishwasher requirement updated to Energy Star 3.0 | F12: JV
A13: 2022-03-01 | B13: v2 | C13: Updates | D13: v.2022.2 | E13: Verifed and updated groupings | F13: JV
A14: 2022-03-01 | B14: v2 | C14: Updates | D14: v.2022.2 | E14: Added conditional formatting for non-qualifying code years | F14: JV
A15: 2022-03-01 | B15: v2 | C15: Updates | D15: v.2022.2 | E15: Condensing Boiler requirement for 2019 Code Year | F15: JV
A16: 2022-03-01 | B16: v2 | C16: Updates | D16: v.2022.2 | E16: Added conditional formatting for kBtu/h on tankless water heaters | F16: JV
E17: Active Measures Updated
A18: 2022-03-01 | B18: v2 | C18: Updates | D18: v.2022.2 | E18: Default Incentive updated for MFCONDENSFURN91 in Column 6 | F18: JV
A19: 2022-03-01 | B19: v2 | C19: Updates | D19: v.2022.2 | E19: Updafte Import, Measure Totals, Measure Lookups, Active Measures tabs | F19: JM
A20: 2022-04-18 | B20: v2 | C20: Updates | D20: v.2022.2 | E20: Added 2014 code program information option -- Boilers and Garage Ventilation only measures not available for 2014 code | F20: JM
A21: 2022-09-28 | B21: v2023.1 | C21: Updates | E21: COM and MF boiler removed | F21: AM
A22: 2022-09-28 | B22: v2023.1 | C22: Updates | E22: added hydronic heating circulators measure | F22: AM
A23: 2022-09-28 | B23: v2023.1 | C23: Updates | E23: updated incentives for tankless WH | F23: AM
A24: 2022-10-13 | B24: v2023.1 | C24: Updates | E24: updated incentives for hydronic heating circulators measure | F24: AM
A25: 2022-10-13 | B25: v2023.1 | C25: Updates | E25: removed MF condensing furnaces | F25: JV
A26: 2022-10-13 | B26: v2023.1 | C26: Updates | E26: removed evaporator motor | F26: JV
A27: 2022-10-13 | B27: v2023.1 | C27: Updates | E27: removed spa covers | F27: JV
A28: 2022-10-13 | B28: v2023.1 | C28: Updates | E28: added new minisplit heat pumpmeasure | F28: JV
A29: 2022-10-13 | B29: v2023.1 | C29: Updates | E29: Updated minisplit totals for 2023 | F29: JV
A30: 2022-10-13 | B30: v2023.1 | C30: Updates | E30: Added language from marketing materials for further incentive opportunities | F30: JV
A31: 2022-10-13 | B31: v2023.1 | C31: Updates | E31: updated MF Condensing Tankless savings/incentives | F31: JV
A32: 2022-10-13 | B32: v2023.1 | C32: Updates | E32: Fixed product lookup for Residential Washers on MF tab | F32: JV
A33: 2022-10-13 | B33: v2023.1 | C33: Updates | E33: Updated single speed bath fan requirements on MF tab | F33: JV
A34: 2022-10-13 | B34: v2023.1 | C34: Updates | E34: Fixed product lookup for condensing tankless water heater > 200 on HVAC tab | F34: JV
A35: 2022-10-26 | B35: v2023.1 | C35: Updates | E35: Added MAD 284 VFDs as new tab | F35: JV
A36: 2022-10-26 | B36: v2023.1 | C36: Updates | E36: Added MAD 52 on Multifamily tab | F36: JV
A37: 2022-12-09 | B37: v2023.1 | C37: Updates | E37: Final cleanup and small formatting changes to last rows on tabs | F37: JV
A38: 2023-03-20 | B38: v2023.2 | C38: Updates | E38: Fixed equipment option for commercial air-source heat pump | F38: AM
A39: 2023-03-20 | B39: v2023.2 | C39: Updates | E39: Updated formulas for incentive totals on each tab | F39: AM
A40: 2023-03-20 | B40: v2023.2 | C40: Updates | E40: Updated measure lookup formulas with new product codes, catching errors | F40: AM
A41: 2023-03-20 | B41: v2023.2 | C41: Updates | E41: Updated footer with current mailing address and form version | F41: AM
A42: 2023-03-27 | B42: v2023.2 | C42: Updates | E42: Updated electric oven incentive and measures with Energy Star v3.0 new product requests | F42: AM
A43: 2023-05-17 | B43: v2023.2 | C43: Updates | E43: Update formula in HVAC tab to remove duplicate error | F43: AM
A44: 2023-08-29 | B44: v2023.3 | C44: Updates | E44: adding double rack gas oven measure (MAD 101) | F44: AM
A45: 2023-09-27 | B45: v2024.1 | C45: Updates | E45: Combined equipment options and updated formulas | F45: JV
A46: 2023-10-10 | B46: v2024.1 | C46: Updates | E46: Updated all measures for EOY changes, corrected broken formulas, updated all product codes. | F46: AM
A47: 2023-11-10 | B47: v2024.1 | C47: Updates | E47: Completed incentive updates, EOY changes, and review of requirements, review requirements, and SV notes | F47: JV
A48: 2024-01-03 | B48: v2024.1 | C48: Updates | E48: Updating active measures for 2024 | F48: JV/AM
A49: 2024-01-04 | B49: v2024.1 | C49: Updates | E49: Added electric hot food holding cabinets, protected workbook for use | F49: JV/AM

Sheet Measure Totals (hidden)
C2: Installation Measures:
C3: Measure Code | D3: Measure | E3: Incremental Cost | F3: Quantity | G3: Elec Savings | H3: Elec Incentive | I3: Gas Savings | J3: Gas Incentive | K3: Total Incentive
C4: Quantity | D4: (Multiple Items)
C6: Measure | D6: Measure Name | E6: Sum of Incremental Cost | F6: Sum of Quantity | G6: Sum of kWh | H6: Sum of Incentive Ele | I6: Sum of Therms | J6: Sum of Incenitve Gas | K6: Sum of Incentive | L6: Min of Product Version ID
C7: BFSS5 | D7: Bath Fan - Continuous single speed, <10 cfm/W | E7: 77.26 | F7: 2 | G7: 137.66 | H7: 30 | I7: 0 | J7: 0 | K7: 30 | L7: 13853
C8: BFSS10 | D8: Bath Fan - Continuous single speed, >=10 cfm/W, <15 cfm/W | E8: 46 | F8: 1 | G8: 112.63 | H8: 25 | I8: 0 | J8: 0 | K8: 25 | L8: 13854
C9: BFSS15 | D9: Bath Fan - Continuous single speed, >=15 cfm/W | E9: 177 | F9: 3 | G9: 381.69 | H9: 90 | I9: 0 | J9: 0 | K9: 90 | L9: 13855
C10: Grand Total | E10: 300.26 | F10: 6 | G10: 631.98 | H10: 145 | I10: 0 | J10: 0 | K10: 145 | L10: 13853

Sheet Import Pivot (hidden)
C1: Quantity | D1: (Multiple Items)
C3: Measure | D3: Sum of Quantity | E3: Sum of ProjectCost | F3: Sum of Incentive | G3: Sum of kWh | H3: Sum of Therms | I3: Min of Installer | J3: Max of ReservationDate | K3: Max of InstalledDate | L3: Max of LifeYears | M3: Max of LP_ELE | N3: Max of LP_GAS | O3: Sum of Product Version ID
C4: BFSS5 | D4: 2 | F4: 30 | G4: 137.66 | H4: 0 | O4: 13853
C5: BFSS10 | D5: 1 | F5: 25 | G5: 112.63 | H5: 0 | O5: 13854
C6: BFSS15 | D6: 3 | F6: 90 | G6: 381.69 | H6: 0 | O6: 13855
C7: Grand Total | D7: 6 | F7: 145 | G7: 631.98 | H7: 0 | O7: 41562

Sheet MeasureTotals Lookups (hidden)
B2: Import Data
B3: Measure | C3: Quantity | D3: ProjectCost | E3: Incentive | F3: kWh | G3: Therms | H3: Installer | I3: ReservationDate | J3: InstalledDate | K3: LifeYears | L3: LP_ELE | M3: LP_GAS | N3: Product Version ID | O3: Incentive Ele | P3: Incenitve Gas | Q3: Measure Name | R3: Incremental Cost
B4: MINISPLITAC | C4: =SUMIF('Equipment Options'!N:N,'MeasureTotals Lookups'!$B4,'Equipment Options'!O:O) -> 0 | E4: =SUMIF('Equipment Options'!N:N,'MeasureTotals Lookups'!$B4,'Equipment Options'!V:V) -> 0 | F4: =SUMIF('Equipment Options'!N:N,'MeasureTotals Lookups'!$B4,'Equipment Options'!R:R) -> 0 | G4: =SUMIF('Equipment Options'!N:N,'MeasureTotals Lookups'!$B4,'Equipment Options'!S:S) -> 0 | N4: =_xlfn.XLOOKUP($B4,ProductCode,ProductVersionId,"",0) -> 17692 | O4: =SUMIF('Equipment Options'!N:N,'MeasureTotals Lookups'!$B4,'Equipment Options'!T:T) -> 0 | P4: =SUMIF('Equipment Options'!N:N,'MeasureTotals Lookups'!$B4,'Equipment Options'!U:U) -> 0 | Q4: =_xlfn.XLOOKUP($B4,ProductCode,ProductDescription,"",0) -> Server Closet/Telecom Room Mini-Split Air Conditioner | R4: =(_xlfn.XLOOKUP($B4,ProductCode,IncrementalCost,"",0))*C4 -> 0
B5: MINISPLITHP | C5: =SUMIF('Equipment Options'!N:N,'MeasureTotals Lookups'!$B5,'Equipment Options'!O:O) -> 0 | E5: =SUMIF('Equipment Options'!N:N,'MeasureTotals Lookups'!$B5,'Equipment Options'!V:V) -> 0 | F5: =SUMIF('Equipment Options'!N:N,'MeasureTotals Lookups'!$B5,'Equipment Options'!R:R) -> 0 | G5: =SUMIF('Equipment Options'!N:N,'MeasureTotals Lookups'!$B5,'Equipment Options'!S:S) -> 0 | N5: 17693 | O5: =SUMIF('Equipment Options'!N:N,'MeasureTotals Lookups'!$B5,'Equipment Options'!T:T) -> 0 | P5: =SUMIF('Equipment Options'!N:N,'MeasureTotals Lookups'!$B5,'Equipment Options'!U:U) -> 0 | Q5: Server Closet/Telecom Room Mini-Split Heat Pumps | R5: 0
B6: DHWCONDTANKMF | C6: =SUMIF('Equipment Options'!N:N,'MeasureTotals Lookups'!$B6,'Equipment Options'!O:O) -> 0 | E6: =SUMIF('Equipment Options'!N:N,'MeasureTotals Lookups'!$B6,'Equipment Options'!V:V) -> 0 | F6: =SUMIF('Equipment Options'!N:N,'MeasureTotals Lookups'!$B6,'Equipment Options'!R:R) -> 0 | G6: =SUMIF('Equipment Options'!N:N,'MeasureTotals Lookups'!$B6,'Equipment Options'!S:S) -> 0 | N6: 18351 | O6: =SUMIF('Equipment Options'!N:N,'MeasureTotals Lookups'!$B6,'Equipment Options'!T:T) -> 0 | P6: =SUMIF('Equipment Options'!N:N,'MeasureTotals Lookups'!$B6,'Equipment Options'!U:U) -> 0 | Q6: Condensing Tank Water Heater, Multifamily | R6: 0
B7: DHWCONDNMF | C7: =SUMIF('Equipment Options'!N:N,'MeasureTotals Lookups'!$B7,'Equipment Options'!O:O) -> 0 | E7: =SUMIF('Equipment Options'!N:N,'MeasureTotals Lookups'!$B7,'Equipment Options'!V:V) -> 0 | F7: =SUMIF('Equipment Options'!N:N,'MeasureTotals Lookups'!$B7,'Equipment Options'!R:R) -> 0 | G7: =SUMIF('Equipment Options'!N:N,'MeasureTotals Lookups'!$B7,'Equipment Options'!S:S) -> 0 | N7: 18353 | O7: =SUMIF('Equipment Options'!N:N,'MeasureTotals Lookups'!$B7,'Equipment Options'!T:T) -> 0 | P7: =SUMIF('Equipment Options'!N:N,'MeasureTotals Lookups'!$B7,'Equipment Options'!U:U) -> 0 | Q7: Condensing Tank Water Heater, All Except MF | R7: 0
B8: DWSTCONHTEMPE | C8: =SUMIF('Equipment Options'!N:N,'MeasureTotals Lookups'!$B8,'Equipment Options'!O:O) -> 0 | E8: =SUMIF('Equipment Options'!N:N,'MeasureTotals Lookups'!$B8,'Equipment Options'!V:V) -> 0 | F8: =SUMIF('Equipment Options'!N:N,'MeasureTotals Lookups'!$B8,'Equipment Options'!R:R) -> 0 | G8: =SUMIF('Equipment Options'!N:N,'MeasureTotals Lookups'!$B8,'Equipment Options'!S:S) -> 0 | N8: 13323 | O8: =SUMIF('Equipment Options'!N:N,'MeasureTotals Lookups'!$B8,'Equipment Options'!T:T) -> 0 | P8: =SUMIF('Equipment Options'!N:N,'MeasureTotals Lookups'!$B8,'Equipment Options'!U:U) -> 0 | Q8: Dishwasher - Single Tank Conveyor- High Temp - Ele WH | R8: 0
B9: DWSTCONLDTEMPE | C9: =SUMIF('Equipment Options'!N:N,'MeasureTotals Lookups'!$B9,'Equipment Options'!O:O) -> 0 | E9: =SUMIF('Equipment Options'!N:N,'MeasureTotals Lookups'!$B9,'Equipment Options'!V:V) -> 0 | F9: =SUMIF('Equipment Options'!N:N,'MeasureTotals Lookups'!$B9,'Equipment Options'!R:R) -> 0 | G9: =SUMIF('Equipment Options'!N:N,'MeasureTotals Lookups'!$B9,'Equipment Options'!S:S) -> 0 | N9: 13324 | O9: =SUMIF('Equipment Options'!N:N,'MeasureTotals Lookups'!$B9,'Equipment Options'!T:T) -> 0 | P9: =SUMIF('Equipment Options'!N:N,'MeasureTotals Lookups'!$B9,'Equipment Options'!U:U) -> 0 | Q9: Dishwasher - Single Tank Conveyor - Low or Dual temp - Ele WH | R9: 0
B10: DWMTCONHDTEMPE | C10: =SUMIF('Equipment Options'!N:N,'MeasureTotals Lookups'!$B10,'Equipment Options'!O:O) -> 0 | E10: =SUMIF('Equipment Options'!N:N,'MeasureTotals Lookups'!$B10,'Equipment Options'!V:V) -> 0 | F10: =SUMIF('Equipment Options'!N:N,'MeasureTotals Lookups'!$B10,'Equipment Options'!R:R) -> 0 | G10: =SUMIF('Equipment Options'!N:N,'MeasureTotals Lookups'!$B10,'Equipment Options'!S:S) -> 0 | N10: 13325 | O10: =SUMIF('Equipment Options'!N:N,'MeasureTotals Lookups'!$B10,'Equipment Options'!T:T) -> 0 | P10: =SUMIF('Equipment Options'!N:N,'MeasureTotals Lookups'!$B10,'Equipment Options'!U:U) -> 0 | Q10: Dishwasher - Multi Tank Conveyor - High or Dual Temp - Elec WH | R10: 0
B11: COMHPWHT3 | C11: =SUMIF('Equipment Options'!N:N,'MeasureTotals Lookups'!$B11,'Equipment Options'!O:O) -> 0 | E11: =SUMIF('Equipment Options'!N:N,'MeasureTotals Lookups'!$B11,'Equipment Options'!V:V) -> 0 | F11: =SUMIF('Equipment Options'!N:N,'MeasureTotals Lookups'!$B11,'Equipment Options'!R:R) -> 0 | G11: =SUMIF('Equipment Options'!N:N,'MeasureTotals Lookups'!$B11,'Equipment Options'!S:S) -> 0 | N11: 18356 | O11: =SUMIF('Equipment Options'!N:N,'MeasureTotals Lookups'!$B11,'Equipment Options'!T:T) -> 0 | P11: =SUMIF('Equipment Options'!N:N,'MeasureTotals Lookups'!$B11,'Equipment Options'!U:U) -> 0 | Q11: Comm Heat Pump Water Heater Tier 3+ Any Building Type | R11: 0
B12: CTWH200COMMF | C12: =SUMIF('Equipment Options'!N:N,'MeasureTotals Lookups'!$B12,'Equipment Options'!O:O) -> 0 | E12: =SUMIF('Equipment Options'!N:N,'MeasureTotals Lookups'!$B12,'Equipment Options'!V:V) -> 0 | F12: =SUMIF('Equipment Options'!N:N,'MeasureTotals Lookups'!$B12,'Equipment Options'!R:R) -> 0 | G12: =SUMIF('Equipment Options'!N:N,'MeasureTotals Lookups'!$B12,'Equipment Options'!S:S) -> 0 | N12: 18357 | O12: =SUMIF('Equipment Options'!N:N,'MeasureTotals Lookups'!$B12,'Equipment Options'!T:T) -> 0 | P12: =SUMIF('Equipment Options'!N:N,'MeasureTotals Lookups'!$B12,'Equipment Options'!U:U) -> 0 | Q12: Tankless Water Heater >= 200 kBtu/h, MF | R12: 0
B13: CTWH200COMNONMF | C13: =SUMIF('Equipment Options'!N:N,'MeasureTotals Lookups'!$B13,'Equipment Options'!O:O) -> 0 | E13: =SUMIF('Equipment Options'!N:N,'MeasureTotals Lookups'!$B13,'Equipment Options'!V:V) -> 0 | F13: =SUMIF('Equipment Options'!N:N,'MeasureTotals Lookups'!$B13,'Equipment Options'!R:R) -> 0 | G13: =SUMIF('Equipment Options'!N:N,'MeasureTotals Lookups'!$B13,'Equipment Options'!S:S) -> 0 | N13: 18358 | O13: =SUMIF('Equipment Options'!N:N,'MeasureTotals Lookups'!$B13,'Equipment Options'!T:T) -> 0 | P13: =SUMIF('Equipment Options'!N:N,'MeasureTotals Lookups'!$B13,'Equipment Options'!U:U) -> 0 | Q13: Tankless Water Heaters >= 200 kBtu/h, All Except MF | R13: 0
B14: OZONSYS126400EWH | C14: =SUMIF('Equipment Options'!N:N,'MeasureTotals Lookups'!$B14,'Equipment Options'!O:O) -> 0 | E14: =SUMIF('Equipment Options'!N:N,'MeasureTotals Lookups'!$B14,'Equipment Options'!V:V) -> 0 | F14: =SUMIF('Equipment Options'!N:N,'MeasureTotals Lookups'!$B14,'Equipment Options'!R:R) -> 0 | G14: =SUMIF('Equipment Options'!N:N,'MeasureTotals Lookups'!$B14,'Equipment Options'!S:S) -> 0 | N14: 17926 | O14: =SUMIF('Equipment Options'!N:N,'MeasureTotals Lookups'!$B14,'Equipment Options'!T:T) -> 0 | P14: =SUMIF('Equipment Options'!N:N,'MeasureTotals Lookups'!$B14,'Equipment Options'!U:U) -> 0 | Q14: Ozone Laundry System 126-400 Lbs Capacity - Ele WH | R14: 0
B15: OZONSYS401600GWHGOT | C15: =SUMIF('Equipment Options'!N:N,'MeasureTotals Lookups'!$B15,'Equipment Options'!O:O) -> 0 | E15: =SUMIF('Equipment Options'!N:N,'MeasureTotals Lookups'!$B15,'Equipment Options'!V:V) -> 0 | F15: =SUMIF('Equipment Options'!N:N,'MeasureTotals Lookups'!$B15,'Equipment Options'!R:R) -> 0 | G15: =SUMIF('Equipment Options'!N:N,'MeasureTotals Lookups'!$B15,'Equipment Options'!S:S) -> 0 | N15: 17927 | O15: =SUMIF('Equipment Options'!N:N,'MeasureTotals Lookups'!$B15,'Equipment Options'!T:T) -> 0 | P15: =SUMIF('Equipment Options'!N:N,'MeasureTotals Lookups'!$B15,'Equipment Options'!U:U) -> 0 | Q15: Ozone Laundry System 401-600 Lbs Capacity - Gas WH GOT | R15: 0
B16: OZONSYS401600GWHFULL | C16: =SUMIF('Equipment Options'!N:N,'MeasureTotals Lookups'!$B16,'Equipment Options'!O:O) -> 0 | E16: =SUMIF('Equipment Options'!N:N,'MeasureTotals Lookups'!$B16,'Equipment Options'!V:V) -> 0 | F16: =SUMIF('Equipment Options'!N:N,'MeasureTotals Lookups'!$B16,'Equipment Options'!R:R) -> 0 | G16: =SUMIF('Equipment Options'!N:N,'MeasureTotals Lookups'!$B16,'Equipment Options'!S:S) -> 0 | N16: 17928 | O16: =SUMIF('Equipment Options'!N:N,'MeasureTotals Lookups'!$B16,'Equipment Options'!T:T) -> 0 | P16: =SUMIF('Equipment Options'!N:N,'MeasureTotals Lookups'!$B16,'Equipment Options'!U:U) -> 0 | Q16: Ozone Laundry System 401-600 Lbs Capacity - Gas WH Full Terr | R16: 0
B17: OZONSYS401600EWH | C17: =SUMIF('Equipment Options'!N:N,'MeasureTotals Lookups'!$B17,'Equipment Options'!O:O) -> 0 | E17: =SUMIF('Equipment Options'!N:N,'MeasureTotals Lookups'!$B17,'Equipment Options'!V:V) -> 0 | F17: =SUMIF('Equipment Options'!N:N,'MeasureTotals Lookups'!$B17,'Equipment Options'!R:R) -> 0 | G17: =SUMIF('Equipment Options'!N:N,'MeasureTotals Lookups'!$B17,'Equipment Options'!S:S) -> 0 | N17: 17929 | O17: =SUMIF('Equipment Options'!N:N,'MeasureTotals Lookups'!$B17,'Equipment Options'!T:T) -> 0 | P17: =SUMIF('Equipment Options'!N:N,'MeasureTotals Lookups'!$B17,'Equipment Options'!U:U) -> 0 | Q17: Ozone Laundry System 401-600 Lbs Capacity - Ele WH | R17: 0
B18: OZONSYS600GWHGOT | C18: =SUMIF('Equipment Options'!N:N,'MeasureTotals Lookups'!$B18,'Equipment Options'!O:O) -> 0 | E18: =SUMIF('Equipment Options'!N:N,'MeasureTotals Lookups'!$B18,'Equipment Options'!V:V) -> 0 | F18: =SUMIF('Equipment Options'!N:N,'MeasureTotals Lookups'!$B18,'Equipment Options'!R:R) -> 0 | G18: =SUMIF('Equipment Options'!N:N,'MeasureTotals Lookups'!$B18,'Equipment Options'!S:S) -> 0 | N18: 17930 | O18: =SUMIF('Equipment Options'!N:N,'MeasureTotals Lookups'!$B18,'Equipment Options'!T:T) -> 0 | P18: =SUMIF('Equipment Options'!N:N,'MeasureTotals Lookups'!$B18,'Equipment Options'!U:U) -> 0 | Q18: Ozone Laundry System > 600 Lbs Capacity - Gas WH GOT | R18: 0
B19: OZONSYS600GWHFULL | C19: =SUMIF('Equipment Options'!N:N,'MeasureTotals Lookups'!$B19,'Equipment Options'!O:O) -> 0 | E19: =SUMIF('Equipment Options'!N:N,'MeasureTotals Lookups'!$B19,'Equipment Options'!V:V) -> 0 | F19: =SUMIF('Equipment Options'!N:N,'MeasureTotals Lookups'!$B19,'Equipment Options'!R:R) -> 0 | G19: =SUMIF('Equipment Options'!N:N,'MeasureTotals Lookups'!$B19,'Equipment Options'!S:S) -> 0 | N19: 17931 | O19: =SUMIF('Equipment Options'!N:N,'MeasureTotals Lookups'!$B19,'Equipment Options'!T:T) -> 0 | P19: =SUMIF('Equipment Options'!N:N,'MeasureTotals Lookups'!$B19,'Equipment Options'!U:U) -> 0 | Q19: Ozone Laundry System > 600 Lbs Capacity - Gas WH Full Terr | R19: 0
B20: OZONSYS600EWH | C20: =SUMIF('Equipment Options'!N:N,'MeasureTotals Lookups'!$B20,'Equipment Options'!O:O) -> 0 | E20: =SUMIF('Equipment Options'!N:N,'MeasureTotals Lookups'!$B20,'Equipment Options'!V:V) -> 0 | F20: =SUMIF('Equipment Options'!N:N,'MeasureTotals Lookups'!$B20,'Equipment Options'!R:R) -> 0 | G20: =SUMIF('Equipment Options'!N:N,'MeasureTotals Lookups'!$B20,'Equipment Options'!S:S) -> 0 | N20: 17932 | O20: =SUMIF('Equipment Options'!N:N,'MeasureTotals Lookups'!$B20,'Equipment Options'!T:T) -> 0 | P20: =SUMIF('Equipment Options'!N:N,'MeasureTotals Lookups'!$B20,'Equipment Options'!U:U) -> 0 | Q20: Ozone Laundry System > 600 Lbs Capacity - Ele WH | R20: 0
B21: OZONSYS75GWHFULL | C21: =SUMIF('Equipment Options'!N:N,'MeasureTotals Lookups'!$B21,'Equipment Options'!O:O) -> 0 | E21: =SUMIF('Equipment Options'!N:N,'MeasureTotals Lookups'!$B21,'Equipment Options'!V:V) -> 0 | F21: =SUMIF('Equipment Options'!N:N,'MeasureTotals Lookups'!$B21,'Equipment Options'!R:R) -> 0 | G21: =SUMIF('Equipment Options'!N:N,'MeasureTotals Lookups'!$B21,'Equipment Options'!S:S) -> 0 | N21: 17933 | O21: =SUMIF('Equipment Options'!N:N,'MeasureTotals Lookups'!$B21,'Equipment Options'!T:T) -> 0 | P21: =SUMIF('Equipment Options'!N:N,'MeasureTotals Lookups'!$B21,'Equipment Options'!U:U) -> 0 | Q21: Ozone Laundry System < 75 Lbs Capacity - Gas WH Full Terr | R21: 0
B22: OZONSYS75EWH | C22: =SUMIF('Equipment Options'!N:N,'MeasureTotals Lookups'!$B22,'Equipment Options'!O:O) -> 0 | E22: =SUMIF('Equipment Options'!N:N,'MeasureTotals Lookups'!$B22,'Equipment Options'!V:V) -> 0 | F22: =SUMIF('Equipment Options'!N:N,'MeasureTotals Lookups'!$B22,'Equipment Options'!R:R) -> 0 | G22: =SUMIF('Equipment Options'!N:N,'MeasureTotals Lookups'!$B22,'Equipment Options'!S:S) -> 0 | N22: 17934 | O22: =SUMIF('Equipment Options'!N:N,'MeasureTotals Lookups'!$B22,'Equipment Options'!T:T) -> 0 | P22: =SUMIF('Equipment Options'!N:N,'MeasureTotals Lookups'!$B22,'Equipment Options'!U:U) -> 0 | Q22: Ozone Laundry System < 75 Lbs Capacity - Ele WH | R22: 0
B23: OZONSYS75125GWHGOT | C23: =SUMIF('Equipment Options'!N:N,'MeasureTotals Lookups'!$B23,'Equipment Options'!O:O) -> 0 | E23: =SUMIF('Equipment Options'!N:N,'MeasureTotals Lookups'!$B23,'Equipment Options'!V:V) -> 0 | F23: =SUMIF('Equipment Options'!N:N,'MeasureTotals Lookups'!$B23,'Equipment Options'!R:R) -> 0 | G23: =SUMIF('Equipment Options'!N:N,'MeasureTotals Lookups'!$B23,'Equipment Options'!S:S) -> 0 | N23: 17935 | O23: =SUMIF('Equipment Options'!N:N,'MeasureTotals Lookups'!$B23,'Equipment Options'!T:T) -> 0 | P23: =SUMIF('Equipment Options'!N:N,'MeasureTotals Lookups'!$B23,'Equipment Options'!U:U) -> 0 | Q23: Ozone Laundry System 75-125 Lbs Capacity - Gas WH GOT | R23: 0
B24: OZONSYS75125GWHFULL | C24: =SUMIF('Equipment Options'!N:N,'MeasureTotals Lookups'!$B24,'Equipment Options'!O:O) -> 0 | E24: =SUMIF('Equipment Options'!N:N,'MeasureTotals Lookups'!$B24,'Equipment Options'!V:V) -> 0 | F24: =SUMIF('Equipment Options'!N:N,'MeasureTotals Lookups'!$B24,'Equipment Options'!R:R) -> 0 | G24: =SUMIF('Equipment Options'!N:N,'MeasureTotals Lookups'!$B24,'Equipment Options'!S:S) -> 0 | N24: 17936 | O24: =SUMIF('Equipment Options'!N:N,'MeasureTotals Lookups'!$B24,'Equipment Options'!T:T) -> 0 | P24: =SUMIF('Equipment Options'!N:N,'MeasureTotals Lookups'!$B24,'Equipment Options'!U:U) -> 0 | Q24: Ozone Laundry System 75-125 Lbs Capacity - Gas WH Full Terr | R24: 0
B25: OZONSYS75125EWH | C25: =SUMIF('Equipment Options'!N:N,'MeasureTotals Lookups'!$B25,'Equipment Options'!O:O) -> 0 | E25: =SUMIF('Equipment Options'!N:N,'MeasureTotals Lookups'!$B25,'Equipment Options'!V:V) -> 0 | F25: =SUMIF('Equipment Options'!N:N,'MeasureTotals Lookups'!$B25,'Equipment Options'!R:R) -> 0 | G25: =SUMIF('Equipment Options'!N:N,'MeasureTotals Lookups'!$B25,'Equipment Options'!S:S) -> 0 | N25: 17937 | O25: =SUMIF('Equipment Options'!N:N,'MeasureTotals Lookups'!$B25,'Equipment Options'!T:T) -> 0 | P25: =SUMIF('Equipment Options'!N:N,'MeasureTotals Lookups'!$B25,'Equipment Options'!U:U) -> 0 | Q25: Ozone Laundry System 75-125 Lbs Capacity - Ele WH | R25: 0
B26: OZONSYS126400GWHGOT | C26: =SUMIF('Equipment Options'!N:N,'MeasureTotals Lookups'!$B26,'Equipment Options'!O:O) -> 0 | E26: =SUMIF('Equipment Options'!N:N,'MeasureTotals Lookups'!$B26,'Equipment Options'!V:V) -> 0 | F26: =SUMIF('Equipment Options'!N:N,'MeasureTotals Lookups'!$B26,'Equipment Options'!R:R) -> 0 | G26: =SUMIF('Equipment Options'!N:N,'MeasureTotals Lookups'!$B26,'Equipment Options'!S:S) -> 0 | N26: 17938 | O26: =SUMIF('Equipment Options'!N:N,'MeasureTotals Lookups'!$B26,'Equipment Options'!T:T) -> 0 | P26: =SUMIF('Equipment Options'!N:N,'MeasureTotals Lookups'!$B26,'Equipment Options'!U:U) -> 0 | Q26: Ozone Laundry System 126-400 Lbs Capacity - Gas WH GOT | R26: 0
B27: OZONSYS126400GWHFULL | C27: =SUMIF('Equipment Options'!N:N,'MeasureTotals Lookups'!$B27,'Equipment Options'!O:O) -> 0 | E27: =SUMIF('Equipment Options'!N:N,'MeasureTotals Lookups'!$B27,'Equipment Options'!V:V) -> 0 | F27: =SUMIF('Equipment Options'!N:N,'MeasureTotals Lookups'!$B27,'Equipment Options'!R:R) -> 0 | G27: =SUMIF('Equipment Options'!N:N,'MeasureTotals Lookups'!$B27,'Equipment Options'!S:S) -> 0 | N27: 17939 | O27: =SUMIF('Equipment Options'!N:N,'MeasureTotals Lookups'!$B27,'Equipment Options'!T:T) -> 0 | P27: =SUMIF('Equipment Options'!N:N,'MeasureTotals Lookups'!$B27,'Equipment Options'!U:U) -> 0 | Q27: Ozone Laundry System 126-400 Lbs Capacity - Gas WH Full Terr | R27: 0
B28: OZONSYS75GWHGOT | C28: =SUMIF('Equipment Options'!N:N,'MeasureTotals Lookups'!$B28,'Equipment Options'!O:O) -> 0 | E28: =SUMIF('Equipment Options'!N:N,'MeasureTotals Lookups'!$B28,'Equipment Options'!V:V) -> 0 | F28: =SUMIF('Equipment Options'!N:N,'MeasureTotals Lookups'!$B28,'Equipment Options'!R:R) -> 0 | G28: =SUMIF('Equipment Options'!N:N,'MeasureTotals Lookups'!$B28,'Equipment Options'!S:S) -> 0 | N28: 17947 | O28: =SUMIF('Equipment Options'!N:N,'MeasureTotals Lookups'!$B28,'Equipment Options'!T:T) -> 0 | P28: =SUMIF('Equipment Options'!N:N,'MeasureTotals Lookups'!$B28,'Equipment Options'!U:U) -> 0 | Q28: Ozone Laundry System < 75 Lbs Capacity - Gas WH GOT | R28: 0
B29: COMWASHEDRYGET | C29: =SUMIF('Equipment Options'!N:N,'MeasureTotals Lookups'!$B29,'Equipment Options'!O:O) -> 0 | E29: =SUMIF('Equipment Options'!N:N,'MeasureTotals Lookups'!$B29,'Equipment Options'!V:V) -> 0 | F29: =SUMIF('Equipment Options'!N:N,'MeasureTotals Lookups'!$B29,'Equipment Options'!R:R) -> 0 | G29: =SUMIF('Equipment Options'!N:N,'MeasureTotals Lookups'!$B29,'Equipment Options'!S:S) -> 0 | N29: 17948 | O29: =SUMIF('Equipment Options'!N:N,'MeasureTotals Lookups'!$B29,'Equipment Options'!T:T) -> 0 | P29: =SUMIF('Equipment Options'!N:N,'MeasureTotals Lookups'!$B29,'Equipment Options'!U:U) -> 0 | Q29: Commercial Washer Gas/Other Dryer Ele WH, Energy Star, EOT | R29: 0
B30: COMWASHGDRYEET | C30: =SUMIF('Equipment Options'!N:N,'MeasureTotals Lookups'!$B30,'Equipment Options'!O:O) -> 0 | E30: =SUMIF('Equipment Options'!N:N,'MeasureTotals Lookups'!$B30,'Equipment Options'!V:V) -> 0 | F30: =SUMIF('Equipment Options'!N:N,'MeasureTotals Lookups'!$B30,'Equipment Options'!R:R) -> 0 | G30: =SUMIF('Equipment Options'!N:N,'MeasureTotals Lookups'!$B30,'Equipment Options'!S:S) -> 0 | N30: 17949 | O30: =SUMIF('Equipment Options'!N:N,'MeasureTotals Lookups'!$B30,'Equipment Options'!T:T) -> 0 | P30: =SUMIF('Equipment Options'!N:N,'MeasureTotals Lookups'!$B30,'Equipment Options'!U:U) -> 0 | Q30: Commercial Washer Ele Dryer Gas/Other WH, Energy Star, EOT | R30: 0
B31: COMWASHEDRYGMFET | C31: =SUMIF('Equipment Options'!N:N,'MeasureTotals Lookups'!$B31,'Equipment Options'!O:O) -> 0 | E31: =SUMIF('Equipment Options'!N:N,'MeasureTotals Lookups'!$B31,'Equipment Options'!V:V) -> 0 | F31: =SUMIF('Equipment Options'!N:N,'MeasureTotals Lookups'!$B31,'Equipment Options'!R:R) -> 0 | G31: =SUMIF('Equipment Options'!N:N,'MeasureTotals Lookups'!$B31,'Equipment Options'!S:S) -> 0 | N31: 17950 | O31: =SUMIF('Equipment Options'!N:N,'MeasureTotals Lookups'!$B31,'Equipment Options'!T:T) -> 0 | P31: =SUMIF('Equipment Options'!N:N,'MeasureTotals Lookups'!$B31,'Equipment Options'!U:U) -> 0 | Q31: MF Commercial Washer Gas/Other Dryer Ele WH, Energy Star, EOT | R31: 0
B32: COMWASHGDRYEMFET | C32: =SUMIF('Equipment Options'!N:N,'MeasureTotals Lookups'!$B32,'Equipment Options'!O:O) -> 0 | E32: =SUMIF('Equipment Options'!N:N,'MeasureTotals Lookups'!$B32,'Equipment Options'!V:V) -> 0 | F32: =SUMIF('Equipment Options'!N:N,'MeasureTotals Lookups'!$B32,'Equipment Options'!R:R) -> 0 | G32: =SUMIF('Equipment Options'!N:N,'MeasureTotals Lookups'!$B32,'Equipment Options'!S:S) -> 0 | N32: 17951 | O32: =SUMIF('Equipment Options'!N:N,'MeasureTotals Lookups'!$B32,'Equipment Options'!T:T) -> 0 | P32: =SUMIF('Equipment Options'!N:N,'MeasureTotals Lookups'!$B32,'Equipment Options'!U:U) -> 0 | Q32: MF Commercial Washer Ele Dryer Gas/Other WH, Energy Star, EOT | R32: 0
B33: COMWASHGDRYGFT | C33: =SUMIF('Equipment Options'!N:N,'MeasureTotals Lookups'!$B33,'Equipment Options'!O:O) -> 0 | E33: =SUMIF('Equipment Options'!N:N,'MeasureTotals Lookups'!$B33,'Equipment Options'!V:V) -> 0 | F33: =SUMIF('Equipment Options'!N:N,'MeasureTotals Lookups'!$B33,'Equipment Options'!R:R) -> 0 | G33: =SUMIF('Equipment Options'!N:N,'MeasureTotals Lookups'!$B33,'Equipment Options'!S:S) -> 0 | N33: 17952 | O33: =SUMIF('Equipment Options'!N:N,'MeasureTotals Lookups'!$B33,'Equipment Options'!T:T) -> 0 | P33: =SUMIF('Equipment Options'!N:N,'MeasureTotals Lookups'!$B33,'Equipment Options'!U:U) -> 0 | Q33: Commercial Washer Gas Dryer Gas WH, Energy Star | R33: 0
B34: COMWASHEDRYGFT | C34: =SUMIF('Equipment Options'!N:N,'MeasureTotals Lookups'!$B34,'Equipment Options'!O:O) -> 0 | E34: =SUMIF('Equipment Options'!N:N,'MeasureTotals Lookups'!$B34,'Equipment Options'!V:V) -> 0 | F34: =SUMIF('Equipment Options'!N:N,'MeasureTotals Lookups'!$B34,'Equipment Options'!R:R) -> 0 | G34: =SUMIF('Equipment Options'!N:N,'MeasureTotals Lookups'!$B34,'Equipment Options'!S:S) -> 0 | N34: 17953 | O34: =SUMIF('Equipment Options'!N:N,'MeasureTotals Lookups'!$B34,'Equipment Options'!T:T) -> 0 | P34: =SUMIF('Equipment Options'!N:N,'MeasureTotals Lookups'!$B34,'Equipment Options'!U:U) -> 0 | Q34: Commercial Washer Gas Dryer Ele WH, Energy Star | R34: 0
B35: COMWASHGDRYEFT | C35: =SUMIF('Equipment Options'!N:N,'MeasureTotals Lookups'!$B35,'Equipment Options'!O:O) -> 0 | E35: =SUMIF('Equipment Options'!N:N,'MeasureTotals Lookups'!$B35,'Equipment Options'!V:V) -> 0 | F35: =SUMIF('Equipment Options'!N:N,'MeasureTotals Lookups'!$B35,'Equipment Options'!R:R) -> 0 | G35: =SUMIF('Equipment Options'!N:N,'MeasureTotals Lookups'!$B35,'Equipment Options'!S:S) -> 0 | N35: 17954 | O35: =SUMIF('Equipment Options'!N:N,'MeasureTotals Lookups'!$B35,'Equipment Options'!T:T) -> 0 | P35: =SUMIF('Equipment Options'!N:N,'MeasureTotals Lookups'!$B35,'Equipment Options'!U:U) -> 0 | Q35: Commercial Washer Ele Dryer Gas WH, Energy Star | R35: 0
B36: COMWASHEDRYEFT | C36: =SUMIF('Equipment Options'!N:N,'MeasureTotals Lookups'!$B36,'Equipment Options'!O:O) -> 0 | E36: =SUMIF('Equipment Options'!N:N,'MeasureTotals Lookups'!$B36,'Equipment Options'!V:V) -> 0 | F36: =SUMIF('Equipment Options'!N:N,'MeasureTotals Lookups'!$B36,'Equipment Options'!R:R) -> 0 | G36: =SUMIF('Equipment Options'!N:N,'MeasureTotals Lookups'!$B36,'Equipment Options'!S:S) -> 0 | N36: =_xlfn.XLOOKUP($B36,ProductCode,ProductVersionId,"",0) -> 17955 | O36: =SUMIF('Equipment Options'!N:N,'MeasureTotals Lookups'!$B36,'Equipment Options'!T:T) -> 0 | P36: =SUMIF('Equipment Options'!N:N,'MeasureTotals Lookups'!$B36,'Equipment Options'!U:U) -> 0 | Q36: =_xlfn.XLOOKUP($B36,ProductCode,ProductDescription,"",0) -> Commercial Washer Ele Dryer Ele WH, Energy Star | R36: 0
B37: COMWASHGDRYGMFFT | C37: =SUMIF('Equipment Options'!N:N,'MeasureTotals Lookups'!$B37,'Equipment Options'!O:O) -> 0 | E37: =SUMIF('Equipment Options'!N:N,'MeasureTotals Lookups'!$B37,'Equipment Options'!V:V) -> 0 | F37: =SUMIF('Equipment Options'!N:N,'MeasureTotals Lookups'!$B37,'Equipment Options'!R:R) -> 0 | G37: =SUMIF('Equipment Options'!N:N,'MeasureTotals Lookups'!$B37,'Equipment Options'!S:S) -> 0 | N37: 17956 | O37: =SUMIF('Equipment Options'!N:N,'MeasureTotals Lookups'!$B37,'Equipment Options'!T:T) -> 0 | P37: =SUMIF('Equipment Options'!N:N,'MeasureTotals Lookups'!$B37,'Equipment Options'!U:U) -> 0 | Q37: MF Commercial Washer Gas Dryer Gas WH, Energy Star | R37: 0
B38: COMWASHEDRYGMFFT | C38: =SUMIF('Equipment Options'!N:N,'MeasureTotals Lookups'!$B38,'Equipment Options'!O:O) -> 0 | E38: =SUMIF('Equipment Options'!N:N,'MeasureTotals Lookups'!$B38,'Equipment Options'!V:V) -> 0 | F38: =SUMIF('Equipment Options'!N:N,'MeasureTotals Lookups'!$B38,'Equipment Options'!R:R) -> 0 | G38: =SUMIF('Equipment Options'!N:N,'MeasureTotals Lookups'!$B38,'Equipment Options'!S:S) -> 0 | N38: 17957 | O38: =SUMIF('Equipment Options'!N:N,'MeasureTotals Lookups'!$B38,'Equipment Options'!T:T) -> 0 | P38: =SUMIF('Equipment Options'!N:N,'MeasureTotals Lookups'!$B38,'Equipment Options'!U:U) -> 0 | Q38: MF Commercial Washer Gas Dryer Ele WH, Energy Star | R38: 0
B39: COMWASHGDRYEMFFT | C39: =SUMIF('Equipment Options'!N:N,'MeasureTotals Lookups'!$B39,'Equipment Options'!O:O) -> 0 | E39: =SUMIF('Equipment Options'!N:N,'MeasureTotals Lookups'!$B39,'Equipment Options'!V:V) -> 0 | F39: =SUMIF('Equipment Options'!N:N,'MeasureTotals Lookups'!$B39,'Equipment Options'!R:R) -> 0 | G39: =SUMIF('Equipment Options'!N:N,'MeasureTotals Lookups'!$B39,'Equipment Options'!S:S) -> 0 | N39: 17958 | O39: =SUMIF('Equipment Options'!N:N,'MeasureTotals Lookups'!$B39,'Equipment Options'!T:T) -> 0 | P39: =SUMIF('Equipment Options'!N:N,'MeasureTotals Lookups'!$B39,'Equipment Options'!U:U) -> 0 | Q39: MF Commercial Washer Ele Dryer Gas WH, Energy Star | R39: 0
B40: COMWASHEDRYEMFFT | C40: =SUMIF('Equipment Options'!N:N,'MeasureTotals Lookups'!$B40,'Equipment Options'!O:O) -> 0 | E40: =SUMIF('Equipment Options'!N:N,'MeasureTotals Lookups'!$B40,'Equipment Options'!V:V) -> 0 | F40: =SUMIF('Equipment Options'!N:N,'MeasureTotals Lookups'!$B40,'Equipment Options'!R:R) -> 0 | G40: =SUMIF('Equipment Options'!N:N,'MeasureTotals Lookups'!$B40,'Equipment Options'!S:S) -> 0 | N40: 17959 | O40: =SUMIF('Equipment Options'!N:N,'MeasureTotals Lookups'!$B40,'Equipment Options'!T:T) -> 0 | P40: =SUMIF('Equipment Options'!N:N,'MeasureTotals Lookups'!$B40,'Equipment Options'!U:U) -> 0 | Q40: MF Commercial Washer Ele Dryer Ele WH, Energy Star | R40: 0
B41: COMWASHGDRYGGT | C41: =SUMIF('Equipment Options'!N:N,'MeasureTotals Lookups'!$B41,'Equipment Options'!O:O) -> 0 | E41: =SUMIF('Equipment Options'!N:N,'MeasureTotals Lookups'!$B41,'Equipment Options'!V:V) -> 0 | F41: =SUMIF('Equipment Options'!N:N,'MeasureTotals Lookups'!$B41,'Equipment Options'!R:R) -> 0 | G41: =SUMIF('Equipment Options'!N:N,'MeasureTotals Lookups'!$B41,'Equipment Options'!S:S) -> 0 | N41: 17960 | O41: =SUMIF('Equipment Options'!N:N,'MeasureTotals Lookups'!$B41,'Equipment Options'!T:T) -> 0 | P41: =SUMIF('Equipment Options'!N:N,'MeasureTotals Lookups'!$B41,'Equipment Options'!U:U) -> 0 | Q41: Commercial Washer Gas Dryer Gas WH, Energy Star, GOT | R41: 0
B42: COMWASHEDRYGGT | C42: =SUMIF('Equipment Options'!N:N,'MeasureTotals Lookups'!$B42,'Equipment Options'!O:O) -> 0 | E42: =SUMIF('Equipment Options'!N:N,'MeasureTotals Lookups'!$B42,'Equipment Options'!V:V) -> 0 | F42: =SUMIF('Equipment Options'!N:N,'MeasureTotals Lookups'!$B42,'Equipment Options'!R:R) -> 0 | G42: =SUMIF('Equipment Options'!N:N,'MeasureTotals Lookups'!$B42,'Equipment Options'!S:S) -> 0 | N42: 17961 | O42: =SUMIF('Equipment Options'!N:N,'MeasureTotals Lookups'!$B42,'Equipment Options'!T:T) -> 0 | P42: =SUMIF('Equipment Options'!N:N,'MeasureTotals Lookups'!$B42,'Equipment Options'!U:U) -> 0 | Q42: Commercial Washer Gas Dryer Ele WH, Energy Star, GOT | R42: 0
B43: COMWASHGDRYEGT | C43: =SUMIF('Equipment Options'!N:N,'MeasureTotals Lookups'!$B43,'Equipment Options'!O:O) -> 0 | E43: =SUMIF('Equipment Options'!N:N,'MeasureTotals Lookups'!$B43,'Equipment Options'!V:V) -> 0 | F43: =SUMIF('Equipment Options'!N:N,'MeasureTotals Lookups'!$B43,'Equipment Options'!R:R) -> 0 | G43: =SUMIF('Equipment Options'!N:N,'MeasureTotals Lookups'!$B43,'Equipment Options'!S:S) -> 0 | N43: 17962 | O43: =SUMIF('Equipment Options'!N:N,'MeasureTotals Lookups'!$B43,'Equipment Options'!T:T) -> 0 | P43: =SUMIF('Equipment Options'!N:N,'MeasureTotals Lookups'!$B43,'Equipment Options'!U:U) -> 0 | Q43: Commercial Washer Ele Dryer Gas WH, Energy Star, GOT | R43: 0
B44: COMWASHGDRYGMFGT | C44: =SUMIF('Equipment Options'!N:N,'MeasureTotals Lookups'!$B44,'Equipment Options'!O:O) -> 0 | E44: =SUMIF('Equipment Options'!N:N,'MeasureTotals Lookups'!$B44,'Equipment Options'!V:V) -> 0 | F44: =SUMIF('Equipment Options'!N:N,'MeasureTotals Lookups'!$B44,'Equipment Options'!R:R) -> 0 | G44: =SUMIF('Equipment Options'!N:N,'MeasureTotals Lookups'!$B44,'Equipment Options'!S:S) -> 0 | N44: 17963 | O44: =SUMIF('Equipment Options'!N:N,'MeasureTotals Lookups'!$B44,'Equipment Options'!T:T) -> 0 | P44: =SUMIF('Equipment Options'!N:N,'MeasureTotals Lookups'!$B44,'Equipment Options'!U:U) -> 0 | Q44: MF Commercial Washer Gas Dryer Gas WH, Energy Star, GOT | R44: 0
B45: COMWASHEDRYGMFGT | C45: =SUMIF('Equipment Options'!N:N,'MeasureTotals Lookups'!$B45,'Equipment Options'!O:O) -> 0 | E45: =SUMIF('Equipment Options'!N:N,'MeasureTotals Lookups'!$B45,'Equipment Options'!V:V) -> 0 | F45: =SUMIF('Equipment Options'!N:N,'MeasureTotals Lookups'!$B45,'Equipment Options'!R:R) -> 0 | G45: =SUMIF('Equipment Options'!N:N,'MeasureTotals Lookups'!$B45,'Equipment Options'!S:S) -> 0 | N45: 17964 | O45: =SUMIF('Equipment Options'!N:N,'MeasureTotals Lookups'!$B45,'Equipment Options'!T:T) -> 0 | P45: =SUMIF('Equipment Options'!N:N,'MeasureTotals Lookups'!$B45,'Equipment Options'!U:U) -> 0 | Q45: MF Commercial Washer Gas Dryer Ele WH, Energy Star, GOT | R45: 0
B46: COMWASHGDRYEMFGT | C46: =SUMIF('Equipment Options'!N:N,'MeasureTotals Lookups'!$B46,'Equipment Options'!O:O) -> 0 | E46: =SUMIF('Equipment Options'!N:N,'MeasureTotals Lookups'!$B46,'Equipment Options'!V:V) -> 0 | F46: =SUMIF('Equipment Options'!N:N,'MeasureTotals Lookups'!$B46,'Equipment Options'!R:R) -> 0 | G46: =SUMIF('Equipment Options'!N:N,'MeasureTotals Lookups'!$B46,'Equipment Options'!S:S) -> 0 | N46: 17965 | O46: =SUMIF('Equipment Options'!N:N,'MeasureTotals Lookups'!$B46,'Equipment Options'!T:T) -> 0 | P46: =SUMIF('Equipment Options'!N:N,'MeasureTotals Lookups'!$B46,'Equipment Options'!U:U) -> 0 | Q46: MF Commercial Washer Ele Dryer Gas WH, Energy Star, GOT | R46: 0
B47: ICESCUBATCH | C47: =SUMIF('Equipment Options'!N:N,'MeasureTotals Lookups'!$B47,'Equipment Options'!O:O) -> 0 | E47: =SUMIF('Equipment Options'!N:N,'MeasureTotals Lookups'!$B47,'Equipment Options'!V:V) -> 0 | F47: =SUMIF('Equipment Options'!N:N,'MeasureTotals Lookups'!$B47,'Equipment Options'!R:R) -> 0 | G47: =SUMIF('Equipment Options'!N:N,'MeasureTotals Lookups'!$B47,'Equipment Options'!S:S) -> 0 | N47: 17966 | O47: =SUMIF('Equipment Options'!N:N,'MeasureTotals Lookups'!$B47,'Equipment Options'!T:T) -> 0 | P47: =SUMIF('Equipment Options'!N:N,'MeasureTotals Lookups'!$B47,'Equipment Options'!U:U) -> 0 | Q47: Commercial Ice Maker, Enrgy Str, Batch SCU, 200-4,000 lb/day | R47: 0
B48: ICERCUBATCH | C48: =SUMIF('Equipment Options'!N:N,'MeasureTotals Lookups'!$B48,'Equipment Options'!O:O) -> 0 | E48: =SUMIF('Equipment Options'!N:N,'MeasureTotals Lookups'!$B48,'Equipment Options'!V:V) -> 0 | F48: =SUMIF('Equipment Options'!N:N,'MeasureTotals Lookups'!$B48,'Equipment Options'!R:R) -> 0 | G48: =SUMIF('Equipment Options'!N:N,'MeasureTotals Lookups'!$B48,'Equipment Options'!S:S) -> 0 | N48: 17967 | O48: =SUMIF('Equipment Options'!N:N,'MeasureTotals Lookups'!$B48,'Equipment Options'!T:T) -> 0 | P48: =SUMIF('Equipment Options'!N:N,'MeasureTotals Lookups'!$B48,'Equipment Options'!U:U) -> 0 | Q48: Commercial Ice Maker, Enrgy Str, Batch RCU, 988-4,000 lb/day | R48: 0
B49: ICERCUCONT | C49: =SUMIF('Equipment Options'!N:N,'MeasureTotals Lookups'!$B49,'Equipment Options'!O:O) -> 0 | E49: =SUMIF('Equipment Options'!N:N,'MeasureTotals Lookups'!$B49,'Equipment Options'!V:V) -> 0 | F49: =SUMIF('Equipment Options'!N:N,'MeasureTotals Lookups'!$B49,'Equipment Options'!R:R) -> 0 | G49: =SUMIF('Equipment Options'!N:N,'MeasureTotals Lookups'!$B49,'Equipment Options'!S:S) -> 0 | N49: 17968 | O49: =SUMIF('Equipment Options'!N:N,'MeasureTotals Lookups'!$B49,'Equipment Options'!T:T) -> 0 | P49: =SUMIF('Equipment Options'!N:N,'MeasureTotals Lookups'!$B49,'Equipment Options'!U:U) -> 0 | Q49: Commercial Ice Maker, Enrgy Str, Cont RCU, 800-4,000 lb/day | R49: 0
B50: ICEIMHCONT | C50: =SUMIF('Equipment Options'!N:N,'MeasureTotals Lookups'!$B50,'Equipment Options'!O:O) -> 0 | E50: =SUMIF('Equipment Options'!N:N,'MeasureTotals Lookups'!$B50,'Equipment Options'!V:V) -> 0 | F50: =SUMIF('Equipment Options'!N:N,'MeasureTotals Lookups'!$B50,'Equipment Options'!R:R) -> 0 | G50: =SUMIF('Equipment Options'!N:N,'MeasureTotals Lookups'!$B50,'Equipment Options'!S:S) -> 0 | N50: 17969 | O50: =SUMIF('Equipment Options'!N:N,'MeasureTotals Lookups'!$B50,'Equipment Options'!T:T) -> 0 | P50: =SUMIF('Equipment Options'!N:N,'MeasureTotals Lookups'!$B50,'Equipment Options'!U:U) -> 0 | Q50: Commercial Ice Maker, Enrgy Str, Cont IMH, 820-4,000 lb/day | R50: 0
B51: ICEIMHBATCH | C51: =SUMIF('Equipment Options'!N:N,'MeasureTotals Lookups'!$B51,'Equipment Options'!O:O) -> 0 | E51: =SUMIF('Equipment Options'!N:N,'MeasureTotals Lookups'!$B51,'Equipment Options'!V:V) -> 0 | F51: =SUMIF('Equipment Options'!N:N,'MeasureTotals Lookups'!$B51,'Equipment Options'!R:R) -> 0 | G51: =SUMIF('Equipment Options'!N:N,'MeasureTotals Lookups'!$B51,'Equipment Options'!S:S) -> 0 | N51: 17970 | O51: =SUMIF('Equipment Options'!N:N,'MeasureTotals Lookups'!$B51,'Equipment Options'!T:T) -> 0 | P51: =SUMIF('Equipment Options'!N:N,'MeasureTotals Lookups'!$B51,'Equipment Options'!U:U) -> 0 | Q51: Commercial Ice Maker, Energy Star, Batch IMH, 1,500-4,000 lb/day | R51: 0
B52: HOTCABINETHALF | C52: =SUMIF('Equipment Options'!N:N,'MeasureTotals Lookups'!$B52,'Equipment Options'!O:O) -> 0 | E52: =SUMIF('Equipment Options'!N:N,'MeasureTotals Lookups'!$B52,'Equipment Options'!V:V) -> 0 | F52: =SUMIF('Equipment Options'!N:N,'MeasureTotals Lookups'!$B52,'Equipment Options'!R:R) -> 0 | G52: =SUMIF('Equipment Options'!N:N,'MeasureTotals Lookups'!$B52,'Equipment Options'!S:S) -> 0 | N52: 13300 | O52: =SUMIF('Equipment Options'!N:N,'MeasureTotals Lookups'!$B52,'Equipment Options'!T:T) -> 0 | P52: =SUMIF('Equipment Options'!N:N,'MeasureTotals Lookups'!$B52,'Equipment Options'!U:U) -> 0 | Q52: Electric Hot Food Holding Cabinet, Half Size | R52: 0
B53: ELESTEAM | C53: =SUMIF('Equipment Options'!N:N,'MeasureTotals Lookups'!$B53,'Equipment Options'!O:O) -> 0 | E53: =SUMIF('Equipment Options'!N:N,'MeasureTotals Lookups'!$B53,'Equipment Options'!V:V) -> 0 | F53: =SUMIF('Equipment Options'!N:N,'MeasureTotals Lookups'!$B53,'Equipment Options'!R:R) -> 0 | G53: =SUMIF('Equipment Options'!N:N,'MeasureTotals Lookups'!$B53,'Equipment Options'!S:S) -> 0 | N53: 13309 | O53: =SUMIF('Equipment Options'!N:N,'MeasureTotals Lookups'!$B53,'Equipment Options'!T:T) -> 0 | P53: =SUMIF('Equipment Options'!N:N,'MeasureTotals Lookups'!$B53,'Equipment Options'!U:U) -> 0 | Q53: Electric Steam Cooker | R53: 0
B54: ELECONVOVES3FULL | C54: =SUMIF('Equipment Options'!N:N,'MeasureTotals Lookups'!$B54,'Equipment Options'!O:O) -> 0 | E54: =SUMIF('Equipment Options'!N:N,'MeasureTotals Lookups'!$B54,'Equipment Options'!V:V) -> 0 | F54: =SUMIF('Equipment Options'!N:N,'MeasureTotals Lookups'!$B54,'Equipment Options'!R:R) -> 0 | G54: =SUMIF('Equipment Options'!N:N,'MeasureTotals Lookups'!$B54,'Equipment Options'!S:S) -> 0 | N54: 16354 | O54: =SUMIF('Equipment Options'!N:N,'MeasureTotals Lookups'!$B54,'Equipment Options'!T:T) -> 0 | P54: =SUMIF('Equipment Options'!N:N,'MeasureTotals Lookups'!$B54,'Equipment Options'!U:U) -> 0 | Q54: Electric Convection Oven - Full Size - Energy Star 3.0 | R54: 0
B55: ELECONVOVES3HALF | C55: =SUMIF('Equipment Options'!N:N,'MeasureTotals Lookups'!$B55,'Equipment Options'!O:O) -> 0 | E55: =SUMIF('Equipment Options'!N:N,'MeasureTotals Lookups'!$B55,'Equipment Options'!V:V) -> 0 | F55: =SUMIF('Equipment Options'!N:N,'MeasureTotals Lookups'!$B55,'Equipment Options'!R:R) -> 0 | G55: =SUMIF('Equipment Options'!N:N,'MeasureTotals Lookups'!$B55,'Equipment Options'!S:S) -> 0 | N55: 16355 | O55: =SUMIF('Equipment Options'!N:N,'MeasureTotals Lookups'!$B55,'Equipment Options'!T:T) -> 0 | P55: =SUMIF('Equipment Options'!N:N,'MeasureTotals Lookups'!$B55,'Equipment Options'!U:U) -> 0 | Q55: Electric Convection Oven - Half Size - Energy Star 3.0 | R55: 0
B56: COMBOOVES334PANELE | C56: =SUMIF('Equipment Options'!N:N,'MeasureTotals Lookups'!$B56,'Equipment Options'!O:O) -> 0 | E56: =SUMIF('Equipment Options'!N:N,'MeasureTotals Lookups'!$B56,'Equipment Options'!V:V) -> 0 | F56: =SUMIF('Equipment Options'!N:N,'MeasureTotals Lookups'!$B56,'Equipment Options'!R:R) -> 0 | G56: =SUMIF('Equipment Options'!N:N,'MeasureTotals Lookups'!$B56,'Equipment Options'!S:S) -> 0 | N56: 16759 | O56: =SUMIF('Equipment Options'!N:N,'MeasureTotals Lookups'!$B56,'Equipment Options'!T:T) -> 0 | P56: =SUMIF('Equipment Options'!N:N,'MeasureTotals Lookups'!$B56,'Equipment Options'!U:U) -> 0 | Q56: Electric Combination Ovens 3-4 Pan Capacity ESTAR 3.0 | R56: 0
B57: COMBOOVES3540PANELE | C57: =SUMIF('Equipment Options'!N:N,'MeasureTotals Lookups'!$B57,'Equipment Options'!O:O) -> 0 | E57: =SUMIF('Equipment Options'!N:N,'MeasureTotals Lookups'!$B57,'Equipment Options'!V:V) -> 0 | F57: =SUMIF('Equipment Options'!N:N,'MeasureTotals Lookups'!$B57,'Equipment Options'!R:R) -> 0 | G57: =SUMIF('Equipment Options'!N:N,'MeasureTotals Lookups'!$B57,'Equipment Options'!S:S) -> 0 | N57: 16760 | O57: =SUMIF('Equipment Options'!N:N,'MeasureTotals Lookups'!$B57,'Equipment Options'!T:T) -> 0 | P57: =SUMIF('Equipment Options'!N:N,'MeasureTotals Lookups'!$B57,'Equipment Options'!U:U) -> 0 | Q57: Electric Combination Ovens 5-40 Pan Capacity ESTAR 3.0 | R57: 0
B58: RACKOVENDOUB | C58: =SUMIF('Equipment Options'!N:N,'MeasureTotals Lookups'!$B58,'Equipment Options'!O:O) -> 0 | E58: =SUMIF('Equipment Options'!N:N,'MeasureTotals Lookups'!$B58,'Equipment Options'!V:V) -> 0 | F58: =SUMIF('Equipment Options'!N:N,'MeasureTotals Lookups'!$B58,'Equipment Options'!R:R) -> 0 | G58: =SUMIF('Equipment Options'!N:N,'MeasureTotals Lookups'!$B58,'Equipment Options'!S:S) -> 0 | N58: 18152 | O58: =SUMIF('Equipment Options'!N:N,'MeasureTotals Lookups'!$B58,'Equipment Options'!T:T) -> 0 | P58: =SUMIF('Equipment Options'!N:N,'MeasureTotals Lookups'!$B58,'Equipment Options'!U:U) -> 0 | Q58: Rack Oven - Double Rack | R58: 0
B59: GASSTEAMCOOK | C59: =SUMIF('Equipment Options'!N:N,'MeasureTotals Lookups'!$B59,'Equipment Options'!O:O) -> 0 | E59: =SUMIF('Equipment Options'!N:N,'MeasureTotals Lookups'!$B59,'Equipment Options'!V:V) -> 0 | F59: =SUMIF('Equipment Options'!N:N,'MeasureTotals Lookups'!$B59,'Equipment Options'!R:R) -> 0 | G59: =SUMIF('Equipment Options'!N:N,'MeasureTotals Lookups'!$B59,'Equipment Options'!S:S) -> 0 | N59: 18181 | O59: =SUMIF('Equipment Options'!N:N,'MeasureTotals Lookups'!$B59,'Equipment Options'!T:T) -> 0 | P59: =SUMIF('Equipment Options'!N:N,'MeasureTotals Lookups'!$B59,'Equipment Options'!U:U) -> 0 | Q59: Gas Steam Cooker | R59: 0
B60: BROILER2026E | C60: =SUMIF('Equipment Options'!N:N,'MeasureTotals Lookups'!$B60,'Equipment Options'!O:O) -> 0 | E60: =SUMIF('Equipment Options'!N:N,'MeasureTotals Lookups'!$B60,'Equipment Options'!V:V) -> 0 | F60: =SUMIF('Equipment Options'!N:N,'MeasureTotals Lookups'!$B60,'Equipment Options'!R:R) -> 0 | G60: =SUMIF('Equipment Options'!N:N,'MeasureTotals Lookups'!$B60,'Equipment Options'!S:S) -> 0 | N60: 18182 | O60: =SUMIF('Equipment Options'!N:N,'MeasureTotals Lookups'!$B60,'Equipment Options'!T:T) -> 0 | P60: =SUMIF('Equipment Options'!N:N,'MeasureTotals Lookups'!$B60,'Equipment Options'!U:U) -> 0 | Q60: Gas-fired Conveyor Broilers 20-26", Elec Only Territory | R60: 0
B61: BROILER20E | C61: =SUMIF('Equipment Options'!N:N,'MeasureTotals Lookups'!$B61,'Equipment Options'!O:O) -> 0 | E61: =SUMIF('Equipment Options'!N:N,'MeasureTotals Lookups'!$B61,'Equipment Options'!V:V) -> 0 | F61: =SUMIF('Equipment Options'!N:N,'MeasureTotals Lookups'!$B61,'Equipment Options'!R:R) -> 0 | G61: =SUMIF('Equipment Options'!N:N,'MeasureTotals Lookups'!$B61,'Equipment Options'!S:S) -> 0 | N61: 18183 | O61: =SUMIF('Equipment Options'!N:N,'MeasureTotals Lookups'!$B61,'Equipment Options'!T:T) -> 0 | P61: =SUMIF('Equipment Options'!N:N,'MeasureTotals Lookups'!$B61,'Equipment Options'!U:U) -> 0 | Q61: Gas-fired Conveyor Broilers <20", Elec Only Territory | R61: 0
B62: BROILER26F | C62: =SUMIF('Equipment Options'!N:N,'MeasureTotals Lookups'!$B62,'Equipment Options'!O:O) -> 0 | E62: =SUMIF('Equipment Options'!N:N,'MeasureTotals Lookups'!$B62,'Equipment Options'!V:V) -> 0 | F62: =SUMIF('Equipment Options'!N:N,'MeasureTotals Lookups'!$B62,'Equipment Options'!R:R) -> 0 | G62: =SUMIF('Equipment Options'!N:N,'MeasureTotals Lookups'!$B62,'Equipment Options'!S:S) -> 0 | N62: 18184 | O62: =SUMIF('Equipment Options'!N:N,'MeasureTotals Lookups'!$B62,'Equipment Options'!T:T) -> 0 | P62: =SUMIF('Equipment Options'!N:N,'MeasureTotals Lookups'!$B62,'Equipment Options'!U:U) -> 0 | Q62: Gas-fired Conveyor Broilers >26", Full Territory | R62: 0
B63: BROILER2026F | C63: =SUMIF('Equipment Options'!N:N,'MeasureTotals Lookups'!$B63,'Equipment Options'!O:O) -> 0 | E63: =SUMIF('Equipment Options'!N:N,'MeasureTotals Lookups'!$B63,'Equipment Options'!V:V) -> 0 | F63: =SUMIF('Equipment Options'!N:N,'MeasureTotals Lookups'!$B63,'Equipment Options'!R:R) -> 0 | G63: =SUMIF('Equipment Options'!N:N,'MeasureTotals Lookups'!$B63,'Equipment Options'!S:S) -> 0 | N63: 18185 | O63: =SUMIF('Equipment Options'!N:N,'MeasureTotals Lookups'!$B63,'Equipment Options'!T:T) -> 0 | P63: =SUMIF('Equipment Options'!N:N,'MeasureTotals Lookups'!$B63,'Equipment Options'!U:U) -> 0 | Q63: Gas-fired Conveyor Broilers, 20-26", Full Territory | R63: 0
B64: BROILER20F | C64: =SUMIF('Equipment Options'!N:N,'MeasureTotals Lookups'!$B64,'Equipment Options'!O:O) -> 0 | E64: =SUMIF('Equipment Options'!N:N,'MeasureTotals Lookups'!$B64,'Equipment Options'!V:V) -> 0 | F64: =SUMIF('Equipment Options'!N:N,'MeasureTotals Lookups'!$B64,'Equipment Options'!R:R) -> 0 | G64: =SUMIF('Equipment Options'!N:N,'MeasureTotals Lookups'!$B64,'Equipment Options'!S:S) -> 0 | N64: 18186 | O64: =SUMIF('Equipment Options'!N:N,'MeasureTotals Lookups'!$B64,'Equipment Options'!T:T) -> 0 | P64: =SUMIF('Equipment Options'!N:N,'MeasureTotals Lookups'!$B64,'Equipment Options'!U:U) -> 0 | Q64: Gas-fired Conveyor Broilers <20", Full Territory | R64: 0
B65: BROILER26GO | C65: =SUMIF('Equipment Options'!N:N,'MeasureTotals Lookups'!$B65,'Equipment Options'!O:O) -> 0 | E65: =SUMIF('Equipment Options'!N:N,'MeasureTotals Lookups'!$B65,'Equipment Options'!V:V) -> 0 | F65: =SUMIF('Equipment Options'!N:N,'MeasureTotals Lookups'!$B65,'Equipment Options'!R:R) -> 0 | G65: =SUMIF('Equipment Options'!N:N,'MeasureTotals Lookups'!$B65,'Equipment Options'!S:S) -> 0 | N65: 18187 | O65: =SUMIF('Equipment Options'!N:N,'MeasureTotals Lookups'!$B65,'Equipment Options'!T:T) -> 0 | P65: =SUMIF('Equipment Options'!N:N,'MeasureTotals Lookups'!$B65,'Equipment Options'!U:U) -> 0 | Q65: Gas-fired Conveyor Broilers >26", Gas Only Territory | R65: 0
B66: BROILER2026GO | C66: =SUMIF('Equipment Options'!N:N,'MeasureTotals Lookups'!$B66,'Equipment Options'!O:O) -> 0 | E66: =SUMIF('Equipment Options'!N:N,'MeasureTotals Lookups'!$B66,'Equipment Options'!V:V) -> 0 | F66: =SUMIF('Equipment Options'!N:N,'MeasureTotals Lookups'!$B66,'Equipment Options'!R:R) -> 0 | G66: =SUMIF('Equipment Options'!N:N,'MeasureTotals Lookups'!$B66,'Equipment Options'!S:S) -> 0 | N66: 18188 | O66: =SUMIF('Equipment Options'!N:N,'MeasureTotals Lookups'!$B66,'Equipment Options'!T:T) -> 0 | P66: =SUMIF('Equipment Options'!N:N,'MeasureTotals Lookups'!$B66,'Equipment Options'!U:U) -> 0 | Q66: Gas-fired Conveyor Broilers 20-26", Gas Only Territory | R66: 0
B67: BROILER20GO | C67: =SUMIF('Equipment Options'!N:N,'MeasureTotals Lookups'!$B67,'Equipment Options'!O:O) -> 0 | E67: =SUMIF('Equipment Options'!N:N,'MeasureTotals Lookups'!$B67,'Equipment Options'!V:V) -> 0 | F67: =SUMIF('Equipment Options'!N:N,'MeasureTotals Lookups'!$B67,'Equipment Options'!R:R) -> 0 | G67: =SUMIF('Equipment Options'!N:N,'MeasureTotals Lookups'!$B67,'Equipment Options'!S:S) -> 0 | N67: 18189 | O67: =SUMIF('Equipment Options'!N:N,'MeasureTotals Lookups'!$B67,'Equipment Options'!T:T) -> 0 | P67: =SUMIF('Equipment Options'!N:N,'MeasureTotals Lookups'!$B67,'Equipment Options'!U:U) -> 0 | Q67: Gas-fired Conveyor Broilers <20", Gas Only Territory | R67: 0
B68: BROILER26E | C68: =SUMIF('Equipment Options'!N:N,'MeasureTotals Lookups'!$B68,'Equipment Options'!O:O) -> 0 | E68: =SUMIF('Equipment Options'!N:N,'MeasureTotals Lookups'!$B68,'Equipment Options'!V:V) -> 0 | F68: =SUMIF('Equipment Options'!N:N,'MeasureTotals Lookups'!$B68,'Equipment Options'!R:R) -> 0 | G68: =SUMIF('Equipment Options'!N:N,'MeasureTotals Lookups'!$B68,'Equipment Options'!S:S) -> 0 | N68: =_xlfn.XLOOKUP($B68,ProductCode,ProductVersionId,"",0) -> 18213 | O68: =SUMIF('Equipment Options'!N:N,'MeasureTotals Lookups'!$B68,'Equipment Options'!T:T) -> 0 | P68: =SUMIF('Equipment Options'!N:N,'MeasureTotals Lookups'!$B68,'Equipment Options'!U:U) -> 0 | Q68: =_xlfn.XLOOKUP($B68,ProductCode,ProductDescription,"",0) -> Gas-fired Conveyor Broilers >26", Elec Only Territory | R68: =(_xlfn.XLOOKUP($B68,ProductCode,IncrementalCost,"",0))*C68 -> 0
B69: ESTARFRIDGE | C69: =SUMIF('Equipment Options'!N:N,'MeasureTotals Lookups'!$B69,'Equipment Options'!O:O) -> 0 | E69: =SUMIF('Equipment Options'!N:N,'MeasureTotals Lookups'!$B69,'Equipment Options'!V:V) -> 0 | F69: =SUMIF('Equipment Options'!N:N,'MeasureTotals Lookups'!$B69,'Equipment Options'!R:R) -> 0 | G69: =SUMIF('Equipment Options'!N:N,'MeasureTotals Lookups'!$B69,'Equipment Options'!S:S) -> 0 | N69: 17915 | O69: =SUMIF('Equipment Options'!N:N,'MeasureTotals Lookups'!$B69,'Equipment Options'!T:T) -> 0 | P69: =SUMIF('Equipment Options'!N:N,'MeasureTotals Lookups'!$B69,'Equipment Options'!U:U) -> 0 | Q69: Multifamily Refrigerator | R69: 0
B70: ESMEFRIDGE | C70: =SUMIF('Equipment Options'!N:N,'MeasureTotals Lookups'!$B70,'Equipment Options'!O:O) -> 0 | E70: =SUMIF('Equipment Options'!N:N,'MeasureTotals Lookups'!$B70,'Equipment Options'!V:V) -> 0 | F70: =SUMIF('Equipment Options'!N:N,'MeasureTotals Lookups'!$B70,'Equipment Options'!R:R) -> 0 | G70: =SUMIF('Equipment Options'!N:N,'MeasureTotals Lookups'!$B70,'Equipment Options'!S:S) -> 0 | N70: 17916 | O70: =SUMIF('Equipment Options'!N:N,'MeasureTotals Lookups'!$B70,'Equipment Options'!T:T) -> 0 | P70: =SUMIF('Equipment Options'!N:N,'MeasureTotals Lookups'!$B70,'Equipment Options'!U:U) -> 0 | Q70: Energy Star Most Efficient (ESME) Multifamily Refrigerator | R70: 0
B71: ESETAFRIDGE | C71: =SUMIF('Equipment Options'!N:N,'MeasureTotals Lookups'!$B71,'Equipment Options'!O:O) -> 0 | E71: =SUMIF('Equipment Options'!N:N,'MeasureTotals Lookups'!$B71,'Equipment Options'!V:V) -> 0 | F71: =SUMIF('Equipment Options'!N:N,'MeasureTotals Lookups'!$B71,'Equipment Options'!R:R) -> 0 | G71: =SUMIF('Equipment Options'!N:N,'MeasureTotals Lookups'!$B71,'Equipment Options'!S:S) -> 0 | N71: 17987 | O71: =SUMIF('Equipment Options'!N:N,'MeasureTotals Lookups'!$B71,'Equipment Options'!T:T) -> 0 | P71: =SUMIF('Equipment Options'!N:N,'MeasureTotals Lookups'!$B71,'Equipment Options'!U:U) -> 0 | Q71: Energy Star Emerging Tech Award (ESETA) Multifamily Refrigerator | R71: 0
B72: RADHEATNONMOD | C72: =SUMIF('Equipment Options'!N:N,'MeasureTotals Lookups'!$B72,'Equipment Options'!O:O) -> 0 | E72: =SUMIF('Equipment Options'!N:N,'MeasureTotals Lookups'!$B72,'Equipment Options'!V:V) -> 0 | F72: =SUMIF('Equipment Options'!N:N,'MeasureTotals Lookups'!$B72,'Equipment Options'!R:R) -> 0 | G72: =SUMIF('Equipment Options'!N:N,'MeasureTotals Lookups'!$B72,'Equipment Options'!S:S) -> 0 | N72: 13851 | O72: =SUMIF('Equipment Options'!N:N,'MeasureTotals Lookups'!$B72,'Equipment Options'!T:T) -> 0 | P72: =SUMIF('Equipment Options'!N:N,'MeasureTotals Lookups'!$B72,'Equipment Options'!U:U) -> 0 | Q72: Infrared Radiant Heaters, non-modulating | R72: 0
B73: RADHEATMODGO | C73: =SUMIF('Equipment Options'!N:N,'MeasureTotals Lookups'!$B73,'Equipment Options'!O:O) -> 0 | E73: =SUMIF('Equipment Options'!N:N,'MeasureTotals Lookups'!$B73,'Equipment Options'!V:V) -> 0 | F73: =SUMIF('Equipment Options'!N:N,'MeasureTotals Lookups'!$B73,'Equipment Options'!R:R) -> 0 | G73: =SUMIF('Equipment Options'!N:N,'MeasureTotals Lookups'!$B73,'Equipment Options'!S:S) -> 0 | N73: 13852 | O73: =SUMIF('Equipment Options'!N:N,'MeasureTotals Lookups'!$B73,'Equipment Options'!T:T) -> 0 | P73: =SUMIF('Equipment Options'!N:N,'MeasureTotals Lookups'!$B73,'Equipment Options'!U:U) -> 0 | Q73: Infrared Radiant Heaters, Modulating, Gas Only | R73: 0
B74: RADHEATMOD | C74: =SUMIF('Equipment Options'!N:N,'MeasureTotals Lookups'!$B74,'Equipment Options'!O:O) -> 0 | E74: =SUMIF('Equipment Options'!N:N,'MeasureTotals Lookups'!$B74,'Equipment Options'!V:V) -> 0 | F74: =SUMIF('Equipment Options'!N:N,'MeasureTotals Lookups'!$B74,'Equipment Options'!R:R) -> 0 | G74: =SUMIF('Equipment Options'!N:N,'MeasureTotals Lookups'!$B74,'Equipment Options'!S:S) -> 0 | N74: 13890 | O74: =SUMIF('Equipment Options'!N:N,'MeasureTotals Lookups'!$B74,'Equipment Options'!T:T) -> 0 | P74: =SUMIF('Equipment Options'!N:N,'MeasureTotals Lookups'!$B74,'Equipment Options'!U:U) -> 0 | Q74: Infrared Radiant Heaters, Modulating | R74: 0
B75: RADHEATNONMODGO | C75: =SUMIF('Equipment Options'!N:N,'MeasureTotals Lookups'!$B75,'Equipment Options'!O:O) -> 0 | E75: =SUMIF('Equipment Options'!N:N,'MeasureTotals Lookups'!$B75,'Equipment Options'!V:V) -> 0 | F75: =SUMIF('Equipment Options'!N:N,'MeasureTotals Lookups'!$B75,'Equipment Options'!R:R) -> 0 | G75: =SUMIF('Equipment Options'!N:N,'MeasureTotals Lookups'!$B75,'Equipment Options'!S:S) -> 0 | N75: 13891 | O75: =SUMIF('Equipment Options'!N:N,'MeasureTotals Lookups'!$B75,'Equipment Options'!T:T) -> 0 | P75: =SUMIF('Equipment Options'!N:N,'MeasureTotals Lookups'!$B75,'Equipment Options'!U:U) -> 0 | Q75: Infrared Radiant Heaters, Non-Modulating, Gas Only | R75: 0
B76: LCGASGOT | C76: =SUMIF('Equipment Options'!N:N,'MeasureTotals Lookups'!$B76,'Equipment Options'!O:O) -> 0 | E76: =SUMIF('Equipment Options'!N:N,'MeasureTotals Lookups'!$B76,'Equipment Options'!V:V) -> 0 | F76: =SUMIF('Equipment Options'!N:N,'MeasureTotals Lookups'!$B76,'Equipment Options'!R:R) -> 0 | G76: =SUMIF('Equipment Options'!N:N,'MeasureTotals Lookups'!$B76,'Equipment Options'!S:S) -> 0 | N76: 14202 | O76: =SUMIF('Equipment Options'!N:N,'MeasureTotals Lookups'!$B76,'Equipment Options'!T:T) -> 0 | P76: =SUMIF('Equipment Options'!N:N,'MeasureTotals Lookups'!$B76,'Equipment Options'!U:U) -> 0 | Q76: MF Laundry Center, In-Unit, Gas DHW, GOT | R76: 0
B77: LCGAS | C77: =SUMIF('Equipment Options'!N:N,'MeasureTotals Lookups'!$B77,'Equipment Options'!O:O) -> 0 | E77: =SUMIF('Equipment Options'!N:N,'MeasureTotals Lookups'!$B77,'Equipment Options'!V:V) -> 0 | F77: =SUMIF('Equipment Options'!N:N,'MeasureTotals Lookups'!$B77,'Equipment Options'!R:R) -> 0 | G77: =SUMIF('Equipment Options'!N:N,'MeasureTotals Lookups'!$B77,'Equipment Options'!S:S) -> 0 | N77: 14203 | O77: =SUMIF('Equipment Options'!N:N,'MeasureTotals Lookups'!$B77,'Equipment Options'!T:T) -> 0 | P77: =SUMIF('Equipment Options'!N:N,'MeasureTotals Lookups'!$B77,'Equipment Options'!U:U) -> 0 | Q77: MF Laundry Center, In-Unit, Gas DHW | R77: 0
B78: LCELEEOT | C78: =SUMIF('Equipment Options'!N:N,'MeasureTotals Lookups'!$B78,'Equipment Options'!O:O) -> 0 | E78: =SUMIF('Equipment Options'!N:N,'MeasureTotals Lookups'!$B78,'Equipment Options'!V:V) -> 0 | F78: =SUMIF('Equipment Options'!N:N,'MeasureTotals Lookups'!$B78,'Equipment Options'!R:R) -> 0 | G78: =SUMIF('Equipment Options'!N:N,'MeasureTotals Lookups'!$B78,'Equipment Options'!S:S) -> 0 | N78: 14204 | O78: =SUMIF('Equipment Options'!N:N,'MeasureTotals Lookups'!$B78,'Equipment Options'!T:T) -> 0 | P78: =SUMIF('Equipment Options'!N:N,'MeasureTotals Lookups'!$B78,'Equipment Options'!U:U) -> 0 | Q78: MF Laundry Center, In-Unit, Electric DHW, EOT | R78: 0
B79: LCELE | C79: =SUMIF('Equipment Options'!N:N,'MeasureTotals Lookups'!$B79,'Equipment Options'!O:O) -> 0 | E79: =SUMIF('Equipment Options'!N:N,'MeasureTotals Lookups'!$B79,'Equipment Options'!V:V) -> 0 | F79: =SUMIF('Equipment Options'!N:N,'MeasureTotals Lookups'!$B79,'Equipment Options'!R:R) -> 0 | G79: =SUMIF('Equipment Options'!N:N,'MeasureTotals Lookups'!$B79,'Equipment Options'!S:S) -> 0 | N79: 14205 | O79: =SUMIF('Equipment Options'!N:N,'MeasureTotals Lookups'!$B79,'Equipment Options'!T:T) -> 0 | P79: =SUMIF('Equipment Options'!N:N,'MeasureTotals Lookups'!$B79,'Equipment Options'!U:U) -> 0 | Q79: MF Laundry Center, In-Unit, Electric DHW | R79: 0
B80: WASHGASFLGOT | C80: =SUMIF('Equipment Options'!N:N,'MeasureTotals Lookups'!$B80,'Equipment Options'!O:O) -> 0 | E80: =SUMIF('Equipment Options'!N:N,'MeasureTotals Lookups'!$B80,'Equipment Options'!V:V) -> 0 | F80: =SUMIF('Equipment Options'!N:N,'MeasureTotals Lookups'!$B80,'Equipment Options'!R:R) -> 0 | G80: =SUMIF('Equipment Options'!N:N,'MeasureTotals Lookups'!$B80,'Equipment Options'!S:S) -> 0 | N80: 14206 | O80: =SUMIF('Equipment Options'!N:N,'MeasureTotals Lookups'!$B80,'Equipment Options'!T:T) -> 0 | P80: =SUMIF('Equipment Options'!N:N,'MeasureTotals Lookups'!$B80,'Equipment Options'!U:U) -> 0 | Q80: MF Clothes Washer, In-Unit, Gas DHW, GOT | R80: 0
B81: WASHELEFLEOT | C81: =SUMIF('Equipment Options'!N:N,'MeasureTotals Lookups'!$B81,'Equipment Options'!O:O) -> 0 | E81: =SUMIF('Equipment Options'!N:N,'MeasureTotals Lookups'!$B81,'Equipment Options'!V:V) -> 0 | F81: =SUMIF('Equipment Options'!N:N,'MeasureTotals Lookups'!$B81,'Equipment Options'!R:R) -> 0 | G81: =SUMIF('Equipment Options'!N:N,'MeasureTotals Lookups'!$B81,'Equipment Options'!S:S) -> 0 | N81: 14207 | O81: =SUMIF('Equipment Options'!N:N,'MeasureTotals Lookups'!$B81,'Equipment Options'!T:T) -> 0 | P81: =SUMIF('Equipment Options'!N:N,'MeasureTotals Lookups'!$B81,'Equipment Options'!U:U) -> 0 | Q81: MF Clothes Washer, In-Unit, Electric DHW, EOT | R81: 0
B82: WASHELEFL | C82: =SUMIF('Equipment Options'!N:N,'MeasureTotals Lookups'!$B82,'Equipment Options'!O:O) -> 0 | E82: =SUMIF('Equipment Options'!N:N,'MeasureTotals Lookups'!$B82,'Equipment Options'!V:V) -> 0 | F82: =SUMIF('Equipment Options'!N:N,'MeasureTotals Lookups'!$B82,'Equipment Options'!R:R) -> 0 | G82: =SUMIF('Equipment Options'!N:N,'MeasureTotals Lookups'!$B82,'Equipment Options'!S:S) -> 0 | N82: 14208 | O82: =SUMIF('Equipment Options'!N:N,'MeasureTotals Lookups'!$B82,'Equipment Options'!T:T) -> 0 | P82: =SUMIF('Equipment Options'!N:N,'MeasureTotals Lookups'!$B82,'Equipment Options'!U:U) -> 0 | Q82: MF Clothes Washer, In-Unit, Electric DHW | R82: 0
B83: WASHGASFL | C83: =SUMIF('Equipment Options'!N:N,'MeasureTotals Lookups'!$B83,'Equipment Options'!O:O) -> 0 | E83: =SUMIF('Equipment Options'!N:N,'MeasureTotals Lookups'!$B83,'Equipment Options'!V:V) -> 0 | F83: =SUMIF('Equipment Options'!N:N,'MeasureTotals Lookups'!$B83,'Equipment Options'!R:R) -> 0 | G83: =SUMIF('Equipment Options'!N:N,'MeasureTotals Lookups'!$B83,'Equipment Options'!S:S) -> 0 | N83: 14230 | O83: =SUMIF('Equipment Options'!N:N,'MeasureTotals Lookups'!$B83,'Equipment Options'!T:T) -> 0 | P83: =SUMIF('Equipment Options'!N:N,'MeasureTotals Lookups'!$B83,'Equipment Options'!U:U) -> 0 | Q83: MF Clothes Washer, In-Unit, Gas DHW | R83: 0
B84: FRIGRCHVRT015GEOT | C84: =SUMIF('Equipment Options'!N:N,'MeasureTotals Lookups'!$B84,'Equipment Options'!O:O) -> 0 | E84: =SUMIF('Equipment Options'!N:N,'MeasureTotals Lookups'!$B84,'Equipment Options'!V:V) -> 0 | F84: =SUMIF('Equipment Options'!N:N,'MeasureTotals Lookups'!$B84,'Equipment Options'!R:R) -> 0 | G84: =SUMIF('Equipment Options'!N:N,'MeasureTotals Lookups'!$B84,'Equipment Options'!S:S) -> 0 | N84: 18040 | O84: =SUMIF('Equipment Options'!N:N,'MeasureTotals Lookups'!$B84,'Equipment Options'!T:T) -> 0 | P84: =SUMIF('Equipment Options'!N:N,'MeasureTotals Lookups'!$B84,'Equipment Options'!U:U) -> 0 | Q84: Vertical Reach-in Refrigerator, <15, Gas Heat, EOT | R84: 0
B85: FRIGRCHVRT015HP | C85: =SUMIF('Equipment Options'!N:N,'MeasureTotals Lookups'!$B85,'Equipment Options'!O:O) -> 0 | E85: =SUMIF('Equipment Options'!N:N,'MeasureTotals Lookups'!$B85,'Equipment Options'!V:V) -> 0 | F85: =SUMIF('Equipment Options'!N:N,'MeasureTotals Lookups'!$B85,'Equipment Options'!R:R) -> 0 | G85: =SUMIF('Equipment Options'!N:N,'MeasureTotals Lookups'!$B85,'Equipment Options'!S:S) -> 0 | N85: 18041 | O85: =SUMIF('Equipment Options'!N:N,'MeasureTotals Lookups'!$B85,'Equipment Options'!T:T) -> 0 | P85: =SUMIF('Equipment Options'!N:N,'MeasureTotals Lookups'!$B85,'Equipment Options'!U:U) -> 0 | Q85: Vertical Reach-in Refrigerator, <15, Heat Pump | R85: 0
B86: FRIGRCHVRT015GAS | C86: =SUMIF('Equipment Options'!N:N,'MeasureTotals Lookups'!$B86,'Equipment Options'!O:O) -> 0 | E86: =SUMIF('Equipment Options'!N:N,'MeasureTotals Lookups'!$B86,'Equipment Options'!V:V) -> 0 | F86: =SUMIF('Equipment Options'!N:N,'MeasureTotals Lookups'!$B86,'Equipment Options'!R:R) -> 0 | G86: =SUMIF('Equipment Options'!N:N,'MeasureTotals Lookups'!$B86,'Equipment Options'!S:S) -> 0 | N86: 18065 | O86: =SUMIF('Equipment Options'!N:N,'MeasureTotals Lookups'!$B86,'Equipment Options'!T:T) -> 0 | P86: =SUMIF('Equipment Options'!N:N,'MeasureTotals Lookups'!$B86,'Equipment Options'!U:U) -> 0 | Q86: Vertical Reach-in Refrigerator, <15, Gas Heat | R86: 0
B87: FRIGRCHVRT015ELE | C87: =SUMIF('Equipment Options'!N:N,'MeasureTotals Lookups'!$B87,'Equipment Options'!O:O) -> 0 | E87: =SUMIF('Equipment Options'!N:N,'MeasureTotals Lookups'!$B87,'Equipment Options'!V:V) -> 0 | F87: =SUMIF('Equipment Options'!N:N,'MeasureTotals Lookups'!$B87,'Equipment Options'!R:R) -> 0 | G87: =SUMIF('Equipment Options'!N:N,'MeasureTotals Lookups'!$B87,'Equipment Options'!S:S) -> 0 | N87: 18066 | O87: =SUMIF('Equipment Options'!N:N,'MeasureTotals Lookups'!$B87,'Equipment Options'!T:T) -> 0 | P87: =SUMIF('Equipment Options'!N:N,'MeasureTotals Lookups'!$B87,'Equipment Options'!U:U) -> 0 | Q87: Vertical Reach-in Refrigerator, <15, Electric | R87: 0
B88: FREZRCHVRT1530HP | C88: =SUMIF('Equipment Options'!N:N,'MeasureTotals Lookups'!$B88,'Equipment Options'!O:O) -> 0 | E88: =SUMIF('Equipment Options'!N:N,'MeasureTotals Lookups'!$B88,'Equipment Options'!V:V) -> 0 | F88: =SUMIF('Equipment Options'!N:N,'MeasureTotals Lookups'!$B88,'Equipment Options'!R:R) -> 0 | G88: =SUMIF('Equipment Options'!N:N,'MeasureTotals Lookups'!$B88,'Equipment Options'!S:S) -> 0 | N88: 18067 | O88: =SUMIF('Equipment Options'!N:N,'MeasureTotals Lookups'!$B88,'Equipment Options'!T:T) -> 0 | P88: =SUMIF('Equipment Options'!N:N,'MeasureTotals Lookups'!$B88,'Equipment Options'!U:U) -> 0 | Q88: Vertical Reach-in Freezer, 15 to <30, Heat Pump | R88: 0
B89: FREZRCHVRT1530GAS | C89: =SUMIF('Equipment Options'!N:N,'MeasureTotals Lookups'!$B89,'Equipment Options'!O:O) -> 0 | E89: =SUMIF('Equipment Options'!N:N,'MeasureTotals Lookups'!$B89,'Equipment Options'!V:V) -> 0 | F89: =SUMIF('Equipment Options'!N:N,'MeasureTotals Lookups'!$B89,'Equipment Options'!R:R) -> 0 | G89: =SUMIF('Equipment Options'!N:N,'MeasureTotals Lookups'!$B89,'Equipment Options'!S:S) -> 0 | N89: 18068 | O89: =SUMIF('Equipment Options'!N:N,'MeasureTotals Lookups'!$B89,'Equipment Options'!T:T) -> 0 | P89: =SUMIF('Equipment Options'!N:N,'MeasureTotals Lookups'!$B89,'Equipment Options'!U:U) -> 0 | Q89: Vertical Reach-in Freezer, 15 to <30, Gas Heat | R89: 0
B90: FREZRCHVRT1530GEOT | C90: =SUMIF('Equipment Options'!N:N,'MeasureTotals Lookups'!$B90,'Equipment Options'!O:O) -> 0 | E90: =SUMIF('Equipment Options'!N:N,'MeasureTotals Lookups'!$B90,'Equipment Options'!V:V) -> 0 | F90: =SUMIF('Equipment Options'!N:N,'MeasureTotals Lookups'!$B90,'Equipment Options'!R:R) -> 0 | G90: =SUMIF('Equipment Options'!N:N,'MeasureTotals Lookups'!$B90,'Equipment Options'!S:S) -> 0 | N90: 18069 | O90: =SUMIF('Equipment Options'!N:N,'MeasureTotals Lookups'!$B90,'Equipment Options'!T:T) -> 0 | P90: =SUMIF('Equipment Options'!N:N,'MeasureTotals Lookups'!$B90,'Equipment Options'!U:U) -> 0 | Q90: Vertical Reach-in Freezer, 15 to <30, Gas Heat, EOT | R90: 0
B91: FREZRCHVRT1530ELE | C91: =SUMIF('Equipment Options'!N:N,'MeasureTotals Lookups'!$B91,'Equipment Options'!O:O) -> 0 | E91: =SUMIF('Equipment Options'!N:N,'MeasureTotals Lookups'!$B91,'Equipment Options'!V:V) -> 0 | F91: =SUMIF('Equipment Options'!N:N,'MeasureTotals Lookups'!$B91,'Equipment Options'!R:R) -> 0 | G91: =SUMIF('Equipment Options'!N:N,'MeasureTotals Lookups'!$B91,'Equipment Options'!S:S) -> 0 | N91: 18078 | O91: =SUMIF('Equipment Options'!N:N,'MeasureTotals Lookups'!$B91,'Equipment Options'!T:T) -> 0 | P91: =SUMIF('Equipment Options'!N:N,'MeasureTotals Lookups'!$B91,'Equipment Options'!U:U) -> 0 | Q91: Vertical Reach-in Freezer, 15 to <30, Electric | R91: 0
B92: FREZRCHVRT50HP | C92: =SUMIF('Equipment Options'!N:N,'MeasureTotals Lookups'!$B92,'Equipment Options'!O:O) -> 0 | E92: =SUMIF('Equipment Options'!N:N,'MeasureTotals Lookups'!$B92,'Equipment Options'!V:V) -> 0 | F92: =SUMIF('Equipment Options'!N:N,'MeasureTotals Lookups'!$B92,'Equipment Options'!R:R) -> 0 | G92: =SUMIF('Equipment Options'!N:N,'MeasureTotals Lookups'!$B92,'Equipment Options'!S:S) -> 0 | N92: 18079 | O92: =SUMIF('Equipment Options'!N:N,'MeasureTotals Lookups'!$B92,'Equipment Options'!T:T) -> 0 | P92: =SUMIF('Equipment Options'!N:N,'MeasureTotals Lookups'!$B92,'Equipment Options'!U:U) -> 0 | Q92: Vertical Reach-in Freezer, >50, Heat Pump | R92: 0
B93: FREZRCHVRT50GAS | C93: =SUMIF('Equipment Options'!N:N,'MeasureTotals Lookups'!$B93,'Equipment Options'!O:O) -> 0 | E93: =SUMIF('Equipment Options'!N:N,'MeasureTotals Lookups'!$B93,'Equipment Options'!V:V) -> 0 | F93: =SUMIF('Equipment Options'!N:N,'MeasureTotals Lookups'!$B93,'Equipment Options'!R:R) -> 0 | G93: =SUMIF('Equipment Options'!N:N,'MeasureTotals Lookups'!$B93,'Equipment Options'!S:S) -> 0 | N93: 18080 | O93: =SUMIF('Equipment Options'!N:N,'MeasureTotals Lookups'!$B93,'Equipment Options'!T:T) -> 0 | P93: =SUMIF('Equipment Options'!N:N,'MeasureTotals Lookups'!$B93,'Equipment Options'!U:U) -> 0 | Q93: Vertical Reach-in Freezer, >50, Gas Heat | R93: 0
B94: FREZRCHVRT50ELE | C94: =SUMIF('Equipment Options'!N:N,'MeasureTotals Lookups'!$B94,'Equipment Options'!O:O) -> 0 | E94: =SUMIF('Equipment Options'!N:N,'MeasureTotals Lookups'!$B94,'Equipment Options'!V:V) -> 0 | F94: =SUMIF('Equipment Options'!N:N,'MeasureTotals Lookups'!$B94,'Equipment Options'!R:R) -> 0 | G94: =SUMIF('Equipment Options'!N:N,'MeasureTotals Lookups'!$B94,'Equipment Options'!S:S) -> 0 | N94: 18081 | O94: =SUMIF('Equipment Options'!N:N,'MeasureTotals Lookups'!$B94,'Equipment Options'!T:T) -> 0 | P94: =SUMIF('Equipment Options'!N:N,'MeasureTotals Lookups'!$B94,'Equipment Options'!U:U) -> 0 | Q94: Vertical Reach-in Freezer, >50, Electric | R94: 0
B95: FREZRCHVRT50GEOT | C95: =SUMIF('Equipment Options'!N:N,'MeasureTotals Lookups'!$B95,'Equipment Options'!O:O) -> 0 | E95: =SUMIF('Equipment Options'!N:N,'MeasureTotals Lookups'!$B95,'Equipment Options'!V:V) -> 0 | F95: =SUMIF('Equipment Options'!N:N,'MeasureTotals Lookups'!$B95,'Equipment Options'!R:R) -> 0 | G95: =SUMIF('Equipment Options'!N:N,'MeasureTotals Lookups'!$B95,'Equipment Options'!S:S) -> 0 | N95: 18091 | O95: =SUMIF('Equipment Options'!N:N,'MeasureTotals Lookups'!$B95,'Equipment Options'!T:T) -> 0 | P95: =SUMIF('Equipment Options'!N:N,'MeasureTotals Lookups'!$B95,'Equipment Options'!U:U) -> 0 | Q95: Vertical Reach-in Freezer, >50, Gas Heat, EOT | R95: 0
B96: FREZRCHVRT3050HP | C96: =SUMIF('Equipment Options'!N:N,'MeasureTotals Lookups'!$B96,'Equipment Options'!O:O) -> 0 | E96: =SUMIF('Equipment Options'!N:N,'MeasureTotals Lookups'!$B96,'Equipment Options'!V:V) -> 0 | F96: =SUMIF('Equipment Options'!N:N,'MeasureTotals Lookups'!$B96,'Equipment Options'!R:R) -> 0 | G96: =SUMIF('Equipment Options'!N:N,'MeasureTotals Lookups'!$B96,'Equipment Options'!S:S) -> 0 | N96: 18092 | O96: =SUMIF('Equipment Options'!N:N,'MeasureTotals Lookups'!$B96,'Equipment Options'!T:T) -> 0 | P96: =SUMIF('Equipment Options'!N:N,'MeasureTotals Lookups'!$B96,'Equipment Options'!U:U) -> 0 | Q96: Vertical Reach-in Freezer, 30 to <50, Heat Pump | R96: 0
B97: FREZRCHVRT3050GEOT | C97: =SUMIF('Equipment Options'!N:N,'MeasureTotals Lookups'!$B97,'Equipment Options'!O:O) -> 0 | E97: =SUMIF('Equipment Options'!N:N,'MeasureTotals Lookups'!$B97,'Equipment Options'!V:V) -> 0 | F97: =SUMIF('Equipment Options'!N:N,'MeasureTotals Lookups'!$B97,'Equipment Options'!R:R) -> 0 | G97: =SUMIF('Equipment Options'!N:N,'MeasureTotals Lookups'!$B97,'Equipment Options'!S:S) -> 0 | N97: 18093 | O97: =SUMIF('Equipment Options'!N:N,'MeasureTotals Lookups'!$B97,'Equipment Options'!T:T) -> 0 | P97: =SUMIF('Equipment Options'!N:N,'MeasureTotals Lookups'!$B97,'Equipment Options'!U:U) -> 0 | Q97: Vertical Reach-in Freezer, 30 to <50, Gas Heat, EOT | R97: 0
B98: FREZRCHVRT3050GAS | C98: =SUMIF('Equipment Options'!N:N,'MeasureTotals Lookups'!$B98,'Equipment Options'!O:O) -> 0 | E98: =SUMIF('Equipment Options'!N:N,'MeasureTotals Lookups'!$B98,'Equipment Options'!V:V) -> 0 | F98: =SUMIF('Equipment Options'!N:N,'MeasureTotals Lookups'!$B98,'Equipment Options'!R:R) -> 0 | G98: =SUMIF('Equipment Options'!N:N,'MeasureTotals Lookups'!$B98,'Equipment Options'!S:S) -> 0 | N98: 18094 | O98: =SUMIF('Equipment Options'!N:N,'MeasureTotals Lookups'!$B98,'Equipment Options'!T:T) -> 0 | P98: =SUMIF('Equipment Options'!N:N,'MeasureTotals Lookups'!$B98,'Equipment Options'!U:U) -> 0 | Q98: Vertical Reach-in Freezer, 30 to <50, Gas Heat | R98: 0
B99: FREZRCHVRT3050ELE | C99: =SUMIF('Equipment Options'!N:N,'MeasureTotals Lookups'!$B99,'Equipment Options'!O:O) -> 0 | E99: =SUMIF('Equipment Options'!N:N,'MeasureTotals Lookups'!$B99,'Equipment Options'!V:V) -> 0 | F99: =SUMIF('Equipment Options'!N:N,'MeasureTotals Lookups'!$B99,'Equipment Options'!R:R) -> 0 | G99: =SUMIF('Equipment Options'!N:N,'MeasureTotals Lookups'!$B99,'Equipment Options'!S:S) -> 0 | N99: 18095 | O99: =SUMIF('Equipment Options'!N:N,'MeasureTotals Lookups'!$B99,'Equipment Options'!T:T) -> 0 | P99: =SUMIF('Equipment Options'!N:N,'MeasureTotals Lookups'!$B99,'Equipment Options'!U:U) -> 0 | Q99: Vertical Reach-in Freezer, 30 to <50, Electric | R99: 0
B100: FREZRCHVRT015HP | C100: =SUMIF('Equipment Options'!N:N,'MeasureTotals Lookups'!$B100,'Equipment Options'!O:O) -> 0 | E100: =SUMIF('Equipment Options'!N:N,'MeasureTotals Lookups'!$B100,'Equipment Options'!V:V) -> 0 | F100: =SUMIF('Equipment Options'!N:N,'MeasureTotals Lookups'!$B100,'Equipment Options'!R:R) -> 0 | G100: =SUMIF('Equipment Options'!N:N,'MeasureTotals Lookups'!$B100,'Equipment Options'!S:S) -> 0 | N100: =_xlfn.XLOOKUP($B100,ProductCode,ProductVersionId,"",0) -> 18096 | O100: =SUMIF('Equipment Options'!N:N,'MeasureTotals Lookups'!$B100,'Equipment Options'!T:T) -> 0 | P100: =SUMIF('Equipment Options'!N:N,'MeasureTotals Lookups'!$B100,'Equipment Options'!U:U) -> 0 | Q100: =_xlfn.XLOOKUP($B100,ProductCode,ProductDescription,"",0) -> Vertical Reach-in Freezer, <15, Heat Pump | R100: 0
B101: FREZRCHVRT015GEOT | C101: =SUMIF('Equipment Options'!N:N,'MeasureTotals Lookups'!$B101,'Equipment Options'!O:O) -> 0 | E101: =SUMIF('Equipment Options'!N:N,'MeasureTotals Lookups'!$B101,'Equipment Options'!V:V) -> 0 | F101: =SUMIF('Equipment Options'!N:N,'MeasureTotals Lookups'!$B101,'Equipment Options'!R:R) -> 0 | G101: =SUMIF('Equipment Options'!N:N,'MeasureTotals Lookups'!$B101,'Equipment Options'!S:S) -> 0 | N101: 18097 | O101: =SUMIF('Equipment Options'!N:N,'MeasureTotals Lookups'!$B101,'Equipment Options'!T:T) -> 0 | P101: =SUMIF('Equipment Options'!N:N,'MeasureTotals Lookups'!$B101,'Equipment Options'!U:U) -> 0 | Q101: Vertical Reach-in Freezer, <15, Gas Heat, EOT | R101: 0
B102: FREZRCHVRT015GAS | C102: =SUMIF('Equipment Options'!N:N,'MeasureTotals Lookups'!$B102,'Equipment Options'!O:O) -> 0 | E102: =SUMIF('Equipment Options'!N:N,'MeasureTotals Lookups'!$B102,'Equipment Options'!V:V) -> 0 | F102: =SUMIF('Equipment Options'!N:N,'MeasureTotals Lookups'!$B102,'Equipment Options'!R:R) -> 0 | G102: =SUMIF('Equipment Options'!N:N,'MeasureTotals Lookups'!$B102,'Equipment Options'!S:S) -> 0 | N102: 18098 | O102: =SUMIF('Equipment Options'!N:N,'MeasureTotals Lookups'!$B102,'Equipment Options'!T:T) -> 0 | P102: =SUMIF('Equipment Options'!N:N,'MeasureTotals Lookups'!$B102,'Equipment Options'!U:U) -> 0 | Q102: Vertical Reach-in Freezer, <15, Gas Heat | R102: 0
B103: FREZRCHVRT015ELE | C103: =SUMIF('Equipment Options'!N:N,'MeasureTotals Lookups'!$B103,'Equipment Options'!O:O) -> 0 | E103: =SUMIF('Equipment Options'!N:N,'MeasureTotals Lookups'!$B103,'Equipment Options'!V:V) -> 0 | F103: =SUMIF('Equipment Options'!N:N,'MeasureTotals Lookups'!$B103,'Equipment Options'!R:R) -> 0 | G103: =SUMIF('Equipment Options'!N:N,'MeasureTotals Lookups'!$B103,'Equipment Options'!S:S) -> 0 | N103: 18099 | O103: =SUMIF('Equipment Options'!N:N,'MeasureTotals Lookups'!$B103,'Equipment Options'!T:T) -> 0 | P103: =SUMIF('Equipment Options'!N:N,'MeasureTotals Lookups'!$B103,'Equipment Options'!U:U) -> 0 | Q103: Vertical Reach-in Freezer, <15, Electric | R103: 0
B104: DHPMFNOBASE | C104: =SUMIF('Equipment Options'!N:N,'MeasureTotals Lookups'!$B104,'Equipment Options'!O:O) -> 0 | E104: =SUMIF('Equipment Options'!N:N,'MeasureTotals Lookups'!$B104,'Equipment Options'!V:V) -> 0 | F104: =SUMIF('Equipment Options'!N:N,'MeasureTotals Lookups'!$B104,'Equipment Options'!R:R) -> 0 | G104: =SUMIF('Equipment Options'!N:N,'MeasureTotals Lookups'!$B104,'Equipment Options'!S:S) -> 0 | N104: 18153 | O104: =SUMIF('Equipment Options'!N:N,'MeasureTotals Lookups'!$B104,'Equipment Options'!T:T) -> 0 | P104: =SUMIF('Equipment Options'!N:N,'MeasureTotals Lookups'!$B104,'Equipment Options'!U:U) -> 0 | Q104: Ductless heat pump, Multifamily, w/o Baseboard Heating | R104: 0
B105: DHPLODNOBASE | C105: =SUMIF('Equipment Options'!N:N,'MeasureTotals Lookups'!$B105,'Equipment Options'!O:O) -> 0 | E105: =SUMIF('Equipment Options'!N:N,'MeasureTotals Lookups'!$B105,'Equipment Options'!V:V) -> 0 | F105: =SUMIF('Equipment Options'!N:N,'MeasureTotals Lookups'!$B105,'Equipment Options'!R:R) -> 0 | G105: =SUMIF('Equipment Options'!N:N,'MeasureTotals Lookups'!$B105,'Equipment Options'!S:S) -> 0 | N105: 18154 | O105: =SUMIF('Equipment Options'!N:N,'MeasureTotals Lookups'!$B105,'Equipment Options'!T:T) -> 0 | P105: =SUMIF('Equipment Options'!N:N,'MeasureTotals Lookups'!$B105,'Equipment Options'!U:U) -> 0 | Q105: Ductless heat pump, Lodging, w/o Baseboard Heating | R105: 0
B106: DHPDORMNOBASE | C106: =SUMIF('Equipment Options'!N:N,'MeasureTotals Lookups'!$B106,'Equipment Options'!O:O) -> 0 | E106: =SUMIF('Equipment Options'!N:N,'MeasureTotals Lookups'!$B106,'Equipment Options'!V:V) -> 0 | F106: =SUMIF('Equipment Options'!N:N,'MeasureTotals Lookups'!$B106,'Equipment Options'!R:R) -> 0 | G106: =SUMIF('Equipment Options'!N:N,'MeasureTotals Lookups'!$B106,'Equipment Options'!S:S) -> 0 | N106: 18155 | O106: =SUMIF('Equipment Options'!N:N,'MeasureTotals Lookups'!$B106,'Equipment Options'!T:T) -> 0 | P106: =SUMIF('Equipment Options'!N:N,'MeasureTotals Lookups'!$B106,'Equipment Options'!U:U) -> 0 | Q106: Ductless heat pump, Dorm, w/o Baseboard Heating | R106: 0
B107: DHPMFBASE | C107: =SUMIF('Equipment Options'!N:N,'MeasureTotals Lookups'!$B107,'Equipment Options'!O:O) -> 0 | E107: =SUMIF('Equipment Options'!N:N,'MeasureTotals Lookups'!$B107,'Equipment Options'!V:V) -> 0 | F107: =SUMIF('Equipment Options'!N:N,'MeasureTotals Lookups'!$B107,'Equipment Options'!R:R) -> 0 | G107: =SUMIF('Equipment Options'!N:N,'MeasureTotals Lookups'!$B107,'Equipment Options'!S:S) -> 0 | N107: 18156 | O107: =SUMIF('Equipment Options'!N:N,'MeasureTotals Lookups'!$B107,'Equipment Options'!T:T) -> 0 | P107: =SUMIF('Equipment Options'!N:N,'MeasureTotals Lookups'!$B107,'Equipment Options'!U:U) -> 0 | Q107: Ductless heat pump, Multifamily, w/ Baseboard Heating | R107: 0
B108: DHPLODBASE | C108: =SUMIF('Equipment Options'!N:N,'MeasureTotals Lookups'!$B108,'Equipment Options'!O:O) -> 0 | E108: =SUMIF('Equipment Options'!N:N,'MeasureTotals Lookups'!$B108,'Equipment Options'!V:V) -> 0 | F108: =SUMIF('Equipment Options'!N:N,'MeasureTotals Lookups'!$B108,'Equipment Options'!R:R) -> 0 | G108: =SUMIF('Equipment Options'!N:N,'MeasureTotals Lookups'!$B108,'Equipment Options'!S:S) -> 0 | N108: 18157 | O108: =SUMIF('Equipment Options'!N:N,'MeasureTotals Lookups'!$B108,'Equipment Options'!T:T) -> 0 | P108: =SUMIF('Equipment Options'!N:N,'MeasureTotals Lookups'!$B108,'Equipment Options'!U:U) -> 0 | Q108: Ductless heat pump, Lodging, w/ Baseboard Heating | R108: 0
B109: DHPDORMBASE | C109: =SUMIF('Equipment Options'!N:N,'MeasureTotals Lookups'!$B109,'Equipment Options'!O:O) -> 0 | E109: =SUMIF('Equipment Options'!N:N,'MeasureTotals Lookups'!$B109,'Equipment Options'!V:V) -> 0 | F109: =SUMIF('Equipment Options'!N:N,'MeasureTotals Lookups'!$B109,'Equipment Options'!R:R) -> 0 | G109: =SUMIF('Equipment Options'!N:N,'MeasureTotals Lookups'!$B109,'Equipment Options'!S:S) -> 0 | N109: 18158 | O109: =SUMIF('Equipment Options'!N:N,'MeasureTotals Lookups'!$B109,'Equipment Options'!T:T) -> 0 | P109: =SUMIF('Equipment Options'!N:N,'MeasureTotals Lookups'!$B109,'Equipment Options'!U:U) -> 0 | Q109: Ductless heat pump, Dorm, w/ Baseboard Heating | R109: 0
B110: RTUCTRLVSFHPH | C110: =SUMIF('Equipment Options'!N:N,'MeasureTotals Lookups'!$B110,'Equipment Options'!O:O) -> 0 | E110: =SUMIF('Equipment Options'!N:N,'MeasureTotals Lookups'!$B110,'Equipment Options'!V:V) -> 0 | F110: =SUMIF('Equipment Options'!N:N,'MeasureTotals Lookups'!$B110,'Equipment Options'!R:R) -> 0 | G110: =SUMIF('Equipment Options'!N:N,'MeasureTotals Lookups'!$B110,'Equipment Options'!S:S) -> 0 | N110: 18127 | O110: =SUMIF('Equipment Options'!N:N,'MeasureTotals Lookups'!$B110,'Equipment Options'!T:T) -> 0 | P110: =SUMIF('Equipment Options'!N:N,'MeasureTotals Lookups'!$B110,'Equipment Options'!U:U) -> 0 | Q110: RTU Controls, Variable Supply Fan, Heat Pump Heating | R110: 0
B111: RTUCTRLECOHPH | C111: =SUMIF('Equipment Options'!N:N,'MeasureTotals Lookups'!$B111,'Equipment Options'!O:O) -> 0 | E111: =SUMIF('Equipment Options'!N:N,'MeasureTotals Lookups'!$B111,'Equipment Options'!V:V) -> 0 | F111: =SUMIF('Equipment Options'!N:N,'MeasureTotals Lookups'!$B111,'Equipment Options'!R:R) -> 0 | G111: =SUMIF('Equipment Options'!N:N,'MeasureTotals Lookups'!$B111,'Equipment Options'!S:S) -> 0 | N111: 18128 | O111: =SUMIF('Equipment Options'!N:N,'MeasureTotals Lookups'!$B111,'Equipment Options'!T:T) -> 0 | P111: =SUMIF('Equipment Options'!N:N,'MeasureTotals Lookups'!$B111,'Equipment Options'!U:U) -> 0 | Q111: RTU Controls, Economizer, Heat Pump Heating | R111: 0
B112: RTUCTRLECOGH | C112: =SUMIF('Equipment Options'!N:N,'MeasureTotals Lookups'!$B112,'Equipment Options'!O:O) -> 0 | E112: =SUMIF('Equipment Options'!N:N,'MeasureTotals Lookups'!$B112,'Equipment Options'!V:V) -> 0 | F112: =SUMIF('Equipment Options'!N:N,'MeasureTotals Lookups'!$B112,'Equipment Options'!R:R) -> 0 | G112: =SUMIF('Equipment Options'!N:N,'MeasureTotals Lookups'!$B112,'Equipment Options'!S:S) -> 0 | N112: 18129 | O112: =SUMIF('Equipment Options'!N:N,'MeasureTotals Lookups'!$B112,'Equipment Options'!T:T) -> 0 | P112: =SUMIF('Equipment Options'!N:N,'MeasureTotals Lookups'!$B112,'Equipment Options'!U:U) -> 0 | Q112: RTU Controls, Economizer, Gas Heating | R112: 0
B113: RTUCTRLDCVHPH | C113: =SUMIF('Equipment Options'!N:N,'MeasureTotals Lookups'!$B113,'Equipment Options'!O:O) -> 0 | E113: =SUMIF('Equipment Options'!N:N,'MeasureTotals Lookups'!$B113,'Equipment Options'!V:V) -> 0 | F113: =SUMIF('Equipment Options'!N:N,'MeasureTotals Lookups'!$B113,'Equipment Options'!R:R) -> 0 | G113: =SUMIF('Equipment Options'!N:N,'MeasureTotals Lookups'!$B113,'Equipment Options'!S:S) -> 0 | N113: 18130 | O113: =SUMIF('Equipment Options'!N:N,'MeasureTotals Lookups'!$B113,'Equipment Options'!T:T) -> 0 | P113: =SUMIF('Equipment Options'!N:N,'MeasureTotals Lookups'!$B113,'Equipment Options'!U:U) -> 0 | Q113: RTU Controls, DCV, Heat Pump Heating | R113: 0
B114: RTUCTRLDCVGHGOT | C114: =SUMIF('Equipment Options'!N:N,'MeasureTotals Lookups'!$B114,'Equipment Options'!O:O) -> 0 | E114: =SUMIF('Equipment Options'!N:N,'MeasureTotals Lookups'!$B114,'Equipment Options'!V:V) -> 0 | F114: =SUMIF('Equipment Options'!N:N,'MeasureTotals Lookups'!$B114,'Equipment Options'!R:R) -> 0 | G114: =SUMIF('Equipment Options'!N:N,'MeasureTotals Lookups'!$B114,'Equipment Options'!S:S) -> 0 | N114: 18131 | O114: =SUMIF('Equipment Options'!N:N,'MeasureTotals Lookups'!$B114,'Equipment Options'!T:T) -> 0 | P114: =SUMIF('Equipment Options'!N:N,'MeasureTotals Lookups'!$B114,'Equipment Options'!U:U) -> 0 | Q114: RTU Controls, DCV, Gas Heating (gas only territories) | R114: 0
B115: RTUCTRLDCVGH | C115: =SUMIF('Equipment Options'!N:N,'MeasureTotals Lookups'!$B115,'Equipment Options'!O:O) -> 0 | E115: =SUMIF('Equipment Options'!N:N,'MeasureTotals Lookups'!$B115,'Equipment Options'!V:V) -> 0 | F115: =SUMIF('Equipment Options'!N:N,'MeasureTotals Lookups'!$B115,'Equipment Options'!R:R) -> 0 | G115: =SUMIF('Equipment Options'!N:N,'MeasureTotals Lookups'!$B115,'Equipment Options'!S:S) -> 0 | N115: 18132 | O115: =SUMIF('Equipment Options'!N:N,'MeasureTotals Lookups'!$B115,'Equipment Options'!T:T) -> 0 | P115: =SUMIF('Equipment Options'!N:N,'MeasureTotals Lookups'!$B115,'Equipment Options'!U:U) -> 0 | Q115: RTU Controls, DCV, Gas Heating | R115: 0
B116: MFTANKLESS199 | C116: =SUMIF('Equipment Options'!N:N,'MeasureTotals Lookups'!$B116,'Equipment Options'!O:O) -> 0 | E116: =SUMIF('Equipment Options'!N:N,'MeasureTotals Lookups'!$B116,'Equipment Options'!V:V) -> 0 | F116: =SUMIF('Equipment Options'!N:N,'MeasureTotals Lookups'!$B116,'Equipment Options'!R:R) -> 0 | G116: =SUMIF('Equipment Options'!N:N,'MeasureTotals Lookups'!$B116,'Equipment Options'!S:S) -> 0 | N116: 15429 | O116: =SUMIF('Equipment Options'!N:N,'MeasureTotals Lookups'!$B116,'Equipment Options'!T:T) -> 0 | P116: =SUMIF('Equipment Options'!N:N,'MeasureTotals Lookups'!$B116,'Equipment Options'!U:U) -> 0 | Q116: Multifamily 199 kBth/h Condensing Tankless water heater | R116: 0
B117: COOLCASEDRRCHZLOWGAS | C117: =SUMIF('Equipment Options'!N:N,'MeasureTotals Lookups'!$B117,'Equipment Options'!O:O) -> 0 | E117: =SUMIF('Equipment Options'!N:N,'MeasureTotals Lookups'!$B117,'Equipment Options'!V:V) -> 0 | F117: =SUMIF('Equipment Options'!N:N,'MeasureTotals Lookups'!$B117,'Equipment Options'!R:R) -> 0 | G117: =SUMIF('Equipment Options'!N:N,'MeasureTotals Lookups'!$B117,'Equipment Options'!S:S) -> 0 | N117: 17988 | O117: =SUMIF('Equipment Options'!N:N,'MeasureTotals Lookups'!$B117,'Equipment Options'!T:T) -> 0 | P117: =SUMIF('Equipment Options'!N:N,'MeasureTotals Lookups'!$B117,'Equipment Options'!U:U) -> 0 | Q117: Cooler w/ Door - Remote Condensing, Horiz Low Temp - Gas | R117: 0
B118: COOLCASEDRRCHZMEDGAS | C118: =SUMIF('Equipment Options'!N:N,'MeasureTotals Lookups'!$B118,'Equipment Options'!O:O) -> 0 | E118: =SUMIF('Equipment Options'!N:N,'MeasureTotals Lookups'!$B118,'Equipment Options'!V:V) -> 0 | F118: =SUMIF('Equipment Options'!N:N,'MeasureTotals Lookups'!$B118,'Equipment Options'!R:R) -> 0 | G118: =SUMIF('Equipment Options'!N:N,'MeasureTotals Lookups'!$B118,'Equipment Options'!S:S) -> 0 | N118: 17989 | O118: =SUMIF('Equipment Options'!N:N,'MeasureTotals Lookups'!$B118,'Equipment Options'!T:T) -> 0 | P118: =SUMIF('Equipment Options'!N:N,'MeasureTotals Lookups'!$B118,'Equipment Options'!U:U) -> 0 | Q118: Cooler w/ Door - Remote Condensing, Horiz Med Temp - Gas | R118: 0
B119: COOLCASEDRRCVTMEDGAS | C119: =SUMIF('Equipment Options'!N:N,'MeasureTotals Lookups'!$B119,'Equipment Options'!O:O) -> 0 | E119: =SUMIF('Equipment Options'!N:N,'MeasureTotals Lookups'!$B119,'Equipment Options'!V:V) -> 0 | F119: =SUMIF('Equipment Options'!N:N,'MeasureTotals Lookups'!$B119,'Equipment Options'!R:R) -> 0 | G119: =SUMIF('Equipment Options'!N:N,'MeasureTotals Lookups'!$B119,'Equipment Options'!S:S) -> 0 | N119: 17990 | O119: =SUMIF('Equipment Options'!N:N,'MeasureTotals Lookups'!$B119,'Equipment Options'!T:T) -> 0 | P119: =SUMIF('Equipment Options'!N:N,'MeasureTotals Lookups'!$B119,'Equipment Options'!U:U) -> 0 | Q119: Cooler w/ Door - Remote Condensing, Vert Med Temp - Gas | R119: 0
B120: COOLCASEDRRCHZLOWEOT | C120: =SUMIF('Equipment Options'!N:N,'MeasureTotals Lookups'!$B120,'Equipment Options'!O:O) -> 0 | E120: =SUMIF('Equipment Options'!N:N,'MeasureTotals Lookups'!$B120,'Equipment Options'!V:V) -> 0 | F120: =SUMIF('Equipment Options'!N:N,'MeasureTotals Lookups'!$B120,'Equipment Options'!R:R) -> 0 | G120: =SUMIF('Equipment Options'!N:N,'MeasureTotals Lookups'!$B120,'Equipment Options'!S:S) -> 0 | N120: 17991 | O120: =SUMIF('Equipment Options'!N:N,'MeasureTotals Lookups'!$B120,'Equipment Options'!T:T) -> 0 | P120: =SUMIF('Equipment Options'!N:N,'MeasureTotals Lookups'!$B120,'Equipment Options'!U:U) -> 0 | Q120: Cooler w/ Door - Remote Condensing, Horiz Low Temp - Gas EOT | R120: 0
B121: COOLCASEDRRCVTMEDEOT | C121: =SUMIF('Equipment Options'!N:N,'MeasureTotals Lookups'!$B121,'Equipment Options'!O:O) -> 0 | E121: =SUMIF('Equipment Options'!N:N,'MeasureTotals Lookups'!$B121,'Equipment Options'!V:V) -> 0 | F121: =SUMIF('Equipment Options'!N:N,'MeasureTotals Lookups'!$B121,'Equipment Options'!R:R) -> 0 | G121: =SUMIF('Equipment Options'!N:N,'MeasureTotals Lookups'!$B121,'Equipment Options'!S:S) -> 0 | N121: 17992 | O121: =SUMIF('Equipment Options'!N:N,'MeasureTotals Lookups'!$B121,'Equipment Options'!T:T) -> 0 | P121: =SUMIF('Equipment Options'!N:N,'MeasureTotals Lookups'!$B121,'Equipment Options'!U:U) -> 0 | Q121: Cooler w/ Door - Remote Condensing, Vert Med Temp - Gas EOT | R121: 0
B122: COOLCASEDRRCHZMEDEOT | C122: =SUMIF('Equipment Options'!N:N,'MeasureTotals Lookups'!$B122,'Equipment Options'!O:O) -> 0 | E122: =SUMIF('Equipment Options'!N:N,'MeasureTotals Lookups'!$B122,'Equipment Options'!V:V) -> 0 | F122: =SUMIF('Equipment Options'!N:N,'MeasureTotals Lookups'!$B122,'Equipment Options'!R:R) -> 0 | G122: =SUMIF('Equipment Options'!N:N,'MeasureTotals Lookups'!$B122,'Equipment Options'!S:S) -> 0 | N122: 17993 | O122: =SUMIF('Equipment Options'!N:N,'MeasureTotals Lookups'!$B122,'Equipment Options'!T:T) -> 0 | P122: =SUMIF('Equipment Options'!N:N,'MeasureTotals Lookups'!$B122,'Equipment Options'!U:U) -> 0 | Q122: Cooler w/ Door - Remote Condensing, Horiz Med Temp - Gas EOT | R122: 0
B123: COOLCASEDRRCHZLOWGOT | C123: =SUMIF('Equipment Options'!N:N,'MeasureTotals Lookups'!$B123,'Equipment Options'!O:O) -> 0 | E123: =SUMIF('Equipment Options'!N:N,'MeasureTotals Lookups'!$B123,'Equipment Options'!V:V) -> 0 | F123: =SUMIF('Equipment Options'!N:N,'MeasureTotals Lookups'!$B123,'Equipment Options'!R:R) -> 0 | G123: =SUMIF('Equipment Options'!N:N,'MeasureTotals Lookups'!$B123,'Equipment Options'!S:S) -> 0 | N123: 17994 | O123: =SUMIF('Equipment Options'!N:N,'MeasureTotals Lookups'!$B123,'Equipment Options'!T:T) -> 0 | P123: =SUMIF('Equipment Options'!N:N,'MeasureTotals Lookups'!$B123,'Equipment Options'!U:U) -> 0 | Q123: Cooler w/ Door - Remote Condensing, Horiz Low Temp - GOT | R123: 0
B124: COOLCASEDRRCHZMEDGOT | C124: =SUMIF('Equipment Options'!N:N,'MeasureTotals Lookups'!$B124,'Equipment Options'!O:O) -> 0 | E124: =SUMIF('Equipment Options'!N:N,'MeasureTotals Lookups'!$B124,'Equipment Options'!V:V) -> 0 | F124: =SUMIF('Equipment Options'!N:N,'MeasureTotals Lookups'!$B124,'Equipment Options'!R:R) -> 0 | G124: =SUMIF('Equipment Options'!N:N,'MeasureTotals Lookups'!$B124,'Equipment Options'!S:S) -> 0 | N124: 17995 | O124: =SUMIF('Equipment Options'!N:N,'MeasureTotals Lookups'!$B124,'Equipment Options'!T:T) -> 0 | P124: =SUMIF('Equipment Options'!N:N,'MeasureTotals Lookups'!$B124,'Equipment Options'!U:U) -> 0 | Q124: Cooler w/ Door - Remote Condensing, Horiz Med Temp - GOT | R124: 0
B125: COOLCASEDRRCVTMEDGOT | C125: =SUMIF('Equipment Options'!N:N,'MeasureTotals Lookups'!$B125,'Equipment Options'!O:O) -> 0 | E125: =SUMIF('Equipment Options'!N:N,'MeasureTotals Lookups'!$B125,'Equipment Options'!V:V) -> 0 | F125: =SUMIF('Equipment Options'!N:N,'MeasureTotals Lookups'!$B125,'Equipment Options'!R:R) -> 0 | G125: =SUMIF('Equipment Options'!N:N,'MeasureTotals Lookups'!$B125,'Equipment Options'!S:S) -> 0 | N125: 17996 | O125: =SUMIF('Equipment Options'!N:N,'MeasureTotals Lookups'!$B125,'Equipment Options'!T:T) -> 0 | P125: =SUMIF('Equipment Options'!N:N,'MeasureTotals Lookups'!$B125,'Equipment Options'!U:U) -> 0 | Q125: Cooler w/ Door - Remote Condensing, Vert Med Temp - GOT | R125: 0
B126: COOLCASEDRRCHZLOWELE | C126: =SUMIF('Equipment Options'!N:N,'MeasureTotals Lookups'!$B126,'Equipment Options'!O:O) -> 0 | E126: =SUMIF('Equipment Options'!N:N,'MeasureTotals Lookups'!$B126,'Equipment Options'!V:V) -> 0 | F126: =SUMIF('Equipment Options'!N:N,'MeasureTotals Lookups'!$B126,'Equipment Options'!R:R) -> 0 | G126: =SUMIF('Equipment Options'!N:N,'MeasureTotals Lookups'!$B126,'Equipment Options'!S:S) -> 0 | N126: 17997 | O126: =SUMIF('Equipment Options'!N:N,'MeasureTotals Lookups'!$B126,'Equipment Options'!T:T) -> 0 | P126: =SUMIF('Equipment Options'!N:N,'MeasureTotals Lookups'!$B126,'Equipment Options'!U:U) -> 0 | Q126: Cooler w/ Door - Remote Condensing, Horiz Low Temp - Elec | R126: 0
B127: COOLCASEDRRCHZMEDELE | C127: =SUMIF('Equipment Options'!N:N,'MeasureTotals Lookups'!$B127,'Equipment Options'!O:O) -> 0 | E127: =SUMIF('Equipment Options'!N:N,'MeasureTotals Lookups'!$B127,'Equipment Options'!V:V) -> 0 | F127: =SUMIF('Equipment Options'!N:N,'MeasureTotals Lookups'!$B127,'Equipment Options'!R:R) -> 0 | G127: =SUMIF('Equipment Options'!N:N,'MeasureTotals Lookups'!$B127,'Equipment Options'!S:S) -> 0 | N127: 17998 | O127: =SUMIF('Equipment Options'!N:N,'MeasureTotals Lookups'!$B127,'Equipment Options'!T:T) -> 0 | P127: =SUMIF('Equipment Options'!N:N,'MeasureTotals Lookups'!$B127,'Equipment Options'!U:U) -> 0 | Q127: Cooler w/ Door - Remote Condensing, Horiz Med Temp - Elec | R127: 0
B128: COOLCASEDRRCVTMEDELE | C128: =SUMIF('Equipment Options'!N:N,'MeasureTotals Lookups'!$B128,'Equipment Options'!O:O) -> 0 | E128: =SUMIF('Equipment Options'!N:N,'MeasureTotals Lookups'!$B128,'Equipment Options'!V:V) -> 0 | F128: =SUMIF('Equipment Options'!N:N,'MeasureTotals Lookups'!$B128,'Equipment Options'!R:R) -> 0 | G128: =SUMIF('Equipment Options'!N:N,'MeasureTotals Lookups'!$B128,'Equipment Options'!S:S) -> 0 | N128: 18008 | O128: =SUMIF('Equipment Options'!N:N,'MeasureTotals Lookups'!$B128,'Equipment Options'!T:T) -> 0 | P128: =SUMIF('Equipment Options'!N:N,'MeasureTotals Lookups'!$B128,'Equipment Options'!U:U) -> 0 | Q128: Cooler w/ Door - Remote Condensing, Vert Med Temp - Elec | R128: 0
B129: COOLCASEDRSCHZLOWEOT | C129: =SUMIF('Equipment Options'!N:N,'MeasureTotals Lookups'!$B129,'Equipment Options'!O:O) -> 0 | E129: =SUMIF('Equipment Options'!N:N,'MeasureTotals Lookups'!$B129,'Equipment Options'!V:V) -> 0 | F129: =SUMIF('Equipment Options'!N:N,'MeasureTotals Lookups'!$B129,'Equipment Options'!R:R) -> 0 | G129: =SUMIF('Equipment Options'!N:N,'MeasureTotals Lookups'!$B129,'Equipment Options'!S:S) -> 0 | N129: 18348 | O129: =SUMIF('Equipment Options'!N:N,'MeasureTotals Lookups'!$B129,'Equipment Options'!T:T) -> 0 | P129: =SUMIF('Equipment Options'!N:N,'MeasureTotals Lookups'!$B129,'Equipment Options'!U:U) -> 0 | Q129: Cooler w/ Door - Self-Contained, Horiz Low Temp - Gas EOT | R129: 0
B130: CTWH199ALLCOM | C130: =SUMIF('Equipment Options'!N:N,'MeasureTotals Lookups'!$B130,'Equipment Options'!O:O) -> 0 | E130: =SUMIF('Equipment Options'!N:N,'MeasureTotals Lookups'!$B130,'Equipment Options'!V:V) -> 0 | F130: =SUMIF('Equipment Options'!N:N,'MeasureTotals Lookups'!$B130,'Equipment Options'!R:R) -> 0 | G130: =SUMIF('Equipment Options'!N:N,'MeasureTotals Lookups'!$B130,'Equipment Options'!S:S) -> 0 | N130: 18365 | O130: =SUMIF('Equipment Options'!N:N,'MeasureTotals Lookups'!$B130,'Equipment Options'!T:T) -> 0 | P130: =SUMIF('Equipment Options'!N:N,'MeasureTotals Lookups'!$B130,'Equipment Options'!U:U) -> 0 | Q130: Commercial Tankless Water Heater <200 - All Commercial | R130: 0
B131: VRFNDHEDOAS | C131: =SUMIF('Equipment Options'!N:N,'MeasureTotals Lookups'!$B131,'Equipment Options'!O:O) -> 0 | E131: =SUMIF('Equipment Options'!N:N,'MeasureTotals Lookups'!$B131,'Equipment Options'!V:V) -> 0 | F131: =SUMIF('Equipment Options'!N:N,'MeasureTotals Lookups'!$B131,'Equipment Options'!R:R) -> 0 | G131: =SUMIF('Equipment Options'!N:N,'MeasureTotals Lookups'!$B131,'Equipment Options'!S:S) -> 0 | N131: 18006 | O131: =SUMIF('Equipment Options'!N:N,'MeasureTotals Lookups'!$B131,'Equipment Options'!T:T) -> 0 | P131: =SUMIF('Equipment Options'!N:N,'MeasureTotals Lookups'!$B131,'Equipment Options'!U:U) -> 0 | Q131: VRF - Ductless w/ HE DOAS (per sf) | R131: 0
B132: VRFND | C132: =SUMIF('Equipment Options'!N:N,'MeasureTotals Lookups'!$B132,'Equipment Options'!O:O) -> 0 | E132: =SUMIF('Equipment Options'!N:N,'MeasureTotals Lookups'!$B132,'Equipment Options'!V:V) -> 0 | F132: =SUMIF('Equipment Options'!N:N,'MeasureTotals Lookups'!$B132,'Equipment Options'!R:R) -> 0 | G132: =SUMIF('Equipment Options'!N:N,'MeasureTotals Lookups'!$B132,'Equipment Options'!S:S) -> 0 | N132: =_xlfn.XLOOKUP($B132,ProductCode,ProductVersionId,"",0) -> 18007 | O132: =SUMIF('Equipment Options'!N:N,'MeasureTotals Lookups'!$B132,'Equipment Options'!T:T) -> 0 | P132: =SUMIF('Equipment Options'!N:N,'MeasureTotals Lookups'!$B132,'Equipment Options'!U:U) -> 0 | Q132: =_xlfn.XLOOKUP($B132,ProductCode,ProductDescription,"",0) -> VRF - Ductless (per sf) | R132: =(_xlfn.XLOOKUP($B132,ProductCode,IncrementalCost,"",0))*C132 -> 0
B133: OVERWRAPPER | C133: =SUMIF('Equipment Options'!N:N,'MeasureTotals Lookups'!$B133,'Equipment Options'!O:O) -> 0 | E133: =SUMIF('Equipment Options'!N:N,'MeasureTotals Lookups'!$B133,'Equipment Options'!V:V) -> 0 | F133: =SUMIF('Equipment Options'!N:N,'MeasureTotals Lookups'!$B133,'Equipment Options'!R:R) -> 0 | G133: =SUMIF('Equipment Options'!N:N,'MeasureTotals Lookups'!$B133,'Equipment Options'!S:S) -> 0 | N133: 18003 | O133: =SUMIF('Equipment Options'!N:N,'MeasureTotals Lookups'!$B133,'Equipment Options'!T:T) -> 0 | P133: =SUMIF('Equipment Options'!N:N,'MeasureTotals Lookups'!$B133,'Equipment Options'!U:U) -> 0 | Q133: On-Demand Overwrapper | R133: 0
B134: DRYERELE | C134: =SUMIF('Equipment Options'!N:N,'MeasureTotals Lookups'!$B134,'Equipment Options'!O:O) -> 0 | E134: =SUMIF('Equipment Options'!N:N,'MeasureTotals Lookups'!$B134,'Equipment Options'!V:V) -> 0 | F134: =SUMIF('Equipment Options'!N:N,'MeasureTotals Lookups'!$B134,'Equipment Options'!R:R) -> 0 | G134: =SUMIF('Equipment Options'!N:N,'MeasureTotals Lookups'!$B134,'Equipment Options'!S:S) -> 0 | N134: 13451 | O134: =SUMIF('Equipment Options'!N:N,'MeasureTotals Lookups'!$B134,'Equipment Options'!T:T) -> 0 | P134: =SUMIF('Equipment Options'!N:N,'MeasureTotals Lookups'!$B134,'Equipment Options'!U:U) -> 0 | Q134: Electric Clothes Dryer - In-Unit | R134: 0
B135: HHCECMVS050075HP | C135: =SUMIF('Equipment Options'!N:N,'MeasureTotals Lookups'!$B135,'Equipment Options'!O:O) -> 0 | E135: =SUMIF('Equipment Options'!N:N,'MeasureTotals Lookups'!$B135,'Equipment Options'!V:V) -> 0 | F135: =SUMIF('Equipment Options'!N:N,'MeasureTotals Lookups'!$B135,'Equipment Options'!R:R) -> 0 | G135: =SUMIF('Equipment Options'!N:N,'MeasureTotals Lookups'!$B135,'Equipment Options'!S:S) -> 0 | N135: 15933 | O135: =SUMIF('Equipment Options'!N:N,'MeasureTotals Lookups'!$B135,'Equipment Options'!T:T) -> 0 | P135: =SUMIF('Equipment Options'!N:N,'MeasureTotals Lookups'!$B135,'Equipment Options'!U:U) -> 0 | Q135: Hydro Heating Circulators, ECM, Variable Speed, >0.5 - = 0.75 HP | R135: 0
B136: HHCECMVS175250HP | C136: =SUMIF('Equipment Options'!N:N,'MeasureTotals Lookups'!$B136,'Equipment Options'!O:O) -> 0 | E136: =SUMIF('Equipment Options'!N:N,'MeasureTotals Lookups'!$B136,'Equipment Options'!V:V) -> 0 | F136: =SUMIF('Equipment Options'!N:N,'MeasureTotals Lookups'!$B136,'Equipment Options'!R:R) -> 0 | G136: =SUMIF('Equipment Options'!N:N,'MeasureTotals Lookups'!$B136,'Equipment Options'!S:S) -> 0 | N136: 15934 | O136: =SUMIF('Equipment Options'!N:N,'MeasureTotals Lookups'!$B136,'Equipment Options'!T:T) -> 0 | P136: =SUMIF('Equipment Options'!N:N,'MeasureTotals Lookups'!$B136,'Equipment Options'!U:U) -> 0 | Q136: Hydro Heating Circulators, ECM, Variable Speed, >1.75 - =2.5 HP | R136: 0
B137: HHCECMVS250350HP | C137: =SUMIF('Equipment Options'!N:N,'MeasureTotals Lookups'!$B137,'Equipment Options'!O:O) -> 0 | E137: =SUMIF('Equipment Options'!N:N,'MeasureTotals Lookups'!$B137,'Equipment Options'!V:V) -> 0 | F137: =SUMIF('Equipment Options'!N:N,'MeasureTotals Lookups'!$B137,'Equipment Options'!R:R) -> 0 | G137: =SUMIF('Equipment Options'!N:N,'MeasureTotals Lookups'!$B137,'Equipment Options'!S:S) -> 0 | N137: 15935 | O137: =SUMIF('Equipment Options'!N:N,'MeasureTotals Lookups'!$B137,'Equipment Options'!T:T) -> 0 | P137: =SUMIF('Equipment Options'!N:N,'MeasureTotals Lookups'!$B137,'Equipment Options'!U:U) -> 0 | Q137: Hydro Heating Circulators, ECM, Variable Speed, >2.5 - =3.5 HP | R137: 0
B138: HHCECMVS350450HP | C138: =SUMIF('Equipment Options'!N:N,'MeasureTotals Lookups'!$B138,'Equipment Options'!O:O) -> 0 | E138: =SUMIF('Equipment Options'!N:N,'MeasureTotals Lookups'!$B138,'Equipment Options'!V:V) -> 0 | F138: =SUMIF('Equipment Options'!N:N,'MeasureTotals Lookups'!$B138,'Equipment Options'!R:R) -> 0 | G138: =SUMIF('Equipment Options'!N:N,'MeasureTotals Lookups'!$B138,'Equipment Options'!S:S) -> 0 | N138: 15936 | O138: =SUMIF('Equipment Options'!N:N,'MeasureTotals Lookups'!$B138,'Equipment Options'!T:T) -> 0 | P138: =SUMIF('Equipment Options'!N:N,'MeasureTotals Lookups'!$B138,'Equipment Options'!U:U) -> 0 | Q138: Hydro Heating Circulators, ECM, Variable Speed, >3.5 - =4.5 HP | R138: 0
B139: HHCECMVS450500HP | C139: =SUMIF('Equipment Options'!N:N,'MeasureTotals Lookups'!$B139,'Equipment Options'!O:O) -> 0 | E139: =SUMIF('Equipment Options'!N:N,'MeasureTotals Lookups'!$B139,'Equipment Options'!V:V) -> 0 | F139: =SUMIF('Equipment Options'!N:N,'MeasureTotals Lookups'!$B139,'Equipment Options'!R:R) -> 0 | G139: =SUMIF('Equipment Options'!N:N,'MeasureTotals Lookups'!$B139,'Equipment Options'!S:S) -> 0 | N139: 15937 | O139: =SUMIF('Equipment Options'!N:N,'MeasureTotals Lookups'!$B139,'Equipment Options'!T:T) -> 0 | P139: =SUMIF('Equipment Options'!N:N,'MeasureTotals Lookups'!$B139,'Equipment Options'!U:U) -> 0 | Q139: Hydro Heating Circulators, ECM, Variable Speed, >4.5 - =5 HP | R139: 0
B140: HHCECMSS075125HP | C140: =SUMIF('Equipment Options'!N:N,'MeasureTotals Lookups'!$B140,'Equipment Options'!O:O) -> 0 | E140: =SUMIF('Equipment Options'!N:N,'MeasureTotals Lookups'!$B140,'Equipment Options'!V:V) -> 0 | F140: =SUMIF('Equipment Options'!N:N,'MeasureTotals Lookups'!$B140,'Equipment Options'!R:R) -> 0 | G140: =SUMIF('Equipment Options'!N:N,'MeasureTotals Lookups'!$B140,'Equipment Options'!S:S) -> 0 | N140: 15938 | O140: =SUMIF('Equipment Options'!N:N,'MeasureTotals Lookups'!$B140,'Equipment Options'!T:T) -> 0 | P140: =SUMIF('Equipment Options'!N:N,'MeasureTotals Lookups'!$B140,'Equipment Options'!U:U) -> 0 | Q140: Hydro Heating Circulators, ECM, Single Speed, >.75 - =1.25 HP | R140: 0
B141: HHCECMSS125175HP | C141: =SUMIF('Equipment Options'!N:N,'MeasureTotals Lookups'!$B141,'Equipment Options'!O:O) -> 0 | E141: =SUMIF('Equipment Options'!N:N,'MeasureTotals Lookups'!$B141,'Equipment Options'!V:V) -> 0 | F141: =SUMIF('Equipment Options'!N:N,'MeasureTotals Lookups'!$B141,'Equipment Options'!R:R) -> 0 | G141: =SUMIF('Equipment Options'!N:N,'MeasureTotals Lookups'!$B141,'Equipment Options'!S:S) -> 0 | N141: 15939 | O141: =SUMIF('Equipment Options'!N:N,'MeasureTotals Lookups'!$B141,'Equipment Options'!T:T) -> 0 | P141: =SUMIF('Equipment Options'!N:N,'MeasureTotals Lookups'!$B141,'Equipment Options'!U:U) -> 0 | Q141: Hydro Heating Circulators, ECM, Single Speed, > 1.25 - = 1.75 HP | R141: 0
B142: HHCECMSS450500HP | C142: =SUMIF('Equipment Options'!N:N,'MeasureTotals Lookups'!$B142,'Equipment Options'!O:O) -> 0 | E142: =SUMIF('Equipment Options'!N:N,'MeasureTotals Lookups'!$B142,'Equipment Options'!V:V) -> 0 | F142: =SUMIF('Equipment Options'!N:N,'MeasureTotals Lookups'!$B142,'Equipment Options'!R:R) -> 0 | G142: =SUMIF('Equipment Options'!N:N,'MeasureTotals Lookups'!$B142,'Equipment Options'!S:S) -> 0 | N142: 15942 | O142: =SUMIF('Equipment Options'!N:N,'MeasureTotals Lookups'!$B142,'Equipment Options'!T:T) -> 0 | P142: =SUMIF('Equipment Options'!N:N,'MeasureTotals Lookups'!$B142,'Equipment Options'!U:U) -> 0 | Q142: Hydro Heating Circulators, ECM, Single Speed, > 4.5 - = 5 HP | R142: 0
B143: HHCECMSS350450HP | C143: =SUMIF('Equipment Options'!N:N,'MeasureTotals Lookups'!$B143,'Equipment Options'!O:O) -> 0 | E143: =SUMIF('Equipment Options'!N:N,'MeasureTotals Lookups'!$B143,'Equipment Options'!V:V) -> 0 | F143: =SUMIF('Equipment Options'!N:N,'MeasureTotals Lookups'!$B143,'Equipment Options'!R:R) -> 0 | G143: =SUMIF('Equipment Options'!N:N,'MeasureTotals Lookups'!$B143,'Equipment Options'!S:S) -> 0 | N143: 15943 | O143: =SUMIF('Equipment Options'!N:N,'MeasureTotals Lookups'!$B143,'Equipment Options'!T:T) -> 0 | P143: =SUMIF('Equipment Options'!N:N,'MeasureTotals Lookups'!$B143,'Equipment Options'!U:U) -> 0 | Q143: Hydro Heating Circulators, ECM, Single Speed, > 3.5 - = 4.5 HP | R143: 0
B144: HHCECMSS175250HP | C144: =SUMIF('Equipment Options'!N:N,'MeasureTotals Lookups'!$B144,'Equipment Options'!O:O) -> 0 | E144: =SUMIF('Equipment Options'!N:N,'MeasureTotals Lookups'!$B144,'Equipment Options'!V:V) -> 0 | F144: =SUMIF('Equipment Options'!N:N,'MeasureTotals Lookups'!$B144,'Equipment Options'!R:R) -> 0 | G144: =SUMIF('Equipment Options'!N:N,'MeasureTotals Lookups'!$B144,'Equipment Options'!S:S) -> 0 | N144: 15944 | O144: =SUMIF('Equipment Options'!N:N,'MeasureTotals Lookups'!$B144,'Equipment Options'!T:T) -> 0 | P144: =SUMIF('Equipment Options'!N:N,'MeasureTotals Lookups'!$B144,'Equipment Options'!U:U) -> 0 | Q144: Hydro Heating Circulators, ECM, Single Speed, >1.75 - = 2.5 HP | R144: 0
B145: HHCECMVS075125HP | C145: =SUMIF('Equipment Options'!N:N,'MeasureTotals Lookups'!$B145,'Equipment Options'!O:O) -> 0 | E145: =SUMIF('Equipment Options'!N:N,'MeasureTotals Lookups'!$B145,'Equipment Options'!V:V) -> 0 | F145: =SUMIF('Equipment Options'!N:N,'MeasureTotals Lookups'!$B145,'Equipment Options'!R:R) -> 0 | G145: =SUMIF('Equipment Options'!N:N,'MeasureTotals Lookups'!$B145,'Equipment Options'!S:S) -> 0 | N145: 15945 | O145: =SUMIF('Equipment Options'!N:N,'MeasureTotals Lookups'!$B145,'Equipment Options'!T:T) -> 0 | P145: =SUMIF('Equipment Options'!N:N,'MeasureTotals Lookups'!$B145,'Equipment Options'!U:U) -> 0 | Q145: Hydro Heating Circulators, ECM, Variable Speed, >.75 - =1.25 HP | R145: 0
B146: HHCECMSS250350HP | C146: =SUMIF('Equipment Options'!N:N,'MeasureTotals Lookups'!$B146,'Equipment Options'!O:O) -> 0 | E146: =SUMIF('Equipment Options'!N:N,'MeasureTotals Lookups'!$B146,'Equipment Options'!V:V) -> 0 | F146: =SUMIF('Equipment Options'!N:N,'MeasureTotals Lookups'!$B146,'Equipment Options'!R:R) -> 0 | G146: =SUMIF('Equipment Options'!N:N,'MeasureTotals Lookups'!$B146,'Equipment Options'!S:S) -> 0 | N146: 16087 | O146: =SUMIF('Equipment Options'!N:N,'MeasureTotals Lookups'!$B146,'Equipment Options'!T:T) -> 0 | P146: =SUMIF('Equipment Options'!N:N,'MeasureTotals Lookups'!$B146,'Equipment Options'!U:U) -> 0 | Q146: Hydro Heating Circulators, ECM, Single Speed, >2.5 - =3.5 HP | R146: 0
B147: HHCECMVS125175HP | C147: =SUMIF('Equipment Options'!N:N,'MeasureTotals Lookups'!$B147,'Equipment Options'!O:O) -> 0 | E147: =SUMIF('Equipment Options'!N:N,'MeasureTotals Lookups'!$B147,'Equipment Options'!V:V) -> 0 | F147: =SUMIF('Equipment Options'!N:N,'MeasureTotals Lookups'!$B147,'Equipment Options'!R:R) -> 0 | G147: =SUMIF('Equipment Options'!N:N,'MeasureTotals Lookups'!$B147,'Equipment Options'!S:S) -> 0 | N147: 16094 | O147: =SUMIF('Equipment Options'!N:N,'MeasureTotals Lookups'!$B147,'Equipment Options'!T:T) -> 0 | P147: =SUMIF('Equipment Options'!N:N,'MeasureTotals Lookups'!$B147,'Equipment Options'!U:U) -> 0 | Q147: Hydro Heating Circulators, ECM, Variable Speed, >1.25 - =1.75 HP | R147: 0
B148: CHPWHT2 | C148: =SUMIF('Equipment Options'!N:N,'MeasureTotals Lookups'!$B148,'Equipment Options'!O:O) -> 0 | E148: =SUMIF('Equipment Options'!N:N,'MeasureTotals Lookups'!$B148,'Equipment Options'!V:V) -> 0 | F148: =SUMIF('Equipment Options'!N:N,'MeasureTotals Lookups'!$B148,'Equipment Options'!R:R) -> 0 | G148: =SUMIF('Equipment Options'!N:N,'MeasureTotals Lookups'!$B148,'Equipment Options'!S:S) -> 0 | N148: 18270 | O148: =SUMIF('Equipment Options'!N:N,'MeasureTotals Lookups'!$B148,'Equipment Options'!T:T) -> 0 | P148: =SUMIF('Equipment Options'!N:N,'MeasureTotals Lookups'!$B148,'Equipment Options'!U:U) -> 0 | Q148: Commercial Heat Pump Water Heater - Tier 2 | R148: 0
B149: CHPWHT2D | C149: =SUMIF('Equipment Options'!N:N,'MeasureTotals Lookups'!$B149,'Equipment Options'!O:O) -> 0 | E149: =SUMIF('Equipment Options'!N:N,'MeasureTotals Lookups'!$B149,'Equipment Options'!V:V) -> 0 | F149: =SUMIF('Equipment Options'!N:N,'MeasureTotals Lookups'!$B149,'Equipment Options'!R:R) -> 0 | G149: =SUMIF('Equipment Options'!N:N,'MeasureTotals Lookups'!$B149,'Equipment Options'!S:S) -> 0 | N149: 18271 | O149: =SUMIF('Equipment Options'!N:N,'MeasureTotals Lookups'!$B149,'Equipment Options'!T:T) -> 0 | P149: =SUMIF('Equipment Options'!N:N,'MeasureTotals Lookups'!$B149,'Equipment Options'!U:U) -> 0 | Q149: Commercial Heat Pump Water Heater - Tier 2, ducted | R149: 0
B150: CHPWHT3 | C150: =SUMIF('Equipment Options'!N:N,'MeasureTotals Lookups'!$B150,'Equipment Options'!O:O) -> 0 | E150: =SUMIF('Equipment Options'!N:N,'MeasureTotals Lookups'!$B150,'Equipment Options'!V:V) -> 0 | F150: =SUMIF('Equipment Options'!N:N,'MeasureTotals Lookups'!$B150,'Equipment Options'!R:R) -> 0 | G150: =SUMIF('Equipment Options'!N:N,'MeasureTotals Lookups'!$B150,'Equipment Options'!S:S) -> 0 | N150: 18272 | O150: =SUMIF('Equipment Options'!N:N,'MeasureTotals Lookups'!$B150,'Equipment Options'!T:T) -> 0 | P150: =SUMIF('Equipment Options'!N:N,'MeasureTotals Lookups'!$B150,'Equipment Options'!U:U) -> 0 | Q150: Commercial Heat Pump Water Heater - Tier 3 | R150: 0
B151: CHPWHT3D | C151: =SUMIF('Equipment Options'!N:N,'MeasureTotals Lookups'!$B151,'Equipment Options'!O:O) -> 0 | E151: =SUMIF('Equipment Options'!N:N,'MeasureTotals Lookups'!$B151,'Equipment Options'!V:V) -> 0 | F151: =SUMIF('Equipment Options'!N:N,'MeasureTotals Lookups'!$B151,'Equipment Options'!R:R) -> 0 | G151: =SUMIF('Equipment Options'!N:N,'MeasureTotals Lookups'!$B151,'Equipment Options'!S:S) -> 0 | N151: 18273 | O151: =SUMIF('Equipment Options'!N:N,'MeasureTotals Lookups'!$B151,'Equipment Options'!T:T) -> 0 | P151: =SUMIF('Equipment Options'!N:N,'MeasureTotals Lookups'!$B151,'Equipment Options'!U:U) -> 0 | Q151: Commercial Heat Pump Water Heater - Tier 3, ducted | R151: 0
B152: CHPWHT4UP | C152: =SUMIF('Equipment Options'!N:N,'MeasureTotals Lookups'!$B152,'Equipment Options'!O:O) -> 0 | E152: =SUMIF('Equipment Options'!N:N,'MeasureTotals Lookups'!$B152,'Equipment Options'!V:V) -> 0 | F152: =SUMIF('Equipment Options'!N:N,'MeasureTotals Lookups'!$B152,'Equipment Options'!R:R) -> 0 | G152: =SUMIF('Equipment Options'!N:N,'MeasureTotals Lookups'!$B152,'Equipment Options'!S:S) -> 0 | N152: 18274 | O152: =SUMIF('Equipment Options'!N:N,'MeasureTotals Lookups'!$B152,'Equipment Options'!T:T) -> 0 | P152: =SUMIF('Equipment Options'!N:N,'MeasureTotals Lookups'!$B152,'Equipment Options'!U:U) -> 0 | Q152: Commercial Heat Pump Water Heater - Tier 4 & up | R152: 0
B153: CHPWHT4UPD | C153: =SUMIF('Equipment Options'!N:N,'MeasureTotals Lookups'!$B153,'Equipment Options'!O:O) -> 0 | E153: =SUMIF('Equipment Options'!N:N,'MeasureTotals Lookups'!$B153,'Equipment Options'!V:V) -> 0 | F153: =SUMIF('Equipment Options'!N:N,'MeasureTotals Lookups'!$B153,'Equipment Options'!R:R) -> 0 | G153: =SUMIF('Equipment Options'!N:N,'MeasureTotals Lookups'!$B153,'Equipment Options'!S:S) -> 0 | N153: 18275 | O153: =SUMIF('Equipment Options'!N:N,'MeasureTotals Lookups'!$B153,'Equipment Options'!T:T) -> 0 | P153: =SUMIF('Equipment Options'!N:N,'MeasureTotals Lookups'!$B153,'Equipment Options'!U:U) -> 0 | Q153: Commercial Heat Pump Water Heater - Tier 4 & up, ducted | R153: 0
B154: CHPWHT1 | C154: =SUMIF('Equipment Options'!N:N,'MeasureTotals Lookups'!$B154,'Equipment Options'!O:O) -> 0 | E154: =SUMIF('Equipment Options'!N:N,'MeasureTotals Lookups'!$B154,'Equipment Options'!V:V) -> 0 | F154: =SUMIF('Equipment Options'!N:N,'MeasureTotals Lookups'!$B154,'Equipment Options'!R:R) -> 0 | G154: =SUMIF('Equipment Options'!N:N,'MeasureTotals Lookups'!$B154,'Equipment Options'!S:S) -> 0 | N154: 18364 | O154: =SUMIF('Equipment Options'!N:N,'MeasureTotals Lookups'!$B154,'Equipment Options'!T:T) -> 0 | P154: =SUMIF('Equipment Options'!N:N,'MeasureTotals Lookups'!$B154,'Equipment Options'!U:U) -> 0 | Q154: Commercial Heat Pump Water Heater - Tier 1 | R154: 0
B155: HPREPHZ23 | C155: =SUMIF('Equipment Options'!N:N,'MeasureTotals Lookups'!$B155,'Equipment Options'!O:O) -> 0 | E155: =SUMIF('Equipment Options'!N:N,'MeasureTotals Lookups'!$B155,'Equipment Options'!V:V) -> 0 | F155: =SUMIF('Equipment Options'!N:N,'MeasureTotals Lookups'!$B155,'Equipment Options'!R:R) -> 0 | G155: =SUMIF('Equipment Options'!N:N,'MeasureTotals Lookups'!$B155,'Equipment Options'!S:S) -> 0 | N155: 18001 | O155: =SUMIF('Equipment Options'!N:N,'MeasureTotals Lookups'!$B155,'Equipment Options'!T:T) -> 0 | P155: =SUMIF('Equipment Options'!N:N,'MeasureTotals Lookups'!$B155,'Equipment Options'!U:U) -> 0 | Q155: DHP - Replacement or new HZ2 or HZ3 | R155: 0
B156: HPREPHZ1 | C156: =SUMIF('Equipment Options'!N:N,'MeasureTotals Lookups'!$B156,'Equipment Options'!O:O) -> 0 | E156: =SUMIF('Equipment Options'!N:N,'MeasureTotals Lookups'!$B156,'Equipment Options'!V:V) -> 0 | F156: =SUMIF('Equipment Options'!N:N,'MeasureTotals Lookups'!$B156,'Equipment Options'!R:R) -> 0 | G156: =SUMIF('Equipment Options'!N:N,'MeasureTotals Lookups'!$B156,'Equipment Options'!S:S) -> 0 | N156: 18002 | O156: =SUMIF('Equipment Options'!N:N,'MeasureTotals Lookups'!$B156,'Equipment Options'!T:T) -> 0 | P156: =SUMIF('Equipment Options'!N:N,'MeasureTotals Lookups'!$B156,'Equipment Options'!U:U) -> 0 | Q156: DHP - Replacement or new - HZ_all CZs | R156: 0
B157: BFSS5 | C157: =SUMIF('Equipment Options'!N:N,'MeasureTotals Lookups'!$B157,'Equipment Options'!O:O) -> 0 | E157: =SUMIF('Equipment Options'!N:N,'MeasureTotals Lookups'!$B157,'Equipment Options'!V:V) -> 0 | F157: =SUMIF('Equipment Options'!N:N,'MeasureTotals Lookups'!$B157,'Equipment Options'!R:R) -> 0 | G157: =SUMIF('Equipment Options'!N:N,'MeasureTotals Lookups'!$B157,'Equipment Options'!S:S) -> 0 | N157: 13853 | O157: =SUMIF('Equipment Options'!N:N,'MeasureTotals Lookups'!$B157,'Equipment Options'!T:T) -> 0 | P157: =SUMIF('Equipment Options'!N:N,'MeasureTotals Lookups'!$B157,'Equipment Options'!U:U) -> 0 | Q157: Bath Fan - Continuous single speed, <10 cfm/W | R157: 0
B158: BFSS10 | C158: =SUMIF('Equipment Options'!N:N,'MeasureTotals Lookups'!$B158,'Equipment Options'!O:O) -> 0 | E158: =SUMIF('Equipment Options'!N:N,'MeasureTotals Lookups'!$B158,'Equipment Options'!V:V) -> 0 | F158: =SUMIF('Equipment Options'!N:N,'MeasureTotals Lookups'!$B158,'Equipment Options'!R:R) -> 0 | G158: =SUMIF('Equipment Options'!N:N,'MeasureTotals Lookups'!$B158,'Equipment Options'!S:S) -> 0 | N158: 13854 | O158: =SUMIF('Equipment Options'!N:N,'MeasureTotals Lookups'!$B158,'Equipment Options'!T:T) -> 0 | P158: =SUMIF('Equipment Options'!N:N,'MeasureTotals Lookups'!$B158,'Equipment Options'!U:U) -> 0 | Q158: Bath Fan - Continuous single speed, >=10 cfm/W, <15 cfm/W | R158: 0
B159: BFSS15 | C159: =SUMIF('Equipment Options'!N:N,'MeasureTotals Lookups'!$B159,'Equipment Options'!O:O) -> 0 | E159: =SUMIF('Equipment Options'!N:N,'MeasureTotals Lookups'!$B159,'Equipment Options'!V:V) -> 0 | F159: =SUMIF('Equipment Options'!N:N,'MeasureTotals Lookups'!$B159,'Equipment Options'!R:R) -> 0 | G159: =SUMIF('Equipment Options'!N:N,'MeasureTotals Lookups'!$B159,'Equipment Options'!S:S) -> 0 | N159: 13855 | O159: =SUMIF('Equipment Options'!N:N,'MeasureTotals Lookups'!$B159,'Equipment Options'!T:T) -> 0 | P159: =SUMIF('Equipment Options'!N:N,'MeasureTotals Lookups'!$B159,'Equipment Options'!U:U) -> 0 | Q159: Bath Fan - Continuous single speed, >=15 cfm/W | R159: 0
B160: BFTSSM5 | C160: =SUMIF('Equipment Options'!N:N,'MeasureTotals Lookups'!$B160,'Equipment Options'!O:O) -> 0 | E160: =SUMIF('Equipment Options'!N:N,'MeasureTotals Lookups'!$B160,'Equipment Options'!V:V) -> 0 | F160: =SUMIF('Equipment Options'!N:N,'MeasureTotals Lookups'!$B160,'Equipment Options'!R:R) -> 0 | G160: =SUMIF('Equipment Options'!N:N,'MeasureTotals Lookups'!$B160,'Equipment Options'!S:S) -> 0 | N160: 13856 | O160: =SUMIF('Equipment Options'!N:N,'MeasureTotals Lookups'!$B160,'Equipment Options'!T:T) -> 0 | P160: =SUMIF('Equipment Options'!N:N,'MeasureTotals Lookups'!$B160,'Equipment Options'!U:U) -> 0 | Q160: Bath Fan - Continuous two-speed, <90 cfm, >=5 cfm/W, <10 cfm/W | R160: 0
B161: BFTSSM10 | C161: =SUMIF('Equipment Options'!N:N,'MeasureTotals Lookups'!$B161,'Equipment Options'!O:O) -> 0 | E161: =SUMIF('Equipment Options'!N:N,'MeasureTotals Lookups'!$B161,'Equipment Options'!V:V) -> 0 | F161: =SUMIF('Equipment Options'!N:N,'MeasureTotals Lookups'!$B161,'Equipment Options'!R:R) -> 0 | G161: =SUMIF('Equipment Options'!N:N,'MeasureTotals Lookups'!$B161,'Equipment Options'!S:S) -> 0 | N161: 13857 | O161: =SUMIF('Equipment Options'!N:N,'MeasureTotals Lookups'!$B161,'Equipment Options'!T:T) -> 0 | P161: =SUMIF('Equipment Options'!N:N,'MeasureTotals Lookups'!$B161,'Equipment Options'!U:U) -> 0 | Q161: Bath Fan - Continuous two-speed, <90 cfm, >=10 cfm/W, <15 cfm/W | R161: 0
B162: BFTSSM15 | C162: =SUMIF('Equipment Options'!N:N,'MeasureTotals Lookups'!$B162,'Equipment Options'!O:O) -> 0 | E162: =SUMIF('Equipment Options'!N:N,'MeasureTotals Lookups'!$B162,'Equipment Options'!V:V) -> 0 | F162: =SUMIF('Equipment Options'!N:N,'MeasureTotals Lookups'!$B162,'Equipment Options'!R:R) -> 0 | G162: =SUMIF('Equipment Options'!N:N,'MeasureTotals Lookups'!$B162,'Equipment Options'!S:S) -> 0 | N162: 13858 | O162: =SUMIF('Equipment Options'!N:N,'MeasureTotals Lookups'!$B162,'Equipment Options'!T:T) -> 0 | P162: =SUMIF('Equipment Options'!N:N,'MeasureTotals Lookups'!$B162,'Equipment Options'!U:U) -> 0 | Q162: Bath Fan - Continuous two-speed, <90 cfm, >=15 cfm/W | R162: 0
B163: BFTSLG5 | C163: =SUMIF('Equipment Options'!N:N,'MeasureTotals Lookups'!$B163,'Equipment Options'!O:O) -> 0 | E163: =SUMIF('Equipment Options'!N:N,'MeasureTotals Lookups'!$B163,'Equipment Options'!V:V) -> 0 | F163: =SUMIF('Equipment Options'!N:N,'MeasureTotals Lookups'!$B163,'Equipment Options'!R:R) -> 0 | G163: =SUMIF('Equipment Options'!N:N,'MeasureTotals Lookups'!$B163,'Equipment Options'!S:S) -> 0 | N163: 13859 | O163: =SUMIF('Equipment Options'!N:N,'MeasureTotals Lookups'!$B163,'Equipment Options'!T:T) -> 0 | P163: =SUMIF('Equipment Options'!N:N,'MeasureTotals Lookups'!$B163,'Equipment Options'!U:U) -> 0 | Q163: Bath Fan - two-speed, >90 cfm, >=5 cfm/W, <10 cfm/W | R163: 0
B164: BFTSLG10 | C164: =SUMIF('Equipment Options'!N:N,'MeasureTotals Lookups'!$B164,'Equipment Options'!O:O) -> 0 | E164: =SUMIF('Equipment Options'!N:N,'MeasureTotals Lookups'!$B164,'Equipment Options'!V:V) -> 0 | F164: =SUMIF('Equipment Options'!N:N,'MeasureTotals Lookups'!$B164,'Equipment Options'!R:R) -> 0 | G164: =SUMIF('Equipment Options'!N:N,'MeasureTotals Lookups'!$B164,'Equipment Options'!S:S) -> 0 | N164: =_xlfn.XLOOKUP($B164,ProductCode,ProductVersionId,"",0) -> 13860 | O164: =SUMIF('Equipment Options'!N:N,'MeasureTotals Lookups'!$B164,'Equipment Options'!T:T) -> 0 | P164: =SUMIF('Equipment Options'!N:N,'MeasureTotals Lookups'!$B164,'Equipment Options'!U:U) -> 0 | Q164: =_xlfn.XLOOKUP($B164,ProductCode,ProductDescription,"",0) -> Bath Fan - two-speed, >90 cfm, >=5 cfm/W, >=10 cfm/W, <15 cfm/W | R164: 0
B165: BFTSLG15 | C165: =SUMIF('Equipment Options'!N:N,'MeasureTotals Lookups'!$B165,'Equipment Options'!O:O) -> 0 | E165: =SUMIF('Equipment Options'!N:N,'MeasureTotals Lookups'!$B165,'Equipment Options'!V:V) -> 0 | F165: =SUMIF('Equipment Options'!N:N,'MeasureTotals Lookups'!$B165,'Equipment Options'!R:R) -> 0 | G165: =SUMIF('Equipment Options'!N:N,'MeasureTotals Lookups'!$B165,'Equipment Options'!S:S) -> 0 | N165: 13861 | O165: =SUMIF('Equipment Options'!N:N,'MeasureTotals Lookups'!$B165,'Equipment Options'!T:T) -> 0 | P165: =SUMIF('Equipment Options'!N:N,'MeasureTotals Lookups'!$B165,'Equipment Options'!U:U) -> 0 | Q165: Bath Fan - two-speed, >90 cfm, >=5 cfm/W, >=15 cfm/W | R165: 0
B166: GASFURNCONNGO | C166: =SUMIF('Equipment Options'!N:N,'MeasureTotals Lookups'!$B166,'Equipment Options'!O:O) -> 0 | E166: =SUMIF('Equipment Options'!N:N,'MeasureTotals Lookups'!$B166,'Equipment Options'!V:V) -> 0 | F166: =SUMIF('Equipment Options'!N:N,'MeasureTotals Lookups'!$B166,'Equipment Options'!R:R) -> 0 | G166: =SUMIF('Equipment Options'!N:N,'MeasureTotals Lookups'!$B166,'Equipment Options'!S:S) -> 0 | N166: 17835 | O166: =SUMIF('Equipment Options'!N:N,'MeasureTotals Lookups'!$B166,'Equipment Options'!T:T) -> 0 | P166: =SUMIF('Equipment Options'!N:N,'MeasureTotals Lookups'!$B166,'Equipment Options'!U:U) -> 0 | Q166: Commercial Condensing Gas Furnace 95%+ New Site Gas Only | R166: 0
B167: GASFURNCONN | C167: =SUMIF('Equipment Options'!N:N,'MeasureTotals Lookups'!$B167,'Equipment Options'!O:O) -> 0 | E167: =SUMIF('Equipment Options'!N:N,'MeasureTotals Lookups'!$B167,'Equipment Options'!V:V) -> 0 | F167: =SUMIF('Equipment Options'!N:N,'MeasureTotals Lookups'!$B167,'Equipment Options'!R:R) -> 0 | G167: =SUMIF('Equipment Options'!N:N,'MeasureTotals Lookups'!$B167,'Equipment Options'!S:S) -> 0 | N167: 17849 | O167: =SUMIF('Equipment Options'!N:N,'MeasureTotals Lookups'!$B167,'Equipment Options'!T:T) -> 0 | P167: =SUMIF('Equipment Options'!N:N,'MeasureTotals Lookups'!$B167,'Equipment Options'!U:U) -> 0 | Q167: Commercial Condensing Gas Furnace 95%+ New Site | R167: 0
B168: VFDGARMFSM2019 | C168: =SUMIF('Equipment Options'!N:N,'MeasureTotals Lookups'!$B168,'Equipment Options'!O:O) -> 0 | E168: =SUMIF('Equipment Options'!N:N,'MeasureTotals Lookups'!$B168,'Equipment Options'!V:V) -> 0 | F168: =SUMIF('Equipment Options'!N:N,'MeasureTotals Lookups'!$B168,'Equipment Options'!R:R) -> 0 | G168: =SUMIF('Equipment Options'!N:N,'MeasureTotals Lookups'!$B168,'Equipment Options'!S:S) -> 0 | N168: 13445 | O168: =SUMIF('Equipment Options'!N:N,'MeasureTotals Lookups'!$B168,'Equipment Options'!T:T) -> 0 | P168: =SUMIF('Equipment Options'!N:N,'MeasureTotals Lookups'!$B168,'Equipment Options'!U:U) -> 0 | Q168: VFD - Parking Garage MF <8,000 CFM | R168: 0
B169: VFDGARMFLG2019 | C169: =SUMIF('Equipment Options'!N:N,'MeasureTotals Lookups'!$B169,'Equipment Options'!O:O) -> 0 | E169: =SUMIF('Equipment Options'!N:N,'MeasureTotals Lookups'!$B169,'Equipment Options'!V:V) -> 0 | F169: =SUMIF('Equipment Options'!N:N,'MeasureTotals Lookups'!$B169,'Equipment Options'!R:R) -> 0 | G169: =SUMIF('Equipment Options'!N:N,'MeasureTotals Lookups'!$B169,'Equipment Options'!S:S) -> 0 | N169: 13446 | O169: =SUMIF('Equipment Options'!N:N,'MeasureTotals Lookups'!$B169,'Equipment Options'!T:T) -> 0 | P169: =SUMIF('Equipment Options'!N:N,'MeasureTotals Lookups'!$B169,'Equipment Options'!U:U) -> 0 | Q169: VFD - Parking Garage MF >=8,000 CFM | R169: 0
B170: VFDGARMFSM | C170: =SUMIF('Equipment Options'!N:N,'MeasureTotals Lookups'!$B170,'Equipment Options'!O:O) -> 0 | E170: =SUMIF('Equipment Options'!N:N,'MeasureTotals Lookups'!$B170,'Equipment Options'!V:V) -> 0 | F170: =SUMIF('Equipment Options'!N:N,'MeasureTotals Lookups'!$B170,'Equipment Options'!R:R) -> 0 | G170: =SUMIF('Equipment Options'!N:N,'MeasureTotals Lookups'!$B170,'Equipment Options'!S:S) -> 0 | N170: 13447 | O170: =SUMIF('Equipment Options'!N:N,'MeasureTotals Lookups'!$B170,'Equipment Options'!T:T) -> 0 | P170: =SUMIF('Equipment Options'!N:N,'MeasureTotals Lookups'!$B170,'Equipment Options'!U:U) -> 0 | Q170: VFD - Parking Garage MF < 30,000 sq ft | R170: 0
B171: VFDGARMFLG | C171: =SUMIF('Equipment Options'!N:N,'MeasureTotals Lookups'!$B171,'Equipment Options'!O:O) -> 0 | E171: =SUMIF('Equipment Options'!N:N,'MeasureTotals Lookups'!$B171,'Equipment Options'!V:V) -> 0 | F171: =SUMIF('Equipment Options'!N:N,'MeasureTotals Lookups'!$B171,'Equipment Options'!R:R) -> 0 | G171: =SUMIF('Equipment Options'!N:N,'MeasureTotals Lookups'!$B171,'Equipment Options'!S:S) -> 0 | N171: 13448 | O171: =SUMIF('Equipment Options'!N:N,'MeasureTotals Lookups'!$B171,'Equipment Options'!T:T) -> 0 | P171: =SUMIF('Equipment Options'!N:N,'MeasureTotals Lookups'!$B171,'Equipment Options'!U:U) -> 0 | Q171: VFD - Parking Garage MF >= 30,000 sq ft | R171: 0
B172: VFDGARNMFSM | C172: =SUMIF('Equipment Options'!N:N,'MeasureTotals Lookups'!$B172,'Equipment Options'!O:O) -> 0 | E172: =SUMIF('Equipment Options'!N:N,'MeasureTotals Lookups'!$B172,'Equipment Options'!V:V) -> 0 | F172: =SUMIF('Equipment Options'!N:N,'MeasureTotals Lookups'!$B172,'Equipment Options'!R:R) -> 0 | G172: =SUMIF('Equipment Options'!N:N,'MeasureTotals Lookups'!$B172,'Equipment Options'!S:S) -> 0 | N172: 13449 | O172: =SUMIF('Equipment Options'!N:N,'MeasureTotals Lookups'!$B172,'Equipment Options'!T:T) -> 0 | P172: =SUMIF('Equipment Options'!N:N,'MeasureTotals Lookups'!$B172,'Equipment Options'!U:U) -> 0 | Q172: VFD - Parking Garage < 30,000 sq ft | R172: 0
B173: VFDGARNMFLG | C173: =SUMIF('Equipment Options'!N:N,'MeasureTotals Lookups'!$B173,'Equipment Options'!O:O) -> 0 | E173: =SUMIF('Equipment Options'!N:N,'MeasureTotals Lookups'!$B173,'Equipment Options'!V:V) -> 0 | F173: =SUMIF('Equipment Options'!N:N,'MeasureTotals Lookups'!$B173,'Equipment Options'!R:R) -> 0 | G173: =SUMIF('Equipment Options'!N:N,'MeasureTotals Lookups'!$B173,'Equipment Options'!S:S) -> 0 | N173: 13450 | O173: =SUMIF('Equipment Options'!N:N,'MeasureTotals Lookups'!$B173,'Equipment Options'!T:T) -> 0 | P173: =SUMIF('Equipment Options'!N:N,'MeasureTotals Lookups'!$B173,'Equipment Options'!U:U) -> 0 | Q173: VFD - Parking Garage >= 30,000 sq ft | R173: 0
B174: CPUMPVSDHEAT5HP | C174: =SUMIF('Equipment Options'!N:N,'MeasureTotals Lookups'!$B174,'Equipment Options'!O:O) -> 0 | E174: =SUMIF('Equipment Options'!N:N,'MeasureTotals Lookups'!$B174,'Equipment Options'!V:V) -> 0 | F174: =SUMIF('Equipment Options'!N:N,'MeasureTotals Lookups'!$B174,'Equipment Options'!R:R) -> 0 | G174: =SUMIF('Equipment Options'!N:N,'MeasureTotals Lookups'!$B174,'Equipment Options'!S:S) -> 0 | N174: =_xlfn.XLOOKUP($B174,ProductCode,ProductVersionId,"",0) -> 15287 | O174: =SUMIF('Equipment Options'!N:N,'MeasureTotals Lookups'!$B174,'Equipment Options'!T:T) -> 0 | P174: =SUMIF('Equipment Options'!N:N,'MeasureTotals Lookups'!$B174,'Equipment Options'!U:U) -> 0 | Q174: =_xlfn.XLOOKUP($B174,ProductCode,ProductDescription,"",0) -> Commercial Pump VSD_Heating_New Pump_5 HP (4.51 to 6.00 HP) | R174: 0
B175: CPUMPVSDCOOL4HP | C175: =SUMIF('Equipment Options'!N:N,'MeasureTotals Lookups'!$B175,'Equipment Options'!O:O) -> 0 | E175: =SUMIF('Equipment Options'!N:N,'MeasureTotals Lookups'!$B175,'Equipment Options'!V:V) -> 0 | F175: =SUMIF('Equipment Options'!N:N,'MeasureTotals Lookups'!$B175,'Equipment Options'!R:R) -> 0 | G175: =SUMIF('Equipment Options'!N:N,'MeasureTotals Lookups'!$B175,'Equipment Options'!S:S) -> 0 | N175: 15288 | O175: =SUMIF('Equipment Options'!N:N,'MeasureTotals Lookups'!$B175,'Equipment Options'!T:T) -> 0 | P175: =SUMIF('Equipment Options'!N:N,'MeasureTotals Lookups'!$B175,'Equipment Options'!U:U) -> 0 | Q175: Comm Pump VSD_Cooling_New Pump_4 HP (3.51 to 4.50 HP) | R175: 0
B176: CPUMPVSDCOOL3HP | C176: =SUMIF('Equipment Options'!N:N,'MeasureTotals Lookups'!$B176,'Equipment Options'!O:O) -> 0 | E176: =SUMIF('Equipment Options'!N:N,'MeasureTotals Lookups'!$B176,'Equipment Options'!V:V) -> 0 | F176: =SUMIF('Equipment Options'!N:N,'MeasureTotals Lookups'!$B176,'Equipment Options'!R:R) -> 0 | G176: =SUMIF('Equipment Options'!N:N,'MeasureTotals Lookups'!$B176,'Equipment Options'!S:S) -> 0 | N176: 15289 | O176: =SUMIF('Equipment Options'!N:N,'MeasureTotals Lookups'!$B176,'Equipment Options'!T:T) -> 0 | P176: =SUMIF('Equipment Options'!N:N,'MeasureTotals Lookups'!$B176,'Equipment Options'!U:U) -> 0 | Q176: Comm Pump VSD_Cooling_New Pump_3 HP (2.51 to 3.50 HP) | R176: 0
B177: CPUMPVSDPB7P5HP | C177: =SUMIF('Equipment Options'!N:N,'MeasureTotals Lookups'!$B177,'Equipment Options'!O:O) -> 0 | E177: =SUMIF('Equipment Options'!N:N,'MeasureTotals Lookups'!$B177,'Equipment Options'!V:V) -> 0 | F177: =SUMIF('Equipment Options'!N:N,'MeasureTotals Lookups'!$B177,'Equipment Options'!R:R) -> 0 | G177: =SUMIF('Equipment Options'!N:N,'MeasureTotals Lookups'!$B177,'Equipment Options'!S:S) -> 0 | N177: 15290 | O177: =SUMIF('Equipment Options'!N:N,'MeasureTotals Lookups'!$B177,'Equipment Options'!T:T) -> 0 | P177: =SUMIF('Equipment Options'!N:N,'MeasureTotals Lookups'!$B177,'Equipment Options'!U:U) -> 0 | Q177: Comm Pump VSD_Pressure Boost_New Pump_7.5 HP (6.01 to 8.00 HP) | R177: 0
B178: CPUMPVSDPB4HP | C178: =SUMIF('Equipment Options'!N:N,'MeasureTotals Lookups'!$B178,'Equipment Options'!O:O) -> 0 | E178: =SUMIF('Equipment Options'!N:N,'MeasureTotals Lookups'!$B178,'Equipment Options'!V:V) -> 0 | F178: =SUMIF('Equipment Options'!N:N,'MeasureTotals Lookups'!$B178,'Equipment Options'!R:R) -> 0 | G178: =SUMIF('Equipment Options'!N:N,'MeasureTotals Lookups'!$B178,'Equipment Options'!S:S) -> 0 | N178: 15291 | O178: =SUMIF('Equipment Options'!N:N,'MeasureTotals Lookups'!$B178,'Equipment Options'!T:T) -> 0 | P178: =SUMIF('Equipment Options'!N:N,'MeasureTotals Lookups'!$B178,'Equipment Options'!U:U) -> 0 | Q178: Comm Pump VSD_Pressure Boost_New Pump_4 HP (3.51 to 4.50 HP) | R178: 0
B179: CPUMPVSDHEAT0P75 | C179: =SUMIF('Equipment Options'!N:N,'MeasureTotals Lookups'!$B179,'Equipment Options'!O:O) -> 0 | E179: =SUMIF('Equipment Options'!N:N,'MeasureTotals Lookups'!$B179,'Equipment Options'!V:V) -> 0 | F179: =SUMIF('Equipment Options'!N:N,'MeasureTotals Lookups'!$B179,'Equipment Options'!R:R) -> 0 | G179: =SUMIF('Equipment Options'!N:N,'MeasureTotals Lookups'!$B179,'Equipment Options'!S:S) -> 0 | N179: 15292 | O179: =SUMIF('Equipment Options'!N:N,'MeasureTotals Lookups'!$B179,'Equipment Options'!T:T) -> 0 | P179: =SUMIF('Equipment Options'!N:N,'MeasureTotals Lookups'!$B179,'Equipment Options'!U:U) -> 0 | Q179: Commercial Pump VSD_Heating_New Pump_0.75 HP (0.50 to 0.75 HP) | R179: 0
B180: CPUMPVSDHEAT4HP | C180: =SUMIF('Equipment Options'!N:N,'MeasureTotals Lookups'!$B180,'Equipment Options'!O:O) -> 0 | E180: =SUMIF('Equipment Options'!N:N,'MeasureTotals Lookups'!$B180,'Equipment Options'!V:V) -> 0 | F180: =SUMIF('Equipment Options'!N:N,'MeasureTotals Lookups'!$B180,'Equipment Options'!R:R) -> 0 | G180: =SUMIF('Equipment Options'!N:N,'MeasureTotals Lookups'!$B180,'Equipment Options'!S:S) -> 0 | N180: 15293 | O180: =SUMIF('Equipment Options'!N:N,'MeasureTotals Lookups'!$B180,'Equipment Options'!T:T) -> 0 | P180: =SUMIF('Equipment Options'!N:N,'MeasureTotals Lookups'!$B180,'Equipment Options'!U:U) -> 0 | Q180: Commercial Pump VSD_Heating_New Pump_4 HP (3.51 to 4.50 HP) | R180: 0
B181: CPUMPVSDCOOLT5HP | C181: =SUMIF('Equipment Options'!N:N,'MeasureTotals Lookups'!$B181,'Equipment Options'!O:O) -> 0 | E181: =SUMIF('Equipment Options'!N:N,'MeasureTotals Lookups'!$B181,'Equipment Options'!V:V) -> 0 | F181: =SUMIF('Equipment Options'!N:N,'MeasureTotals Lookups'!$B181,'Equipment Options'!R:R) -> 0 | G181: =SUMIF('Equipment Options'!N:N,'MeasureTotals Lookups'!$B181,'Equipment Options'!S:S) -> 0 | N181: 15294 | O181: =SUMIF('Equipment Options'!N:N,'MeasureTotals Lookups'!$B181,'Equipment Options'!T:T) -> 0 | P181: =SUMIF('Equipment Options'!N:N,'MeasureTotals Lookups'!$B181,'Equipment Options'!U:U) -> 0 | Q181: Comm Pump VSD_Cooling Tower_New Pump_5 HP (4.51 to 6.00 HP) | R181: 0
B182: CPUMPVSDPB15HP | C182: =SUMIF('Equipment Options'!N:N,'MeasureTotals Lookups'!$B182,'Equipment Options'!O:O) -> 0 | E182: =SUMIF('Equipment Options'!N:N,'MeasureTotals Lookups'!$B182,'Equipment Options'!V:V) -> 0 | F182: =SUMIF('Equipment Options'!N:N,'MeasureTotals Lookups'!$B182,'Equipment Options'!R:R) -> 0 | G182: =SUMIF('Equipment Options'!N:N,'MeasureTotals Lookups'!$B182,'Equipment Options'!S:S) -> 0 | N182: 15295 | O182: =SUMIF('Equipment Options'!N:N,'MeasureTotals Lookups'!$B182,'Equipment Options'!T:T) -> 0 | P182: =SUMIF('Equipment Options'!N:N,'MeasureTotals Lookups'!$B182,'Equipment Options'!U:U) -> 0 | Q182: Comm Pump VSD_Pressure Boost_New Pump_15 HP (12.51 to 17.50 HP) | R182: 0
B183: CPUMPVSDPB3HP | C183: =SUMIF('Equipment Options'!N:N,'MeasureTotals Lookups'!$B183,'Equipment Options'!O:O) -> 0 | E183: =SUMIF('Equipment Options'!N:N,'MeasureTotals Lookups'!$B183,'Equipment Options'!V:V) -> 0 | F183: =SUMIF('Equipment Options'!N:N,'MeasureTotals Lookups'!$B183,'Equipment Options'!R:R) -> 0 | G183: =SUMIF('Equipment Options'!N:N,'MeasureTotals Lookups'!$B183,'Equipment Options'!S:S) -> 0 | N183: 15296 | O183: =SUMIF('Equipment Options'!N:N,'MeasureTotals Lookups'!$B183,'Equipment Options'!T:T) -> 0 | P183: =SUMIF('Equipment Options'!N:N,'MeasureTotals Lookups'!$B183,'Equipment Options'!U:U) -> 0 | Q183: Comm Pump VSD_Pressure Boost_New Pump_3 HP (2.51 to 3.50 HP) | R183: 0
B184: CPUMPVSDPB10HP | C184: =SUMIF('Equipment Options'!N:N,'MeasureTotals Lookups'!$B184,'Equipment Options'!O:O) -> 0 | E184: =SUMIF('Equipment Options'!N:N,'MeasureTotals Lookups'!$B184,'Equipment Options'!V:V) -> 0 | F184: =SUMIF('Equipment Options'!N:N,'MeasureTotals Lookups'!$B184,'Equipment Options'!R:R) -> 0 | G184: =SUMIF('Equipment Options'!N:N,'MeasureTotals Lookups'!$B184,'Equipment Options'!S:S) -> 0 | N184: 15297 | O184: =SUMIF('Equipment Options'!N:N,'MeasureTotals Lookups'!$B184,'Equipment Options'!T:T) -> 0 | P184: =SUMIF('Equipment Options'!N:N,'MeasureTotals Lookups'!$B184,'Equipment Options'!U:U) -> 0 | Q184: Comm Pump VSD_Pressure Boost_New Pump_10 HP (8.01 to 12.50 HP) | R184: 0
B185: CPUMPVSDCOOLT7P5HP | C185: =SUMIF('Equipment Options'!N:N,'MeasureTotals Lookups'!$B185,'Equipment Options'!O:O) -> 0 | E185: =SUMIF('Equipment Options'!N:N,'MeasureTotals Lookups'!$B185,'Equipment Options'!V:V) -> 0 | F185: =SUMIF('Equipment Options'!N:N,'MeasureTotals Lookups'!$B185,'Equipment Options'!R:R) -> 0 | G185: =SUMIF('Equipment Options'!N:N,'MeasureTotals Lookups'!$B185,'Equipment Options'!S:S) -> 0 | N185: 15298 | O185: =SUMIF('Equipment Options'!N:N,'MeasureTotals Lookups'!$B185,'Equipment Options'!T:T) -> 0 | P185: =SUMIF('Equipment Options'!N:N,'MeasureTotals Lookups'!$B185,'Equipment Options'!U:U) -> 0 | Q185: Comm Pump VSD_Cooling Tower_New Pump_7.5 HP (6.01 to 8.00 HP) | R185: 0
B186: CPUMPVSDHEAT2HP | C186: =SUMIF('Equipment Options'!N:N,'MeasureTotals Lookups'!$B186,'Equipment Options'!O:O) -> 0 | E186: =SUMIF('Equipment Options'!N:N,'MeasureTotals Lookups'!$B186,'Equipment Options'!V:V) -> 0 | F186: =SUMIF('Equipment Options'!N:N,'MeasureTotals Lookups'!$B186,'Equipment Options'!R:R) -> 0 | G186: =SUMIF('Equipment Options'!N:N,'MeasureTotals Lookups'!$B186,'Equipment Options'!S:S) -> 0 | N186: 15299 | O186: =SUMIF('Equipment Options'!N:N,'MeasureTotals Lookups'!$B186,'Equipment Options'!T:T) -> 0 | P186: =SUMIF('Equipment Options'!N:N,'MeasureTotals Lookups'!$B186,'Equipment Options'!U:U) -> 0 | Q186: Commercial Pump VSD_Heating_New Pump_2 HP (1.76 to 2.50 HP) | R186: 0
B187: CPUMPVSDCOOL1HP | C187: =SUMIF('Equipment Options'!N:N,'MeasureTotals Lookups'!$B187,'Equipment Options'!O:O) -> 0 | E187: =SUMIF('Equipment Options'!N:N,'MeasureTotals Lookups'!$B187,'Equipment Options'!V:V) -> 0 | F187: =SUMIF('Equipment Options'!N:N,'MeasureTotals Lookups'!$B187,'Equipment Options'!R:R) -> 0 | G187: =SUMIF('Equipment Options'!N:N,'MeasureTotals Lookups'!$B187,'Equipment Options'!S:S) -> 0 | N187: 15300 | O187: =SUMIF('Equipment Options'!N:N,'MeasureTotals Lookups'!$B187,'Equipment Options'!T:T) -> 0 | P187: =SUMIF('Equipment Options'!N:N,'MeasureTotals Lookups'!$B187,'Equipment Options'!U:U) -> 0 | Q187: Comm Pump VSD_Cooling_New Pump_1 HP (0.76 to 1.25 HP) | R187: 0
B188: CPUMPVSDCOOL2HP | C188: =SUMIF('Equipment Options'!N:N,'MeasureTotals Lookups'!$B188,'Equipment Options'!O:O) -> 0 | E188: =SUMIF('Equipment Options'!N:N,'MeasureTotals Lookups'!$B188,'Equipment Options'!V:V) -> 0 | F188: =SUMIF('Equipment Options'!N:N,'MeasureTotals Lookups'!$B188,'Equipment Options'!R:R) -> 0 | G188: =SUMIF('Equipment Options'!N:N,'MeasureTotals Lookups'!$B188,'Equipment Options'!S:S) -> 0 | N188: 15301 | O188: =SUMIF('Equipment Options'!N:N,'MeasureTotals Lookups'!$B188,'Equipment Options'!T:T) -> 0 | P188: =SUMIF('Equipment Options'!N:N,'MeasureTotals Lookups'!$B188,'Equipment Options'!U:U) -> 0 | Q188: Comm Pump VSD_Cooling_New Pump_2 HP (1.76 to 2.50 HP) | R188: 0
B189: CPUMPVSDPB2HP | C189: =SUMIF('Equipment Options'!N:N,'MeasureTotals Lookups'!$B189,'Equipment Options'!O:O) -> 0 | E189: =SUMIF('Equipment Options'!N:N,'MeasureTotals Lookups'!$B189,'Equipment Options'!V:V) -> 0 | F189: =SUMIF('Equipment Options'!N:N,'MeasureTotals Lookups'!$B189,'Equipment Options'!R:R) -> 0 | G189: =SUMIF('Equipment Options'!N:N,'MeasureTotals Lookups'!$B189,'Equipment Options'!S:S) -> 0 | N189: 15303 | O189: =SUMIF('Equipment Options'!N:N,'MeasureTotals Lookups'!$B189,'Equipment Options'!T:T) -> 0 | P189: =SUMIF('Equipment Options'!N:N,'MeasureTotals Lookups'!$B189,'Equipment Options'!U:U) -> 0 | Q189: Comm Pump VSD_Pressure Boost_New Pump_2 HP (1.76 to 2.50 HP) | R189: 0
B190: CPUMPVSDCOOLT15HP | C190: =SUMIF('Equipment Options'!N:N,'MeasureTotals Lookups'!$B190,'Equipment Options'!O:O) -> 0 | E190: =SUMIF('Equipment Options'!N:N,'MeasureTotals Lookups'!$B190,'Equipment Options'!V:V) -> 0 | F190: =SUMIF('Equipment Options'!N:N,'MeasureTotals Lookups'!$B190,'Equipment Options'!R:R) -> 0 | G190: =SUMIF('Equipment Options'!N:N,'MeasureTotals Lookups'!$B190,'Equipment Options'!S:S) -> 0 | N190: 15304 | O190: =SUMIF('Equipment Options'!N:N,'MeasureTotals Lookups'!$B190,'Equipment Options'!T:T) -> 0 | P190: =SUMIF('Equipment Options'!N:N,'MeasureTotals Lookups'!$B190,'Equipment Options'!U:U) -> 0 | Q190: Comm Pump VSD_Cooling Tower_New Pump_15 HP (12.51 to 17.50 HP) | R190: 0
B191: CPUMPVSDPB20HP | C191: =SUMIF('Equipment Options'!N:N,'MeasureTotals Lookups'!$B191,'Equipment Options'!O:O) -> 0 | E191: =SUMIF('Equipment Options'!N:N,'MeasureTotals Lookups'!$B191,'Equipment Options'!V:V) -> 0 | F191: =SUMIF('Equipment Options'!N:N,'MeasureTotals Lookups'!$B191,'Equipment Options'!R:R) -> 0 | G191: =SUMIF('Equipment Options'!N:N,'MeasureTotals Lookups'!$B191,'Equipment Options'!S:S) -> 0 | N191: 15305 | O191: =SUMIF('Equipment Options'!N:N,'MeasureTotals Lookups'!$B191,'Equipment Options'!T:T) -> 0 | P191: =SUMIF('Equipment Options'!N:N,'MeasureTotals Lookups'!$B191,'Equipment Options'!U:U) -> 0 | Q191: Comm Pump VSD_Pressure Boost_New Pump_20 HP (17.51 to 22.50 HP) | R191: 0
B192: CPUMPVSDPB5HP | C192: =SUMIF('Equipment Options'!N:N,'MeasureTotals Lookups'!$B192,'Equipment Options'!O:O) -> 0 | E192: =SUMIF('Equipment Options'!N:N,'MeasureTotals Lookups'!$B192,'Equipment Options'!V:V) -> 0 | F192: =SUMIF('Equipment Options'!N:N,'MeasureTotals Lookups'!$B192,'Equipment Options'!R:R) -> 0 | G192: =SUMIF('Equipment Options'!N:N,'MeasureTotals Lookups'!$B192,'Equipment Options'!S:S) -> 0 | N192: 15306 | O192: =SUMIF('Equipment Options'!N:N,'MeasureTotals Lookups'!$B192,'Equipment Options'!T:T) -> 0 | P192: =SUMIF('Equipment Options'!N:N,'MeasureTotals Lookups'!$B192,'Equipment Options'!U:U) -> 0 | Q192: Comm Pump VSD_Pressure Boost_New Pump_5 HP (4.51 to 6.00 HP) | R192: 0
B193: CPUMPVSDCOOL0P75HP | C193: =SUMIF('Equipment Options'!N:N,'MeasureTotals Lookups'!$B193,'Equipment Options'!O:O) -> 0 | E193: =SUMIF('Equipment Options'!N:N,'MeasureTotals Lookups'!$B193,'Equipment Options'!V:V) -> 0 | F193: =SUMIF('Equipment Options'!N:N,'MeasureTotals Lookups'!$B193,'Equipment Options'!R:R) -> 0 | G193: =SUMIF('Equipment Options'!N:N,'MeasureTotals Lookups'!$B193,'Equipment Options'!S:S) -> 0 | N193: 15307 | O193: =SUMIF('Equipment Options'!N:N,'MeasureTotals Lookups'!$B193,'Equipment Options'!T:T) -> 0 | P193: =SUMIF('Equipment Options'!N:N,'MeasureTotals Lookups'!$B193,'Equipment Options'!U:U) -> 0 | Q193: Comm Pump VSD_Cooling_New Pump_0.75 HP (0.50 to 0.75 HP) | R193: 0
B194: CPUMPVSDCOOL1P5HP | C194: =SUMIF('Equipment Options'!N:N,'MeasureTotals Lookups'!$B194,'Equipment Options'!O:O) -> 0 | E194: =SUMIF('Equipment Options'!N:N,'MeasureTotals Lookups'!$B194,'Equipment Options'!V:V) -> 0 | F194: =SUMIF('Equipment Options'!N:N,'MeasureTotals Lookups'!$B194,'Equipment Options'!R:R) -> 0 | G194: =SUMIF('Equipment Options'!N:N,'MeasureTotals Lookups'!$B194,'Equipment Options'!S:S) -> 0 | N194: 15308 | O194: =SUMIF('Equipment Options'!N:N,'MeasureTotals Lookups'!$B194,'Equipment Options'!T:T) -> 0 | P194: =SUMIF('Equipment Options'!N:N,'MeasureTotals Lookups'!$B194,'Equipment Options'!U:U) -> 0 | Q194: Comm Pump VSD_Cooling_New Pump_1.5 HP (1.26 to 1.75 HP) | R194: 0
B195: CPUMPVSDHEAT7P5HP | C195: =SUMIF('Equipment Options'!N:N,'MeasureTotals Lookups'!$B195,'Equipment Options'!O:O) -> 0 | E195: =SUMIF('Equipment Options'!N:N,'MeasureTotals Lookups'!$B195,'Equipment Options'!V:V) -> 0 | F195: =SUMIF('Equipment Options'!N:N,'MeasureTotals Lookups'!$B195,'Equipment Options'!R:R) -> 0 | G195: =SUMIF('Equipment Options'!N:N,'MeasureTotals Lookups'!$B195,'Equipment Options'!S:S) -> 0 | N195: 15309 | O195: =SUMIF('Equipment Options'!N:N,'MeasureTotals Lookups'!$B195,'Equipment Options'!T:T) -> 0 | P195: =SUMIF('Equipment Options'!N:N,'MeasureTotals Lookups'!$B195,'Equipment Options'!U:U) -> 0 | Q195: Commercial Pump VSD_Heating_New Pump_7.5 HP (6.01 to 8.00 HP) | R195: 0
B196: CPUMPVSDCOOL5HP | C196: =SUMIF('Equipment Options'!N:N,'MeasureTotals Lookups'!$B196,'Equipment Options'!O:O) -> 0 | E196: =SUMIF('Equipment Options'!N:N,'MeasureTotals Lookups'!$B196,'Equipment Options'!V:V) -> 0 | F196: =SUMIF('Equipment Options'!N:N,'MeasureTotals Lookups'!$B196,'Equipment Options'!R:R) -> 0 | G196: =SUMIF('Equipment Options'!N:N,'MeasureTotals Lookups'!$B196,'Equipment Options'!S:S) -> 0 | N196: 15310 | O196: =SUMIF('Equipment Options'!N:N,'MeasureTotals Lookups'!$B196,'Equipment Options'!T:T) -> 0 | P196: =SUMIF('Equipment Options'!N:N,'MeasureTotals Lookups'!$B196,'Equipment Options'!U:U) -> 0 | Q196: Comm Pump VSD_Cooling_New Pump_5 HP (4.51 to 6.00 HP) | R196: =(_xlfn.XLOOKUP($B196,ProductCode,IncrementalCost,"",0))*C196 -> 0
B197: CPUMPVSDHEAT3HP | C197: =SUMIF('Equipment Options'!N:N,'MeasureTotals Lookups'!$B197,'Equipment Options'!O:O) -> 0 | E197: =SUMIF('Equipment Options'!N:N,'MeasureTotals Lookups'!$B197,'Equipment Options'!V:V) -> 0 | F197: =SUMIF('Equipment Options'!N:N,'MeasureTotals Lookups'!$B197,'Equipment Options'!R:R) -> 0 | G197: =SUMIF('Equipment Options'!N:N,'MeasureTotals Lookups'!$B197,'Equipment Options'!S:S) -> 0 | N197: 15311 | O197: =SUMIF('Equipment Options'!N:N,'MeasureTotals Lookups'!$B197,'Equipment Options'!T:T) -> 0 | P197: =SUMIF('Equipment Options'!N:N,'MeasureTotals Lookups'!$B197,'Equipment Options'!U:U) -> 0 | Q197: Commercial Pump VSD_Heating_New Pump_3 HP (2.51 to 3.50 HP) | R197: 0
B198: CPUMPVSDHEAT1P5HP | C198: =SUMIF('Equipment Options'!N:N,'MeasureTotals Lookups'!$B198,'Equipment Options'!O:O) -> 0 | E198: =SUMIF('Equipment Options'!N:N,'MeasureTotals Lookups'!$B198,'Equipment Options'!V:V) -> 0 | F198: =SUMIF('Equipment Options'!N:N,'MeasureTotals Lookups'!$B198,'Equipment Options'!R:R) -> 0 | G198: =SUMIF('Equipment Options'!N:N,'MeasureTotals Lookups'!$B198,'Equipment Options'!S:S) -> 0 | N198: 15312 | O198: =SUMIF('Equipment Options'!N:N,'MeasureTotals Lookups'!$B198,'Equipment Options'!T:T) -> 0 | P198: =SUMIF('Equipment Options'!N:N,'MeasureTotals Lookups'!$B198,'Equipment Options'!U:U) -> 0 | Q198: Commercial Pump VSD_Heating_New Pump_1.5 HP (1.26 to 1.75 HP) | R198: 0
B199: CPUMPVSDHEAT1HP | C199: =SUMIF('Equipment Options'!N:N,'MeasureTotals Lookups'!$B199,'Equipment Options'!O:O) -> 0 | E199: =SUMIF('Equipment Options'!N:N,'MeasureTotals Lookups'!$B199,'Equipment Options'!V:V) -> 0 | F199: =SUMIF('Equipment Options'!N:N,'MeasureTotals Lookups'!$B199,'Equipment Options'!R:R) -> 0 | G199: =SUMIF('Equipment Options'!N:N,'MeasureTotals Lookups'!$B199,'Equipment Options'!S:S) -> 0 | N199: 15313 | O199: =SUMIF('Equipment Options'!N:N,'MeasureTotals Lookups'!$B199,'Equipment Options'!T:T) -> 0 | P199: =SUMIF('Equipment Options'!N:N,'MeasureTotals Lookups'!$B199,'Equipment Options'!U:U) -> 0 | Q199: Commercial Pump VSD_Heating_New Pump_1 HP (0.76 to 1.25 HP) | R199: 0
B200: CPUMPVSDPB1P5HP | C200: =SUMIF('Equipment Options'!N:N,'MeasureTotals Lookups'!$B200,'Equipment Options'!O:O) -> 0 | E200: =SUMIF('Equipment Options'!N:N,'MeasureTotals Lookups'!$B200,'Equipment Options'!V:V) -> 0 | F200: =SUMIF('Equipment Options'!N:N,'MeasureTotals Lookups'!$B200,'Equipment Options'!R:R) -> 0 | G200: =SUMIF('Equipment Options'!N:N,'MeasureTotals Lookups'!$B200,'Equipment Options'!S:S) -> 0 | N200: 15314 | O200: =SUMIF('Equipment Options'!N:N,'MeasureTotals Lookups'!$B200,'Equipment Options'!T:T) -> 0 | P200: =SUMIF('Equipment Options'!N:N,'MeasureTotals Lookups'!$B200,'Equipment Options'!U:U) -> 0 | Q200: Comm Pump VSD_Pressure Boost_New Pump_1.5 HP (1.26 to 1.75 HP) | R200: 0
B201: CPUMPVSDCOOLT20HP | C201: =SUMIF('Equipment Options'!N:N,'MeasureTotals Lookups'!$B201,'Equipment Options'!O:O) -> 0 | E201: =SUMIF('Equipment Options'!N:N,'MeasureTotals Lookups'!$B201,'Equipment Options'!V:V) -> 0 | F201: =SUMIF('Equipment Options'!N:N,'MeasureTotals Lookups'!$B201,'Equipment Options'!R:R) -> 0 | G201: =SUMIF('Equipment Options'!N:N,'MeasureTotals Lookups'!$B201,'Equipment Options'!S:S) -> 0 | N201: 15315 | O201: =SUMIF('Equipment Options'!N:N,'MeasureTotals Lookups'!$B201,'Equipment Options'!T:T) -> 0 | P201: =SUMIF('Equipment Options'!N:N,'MeasureTotals Lookups'!$B201,'Equipment Options'!U:U) -> 0 | Q201: Comm Pump VSD_Cooling Tower_New Pump_20 HP (17.51 to 22.50 HP) | R201: 0
... 6 more rows

Sheet Active Measures (hidden)
A1: ProductVersionId | B1: IsActive | C1: ProductPath | D1: ProductCode | E1: ProductDescription | F1: EvaluationDescription | G1: BusinessCustomerReportsDescription | H1: SavingsPotential | I1: SystemType | J1: MADHeaderId | K1: MADId | L1: MADVersion | M1: CECRowId | N1: MADState | O1: ProgramCode | P1: ProgramDescription | Q1: StartDate | R1: EndDate | S1: QtyUnitType | T1: PilotFlag | U1: OPUCExceptionFlag | V1: DefaultKwh | W1: DefaultTherms | X1: NEBAnnual | Y1: DefaultOverrideSavingsAndNEBs | Z1: DefaultLoadProfileEle | AA1: DefaultLoadProfileGas | AB1: DefaultOverrideProfiles | AC1: DefaultIncentive | AD1: DefaultOverrideIncentive | AE1: DefaultLifeYears | AF1: DefaultOverrideLife | AG1: UnitIncrementalCost | AH1: AddInteractiveKwh | AI1: AddInteractiveTherms | AJ1: UnitCost | AK1: UnitSave | AL1: UnitIncentive | AM1: CustomAllocation | AN1: AVI | AO1: PGE | AP1: PAC | AQ1: CNG | AR1: NWN | AS1: NWNF | AT1: NWNI | AU1: NWNWA | AV1: NWNTLM | AW1: PGELMI | AX1: PGEFF | AY1: PACLMI | AZ1: OCOOL | BA1: AVIINT | BB1: AVITRP | BC1: AttributeCategory | BD1: Attribute1 | BE1: Attribute1Description | BF1: Attribute1Required | BG1: Attribute1Type | BH1: Attribute1Length | BI1: Attribute1Entry | BJ1: Attribute2 | BK1: Attribute2Description | BL1: Attribute2Required | BM1: Attribute2Type | BN1: Attribute2Length | BO1: Attribute2Entry | BP1: Attribute3 | BQ1: Attribute3Description | BR1: Attribute3Required | BS1: Attribute3Type | BT1: Attribute3Length | BU1: Attribute3Entry | BV1: Attribute4 | BW1: Attribute4Description | BX1: Attribute4Required | BY1: Attribute4Type | BZ1: Attribute4Length | CA1: Attribute4Entry | CB1: Attribute5 | CC1: Attribute5Description | CD1: Attribute5Required | CE1: Attribute5Type | CF1: Attribute5Length | CG1: Attribute5Entry | CH1: Attribute6 | CI1: Attribute6Description | CJ1: Attribute6Required | CK1: Attribute6Type | CL1: Attribute6Length | CM1: Attribute6Entry | CN1: Attribute7 | CO1: Attribute7Description | CP1: Attribute7Required | CQ1: Attribute7Type | CR1: Attribute7Length | CS1: Attribute7Entry | CT1: Attribute8 | CU1: Attribute8Description | CV1: Attribute8Required | CW1: Attribute8Type | CX1: Attribute8Length | CY1: Attribute8Entry | CZ1: Attribute9 | DA1: Attribute9Description | DB1: Attribute9Required | DC1: Attribute9Type | DD1: Attribute9Length | DE1: Attribute9Entry | DF1: Attribute10 | DG1: Attribute10Description | DH1: Attribute10Required | DI1: Attribute10Type | DJ1: Attribute10Length | DK1: Attribute10Entry | DL1: Attribute11 | DM1: Attribute11Description | DN1: Attribute11Required | DO1: Attribute11Type | DP1: Attribute11Length | DQ1: Attribute11Entry | DR1: Attribute12 | DS1: Attribute12Description | DT1: Attribute12Required | DU1: Attribute12Type | DV1: Attribute12Length | DW1: Attribute12Entry | DX1: Attribute13 | DY1: Attribute13Description | DZ1: Attribute13Required | EA1: Attribute13Type | EB1: Attribute13Length | EC1: Attribute13Entry | ED1: Attribute14 | EE1: Attribute14Description | EF1: Attribute14Required | EG1: Attribute14Type | EH1: Attribute14Length | EI1: Attribute14Entry | EJ1: Attribute15 | EK1: Attribute15Description | EL1: Attribute15Required | EM1: Attribute15Type | EN1: Attribute15Length | EO1: Attribute15Entry | EP1: Attribute16 | EQ1: Attribute16Description | ER1: Attribute16Required | ES1: Attribute16Type | ET1: Attribute16Length | EU1: Attribute16Entry | EV1: Attribute17 | EW1: Attribute17Description | EX1: Attribute17Required | EY1: Attribute17Type | EZ1: Attribute17Length | FA1: Attribute17Entry | FB1: CreatedDatetime | FC1: RevisedDatetime
A2: 17692 | B2: Yes | C2: Prescriptive | D2: MINISPLITAC | E2: Server Closet/Telecom Room Mini-Split Air Conditioner | F2: Server Closet Mini-split AC units | G2: HVAC | H2: ELE | I2: N/A | J2: 804 | K2: 3 | L2: 3 | M2: 4326 | N2: OR | O2: NBE | P2: New Buildings | Q2: 2024-01-01 | R2: 2025-12-31 | S2: Tons | T2: 0 | U2: 0 | V2: 417.14 | W2: 0 | X2: 0 | Y2: 0 | Z2: Large Office Ventilation | AA2: None - gas | AB2: 0 | AC2: 250 | AD2: 0 | AE2: 15 | AF2: 0 | AG2: 264.15 | AH2: 0 | AI2: 0 | AJ2: 0 | AK2: 1 | AL2: 1 | AM2: 0 | AN2: NULL | AO2: 100 | AP2: 100 | AQ2: NULL | AR2: NULL | AS2: NULL | AT2: NULL | AU2: NULL | AV2: NULL | AW2: NULL | AX2: NULL | AY2: NULL | AZ2: NULL | BA2: NULL | BB2: NULL | BC2: Server Closet Mini-split AC units | BD2: DESIGNLOAD | BE2: Design Load (in kW) | BF2: F | BG2: Alphanumeric | BH2: 64 | BI2: ED | BJ2: SEER | BK2: SEER | BL2: F | BM2: Decimal | BN2: 20 | BO2: ED | BP2: SEER2 | BQ2: SEER 2 | BR2: F | BS2: ALPHANUMERIC | BT2: 20 | BU2: ED | BV2: NULL | BW2: NULL | BX2: F | BY2: NULL | BZ2: NULL | CA2: NULL | CB2: NULL | CC2: NULL | CD2: F | CE2: NULL | CF2: NULL | CG2: NULL | CH2: NULL | CI2: NULL | CJ2: F | CK2: NULL | CL2: NULL | CM2: NULL | CN2: NULL | CO2: NULL | CP2: F | CQ2: NULL | CR2: NULL | CS2: NULL | CT2: NULL | CU2: NULL | CV2: F | CW2: NULL | CX2: NULL | CY2: NULL | CZ2: NULL | DA2: NULL | DB2: F | DC2: NULL | DD2: NULL | DE2: NULL | DF2: NULL | DG2: NULL | DH2: F | DI2: NULL | DJ2: NULL | DK2: NULL | DL2: NULL | DM2: NULL | DN2: F | DO2: NULL | DP2: NULL | DQ2: NULL | DR2: NULL | DS2: NULL | DT2: F | DU2: NULL | DV2: NULL | DW2: NULL | DX2: NULL | DY2: NULL | DZ2: F | EA2: NULL | EB2: NULL | EC2: NULL | ED2: NULL | EE2: NULL | EF2: F | EG2: NULL | EH2: NULL | EI2: NULL | EJ2: NULL | EK2: NULL | EL2: F | EM2: NULL | EN2: NULL | EO2: NULL | EP2: NULL | EQ2: NULL | ER2: F | ES2: NULL | ET2: NULL | EU2: NULL | EV2: NULL | EW2: NULL | EX2: F | EY2: NULL | EZ2: NULL | FA2: NULL | FB2: 45244.11896 | FC2: 45244.11896
A3: 17693 | B3: Yes | C3: Prescriptive | D3: MINISPLITHP | E3: Server Closet/Telecom Room Mini-Split Heat Pumps | F3: Server Closet Mini-split AC units | G3: HVAC | H3: ELE | I3: N/A | J3: 804 | K3: 3 | L3: 3 | M3: 4327 | N3: OR | O3: NBE | P3: New Buildings | Q3: 2024-01-01 | R3: 2025-12-31 | S3: Tons | T3: 0 | U3: 0 | V3: 417.14 | W3: 0 | X3: 0 | Y3: 0 | Z3: Large Office Ventilation | AA3: None - gas | AB3: 0 | AC3: 250 | AD3: 0 | AE3: 15 | AF3: 0 | AG3: 272.9 | AH3: 0 | AI3: 0 | AJ3: 0 | AK3: 1 | AL3: 1 | AM3: 0 | AN3: NULL | AO3: 100 | AP3: 100 | AQ3: NULL | AR3: NULL | AS3: NULL | AT3: NULL | AU3: NULL | AV3: NULL | AW3: NULL | AX3: NULL | AY3: NULL | AZ3: NULL | BA3: NULL | BB3: NULL | BC3: Server Closet Mini-split AC units | BD3: DESIGNLOAD | BE3: Design Load (in kW) | BF3: F | BG3: Alphanumeric | BH3: 64 | BI3: ED | BJ3: SEER | BK3: SEER | BL3: F | BM3: Decimal | BN3: 20 | BO3: ED | BP3: SEER2 | BQ3: SEER 2 | BR3: F | BS3: ALPHANUMERIC | BT3: 20 | BU3: ED | BV3: NULL | BW3: NULL | BX3: F | BY3: NULL | BZ3: NULL | CA3: NULL | CB3: NULL | CC3: NULL | CD3: F | CE3: NULL | CF3: NULL | CG3: NULL | CH3: NULL | CI3: NULL | CJ3: F | CK3: NULL | CL3: NULL | CM3: NULL | CN3: NULL | CO3: NULL | CP3: F | CQ3: NULL | CR3: NULL | CS3: NULL | CT3: NULL | CU3: NULL | CV3: F | CW3: NULL | CX3: NULL | CY3: NULL | CZ3: NULL | DA3: NULL | DB3: F | DC3: NULL | DD3: NULL | DE3: NULL | DF3: NULL | DG3: NULL | DH3: F | DI3: NULL | DJ3: NULL | DK3: NULL | DL3: NULL | DM3: NULL | DN3: F | DO3: NULL | DP3: NULL | DQ3: NULL | DR3: NULL | DS3: NULL | DT3: F | DU3: NULL | DV3: NULL | DW3: NULL | DX3: NULL | DY3: NULL | DZ3: F | EA3: NULL | EB3: NULL | EC3: NULL | ED3: NULL | EE3: NULL | EF3: F | EG3: NULL | EH3: NULL | EI3: NULL | EJ3: NULL | EK3: NULL | EL3: F | EM3: NULL | EN3: NULL | EO3: NULL | EP3: NULL | EQ3: NULL | ER3: F | ES3: NULL | ET3: NULL | EU3: NULL | EV3: NULL | EW3: NULL | EX3: F | EY3: NULL | EZ3: NULL | FA3: NULL | FB3: 45244.11896 | FC3: 45244.11896
A4: 18351 | B4: Yes | C4: Prescriptive | D4: DHWCONDTANKMF | E4: Condensing Tank Water Heater, Multifamily | F4: Tanked water heater | G4: Water Heating | H4: GAS | I4: DHW | J4: 939 | K4: 21 | L4: 6 | M4: 5794 | N4: OR | O4: NBE | P4: New Buildings | Q4: 2024-01-01 | R4: 2025-12-31 | S4: kBtu/hr | T4: 0 | U4: 0 | V4: 0 | W4: 1.44 | X4: 0 | Y4: 0 | Z4: None - ele | AA4: DHW | AB4: 0 | AC4: 3.5 | AD4: 0 | AE4: 15 | AF4: 0 | AG4: 3.79 | AH4: 0 | AI4: 0 | AJ4: 0 | AK4: 1 | AL4: 1 | AM4: 0 | AN4: 100 | AO4: NULL | AP4: NULL | AQ4: 100 | AR4: 100 | AS4: 100 | AT4: 100 | AU4: NULL | AV4: NULL | AW4: NULL | AX4: NULL | AY4: NULL | AZ4: NULL | BA4: 100 | BB4: NULL | BC4: Tanked water heater | BD4: KBTUHINPUT | BE4: kBtuh input per unit | BF4: T | BG4: Decimal | BH4: 10 | BI4: ED | BJ4: MANUFACTURER | BK4: Manufacturer Name | BL4: T | BM4: Alphanumeric | BN4: 64 | BO4: ED | BP4: MODEL | BQ4: Model | BR4: T | BS4: Alphanumeric | BT4: 64 | BU4: ED | BV4: UNITS | BW4: Number of units | BX4: T | BY4: Integer | BZ4: 20 | CA4: ED | CB4: NULL | CC4: NULL | CD4: F | CE4: NULL | CF4: NULL | CG4: NULL | CH4: NULL | CI4: NULL | CJ4: F | CK4: NULL | CL4: NULL | CM4: NULL | CN4: NULL | CO4: NULL | CP4: F | CQ4: NULL | CR4: NULL | CS4: NULL | CT4: NULL | CU4: NULL | CV4: F | CW4: NULL | CX4: NULL | CY4: NULL | CZ4: NULL | DA4: NULL | DB4: F | DC4: NULL | DD4: NULL | DE4: NULL | DF4: NULL | DG4: NULL | DH4: F | DI4: NULL | DJ4: NULL | DK4: NULL | DL4: NULL | DM4: NULL | DN4: F | DO4: NULL | DP4: NULL | DQ4: NULL | DR4: NULL | DS4: NULL | DT4: F | DU4: NULL | DV4: NULL | DW4: NULL | DX4: NULL | DY4: NULL | DZ4: F | EA4: NULL | EB4: NULL | EC4: NULL | ED4: NULL | EE4: NULL | EF4: F | EG4: NULL | EH4: NULL | EI4: NULL | EJ4: NULL | EK4: NULL | EL4: F | EM4: NULL | EN4: NULL | EO4: NULL | EP4: NULL | EQ4: NULL | ER4: F | ES4: NULL | ET4: NULL | EU4: NULL | EV4: NULL | EW4: NULL | EX4: F | EY4: NULL | EZ4: NULL | FA4: NULL | FB4: 45282.12224 | FC4: 45282.12224
A5: 18353 | B5: Yes | C5: Prescriptive | D5: DHWCONDNMF | E5: Condensing Tank Water Heater, All Except MF | F5: Tanked water heater | G5: Water Heating | H5: GAS | I5: DHW | J5: 939 | K5: 21 | L5: 6 | M5: 5797 | N5: OR | O5: NBE | P5: New Buildings | Q5: 2024-01-01 | R5: 2025-12-31 | S5: kBtu/hr | T5: 0 | U5: 0 | V5: 0 | W5: 1.11 | X5: 0 | Y5: 0 | Z5: None - ele | AA5: DHW | AB5: 0 | AC5: 3.5 | AD5: 0 | AE5: 15 | AF5: 0 | AG5: 3.76 | AH5: 0 | AI5: 0 | AJ5: 0 | AK5: 1 | AL5: 1 | AM5: 0 | AN5: 100 | AO5: NULL | AP5: NULL | AQ5: 100 | AR5: 100 | AS5: 100 | AT5: 100 | AU5: NULL | AV5: NULL | AW5: NULL | AX5: NULL | AY5: NULL | AZ5: NULL | BA5: 100 | BB5: NULL | BC5: Tanked water heater | BD5: KBTUHINPUT | BE5: kBtuh input per unit | BF5: T | BG5: Decimal | BH5: 10 | BI5: ED | BJ5: MANUFACTURER | BK5: Manufacturer Name | BL5: T | BM5: Alphanumeric | BN5: 64 | BO5: ED | BP5: MODEL | BQ5: Model | BR5: T | BS5: Alphanumeric | BT5: 64 | BU5: ED | BV5: UNITS | BW5: Number of units | BX5: T | BY5: Integer | BZ5: 20 | CA5: ED | CB5: NULL | CC5: NULL | CD5: F | CE5: NULL | CF5: NULL | CG5: NULL | CH5: NULL | CI5: NULL | CJ5: F | CK5: NULL | CL5: NULL | CM5: NULL | CN5: NULL | CO5: NULL | CP5: F | CQ5: NULL | CR5: NULL | CS5: NULL | CT5: NULL | CU5: NULL | CV5: F | CW5: NULL | CX5: NULL | CY5: NULL | CZ5: NULL | DA5: NULL | DB5: F | DC5: NULL | DD5: NULL | DE5: NULL | DF5: NULL | DG5: NULL | DH5: F | DI5: NULL | DJ5: NULL | DK5: NULL | DL5: NULL | DM5: NULL | DN5: F | DO5: NULL | DP5: NULL | DQ5: NULL | DR5: NULL | DS5: NULL | DT5: F | DU5: NULL | DV5: NULL | DW5: NULL | DX5: NULL | DY5: NULL | DZ5: F | EA5: NULL | EB5: NULL | EC5: NULL | ED5: NULL | EE5: NULL | EF5: F | EG5: NULL | EH5: NULL | EI5: NULL | EJ5: NULL | EK5: NULL | EL5: F | EM5: NULL | EN5: NULL | EO5: NULL | EP5: NULL | EQ5: NULL | ER5: F | ES5: NULL | ET5: NULL | EU5: NULL | EV5: NULL | EW5: NULL | EX5: F | EY5: NULL | EZ5: NULL | FA5: NULL | FB5: 45282.12224 | FC5: 45282.12224
A6: 13323 | B6: Yes | C6: Prescriptive | D6: DWSTCONHTEMPE | E6: Dishwasher - Single Tank Conveyor- High Temp - Ele WH | F6: Dishwasher | G6: Appliance | H6: ELE | I6: DHW | J6: 764 | K6: 35 | L6: 3 | M6: 3938 | N6: OR | O6: NBE | P6: New Buildings | Q6: 44562 | R6: 2024-12-31 | S6: Units | T6: 0 | U6: 0 | V6: 9402.4 | W6: 0 | X6: 0 | Y6: 0 | Z6: Restaurant Hot Water | AA6: Flat - gas | AB6: 0 | AC6: 900 | AD6: 0 | AE6: 20 | AF6: 0 | AG6: 919.52 | AH6: 0 | AI6: 0 | AJ6: 0 | AK6: 1 | AL6: 1 | AM6: 0 | AN6: NULL | AO6: 100 | AP6: 100 | AQ6: NULL | AR6: NULL | AS6: NULL | AT6: NULL | AU6: NULL | AV6: NULL | AW6: NULL | AX6: NULL | AY6: NULL | AZ6: NULL | BA6: NULL | BB6: NULL | BC6: No Attributes | BD6: NULL | BE6: NULL | BF6: F | BG6: NULL | BH6: NULL | BI6: NULL | BJ6: NULL | BK6: NULL | BL6: F | BM6: NULL | BN6: NULL | BO6: NULL | BP6: NULL | BQ6: NULL | BR6: F | BS6: NULL | BT6: NULL | BU6: NULL | BV6: NULL | BW6: NULL | BX6: F | BY6: NULL | BZ6: NULL | CA6: NULL | CB6: NULL | CC6: NULL | CD6: F | CE6: NULL | CF6: NULL | CG6: NULL | CH6: NULL | CI6: NULL | CJ6: F | CK6: NULL | CL6: NULL | CM6: NULL | CN6: NULL | CO6: NULL | CP6: F | CQ6: NULL | CR6: NULL | CS6: NULL | CT6: NULL | CU6: NULL | CV6: F | CW6: NULL | CX6: NULL | CY6: NULL | CZ6: NULL | DA6: NULL | DB6: F | DC6: NULL | DD6: NULL | DE6: NULL | DF6: NULL | DG6: NULL | DH6: F | DI6: NULL | DJ6: NULL | DK6: NULL | DL6: NULL | DM6: NULL | DN6: F | DO6: NULL | DP6: NULL | DQ6: NULL | DR6: NULL | DS6: NULL | DT6: F | DU6: NULL | DV6: NULL | DW6: NULL | DX6: NULL | DY6: NULL | DZ6: F | EA6: NULL | EB6: NULL | EC6: NULL | ED6: NULL | EE6: NULL | EF6: F | EG6: NULL | EH6: NULL | EI6: NULL | EJ6: NULL | EK6: NULL | EL6: F | EM6: NULL | EN6: NULL | EO6: NULL | EP6: NULL | EQ6: NULL | ER6: F | ES6: NULL | ET6: NULL | EU6: NULL | EV6: NULL | EW6: NULL | EX6: F | EY6: NULL | EZ6: NULL | FA6: NULL | FB6: 44952.60731 | FC6: 44952.60731
A7: 13324 | B7: Yes | C7: Prescriptive | D7: DWSTCONLDTEMPE | E7: Dishwasher - Single Tank Conveyor - Low or Dual temp - Ele WH | F7: Dishwasher | G7: Appliance | H7: ELE | I7: DHW | J7: 764 | K7: 35 | L7: 3 | M7: 3937 | N7: OR | O7: NBE | P7: New Buildings | Q7: 44562 | R7: 2024-12-31 | S7: Units | T7: 0 | U7: 0 | V7: 5335.72 | W7: 0 | X7: 0 | Y7: 0 | Z7: Restaurant Hot Water | AA7: Flat - gas | AB7: 0 | AC7: 900 | AD7: 0 | AE7: 20 | AF7: 0 | AG7: 1 | AH7: 0 | AI7: 0 | AJ7: 0 | AK7: 1 | AL7: 1 | AM7: 0 | AN7: NULL | AO7: 100 | AP7: 100 | AQ7: NULL | AR7: NULL | AS7: NULL | AT7: NULL | AU7: NULL | AV7: NULL | AW7: NULL | AX7: NULL | AY7: NULL | AZ7: NULL | BA7: NULL | BB7: NULL | BC7: No Attributes | BD7: NULL | BE7: NULL | BF7: F | BG7: NULL | BH7: NULL | BI7: NULL | BJ7: NULL | BK7: NULL | BL7: F | BM7: NULL | BN7: NULL | BO7: NULL | BP7: NULL | BQ7: NULL | BR7: F | BS7: NULL | BT7: NULL | BU7: NULL | BV7: NULL | BW7: NULL | BX7: F | BY7: NULL | BZ7: NULL | CA7: NULL | CB7: NULL | CC7: NULL | CD7: F | CE7: NULL | CF7: NULL | CG7: NULL | CH7: NULL | CI7: NULL | CJ7: F | CK7: NULL | CL7: NULL | CM7: NULL | CN7: NULL | CO7: NULL | CP7: F | CQ7: NULL | CR7: NULL | CS7: NULL | CT7: NULL | CU7: NULL | CV7: F | CW7: NULL | CX7: NULL | CY7: NULL | CZ7: NULL | DA7: NULL | DB7: F | DC7: NULL | DD7: NULL | DE7: NULL | DF7: NULL | DG7: NULL | DH7: F | DI7: NULL | DJ7: NULL | DK7: NULL | DL7: NULL | DM7: NULL | DN7: F | DO7: NULL | DP7: NULL | DQ7: NULL | DR7: NULL | DS7: NULL | DT7: F | DU7: NULL | DV7: NULL | DW7: NULL | DX7: NULL | DY7: NULL | DZ7: F | EA7: NULL | EB7: NULL | EC7: NULL | ED7: NULL | EE7: NULL | EF7: F | EG7: NULL | EH7: NULL | EI7: NULL | EJ7: NULL | EK7: NULL | EL7: F | EM7: NULL | EN7: NULL | EO7: NULL | EP7: NULL | EQ7: NULL | ER7: F | ES7: NULL | ET7: NULL | EU7: NULL | EV7: NULL | EW7: NULL | EX7: F | EY7: NULL | EZ7: NULL | FA7: NULL | FB7: 44952.60731 | FC7: 44952.60731
A8: 13325 | B8: Yes | C8: Prescriptive | D8: DWMTCONHDTEMPE | E8: Dishwasher - Multi Tank Conveyor - High or Dual Temp - Elec WH | F8: Dishwasher | G8: Appliance | H8: ELE | I8: DHW | J8: 764 | K8: 35 | L8: 3 | M8: 3939 | N8: OR | O8: NBE | P8: New Buildings | Q8: 2022-01-01 | R8: 2024-12-31 | S8: Units | T8: 0 | U8: 0 | V8: 4197.5 | W8: 0 | X8: 0 | Y8: 0 | Z8: Restaurant Hot Water | AA8: Flat - gas | AB8: 0 | AC8: 900 | AD8: 0 | AE8: 20 | AF8: 0 | AG8: 1 | AH8: 0 | AI8: 0 | AJ8: 0 | AK8: 1 | AL8: 1 | AM8: 0 | AN8: NULL | AO8: 100 | AP8: 100 | AQ8: NULL | AR8: NULL | AS8: NULL | AT8: NULL | AU8: NULL | AV8: NULL | AW8: NULL | AX8: NULL | AY8: NULL | AZ8: NULL | BA8: NULL | BB8: NULL | BC8: No Attributes | BD8: NULL | BE8: NULL | BF8: F | BG8: NULL | BH8: NULL | BI8: NULL | BJ8: NULL | BK8: NULL | BL8: F | BM8: NULL | BN8: NULL | BO8: NULL | BP8: NULL | BQ8: NULL | BR8: F | BS8: NULL | BT8: NULL | BU8: NULL | BV8: NULL | BW8: NULL | BX8: F | BY8: NULL | BZ8: NULL | CA8: NULL | CB8: NULL | CC8: NULL | CD8: F | CE8: NULL | CF8: NULL | CG8: NULL | CH8: NULL | CI8: NULL | CJ8: F | CK8: NULL | CL8: NULL | CM8: NULL | CN8: NULL | CO8: NULL | CP8: F | CQ8: NULL | CR8: NULL | CS8: NULL | CT8: NULL | CU8: NULL | CV8: F | CW8: NULL | CX8: NULL | CY8: NULL | CZ8: NULL | DA8: NULL | DB8: F | DC8: NULL | DD8: NULL | DE8: NULL | DF8: NULL | DG8: NULL | DH8: F | DI8: NULL | DJ8: NULL | DK8: NULL | DL8: NULL | DM8: NULL | DN8: F | DO8: NULL | DP8: NULL | DQ8: NULL | DR8: NULL | DS8: NULL | DT8: F | DU8: NULL | DV8: NULL | DW8: NULL | DX8: NULL | DY8: NULL | DZ8: F | EA8: NULL | EB8: NULL | EC8: NULL | ED8: NULL | EE8: NULL | EF8: F | EG8: NULL | EH8: NULL | EI8: NULL | EJ8: NULL | EK8: NULL | EL8: F | EM8: NULL | EN8: NULL | EO8: NULL | EP8: NULL | EQ8: NULL | ER8: F | ES8: NULL | ET8: NULL | EU8: NULL | EV8: NULL | EW8: NULL | EX8: F | EY8: NULL | EZ8: NULL | FA8: NULL | FB8: 44952.60731 | FC8: 44952.60731
A9: 18356 | B9: Yes | C9: Prescriptive | D9: COMHPWHT3 | E9: Comm Heat Pump Water Heater Tier 3+ Any Building Type | F9: Heat pump water heater | G9: Water Heating | H9: ELE | I9: DHW | J9: 857 | K9: 52 | L9: 4 | M9: 5045 | N9: OR | O9: NBE | P9: New Buildings | Q9: 2024-01-01 | R9: 2025-12-31 | S9: Units | T9: 0 | U9: 0 | V9: 1422.4 | W9: 0 | X9: 0 | Y9: 0 | Z9: Res HP Water Heat Convert | AA9: Res Heating | AB9: 0 | AC9: 800 | AD9: 0 | AE9: 13 | AF9: 0 | AG9: 968.21 | AH9: 0 | AI9: -5.79 | AJ9: 0 | AK9: 1 | AL9: 1 | AM9: 0 | AN9: NULL | AO9: 100 | AP9: 100 | AQ9: NULL | AR9: NULL | AS9: NULL | AT9: NULL | AU9: NULL | AV9: NULL | AW9: NULL | AX9: NULL | AY9: NULL | AZ9: NULL | BA9: NULL | BB9: NULL | BC9: Heat pump water heater | BD9: MANUFACTURER | BE9: Manufacturer Name | BF9: T | BG9: Alphanumeric | BH9: 64 | BI9: ED | BJ9: MODEL | BK9: Model | BL9: T | BM9: Alphanumeric | BN9: 64 | BO9: ED | BP9: SN | BQ9: Serial Number | BR9: T | BS9: Alphanumeric | BT9: 64 | BU9: ED | BV9: TANKSIZE | BW9: Tank Size in gallons | BX9: T | BY9: Alphanumeric | BZ9: 64 | CA9: ED | CB9: NULL | CC9: NULL | CD9: F | CE9: NULL | CF9: NULL | CG9: NULL | CH9: NULL | CI9: NULL | CJ9: F | CK9: NULL | CL9: NULL | CM9: NULL | CN9: NULL | CO9: NULL | CP9: F | CQ9: NULL | CR9: NULL | CS9: NULL | CT9: NULL | CU9: NULL | CV9: F | CW9: NULL | CX9: NULL | CY9: NULL | CZ9: NULL | DA9: NULL | DB9: F | DC9: NULL | DD9: NULL | DE9: NULL | DF9: NULL | DG9: NULL | DH9: F | DI9: NULL | DJ9: NULL | DK9: NULL | DL9: NULL | DM9: NULL | DN9: F | DO9: NULL | DP9: NULL | DQ9: NULL | DR9: NULL | DS9: NULL | DT9: F | DU9: NULL | DV9: NULL | DW9: NULL | DX9: NULL | DY9: NULL | DZ9: F | EA9: NULL | EB9: NULL | EC9: NULL | ED9: NULL | EE9: NULL | EF9: F | EG9: NULL | EH9: NULL | EI9: NULL | EJ9: NULL | EK9: NULL | EL9: F | EM9: NULL | EN9: NULL | EO9: NULL | EP9: NULL | EQ9: NULL | ER9: F | ES9: NULL | ET9: NULL | EU9: NULL | EV9: NULL | EW9: NULL | EX9: F | EY9: NULL | EZ9: NULL | FA9: NULL | FB9: 45294.11814 | FC9: 45294.11814
A10: 18357 | B10: Yes | C10: Prescriptive | D10: CTWH200COMMF | E10: Tankless Water Heater >= 200 kBtu/h, MF | F10: Tankless water heater | G10: Water Heating | H10: GAS | I10: DHW | J10: 826 | K10: 72 | L10: 4 | M10: 4679 | N10: OR | O10: NBE | P10: New Buildings | Q10: 2024-01-01 | R10: 2025-12-31 | S10: kBtu/hr | T10: 0 | U10: 0 | V10: 0 | W10: 0.42 | X10: 0 | Y10: 0 | Z10: None - ele | AA10: DHW | AB10: 0 | AC10: 1.4 | AD10: 0 | AE10: 20 | AF10: 0 | AG10: 1.43 | AH10: 0 | AI10: 0 | AJ10: 0 | AK10: 1 | AL10: 1 | AM10: 0 | AN10: 100 | AO10: NULL | AP10: NULL | AQ10: 100 | AR10: 100 | AS10: 100 | AT10: 100 | AU10: NULL | AV10: NULL | AW10: NULL | AX10: NULL | AY10: NULL | AZ10: NULL | BA10: 100 | BB10: 100 | BC10: Tankless water heater | BD10: THERMALEFF | BE10: Thermal Efficiency | BF10: T | BG10: Alphanumeric | BH10: 64 | BI10: ED | BJ10: NULL | BK10: NULL | BL10: F | BM10: NULL | BN10: NULL | BO10: NULL | BP10: NULL | BQ10: NULL | BR10: F | BS10: NULL | BT10: NULL | BU10: NULL | BV10: NULL | BW10: NULL | BX10: F | BY10: NULL | BZ10: NULL | CA10: NULL | CB10: NULL | CC10: NULL | CD10: F | CE10: NULL | CF10: NULL | CG10: NULL | CH10: NULL | CI10: NULL | CJ10: F | CK10: NULL | CL10: NULL | CM10: NULL | CN10: NULL | CO10: NULL | CP10: F | CQ10: NULL | CR10: NULL | CS10: NULL | CT10: NULL | CU10: NULL | CV10: F | CW10: NULL | CX10: NULL | CY10: NULL | CZ10: NULL | DA10: NULL | DB10: F | DC10: NULL | DD10: NULL | DE10: NULL | DF10: NULL | DG10: NULL | DH10: F | DI10: NULL | DJ10: NULL | DK10: NULL | DL10: NULL | DM10: NULL | DN10: F | DO10: NULL | DP10: NULL | DQ10: NULL | DR10: NULL | DS10: NULL | DT10: F | DU10: NULL | DV10: NULL | DW10: NULL | DX10: NULL | DY10: NULL | DZ10: F | EA10: NULL | EB10: NULL | EC10: NULL | ED10: NULL | EE10: NULL | EF10: F | EG10: NULL | EH10: NULL | EI10: NULL | EJ10: NULL | EK10: NULL | EL10: F | EM10: NULL | EN10: NULL | EO10: NULL | EP10: NULL | EQ10: NULL | ER10: F | ES10: NULL | ET10: NULL | EU10: NULL | EV10: NULL | EW10: NULL | EX10: F | EY10: NULL | EZ10: NULL | FA10: NULL | FB10: 45294.11814 | FC10: 45294.11814
A11: 18358 | B11: Yes | C11: Prescriptive | D11: CTWH200COMNONMF | E11: Tankless Water Heaters >= 200 kBtu/h, All Except MF | F11: Tankless water heater | G11: Water Heating | H11: GAS | I11: DHW | J11: 826 | K11: 72 | L11: 4 | M11: 4682 | N11: OR | O11: NBE | P11: New Buildings | Q11: 2024-01-01 | R11: 2025-12-31 | S11: kBtu/hr | T11: 0 | U11: 0 | V11: 0 | W11: 0.28 | X11: 0 | Y11: 0 | Z11: None - ele | AA11: DHW | AB11: 0 | AC11: 1.4 | AD11: 0 | AE11: 20 | AF11: 0 | AG11: 1.43 | AH11: 0 | AI11: 0 | AJ11: 0 | AK11: 1 | AL11: 1 | AM11: 0 | AN11: 100 | AO11: NULL | AP11: NULL | AQ11: 100 | AR11: 100 | AS11: 100 | AT11: 100 | AU11: NULL | AV11: NULL | AW11: NULL | AX11: NULL | AY11: NULL | AZ11: NULL | BA11: 100 | BB11: 100 | BC11: Tankless water heater | BD11: THERMALEFF | BE11: Thermal Efficiency | BF11: T | BG11: Alphanumeric | BH11: 64 | BI11: ED | BJ11: NULL | BK11: NULL | BL11: F | BM11: NULL | BN11: NULL | BO11: NULL | BP11: NULL | BQ11: NULL | BR11: F | BS11: NULL | BT11: NULL | BU11: NULL | BV11: NULL | BW11: NULL | BX11: F | BY11: NULL | BZ11: NULL | CA11: NULL | CB11: NULL | CC11: NULL | CD11: F | CE11: NULL | CF11: NULL | CG11: NULL | CH11: NULL | CI11: NULL | CJ11: F | CK11: NULL | CL11: NULL | CM11: NULL | CN11: NULL | CO11: NULL | CP11: F | CQ11: NULL | CR11: NULL | CS11: NULL | CT11: NULL | CU11: NULL | CV11: F | CW11: NULL | CX11: NULL | CY11: NULL | CZ11: NULL | DA11: NULL | DB11: F | DC11: NULL | DD11: NULL | DE11: NULL | DF11: NULL | DG11: NULL | DH11: F | DI11: NULL | DJ11: NULL | DK11: NULL | DL11: NULL | DM11: NULL | DN11: F | DO11: NULL | DP11: NULL | DQ11: NULL | DR11: NULL | DS11: NULL | DT11: F | DU11: NULL | DV11: NULL | DW11: NULL | DX11: NULL | DY11: NULL | DZ11: F | EA11: NULL | EB11: NULL | EC11: NULL | ED11: NULL | EE11: NULL | EF11: F | EG11: NULL | EH11: NULL | EI11: NULL | EJ11: NULL | EK11: NULL | EL11: F | EM11: NULL | EN11: NULL | EO11: NULL | EP11: NULL | EQ11: NULL | ER11: F | ES11: NULL | ET11: NULL | EU11: NULL | EV11: NULL | EW11: NULL | EX11: F | EY11: NULL | EZ11: NULL | FA11: NULL | FB11: 45294.11814 | FC11: 45294.11814
A12: 17926 | B12: Yes | C12: Prescriptive | D12: OZONSYS126400EWH | E12: Ozone Laundry System 126-400 Lbs Capacity - Ele WH | F12: Clothes washer | G12: Appliance | H12: ELE | I12: DHW | J12: 918 | K12: 80 | L12: 2 | M12: 5653 | N12: OR | O12: NBE | P12: New Buildings | Q12: 2024-01-01 | R12: 2026-12-31 | S12: Other | T12: 0 | U12: 0 | V12: 271970.52 | W12: 0 | X12: 14427.32 | Y12: 0 | Z12: Lodging Hot Water | AA12: Clotheswasher | AB12: 0 | AC12: 15000 | AD12: 0 | AE12: 10 | AF12: 0 | AG12: 25433.87 | AH12: 0 | AI12: 0 | AJ12: 0 | AK12: 1 | AL12: 1 | AM12: 0 | AN12: NULL | AO12: 100 | AP12: 100 | AQ12: NULL | AR12: NULL | AS12: NULL | AT12: NULL | AU12: NULL | AV12: NULL | AW12: NULL | AX12: NULL | AY12: NULL | AZ12: NULL | BA12: NULL | BB12: NULL | BC12: Clothes Washer | BD12: MANUFACTURER | BE12: Manufacturer Name | BF12: T | BG12: Alphanumeric | BH12: 40 | BI12: ED | BJ12: MODEL | BK12: Model | BL12: T | BM12: Alphanumeric | BN12: 20 | BO12: ED | BP12: CAPACITY | BQ12: Capacity (lbs) | BR12: T | BS12: Alphanumeric | BT12: 10 | BU12: ED | BV12: NULL | BW12: NULL | BX12: F | BY12: NULL | BZ12: NULL | CA12: NULL | CB12: NULL | CC12: NULL | CD12: F | CE12: NULL | CF12: NULL | CG12: NULL | CH12: NULL | CI12: NULL | CJ12: F | CK12: NULL | CL12: NULL | CM12: NULL | CN12: NULL | CO12: NULL | CP12: F | CQ12: NULL | CR12: NULL | CS12: NULL | CT12: NULL | CU12: NULL | CV12: F | CW12: NULL | CX12: NULL | CY12: NULL | CZ12: NULL | DA12: NULL | DB12: F | DC12: NULL | DD12: NULL | DE12: NULL | DF12: NULL | DG12: NULL | DH12: F | DI12: NULL | DJ12: NULL | DK12: NULL | DL12: NULL | DM12: NULL | DN12: F | DO12: NULL | DP12: NULL | DQ12: NULL | DR12: NULL | DS12: NULL | DT12: F | DU12: NULL | DV12: NULL | DW12: NULL | DX12: NULL | DY12: NULL | DZ12: F | EA12: NULL | EB12: NULL | EC12: NULL | ED12: NULL | EE12: NULL | EF12: F | EG12: NULL | EH12: NULL | EI12: NULL | EJ12: NULL | EK12: NULL | EL12: F | EM12: NULL | EN12: NULL | EO12: NULL | EP12: NULL | EQ12: NULL | ER12: F | ES12: NULL | ET12: NULL | EU12: NULL | EV12: NULL | EW12: NULL | EX12: F | EY12: NULL | EZ12: NULL | FA12: NULL | FB12: 45253.11092 | FC12: 45253.11092
A13: 17927 | B13: Yes | C13: Prescriptive | D13: OZONSYS401600GWHGOT | E13: Ozone Laundry System 401-600 Lbs Capacity - Gas WH GOT | F13: Clothes washer | G13: Appliance | H13: GAS | I13: DHW | J13: 918 | K13: 80 | L13: 2 | M13: 5644 | N13: OR | O13: NBE | P13: New Buildings | Q13: 2024-01-01 | R13: 2026-12-31 | S13: Other | T13: 0 | U13: 0 | V13: 0 | W13: 22322.85 | X13: 28596.85 | Y13: 0 | Z13: Lodging Hot Water | AA13: Clotheswasher | AB13: 0 | AC13: 25000 | AD13: 0 | AE13: 10 | AF13: 0 | AG13: 39816.22 | AH13: 0 | AI13: 0 | AJ13: 0 | AK13: 1 | AL13: 1 | AM13: 0 | AN13: 100 | AO13: NULL | AP13: NULL | AQ13: 100 | AR13: 100 | AS13: 100 | AT13: 100 | AU13: NULL | AV13: NULL | AW13: NULL | AX13: NULL | AY13: NULL | AZ13: NULL | BA13: 100 | BB13: NULL | BC13: Clothes Washer | BD13: MANUFACTURER | BE13: Manufacturer Name | BF13: T | BG13: Alphanumeric | BH13: 40 | BI13: ED | BJ13: MODEL | BK13: Model | BL13: T | BM13: Alphanumeric | BN13: 20 | BO13: ED | BP13: CAPACITY | BQ13: Capacity (lbs) | BR13: F | BS13: Alphanumeric | BT13: 10 | BU13: ED | BV13: NULL | BW13: NULL | BX13: F | BY13: NULL | BZ13: NULL | CA13: NULL | CB13: NULL | CC13: NULL | CD13: F | CE13: NULL | CF13: NULL | CG13: NULL | CH13: NULL | CI13: NULL | CJ13: F | CK13: NULL | CL13: NULL | CM13: NULL | CN13: NULL | CO13: NULL | CP13: F | CQ13: NULL | CR13: NULL | CS13: NULL | CT13: NULL | CU13: NULL | CV13: F | CW13: NULL | CX13: NULL | CY13: NULL | CZ13: NULL | DA13: NULL | DB13: F | DC13: NULL | DD13: NULL | DE13: NULL | DF13: NULL | DG13: NULL | DH13: F | DI13: NULL | DJ13: NULL | DK13: NULL | DL13: NULL | DM13: NULL | DN13: F | DO13: NULL | DP13: NULL | DQ13: NULL | DR13: NULL | DS13: NULL | DT13: F | DU13: NULL | DV13: NULL | DW13: NULL | DX13: NULL | DY13: NULL | DZ13: F | EA13: NULL | EB13: NULL | EC13: NULL | ED13: NULL | EE13: NULL | EF13: F | EG13: NULL | EH13: NULL | EI13: NULL | EJ13: NULL | EK13: NULL | EL13: F | EM13: NULL | EN13: NULL | EO13: NULL | EP13: NULL | EQ13: NULL | ER13: F | ES13: NULL | ET13: NULL | EU13: NULL | EV13: NULL | EW13: NULL | EX13: F | EY13: NULL | EZ13: NULL | FA13: NULL | FB13: 45253.11092 | FC13: 45253.11092
A14: 17928 | B14: Yes | C14: Prescriptive | D14: OZONSYS401600GWHFULL | E14: Ozone Laundry System 401-600 Lbs Capacity - Gas WH Full Terr | F14: Clothes washer | G14: Appliance | H14: BOTH | I14: N/A | J14: 918 | K14: 80 | L14: 2 | M14: 5639 | N14: OR | O14: NBE | P14: New Buildings | Q14: 2024-01-01 | R14: 2026-12-31 | S14: Other | T14: 0 | U14: 0 | V14: 5131.77 | W14: 22322.85 | X14: 27480.6 | Y14: 0 | Z14: Lodging Hot Water | AA14: Clotheswasher | AB14: 0 | AC14: 25000 | AD14: 0 | AE14: 10 | AF14: 0 | AG14: 39816.22 | AH14: 0 | AI14: 0 | AJ14: 0 | AK14: 1 | AL14: 1 | AM14: 0 | AN14: 99 | AO14: 1 | AP14: 1 | AQ14: 99 | AR14: 99 | AS14: 99 | AT14: 99 | AU14: NULL | AV14: NULL | AW14: NULL | AX14: NULL | AY14: NULL | AZ14: NULL | BA14: 99 | BB14: NULL | BC14: Clothes Washer | BD14: MANUFACTURER | BE14: Manufacturer Name | BF14: T | BG14: Alphanumeric | BH14: 40 | BI14: ED | BJ14: MODEL | BK14: Model | BL14: T | BM14: Alphanumeric | BN14: 20 | BO14: ED | BP14: CAPACITY | BQ14: Capacity (lbs) | BR14: F | BS14: Alphanumeric | BT14: 10 | BU14: ED | BV14: NULL | BW14: NULL | BX14: F | BY14: NULL | BZ14: NULL | CA14: NULL | CB14: NULL | CC14: NULL | CD14: F | CE14: NULL | CF14: NULL | CG14: NULL | CH14: NULL | CI14: NULL | CJ14: F | CK14: NULL | CL14: NULL | CM14: NULL | CN14: NULL | CO14: NULL | CP14: F | CQ14: NULL | CR14: NULL | CS14: NULL | CT14: NULL | CU14: NULL | CV14: F | CW14: NULL | CX14: NULL | CY14: NULL | CZ14: NULL | DA14: NULL | DB14: F | DC14: NULL | DD14: NULL | DE14: NULL | DF14: NULL | DG14: NULL | DH14: F | DI14: NULL | DJ14: NULL | DK14: NULL | DL14: NULL | DM14: NULL | DN14: F | DO14: NULL | DP14: NULL | DQ14: NULL | DR14: NULL | DS14: NULL | DT14: F | DU14: NULL | DV14: NULL | DW14: NULL | DX14: NULL | DY14: NULL | DZ14: F | EA14: NULL | EB14: NULL | EC14: NULL | ED14: NULL | EE14: NULL | EF14: F | EG14: NULL | EH14: NULL | EI14: NULL | EJ14: NULL | EK14: NULL | EL14: F | EM14: NULL | EN14: NULL | EO14: NULL | EP14: NULL | EQ14: NULL | ER14: F | ES14: NULL | ET14: NULL | EU14: NULL | EV14: NULL | EW14: NULL | EX14: F | EY14: NULL | EZ14: NULL | FA14: NULL | FB14: 45253.11092 | FC14: 45253.11092
A15: 17929 | B15: Yes | C15: Prescriptive | D15: OZONSYS401600EWH | E15: Ozone Laundry System 401-600 Lbs Capacity - Ele WH | F15: Clothes washer | G15: Appliance | H15: ELE | I15: DHW | J15: 918 | K15: 80 | L15: 2 | M15: 5654 | N15: OR | O15: NBE | P15: New Buildings | Q15: 2024-01-01 | R15: 2026-12-31 | S15: Other | T15: 0 | U15: 0 | V15: 518039.09 | W15: 0 | X15: 27480.6 | Y15: 0 | Z15: Lodging Hot Water | AA15: Clotheswasher | AB15: 0 | AC15: 25000 | AD15: 0 | AE15: 10 | AF15: 0 | AG15: 39816.22 | AH15: 0 | AI15: 0 | AJ15: 0 | AK15: 1 | AL15: 1 | AM15: 0 | AN15: NULL | AO15: 100 | AP15: 100 | AQ15: NULL | AR15: NULL | AS15: NULL | AT15: NULL | AU15: NULL | AV15: NULL | AW15: NULL | AX15: NULL | AY15: NULL | AZ15: NULL | BA15: NULL | BB15: NULL | BC15: Clothes Washer | BD15: MANUFACTURER | BE15: Manufacturer Name | BF15: T | BG15: Alphanumeric | BH15: 40 | BI15: ED | BJ15: MODEL | BK15: Model | BL15: T | BM15: Alphanumeric | BN15: 20 | BO15: ED | BP15: CAPACITY | BQ15: Capacity (lbs) | BR15: T | BS15: Alphanumeric | BT15: 10 | BU15: ED | BV15: NULL | BW15: NULL | BX15: F | BY15: NULL | BZ15: NULL | CA15: NULL | CB15: NULL | CC15: NULL | CD15: F | CE15: NULL | CF15: NULL | CG15: NULL | CH15: NULL | CI15: NULL | CJ15: F | CK15: NULL | CL15: NULL | CM15: NULL | CN15: NULL | CO15: NULL | CP15: F | CQ15: NULL | CR15: NULL | CS15: NULL | CT15: NULL | CU15: NULL | CV15: F | CW15: NULL | CX15: NULL | CY15: NULL | CZ15: NULL | DA15: NULL | DB15: F | DC15: NULL | DD15: NULL | DE15: NULL | DF15: NULL | DG15: NULL | DH15: F | DI15: NULL | DJ15: NULL | DK15: NULL | DL15: NULL | DM15: NULL | DN15: F | DO15: NULL | DP15: NULL | DQ15: NULL | DR15: NULL | DS15: NULL | DT15: F | DU15: NULL | DV15: NULL | DW15: NULL | DX15: NULL | DY15: NULL | DZ15: F | EA15: NULL | EB15: NULL | EC15: NULL | ED15: NULL | EE15: NULL | EF15: F | EG15: NULL | EH15: NULL | EI15: NULL | EJ15: NULL | EK15: NULL | EL15: F | EM15: NULL | EN15: NULL | EO15: NULL | EP15: NULL | EQ15: NULL | ER15: F | ES15: NULL | ET15: NULL | EU15: NULL | EV15: NULL | EW15: NULL | EX15: F | EY15: NULL | EZ15: NULL | FA15: NULL | FB15: 45253.11092 | FC15: 45253.11092
A16: 17930 | B16: Yes | C16: Prescriptive | D16: OZONSYS600GWHGOT | E16: Ozone Laundry System > 600 Lbs Capacity - Gas WH GOT | F16: Clothes washer | G16: Appliance | H16: GAS | I16: DHW | J16: 918 | K16: 80 | L16: 2 | M16: 5645 | N16: OR | O16: NBE | P16: New Buildings | Q16: 2024-01-01 | R16: 2026-12-31 | S16: Other | T16: 0 | U16: 0 | V16: 0 | W16: 31251.99 | X16: 39924.01 | Y16: 0 | Z16: Lodging Hot Water | AA16: Clotheswasher | AB16: 0 | AC16: 30000 | AD16: 0 | AE16: 10 | AF16: 0 | AG16: 47957.66 | AH16: 0 | AI16: 0 | AJ16: 0 | AK16: 1 | AL16: 1 | AM16: 0 | AN16: 100 | AO16: NULL | AP16: NULL | AQ16: 100 | AR16: 100 | AS16: 100 | AT16: 100 | AU16: NULL | AV16: NULL | AW16: NULL | AX16: NULL | AY16: NULL | AZ16: NULL | BA16: 100 | BB16: NULL | BC16: Clothes Washer | BD16: MANUFACTURER | BE16: Manufacturer Name | BF16: T | BG16: Alphanumeric | BH16: 40 | BI16: ED | BJ16: MODEL | BK16: Model | BL16: T | BM16: Alphanumeric | BN16: 20 | BO16: ED | BP16: CAPACITY | BQ16: Capacity (lbs) | BR16: F | BS16: Alphanumeric | BT16: 10 | BU16: ED | BV16: NULL | BW16: NULL | BX16: F | BY16: NULL | BZ16: NULL | CA16: NULL | CB16: NULL | CC16: NULL | CD16: F | CE16: NULL | CF16: NULL | CG16: NULL | CH16: NULL | CI16: NULL | CJ16: F | CK16: NULL | CL16: NULL | CM16: NULL | CN16: NULL | CO16: NULL | CP16: F | CQ16: NULL | CR16: NULL | CS16: NULL | CT16: NULL | CU16: NULL | CV16: F | CW16: NULL | CX16: NULL | CY16: NULL | CZ16: NULL | DA16: NULL | DB16: F | DC16: NULL | DD16: NULL | DE16: NULL | DF16: NULL | DG16: NULL | DH16: F | DI16: NULL | DJ16: NULL | DK16: NULL | DL16: NULL | DM16: NULL | DN16: F | DO16: NULL | DP16: NULL | DQ16: NULL | DR16: NULL | DS16: NULL | DT16: F | DU16: NULL | DV16: NULL | DW16: NULL | DX16: NULL | DY16: NULL | DZ16: F | EA16: NULL | EB16: NULL | EC16: NULL | ED16: NULL | EE16: NULL | EF16: F | EG16: NULL | EH16: NULL | EI16: NULL | EJ16: NULL | EK16: NULL | EL16: F | EM16: NULL | EN16: NULL | EO16: NULL | EP16: NULL | EQ16: NULL | ER16: F | ES16: NULL | ET16: NULL | EU16: NULL | EV16: NULL | EW16: NULL | EX16: F | EY16: NULL | EZ16: NULL | FA16: NULL | FB16: 45253.11092 | FC16: 45253.11092
A17: 17931 | B17: Yes | C17: Prescriptive | D17: OZONSYS600GWHFULL | E17: Ozone Laundry System > 600 Lbs Capacity - Gas WH Full Terr | F17: Clothes washer | G17: Appliance | H17: BOTH | I17: N/A | J17: 918 | K17: 80 | L17: 2 | M17: 5640 | N17: OR | O17: NBE | P17: New Buildings | Q17: 2024-01-01 | R17: 2026-12-31 | S17: Other | T17: 0 | U17: 0 | V17: 7184.48 | W17: 31251.99 | X17: 38472.84 | Y17: 0 | Z17: Lodging Hot Water | AA17: Clotheswasher | AB17: 0 | AC17: 30000 | AD17: 0 | AE17: 10 | AF17: 0 | AG17: 47957.66 | AH17: 0 | AI17: 0 | AJ17: 0 | AK17: 1 | AL17: 1 | AM17: 0 | AN17: 99 | AO17: 1 | AP17: 1 | AQ17: 99 | AR17: 99 | AS17: 99 | AT17: 99 | AU17: NULL | AV17: NULL | AW17: NULL | AX17: NULL | AY17: NULL | AZ17: NULL | BA17: 99 | BB17: NULL | BC17: Clothes Washer | BD17: MANUFACTURER | BE17: Manufacturer Name | BF17: T | BG17: Alphanumeric | BH17: 40 | BI17: ED | BJ17: MODEL | BK17: Model | BL17: T | BM17: Alphanumeric | BN17: 20 | BO17: ED | BP17: CAPACITY | BQ17: Capacity (lbs) | BR17: F | BS17: Alphanumeric | BT17: 10 | BU17: ED | BV17: NULL | BW17: NULL | BX17: F | BY17: NULL | BZ17: NULL | CA17: NULL | CB17: NULL | CC17: NULL | CD17: F | CE17: NULL | CF17: NULL | CG17: NULL | CH17: NULL | CI17: NULL | CJ17: F | CK17: NULL | CL17: NULL | CM17: NULL | CN17: NULL | CO17: NULL | CP17: F | CQ17: NULL | CR17: NULL | CS17: NULL | CT17: NULL | CU17: NULL | CV17: F | CW17: NULL | CX17: NULL | CY17: NULL | CZ17: NULL | DA17: NULL | DB17: F | DC17: NULL | DD17: NULL | DE17: NULL | DF17: NULL | DG17: NULL | DH17: F | DI17: NULL | DJ17: NULL | DK17: NULL | DL17: NULL | DM17: NULL | DN17: F | DO17: NULL | DP17: NULL | DQ17: NULL | DR17: NULL | DS17: NULL | DT17: F | DU17: NULL | DV17: NULL | DW17: NULL | DX17: NULL | DY17: NULL | DZ17: F | EA17: NULL | EB17: NULL | EC17: NULL | ED17: NULL | EE17: NULL | EF17: F | EG17: NULL | EH17: NULL | EI17: NULL | EJ17: NULL | EK17: NULL | EL17: F | EM17: NULL | EN17: NULL | EO17: NULL | EP17: NULL | EQ17: NULL | ER17: F | ES17: NULL | ET17: NULL | EU17: NULL | EV17: NULL | EW17: NULL | EX17: F | EY17: NULL | EZ17: NULL | FA17: NULL | FB17: 45253.11092 | FC17: 45253.11092
A18: 17932 | B18: Yes | C18: Prescriptive | D18: OZONSYS600EWH | E18: Ozone Laundry System > 600 Lbs Capacity - Ele WH | F18: Clothes washer | G18: Appliance | H18: ELE | I18: DHW | J18: 918 | K18: 80 | L18: 2 | M18: 5655 | N18: OR | O18: NBE | P18: New Buildings | Q18: 2024-01-01 | R18: 2026-12-31 | S18: Other | T18: 0 | U18: 0 | V18: 725254.73 | W18: 0 | X18: 38472.84 | Y18: 0 | Z18: Lodging Hot Water | AA18: Clotheswasher | AB18: 0 | AC18: 30000 | AD18: 0 | AE18: 10 | AF18: 0 | AG18: 47957.66 | AH18: 0 | AI18: 0 | AJ18: 0 | AK18: 1 | AL18: 1 | AM18: 0 | AN18: NULL | AO18: 100 | AP18: 100 | AQ18: NULL | AR18: NULL | AS18: NULL | AT18: NULL | AU18: NULL | AV18: NULL | AW18: NULL | AX18: NULL | AY18: NULL | AZ18: NULL | BA18: NULL | BB18: NULL | BC18: Clothes Washer | BD18: MANUFACTURER | BE18: Manufacturer Name | BF18: T | BG18: Alphanumeric | BH18: 40 | BI18: ED | BJ18: MODEL | BK18: Model | BL18: T | BM18: Alphanumeric | BN18: 20 | BO18: ED | BP18: CAPACITY | BQ18: Capacity (lbs) | BR18: T | BS18: Alphanumeric | BT18: 10 | BU18: ED | BV18: NULL | BW18: NULL | BX18: F | BY18: NULL | BZ18: NULL | CA18: NULL | CB18: NULL | CC18: NULL | CD18: F | CE18: NULL | CF18: NULL | CG18: NULL | CH18: NULL | CI18: NULL | CJ18: F | CK18: NULL | CL18: NULL | CM18: NULL | CN18: NULL | CO18: NULL | CP18: F | CQ18: NULL | CR18: NULL | CS18: NULL | CT18: NULL | CU18: NULL | CV18: F | CW18: NULL | CX18: NULL | CY18: NULL | CZ18: NULL | DA18: NULL | DB18: F | DC18: NULL | DD18: NULL | DE18: NULL | DF18: NULL | DG18: NULL | DH18: F | DI18: NULL | DJ18: NULL | DK18: NULL | DL18: NULL | DM18: NULL | DN18: F | DO18: NULL | DP18: NULL | DQ18: NULL | DR18: NULL | DS18: NULL | DT18: F | DU18: NULL | DV18: NULL | DW18: NULL | DX18: NULL | DY18: NULL | DZ18: F | EA18: NULL | EB18: NULL | EC18: NULL | ED18: NULL | EE18: NULL | EF18: F | EG18: NULL | EH18: NULL | EI18: NULL | EJ18: NULL | EK18: NULL | EL18: F | EM18: NULL | EN18: NULL | EO18: NULL | EP18: NULL | EQ18: NULL | ER18: F | ES18: NULL | ET18: NULL | EU18: NULL | EV18: NULL | EW18: NULL | EX18: F | EY18: NULL | EZ18: NULL | FA18: NULL | FB18: 45253.11092 | FC18: 45253.11092
A19: 17933 | B19: Yes | C19: Prescriptive | D19: OZONSYS75GWHFULL | E19: Ozone Laundry System < 75 Lbs Capacity - Gas WH Full Terr | F19: Clothes washer | G19: Appliance | H19: BOTH | I19: N/A | J19: 918 | K19: 80 | L19: 2 | M19: 5636 | N19: OR | O19: NBE | P19: New Buildings | Q19: 2024-01-01 | R19: 2026-12-31 | S19: Other | T19: 0 | U19: 0 | V19: 513.18 | W19: 2232.29 | X19: 2748.06 | Y19: 0 | Z19: Lodging Hot Water | AA19: Clotheswasher | AB19: 0 | AC19: 5000 | AD19: 0 | AE19: 10 | AF19: 0 | AG19: 10092.68 | AH19: 0 | AI19: 0 | AJ19: 0 | AK19: 1 | AL19: 1 | AM19: 0 | AN19: 99 | AO19: 1 | AP19: 1 | AQ19: 99 | AR19: 99 | AS19: 99 | AT19: 99 | AU19: NULL | AV19: NULL | AW19: NULL | AX19: NULL | AY19: NULL | AZ19: NULL | BA19: 99 | BB19: NULL | BC19: Clothes Washer | BD19: MANUFACTURER | BE19: Manufacturer Name | BF19: T | BG19: Alphanumeric | BH19: 40 | BI19: ED | BJ19: MODEL | BK19: Model | BL19: T | BM19: Alphanumeric | BN19: 20 | BO19: ED | BP19: CAPACITY | BQ19: Capacity (lbs) | BR19: F | BS19: Alphanumeric | BT19: 10 | BU19: ED | BV19: NULL | BW19: NULL | BX19: F | BY19: NULL | BZ19: NULL | CA19: NULL | CB19: NULL | CC19: NULL | CD19: F | CE19: NULL | CF19: NULL | CG19: NULL | CH19: NULL | CI19: NULL | CJ19: F | CK19: NULL | CL19: NULL | CM19: NULL | CN19: NULL | CO19: NULL | CP19: F | CQ19: NULL | CR19: NULL | CS19: NULL | CT19: NULL | CU19: NULL | CV19: F | CW19: NULL | CX19: NULL | CY19: NULL | CZ19: NULL | DA19: NULL | DB19: F | DC19: NULL | DD19: NULL | DE19: NULL | DF19: NULL | DG19: NULL | DH19: F | DI19: NULL | DJ19: NULL | DK19: NULL | DL19: NULL | DM19: NULL | DN19: F | DO19: NULL | DP19: NULL | DQ19: NULL | DR19: NULL | DS19: NULL | DT19: F | DU19: NULL | DV19: NULL | DW19: NULL | DX19: NULL | DY19: NULL | DZ19: F | EA19: NULL | EB19: NULL | EC19: NULL | ED19: NULL | EE19: NULL | EF19: F | EG19: NULL | EH19: NULL | EI19: NULL | EJ19: NULL | EK19: NULL | EL19: F | EM19: NULL | EN19: NULL | EO19: NULL | EP19: NULL | EQ19: NULL | ER19: F | ES19: NULL | ET19: NULL | EU19: NULL | EV19: NULL | EW19: NULL | EX19: F | EY19: NULL | EZ19: NULL | FA19: NULL | FB19: 45253.11092 | FC19: 45253.11092
A20: 17934 | B20: Yes | C20: Prescriptive | D20: OZONSYS75EWH | E20: Ozone Laundry System < 75 Lbs Capacity - Ele WH | F20: Clothes washer | G20: Appliance | H20: ELE | I20: DHW | J20: 918 | K20: 80 | L20: 2 | M20: 5651 | N20: OR | O20: NBE | P20: New Buildings | Q20: 2024-01-01 | R20: 2026-12-31 | S20: Other | T20: 0 | U20: 0 | V20: 51803.91 | W20: 0 | X20: 2748.06 | Y20: 0 | Z20: Lodging Hot Water | AA20: Clotheswasher | AB20: 0 | AC20: 5000 | AD20: 0 | AE20: 10 | AF20: 0 | AG20: 10092.68 | AH20: 0 | AI20: 0 | AJ20: 0 | AK20: 1 | AL20: 1 | AM20: 0 | AN20: NULL | AO20: 100 | AP20: 100 | AQ20: NULL | AR20: NULL | AS20: NULL | AT20: NULL | AU20: NULL | AV20: NULL | AW20: NULL | AX20: NULL | AY20: NULL | AZ20: NULL | BA20: NULL | BB20: NULL | BC20: Clothes Washer | BD20: MANUFACTURER | BE20: Manufacturer Name | BF20: T | BG20: Alphanumeric | BH20: 40 | BI20: ED | BJ20: MODEL | BK20: Model | BL20: T | BM20: Alphanumeric | BN20: 20 | BO20: ED | BP20: CAPACITY | BQ20: Capacity (lbs) | BR20: T | BS20: Alphanumeric | BT20: 10 | BU20: ED | BV20: NULL | BW20: NULL | BX20: F | BY20: NULL | BZ20: NULL | CA20: NULL | CB20: NULL | CC20: NULL | CD20: F | CE20: NULL | CF20: NULL | CG20: NULL | CH20: NULL | CI20: NULL | CJ20: F | CK20: NULL | CL20: NULL | CM20: NULL | CN20: NULL | CO20: NULL | CP20: F | CQ20: NULL | CR20: NULL | CS20: NULL | CT20: NULL | CU20: NULL | CV20: F | CW20: NULL | CX20: NULL | CY20: NULL | CZ20: NULL | DA20: NULL | DB20: F | DC20: NULL | DD20: NULL | DE20: NULL | DF20: NULL | DG20: NULL | DH20: F | DI20: NULL | DJ20: NULL | DK20: NULL | DL20: NULL | DM20: NULL | DN20: F | DO20: NULL | DP20: NULL | DQ20: NULL | DR20: NULL | DS20: NULL | DT20: F | DU20: NULL | DV20: NULL | DW20: NULL | DX20: NULL | DY20: NULL | DZ20: F | EA20: NULL | EB20: NULL | EC20: NULL | ED20: NULL | EE20: NULL | EF20: F | EG20: NULL | EH20: NULL | EI20: NULL | EJ20: NULL | EK20: NULL | EL20: F | EM20: NULL | EN20: NULL | EO20: NULL | EP20: NULL | EQ20: NULL | ER20: F | ES20: NULL | ET20: NULL | EU20: NULL | EV20: NULL | EW20: NULL | EX20: F | EY20: NULL | EZ20: NULL | FA20: NULL | FB20: 45253.11092 | FC20: 45253.11092
A21: 17935 | B21: Yes | C21: Prescriptive | D21: OZONSYS75125GWHGOT | E21: Ozone Laundry System 75-125 Lbs Capacity - Gas WH GOT | F21: Clothes washer | G21: Appliance | H21: GAS | I21: DHW | J21: 918 | K21: 80 | L21: 2 | M21: 5642 | N21: OR | O21: NBE | P21: New Buildings | Q21: 2024-01-01 | R21: 2026-12-31 | S21: Other | T21: 0 | U21: 0 | V21: 0 | W21: 4464.57 | X21: 5703.43 | Y21: 0 | Z21: Lodging Hot Water | AA21: Clotheswasher | AB21: 0 | AC21: 7500 | AD21: 0 | AE21: 10 | AF21: 0 | AG21: 13479.48 | AH21: 0 | AI21: 0 | AJ21: 0 | AK21: 1 | AL21: 1 | AM21: 0 | AN21: 100 | AO21: NULL | AP21: NULL | AQ21: 100 | AR21: 100 | AS21: 100 | AT21: 100 | AU21: NULL | AV21: NULL | AW21: NULL | AX21: NULL | AY21: NULL | AZ21: NULL | BA21: 100 | BB21: NULL | BC21: Clothes Washer | BD21: MANUFACTURER | BE21: Manufacturer Name | BF21: T | BG21: Alphanumeric | BH21: 40 | BI21: ED | BJ21: MODEL | BK21: Model | BL21: T | BM21: Alphanumeric | BN21: 20 | BO21: ED | BP21: CAPACITY | BQ21: Capacity (lbs) | BR21: F | BS21: Alphanumeric | BT21: 10 | BU21: ED | BV21: NULL | BW21: NULL | BX21: F | BY21: NULL | BZ21: NULL | CA21: NULL | CB21: NULL | CC21: NULL | CD21: F | CE21: NULL | CF21: NULL | CG21: NULL | CH21: NULL | CI21: NULL | CJ21: F | CK21: NULL | CL21: NULL | CM21: NULL | CN21: NULL | CO21: NULL | CP21: F | CQ21: NULL | CR21: NULL | CS21: NULL | CT21: NULL | CU21: NULL | CV21: F | CW21: NULL | CX21: NULL | CY21: NULL | CZ21: NULL | DA21: NULL | DB21: F | DC21: NULL | DD21: NULL | DE21: NULL | DF21: NULL | DG21: NULL | DH21: F | DI21: NULL | DJ21: NULL | DK21: NULL | DL21: NULL | DM21: NULL | DN21: F | DO21: NULL | DP21: NULL | DQ21: NULL | DR21: NULL | DS21: NULL | DT21: F | DU21: NULL | DV21: NULL | DW21: NULL | DX21: NULL | DY21: NULL | DZ21: F | EA21: NULL | EB21: NULL | EC21: NULL | ED21: NULL | EE21: NULL | EF21: F | EG21: NULL | EH21: NULL | EI21: NULL | EJ21: NULL | EK21: NULL | EL21: F | EM21: NULL | EN21: NULL | EO21: NULL | EP21: NULL | EQ21: NULL | ER21: F | ES21: NULL | ET21: NULL | EU21: NULL | EV21: NULL | EW21: NULL | EX21: F | EY21: NULL | EZ21: NULL | FA21: NULL | FB21: 45253.11092 | FC21: 45253.11092
A22: 17936 | B22: Yes | C22: Prescriptive | D22: OZONSYS75125GWHFULL | E22: Ozone Laundry System 75-125 Lbs Capacity - Gas WH Full Terr | F22: Clothes washer | G22: Appliance | H22: BOTH | I22: N/A | J22: 918 | K22: 80 | L22: 2 | M22: 5637 | N22: OR | O22: NBE | P22: New Buildings | Q22: 2024-01-01 | R22: 2026-12-31 | S22: Other | T22: 0 | U22: 0 | V22: 1026.35 | W22: 4464.57 | X22: 5496.12 | Y22: 0 | Z22: Lodging Hot Water | AA22: Clotheswasher | AB22: 0 | AC22: 7500 | AD22: 0 | AE22: 10 | AF22: 0 | AG22: 13479.48 | AH22: 0 | AI22: 0 | AJ22: 0 | AK22: 1 | AL22: 1 | AM22: 0 | AN22: 99 | AO22: 1 | AP22: 1 | AQ22: 99 | AR22: 99 | AS22: 99 | AT22: 99 | AU22: NULL | AV22: NULL | AW22: NULL | AX22: NULL | AY22: NULL | AZ22: NULL | BA22: 99 | BB22: NULL | BC22: Clothes Washer | BD22: MANUFACTURER | BE22: Manufacturer Name | BF22: T | BG22: Alphanumeric | BH22: 40 | BI22: ED | BJ22: MODEL | BK22: Model | BL22: T | BM22: Alphanumeric | BN22: 20 | BO22: ED | BP22: CAPACITY | BQ22: Capacity (lbs) | BR22: F | BS22: Alphanumeric | BT22: 10 | BU22: ED | BV22: NULL | BW22: NULL | BX22: F | BY22: NULL | BZ22: NULL | CA22: NULL | CB22: NULL | CC22: NULL | CD22: F | CE22: NULL | CF22: NULL | CG22: NULL | CH22: NULL | CI22: NULL | CJ22: F | CK22: NULL | CL22: NULL | CM22: NULL | CN22: NULL | CO22: NULL | CP22: F | CQ22: NULL | CR22: NULL | CS22: NULL | CT22: NULL | CU22: NULL | CV22: F | CW22: NULL | CX22: NULL | CY22: NULL | CZ22: NULL | DA22: NULL | DB22: F | DC22: NULL | DD22: NULL | DE22: NULL | DF22: NULL | DG22: NULL | DH22: F | DI22: NULL | DJ22: NULL | DK22: NULL | DL22: NULL | DM22: NULL | DN22: F | DO22: NULL | DP22: NULL | DQ22: NULL | DR22: NULL | DS22: NULL | DT22: F | DU22: NULL | DV22: NULL | DW22: NULL | DX22: NULL | DY22: NULL | DZ22: F | EA22: NULL | EB22: NULL | EC22: NULL | ED22: NULL | EE22: NULL | EF22: F | EG22: NULL | EH22: NULL | EI22: NULL | EJ22: NULL | EK22: NULL | EL22: F | EM22: NULL | EN22: NULL | EO22: NULL | EP22: NULL | EQ22: NULL | ER22: F | ES22: NULL | ET22: NULL | EU22: NULL | EV22: NULL | EW22: NULL | EX22: F | EY22: NULL | EZ22: NULL | FA22: NULL | FB22: 45253.11092 | FC22: 45253.11092
